Workbook

Sheet Instructions
A1: Instructions - MHP Schedule of Rental Income (SRI) | J1: Rev. 4/21/16
A2: Report Submittal: This SRI must be submitted electronically by email as a Macro Enabled Excel file (.xlsm). No signature is required beyond selecting the checkbox and completing the name, title and date fields in the certification area in Section G of Worksheet 1 "Checklist and Certification".
A3: Department Approval: Once approved, your Asset Management and Compliance (AMC) Representative will email your SRI back to you with Section H Department Approval completed. Please print and retain the complete approved SRI.
A4: General: These instructions are to help you complete the SRI spreadsheets. This SRI applies to the MHP, SHMHP, GHI, HY, DRP, TOD Housing, HLCP and FWHG programs and relates to compliance with the requirements contained in the Program Regulations and the Project’s HCD Regulatory Agreement.
A5: This SRI is comprised of six worksheets. Please see below for specific instructions on each of them. The formulas contained in the cells are protected. Please fill in cells that are shaded light yellow. Should you have any questions or problems completing the SRI, please contact your AMC Representative.
A6: 1. CHECKLIST & CERTIFICATION - On the top-center portion of the worksheet, highlighted in yellow, select the applicable HCD program from the dropdown list. Complete the remaining sections as follows:
A7: A. GENERAL INFORMATION: Complete all fields highlighted in yellow.
A8: B. UTILITY ALLOWANCE CHART (Also see E, below) For all projects, complete this utility allowance chart. Leave blank any Bedroom Size/Unit Descriptions that do not exist in the Project. This information will autofill onto the remaining worksheets. If your Project can use one set of utility allowances for all units then this is the only Utility Allowance Chart you must complete. If, however your Project must use different utility allowance charts for different units, complete this chart (Section B) plus additional charts in Section E.
A9: C. AMI 50% INCOME AND RENT LIMITS: This section has been updated/enhanced. Complete the yellow shaded cells in worksheet 2. Income-Rent Calculator. After completion fill out the yellow shaded cells in worksheeet 3. Restric Units Income&Rents (AMI levels will autopopulate within worksheet 3). If all project units are restricted by SMI, skip this section.
A10: D. SMI 20% INCOME LIMITS: This section has been updated/enhanced so that no input is necessary except for to fill out the yellow shaded cells in worksheeet 3. Restric Units Income&Rents (SMI levels will autopopulate within worksheet 3). If all project units are restricted by SMI, skip worksheet 2. Income-Rent Calculator.
A11: E. ADDITIONAL UTILITY ALLOWANCE CHARTS: These additional Monthly Utility Allowance Charts are for use only by projects that have more than one set of utility allowances to account for different utility allowances for different buildings or sets of units. Utility allowances will be used to automatically net out utility allowances from gross rent to calculate net rent in Column M on Worksheet 2. "Restricted Units Incomes and Rents". Please see asterisk (*) at the bottom of Section E.
A12: F. CHECKLIST OF REQUIRED ITEMS: Once you have completed Worksheets 2, 4 and 5 and refreshed and reviewed Worksheet 3, return to Worksheet 1 and check the boxes indicating that you have completed the required items.
A13: G. CERTIFICATION: Complete the certification area. Follow Report Submittal Instructions, Above.
A14: H. DEPARTMENT APPROVAL: Your AMC Representative will complete this part of the form and email the entire form back to you once approved.
A15: 2. INCOME-RENT CALCULATOR - Follow the instructions on the worksheet. This worksheet replaces 1C and 1D above.
A16: 3. RESTRICTED UNITS INCOMES AND RENTS- Follow the instructions that appear as comment boxes when you pass your cursor over the Column headings [A] through [T].
A17: Managers' Units: If the free rent of any onsite management employee is included as part of the Project’s operating expenses, then be sure to list those units with the value of the free rent. If it is an income and rent restricted unit, it should be listed on Worksheet 2. "Restricted Incomes and Rents". If it is a non-restricted unit, it should be listed on Worksheet 4. "Non-Restricted Unit Rents".
A18: Column [D]: Unit Designation: For each unit, use the drop down button to make your selection from the following:
A19: MA = MHP Assisted unit SH = MHP Supportive Housing unit SN = MHP Special Needs Population unit HY = MHP Homeless Youth unit GHI = MHP Governor's Homeless Initiative unit FMTW = Families Moving To Work unit | F19: TOD = Transit Oriented Development Housing unit FWHG = Farmworker Housing Grant unit 707-E = HLCP Existing Tenant unit 707-N = HLCP New Tenant Since Conversion unit OR = A unit Restricted by an Other government program
A20: Column [T]: Errors/Exceptions: Correct any errors indicated by, "P-RENT", "INCOME", and/or "OCCUP" before submitting the Schedule. Submit your under-occupancy exception forms electronically, or explain in comment section at bottom of worksheet. Explain what policies and procedures will be implemented to bring the Unit Mix into compliance.
A21: Column [U]: FWHG Program Only: For any qualifying Agricultural Worker households, the rent must meet program requirements. This column displays the proposed tenant rent divided by the certified household income, as a percentage.
A22: 4. RESTRICTED UNIT MIX SUMMARY
A23: Once refreshed, this worksheet summarizes the number of units by Unit Size, Unit Designation and Targeted Income Level. This information is drawn from Worksheet 2. "Restricted Units Incomes and Rents". Compare this chart to the Unit Mix Breakdown in your HCD Regulatory Agreement; for MHP programs it can be found in Exhibit B.
A24: 5. NON-RESTRICTED UNITS RENTS - instructions appear as comments as you pass your cursor over column headings.
A25: 6. COMMERCIAL SPACE RENTS - Complete this worksheet for any commercial space in your Project.

Sheet 1. Checklist & Certification
A1: Use the dropown menu to select the appropriate HCD funding program here (first tab) | AB1: SMI and AMI Income Limits by Number of Persons in Household | AN1: Min. Occupancy Standards UMR 8305(b) | AR1: SMI & AMI Income Limits applicable to Rents by Number of Persons in Household | BC1: AMI and SMI Rent Limits by Unit Size*
A2: Complete all light yellow cells. Green cells are HCD use only. Red triangles have cell entry instructions. | AB2: Level | AC2: 1 | AD2: 2 | AE2: 3 | AF2: 4 | AG2: 5 | AH2: 6 | AI2: 7 | AJ2: 8 | AK2: Vacant | AN2: Unit Size | AO2: # of Persons | AR2: Level | AS2: 1 | AT2: 2 | AU2: 3 | AV2: 4 | AW2: 5 | AX2: 6 | AY2: 7 | AZ2: 8 | BA2: Vacant | BC2: Level | BD2: 0 Bdrm | BE2: 1 Bdrm | BF2: 2 Bdrm | BG2: 3 Bdrm | BH2: 4 Bdrm | BI2: 5 Bdrm
A3: 1. Checklist and Certification | K3: =Instructions!J1 -> Rev. 4/21/16 | R3: Do not change this area | AA3: 0.15 | AB3: 15% AMI | AC3: ='2. Income-Rent Calculator'!E13 ->  | AD3: ='2. Income-Rent Calculator'!F13 ->  | AE3: ='2. Income-Rent Calculator'!G13 ->  | AF3: ='2. Income-Rent Calculator'!H13 ->  | AG3: ='2. Income-Rent Calculator'!I13 ->  | AH3: ='2. Income-Rent Calculator'!J13 ->  | AI3: ='2. Income-Rent Calculator'!K13 ->  | AJ3: ='2. Income-Rent Calculator'!L13 ->  | AK3: Vacant | AN3: 0 Bdrm | AO3: 1 | AQ3: 0.15 | AR3: 15% AMI | AS3: ='2. Income-Rent Calculator'!O13 -> 0 | AT3: ='2. Income-Rent Calculator'!P13 -> 0 | AU3: ='2. Income-Rent Calculator'!Q13 -> 0 | AV3: ='2. Income-Rent Calculator'!R13 -> 0 | AW3: ='2. Income-Rent Calculator'!S13 -> 0 | AX3: ='2. Income-Rent Calculator'!T13 -> 0 | AY3: ='2. Income-Rent Calculator'!U13 -> 0 | AZ3: ='2. Income-Rent Calculator'!V13 -> 0 | BA3: Vacant | BB3: 0.15 | BC3: 15% AMI | BD3: ='2. Income-Rent Calculator'!E27 ->  | BE3: ='2. Income-Rent Calculator'!F27 ->  | BF3: ='2. Income-Rent Calculator'!G27 ->  | BG3: ='2. Income-Rent Calculator'!H27 ->  | BH3: ='2. Income-Rent Calculator'!I27 ->  | BI3: ='2. Income-Rent Calculator'!J27 -> 
A4: A. GENERAL INFORMATION (Complete all fields) | G4: B. UTILITY ALLOWANCE CHART (also complete Section D. if any units use different allowances) | R4: Use the dropown menu to select the appropriate HCD funding program here (first tab) | AA4: 0.2 | AB4: 20% AMI | AC4: ='2. Income-Rent Calculator'!E14 ->  | AD4: ='2. Income-Rent Calculator'!F14 ->  | AE4: ='2. Income-Rent Calculator'!G14 ->  | AF4: ='2. Income-Rent Calculator'!H14 ->  | AG4: ='2. Income-Rent Calculator'!I14 ->  | AH4: ='2. Income-Rent Calculator'!J14 ->  | AI4: ='2. Income-Rent Calculator'!K14 ->  | AJ4: ='2. Income-Rent Calculator'!L14 ->  | AK4: Vacant | AN4: 1 Bdrm | AO4: 1 | AQ4: 0.2 | AR4: 20% AMI | AS4: ='2. Income-Rent Calculator'!O14 -> 0 | AT4: ='2. Income-Rent Calculator'!P14 -> 0 | AU4: ='2. Income-Rent Calculator'!Q14 -> 0 | AV4: ='2. Income-Rent Calculator'!R14 -> 0 | AW4: ='2. Income-Rent Calculator'!S14 -> 0 | AX4: ='2. Income-Rent Calculator'!T14 -> 0 | AY4: ='2. Income-Rent Calculator'!U14 -> 0 | AZ4: ='2. Income-Rent Calculator'!V14 -> 0 | BA4: Vacant | BB4: 0.2 | BC4: 20% AMI | BD4: ='2. Income-Rent Calculator'!E28 ->  | BE4: ='2. Income-Rent Calculator'!F28 ->  | BF4: ='2. Income-Rent Calculator'!G28 ->  | BG4: ='2. Income-Rent Calculator'!H28 ->  | BH4: ='2. Income-Rent Calculator'!I28 ->  | BI4: ='2. Income-Rent Calculator'!J28 -> 
R5: Downtown Rebound Program | AA5: 0.25 | AB5: 25% AMI | AC5: ='2. Income-Rent Calculator'!E15 ->  | AD5: ='2. Income-Rent Calculator'!F15 ->  | AE5: ='2. Income-Rent Calculator'!G15 ->  | AF5: ='2. Income-Rent Calculator'!H15 ->  | AG5: ='2. Income-Rent Calculator'!I15 ->  | AH5: ='2. Income-Rent Calculator'!J15 ->  | AI5: ='2. Income-Rent Calculator'!K15 ->  | AJ5: ='2. Income-Rent Calculator'!L15 ->  | AK5: Vacant | AN5: 2 Bdrm | AO5: 2 | AQ5: 0.25 | AR5: 25% AMI | AS5: ='2. Income-Rent Calculator'!O15 -> 0 | AT5: ='2. Income-Rent Calculator'!P15 -> 0 | AU5: ='2. Income-Rent Calculator'!Q15 -> 0 | AV5: ='2. Income-Rent Calculator'!R15 -> 0 | AW5: ='2. Income-Rent Calculator'!S15 -> 0 | AX5: ='2. Income-Rent Calculator'!T15 -> 0 | AY5: ='2. Income-Rent Calculator'!U15 -> 0 | AZ5: ='2. Income-Rent Calculator'!V15 -> 0 | BA5: Vacant | BB5: 0.25 | BC5: 25% AMI | BD5: ='2. Income-Rent Calculator'!E29 ->  | BE5: ='2. Income-Rent Calculator'!F29 ->  | BF5: ='2. Income-Rent Calculator'!G29 ->  | BG5: ='2. Income-Rent Calculator'!H29 ->  | BH5: ='2. Income-Rent Calculator'!I29 ->  | BI5: ='2. Income-Rent Calculator'!J29 -> 
A6: Contract Number(s): | I6: Unit Size/ No. of BRs | J6: Monthly Allowance | R6: Families Moving to Work Program | AA6: 0.3 | AB6: 30% AMI | AC6: ='2. Income-Rent Calculator'!E16 ->  | AD6: ='2. Income-Rent Calculator'!F16 ->  | AE6: ='2. Income-Rent Calculator'!G16 ->  | AF6: ='2. Income-Rent Calculator'!H16 ->  | AG6: ='2. Income-Rent Calculator'!I16 ->  | AH6: ='2. Income-Rent Calculator'!J16 ->  | AI6: ='2. Income-Rent Calculator'!K16 ->  | AJ6: ='2. Income-Rent Calculator'!L16 ->  | AK6: Vacant | AN6: 3 Bdrm | AO6: 4 | AQ6: 0.3 | AR6: 30% AMI | AS6: ='2. Income-Rent Calculator'!O16 -> 0 | AT6: ='2. Income-Rent Calculator'!P16 -> 0 | AU6: ='2. Income-Rent Calculator'!Q16 -> 0 | AV6: ='2. Income-Rent Calculator'!R16 -> 0 | AW6: ='2. Income-Rent Calculator'!S16 -> 0 | AX6: ='2. Income-Rent Calculator'!T16 -> 0 | AY6: ='2. Income-Rent Calculator'!U16 -> 0 | AZ6: ='2. Income-Rent Calculator'!V16 -> 0 | BA6: Vacant | BB6: 0.3 | BC6: 30% AMI | BD6: ='2. Income-Rent Calculator'!E30 ->  | BE6: ='2. Income-Rent Calculator'!F30 ->  | BF6: ='2. Income-Rent Calculator'!G30 ->  | BG6: ='2. Income-Rent Calculator'!H30 ->  | BH6: ='2. Income-Rent Calculator'!I30 ->  | BI6: ='2. Income-Rent Calculator'!J30 -> 
A7: Project Name: | R7: Farmworker Housing Grant Program | AA7: 0.35 | AB7: 35% AMI | AC7: ='2. Income-Rent Calculator'!E17 ->  | AD7: ='2. Income-Rent Calculator'!F17 ->  | AE7: ='2. Income-Rent Calculator'!G17 ->  | AF7: ='2. Income-Rent Calculator'!H17 ->  | AG7: ='2. Income-Rent Calculator'!I17 ->  | AH7: ='2. Income-Rent Calculator'!J17 ->  | AI7: ='2. Income-Rent Calculator'!K17 ->  | AJ7: ='2. Income-Rent Calculator'!L17 ->  | AK7: Vacant | AN7: 4 Bdrm | AO7: 6 | AQ7: 0.35 | AR7: 35% AMI | AS7: ='2. Income-Rent Calculator'!O17 -> 0 | AT7: ='2. Income-Rent Calculator'!P17 -> 0 | AU7: ='2. Income-Rent Calculator'!Q17 -> 0 | AV7: ='2. Income-Rent Calculator'!R17 -> 0 | AW7: ='2. Income-Rent Calculator'!S17 -> 0 | AX7: ='2. Income-Rent Calculator'!T17 -> 0 | AY7: ='2. Income-Rent Calculator'!U17 -> 0 | AZ7: ='2. Income-Rent Calculator'!V17 -> 0 | BA7: Vacant | BB7: 0.35 | BC7: 35% AMI | BD7: ='2. Income-Rent Calculator'!E31 ->  | BE7: ='2. Income-Rent Calculator'!F31 ->  | BF7: ='2. Income-Rent Calculator'!G31 ->  | BG7: ='2. Income-Rent Calculator'!H31 ->  | BH7: ='2. Income-Rent Calculator'!I31 ->  | BI7: ='2. Income-Rent Calculator'!J31 -> 
A8: Sponsor Name: | I8: 0 Bdrm | R8: Housing Loan Conversion Program | AA8: 0.4 | AB8: 40% AMI | AC8: ='2. Income-Rent Calculator'!E18 ->  | AD8: ='2. Income-Rent Calculator'!F18 ->  | AE8: ='2. Income-Rent Calculator'!G18 ->  | AF8: ='2. Income-Rent Calculator'!H18 ->  | AG8: ='2. Income-Rent Calculator'!I18 ->  | AH8: ='2. Income-Rent Calculator'!J18 ->  | AI8: ='2. Income-Rent Calculator'!K18 ->  | AJ8: ='2. Income-Rent Calculator'!L18 ->  | AK8: Vacant | AN8: 5 Bdrm | AO8: 8 | AQ8: 0.4 | AR8: 40% AMI | AS8: ='2. Income-Rent Calculator'!O18 -> 0 | AT8: ='2. Income-Rent Calculator'!P18 -> 0 | AU8: ='2. Income-Rent Calculator'!Q18 -> 0 | AV8: ='2. Income-Rent Calculator'!R18 -> 0 | AW8: ='2. Income-Rent Calculator'!S18 -> 0 | AX8: ='2. Income-Rent Calculator'!T18 -> 0 | AY8: ='2. Income-Rent Calculator'!U18 -> 0 | AZ8: ='2. Income-Rent Calculator'!V18 -> 0 | BA8: Vacant | BB8: 0.4 | BC8: 40% AMI | BD8: ='2. Income-Rent Calculator'!E32 ->  | BE8: ='2. Income-Rent Calculator'!F32 ->  | BF8: ='2. Income-Rent Calculator'!G32 ->  | BG8: ='2. Income-Rent Calculator'!H32 ->  | BH8: ='2. Income-Rent Calculator'!I32 ->  | BI8: ='2. Income-Rent Calculator'!J32 -> 
A9: Management Agent: | I9: 1 Bdrm | R9: Multifamily Housing Program | AA9: 0.45 | AB9: 45% AMI | AC9: ='2. Income-Rent Calculator'!E19 ->  | AD9: ='2. Income-Rent Calculator'!F19 ->  | AE9: ='2. Income-Rent Calculator'!G19 ->  | AF9: ='2. Income-Rent Calculator'!H19 ->  | AG9: ='2. Income-Rent Calculator'!I19 ->  | AH9: ='2. Income-Rent Calculator'!J19 ->  | AI9: ='2. Income-Rent Calculator'!K19 ->  | AJ9: ='2. Income-Rent Calculator'!L19 ->  | AK9: Vacant | AQ9: 0.45 | AR9: 45% AMI | AS9: ='2. Income-Rent Calculator'!O19 -> 0 | AT9: ='2. Income-Rent Calculator'!P19 -> 0 | AU9: ='2. Income-Rent Calculator'!Q19 -> 0 | AV9: ='2. Income-Rent Calculator'!R19 -> 0 | AW9: ='2. Income-Rent Calculator'!S19 -> 0 | AX9: ='2. Income-Rent Calculator'!T19 -> 0 | AY9: ='2. Income-Rent Calculator'!U19 -> 0 | AZ9: ='2. Income-Rent Calculator'!V19 -> 0 | BA9: Vacant | BB9: 0.45 | BC9: 45% AMI | BD9: ='2. Income-Rent Calculator'!E33 ->  | BE9: ='2. Income-Rent Calculator'!F33 ->  | BF9: ='2. Income-Rent Calculator'!G33 ->  | BG9: ='2. Income-Rent Calculator'!H33 ->  | BH9: ='2. Income-Rent Calculator'!I33 ->  | BI9: ='2. Income-Rent Calculator'!J33 -> 
A10: Prepared By: | I10: 2 Bdrm | R10: Multifamily Housing Program -- Governors Homeless Initiative | AA10: 0.5 | AB10: 50% AMI | AC10: ='2. Income-Rent Calculator'!E20 ->  | AD10: ='2. Income-Rent Calculator'!F20 ->  | AE10: ='2. Income-Rent Calculator'!G20 ->  | AF10: ='2. Income-Rent Calculator'!H20 ->  | AG10: ='2. Income-Rent Calculator'!I20 ->  | AH10: ='2. Income-Rent Calculator'!J20 ->  | AI10: ='2. Income-Rent Calculator'!K20 ->  | AJ10: ='2. Income-Rent Calculator'!L20 ->  | AK10: Vacant | AQ10: 0.5 | AR10: 50% AMI | AS10: ='2. Income-Rent Calculator'!O20 -> 0 | AT10: ='2. Income-Rent Calculator'!P20 -> 0 | AU10: ='2. Income-Rent Calculator'!Q20 -> 0 | AV10: ='2. Income-Rent Calculator'!R20 -> 0 | AW10: ='2. Income-Rent Calculator'!S20 -> 0 | AX10: ='2. Income-Rent Calculator'!T20 -> 0 | AY10: ='2. Income-Rent Calculator'!U20 -> 0 | AZ10: ='2. Income-Rent Calculator'!V20 -> 0 | BA10: Vacant | BB10: 0.5 | BC10: 50% AMI | BD10: ='2. Income-Rent Calculator'!E34 ->  | BE10: ='2. Income-Rent Calculator'!F34 ->  | BF10: ='2. Income-Rent Calculator'!G34 ->  | BG10: ='2. Income-Rent Calculator'!H34 ->  | BH10: ='2. Income-Rent Calculator'!I34 ->  | BI10: ='2. Income-Rent Calculator'!J34 -> 
A11: Phone #: | I11: 3 Bdrm | R11: Multifamily Housing Program -- Homeless Youth | AA11: 0.55 | AB11: 55% AMI | AC11: ='2. Income-Rent Calculator'!E21 ->  | AD11: ='2. Income-Rent Calculator'!F21 ->  | AE11: ='2. Income-Rent Calculator'!G21 ->  | AF11: ='2. Income-Rent Calculator'!H21 ->  | AG11: ='2. Income-Rent Calculator'!I21 ->  | AH11: ='2. Income-Rent Calculator'!J21 ->  | AI11: ='2. Income-Rent Calculator'!K21 ->  | AJ11: ='2. Income-Rent Calculator'!L21 ->  | AK11: Vacant | AQ11: 0.55 | AR11: 55% AMI | AS11: ='2. Income-Rent Calculator'!O21 -> 0 | AT11: ='2. Income-Rent Calculator'!P21 -> 0 | AU11: ='2. Income-Rent Calculator'!Q21 -> 0 | AV11: ='2. Income-Rent Calculator'!R21 -> 0 | AW11: ='2. Income-Rent Calculator'!S21 -> 0 | AX11: ='2. Income-Rent Calculator'!T21 -> 0 | AY11: ='2. Income-Rent Calculator'!U21 -> 0 | AZ11: ='2. Income-Rent Calculator'!V21 -> 0 | BA11: Vacant | BB11: 0.55 | BC11: 55% AMI | BD11: ='2. Income-Rent Calculator'!E35 ->  | BE11: ='2. Income-Rent Calculator'!F35 ->  | BF11: ='2. Income-Rent Calculator'!G35 ->  | BG11: ='2. Income-Rent Calculator'!H35 ->  | BH11: ='2. Income-Rent Calculator'!I35 ->  | BI11: ='2. Income-Rent Calculator'!J35 -> 
A12: Fiscal Year: | I12: 4 Bdrm | R12: Multifamily Housing Program -- Supportive Housing | AA12: 0.6 | AB12: 60% AMI | AC12: ='2. Income-Rent Calculator'!E22 ->  | AD12: ='2. Income-Rent Calculator'!F22 ->  | AE12: ='2. Income-Rent Calculator'!G22 ->  | AF12: ='2. Income-Rent Calculator'!H22 ->  | AG12: ='2. Income-Rent Calculator'!I22 ->  | AH12: ='2. Income-Rent Calculator'!J22 ->  | AI12: ='2. Income-Rent Calculator'!K22 ->  | AJ12: ='2. Income-Rent Calculator'!L22 ->  | AK12: Vacant | AQ12: 0.6 | AR12: 60% AMI | AS12: ='2. Income-Rent Calculator'!O22 -> 0 | AT12: ='2. Income-Rent Calculator'!P22 -> 0 | AU12: ='2. Income-Rent Calculator'!Q22 -> 0 | AV12: ='2. Income-Rent Calculator'!R22 -> 0 | AW12: ='2. Income-Rent Calculator'!S22 -> 0 | AX12: ='2. Income-Rent Calculator'!T22 -> 0 | AY12: ='2. Income-Rent Calculator'!U22 -> 0 | AZ12: ='2. Income-Rent Calculator'!V22 -> 0 | BA12: Vacant | BB12: 0.6 | BC12: 60% AMI | BD12: ='2. Income-Rent Calculator'!E36 ->  | BE12: ='2. Income-Rent Calculator'!F36 ->  | BF12: ='2. Income-Rent Calculator'!G36 ->  | BG12: ='2. Income-Rent Calculator'!H36 ->  | BH12: ='2. Income-Rent Calculator'!I36 ->  | BI12: ='2. Income-Rent Calculator'!J36 -> 
A13: Fiscal Year Start - Finish: | I13: 5 Bdrm | R13: TOD Housing Program | AA13: 0.8 | AB13: 80% AMI | AC13: ='2. Income-Rent Calculator'!E23 ->  | AD13: ='2. Income-Rent Calculator'!F23 ->  | AE13: ='2. Income-Rent Calculator'!G23 ->  | AF13: ='2. Income-Rent Calculator'!H23 ->  | AG13: ='2. Income-Rent Calculator'!I23 ->  | AH13: ='2. Income-Rent Calculator'!J23 ->  | AI13: ='2. Income-Rent Calculator'!K23 ->  | AJ13: ='2. Income-Rent Calculator'!L23 ->  | AK13: Vacant | AQ13: 0.8 | AR13: 80% AMI | AS13: ='2. Income-Rent Calculator'!O23 -> 0 | AT13: ='2. Income-Rent Calculator'!P23 -> 0 | AU13: ='2. Income-Rent Calculator'!Q23 -> 0 | AV13: ='2. Income-Rent Calculator'!R23 -> 0 | AW13: ='2. Income-Rent Calculator'!S23 -> 0 | AX13: ='2. Income-Rent Calculator'!T23 -> 0 | AY13: ='2. Income-Rent Calculator'!U23 -> 0 | AZ13: ='2. Income-Rent Calculator'!V23 -> 0 | BA13: Vacant | BB13: 0.8 | BC13: 80% AMI | BD13: ='2. Income-Rent Calculator'!E37 ->  | BE13: ='2. Income-Rent Calculator'!F37 ->  | BF13: ='2. Income-Rent Calculator'!G37 ->  | BG13: ='2. Income-Rent Calculator'!H37 ->  | BH13: ='2. Income-Rent Calculator'!I37 ->  | BI13: ='2. Income-Rent Calculator'!J37 -> 
A14: C. AMI 50% INCOME AND RENT LIMITS: This section has been updated/enhanced. Complete the yellow shaded cells in worksheet 2. Income-Rent Calculator. After completion fill out the yellow shaded cells in worksheeet 3. Restric Units Income&Rents (AMI levels will autopopulate within worksheet 3). If all project units are restricted by SMI, skip this section. | AB14: 100% SMI | AC14: =AF14*0.7 -> 49980 | AD14: =AF14*0.8 -> 57120 | AE14: =AF14*0.9 -> 64260 | AF14: 71400 | AG14: =AF14*1.08 -> 77112 | AH14: =AF14*1.16 -> 82824 | AI14: =AF14*1.24 -> 88536 | AJ14: =AF14*1.32 -> 94248 | AK14: Vacant | BC14: 50% SMI | BD14: =($AC$15/12*0.3) -> 624.75 | BE14: =($AC$15+$AD$15)/2/12*0.3 -> 669.375 | BF14: =$AE$15/12*0.3 -> 803.25 | BG14: =($AF$15+$AG$15)/2/12*0.3 -> 928.2 | BH14: =$AH$15/12*0.3 -> 1035.3 | BI14: =($AI$15+$AJ$15)/2/12*0.3 -> 1142.4
A15: D. SMI 20% INCOME LIMITS: This section has been updated/enhanced so that no input is necessary. Sponsors will still need to fill out the yellow shaded cells in worksheeet 3. Restric Units Income&Rents (SMI levels will autopopulate within worksheet 3). If all project units are restricted by SMI, skip worksheet 2. Income-Rent Calculator. | AB15: 50% SMI | AC15: 24990 | AD15: 28560 | AE15: 32130 | AF15: =AF14*0.5 -> 35700 | AG15: 38556 | AH15: 41412 | AI15: 44268 | AJ15: 47124 | AK15: Vacant | BC15: 45% SMI | BD15: =($AC$16/12*0.3) -> 562.275 | BE15: =($AC$16+$AD$16)/2/12*0.3 -> 602.4375 | BF15: =$AE$16/12*0.3 -> 722.925 | BG15: =($AF$16+$AG$16)/2/12*0.3 -> 835.38 | BH15: =$AH$16/12*0.3 -> 931.77 | BI15: =($AI$16+$AJ$16)/2/12*0.3 -> 1028.16
A16: E. ADDITIONAL UTILITY ALLOWANCE CHARTS (for projects with more than one group of utility allowances): If your Project uses the same utility allowances for all same sized units, then complete only the chart in Section B, above. If different buildings or groups of units have different utility allowances, complete additional charts B, C, D and E, below, as necessary. On Worksheet 2. "Restricted Units Incomes and Rents", place the corresponding HCD Reference Letter, followed by an asterisk, in front of the unit number to distinguish which building the unit is associated with. For example, if unit 201 is located in building B, the unit number should typed in as "B*201" in the first column. Do not place a blank between the letter, the asterisk, or the number. | AB16: 45% SMI | AC16: 22491 | AD16: 25704 | AE16: 28917 | AF16: =AF14*0.45 -> 32130 | AG16: 34700.4 | AH16: 37270.8 | AI16: 39841.2 | AJ16: 42411.6 | AK16: Vacant | BC16: 40% SMI | BD16: =($AC$17/12*0.3) -> 499.8 | BE16: =($AC$17+$AD$17)/2/12*0.3 -> 535.5 | BF16: =$AE$17/12*0.3 -> 642.6 | BG16: =($AF$17+$AG$17)/2/12*0.3 -> 742.56 | BH16: =$AH$17/12*0.3 -> 828.24 | BI16: =($AI$17+$AJ$17)/2/12*0.3 -> 913.92
D17: HCD Reference Letter: B* | F17: HCD Reference Letter: C* | H17: HCD Reference Letter: D* | J17: HCD Reference Letter: E* | AB17: 40% SMI | AC17: 19992 | AD17: 22848 | AE17: 25704 | AF17: =AF14*0.4 -> 28560 | AG17: 30844.8 | AH17: 33129.6 | AI17: 35414.4 | AJ17: 37699.2 | AK17: Vacant | BC17: 35% SMI | BD17: =$AC$18/12*0.3 -> 437.325 | BE17: =($AC$18+$AD$18)/2/12*0.3 -> 468.5625 | BF17: =$AE$18/12*0.3 -> 562.275 | BG17: =($AF$18+$AG$18)/2/12*0.3 -> 649.74 | BH17: =$AH$18/12*0.3 -> 724.71 | BI17: =($AI$18+$AJ$18)/2/12*0.3 -> 799.68
A18: NOTE: This section should be left blank if all units in the project use the same utility allowances, in which case, complete section B., above, only. | D18: Your Bldg ID | F18: Your Bldg ID | H18: Your Bldg ID | J18: Your Bldg ID | AB18: 35% SMI | AC18: 17493 | AD18: 19992 | AE18: 22491 | AF18: =AF14*0.35 -> 24990 | AG18: 26989.2 | AH18: 28988.4 | AI18: 30987.6 | AJ18: 32986.8 | AK18: Vacant | BC18: 30% SMI | BD18: =$AC$19/12*0.3 -> 374.85 | BE18: =($AC$19+$AD$19)/2/12*0.3 -> 401.625 | BF18: =$AE$19/12*0.3 -> 481.95 | BG18: =($AF$19+$AG$19)/2/12*0.3 -> 556.92 | BH18: =$AH$19/12*0.3 -> 621.18 | BI18: =($AI$19+$AJ$19)/2/12*0.3 -> 685.44
D19: Unit Size | E19: Mo Util Allow | F19: Unit Size | G19: Mo Util Allow | H19: Unit Size | I19: Mo Util Allow | J19: Unit Size | K19: Mo Util Allow | AB19: 30% SMI | AC19: 14994 | AD19: 17136 | AE19: 19278 | AF19: =AF14*0.3 -> 21420 | AG19: 23133.6 | AH19: 24847.2 | AI19: 26560.8 | AJ19: 28274.4 | AK19: Vacant | BC19: 25% SMI | BD19: =$AC$20/12*0.3 -> 312.375 | BE19: =($AC$20+$AD$20)/2/12*0.3 -> 334.6875 | BF19: =$AE$20/12*0.3 -> 401.625 | BG19: =($AF$20+$AG$20)/2/12*0.3 -> 464.1 | BH19: =$AH$20/12*0.3 -> 517.65 | BI19: =($AI$20+$AJ$20)/2/12*0.3 -> 571.2
D20: 0 Bdrm | F20: 0 Bdrm | H20: 0 Bdrm | J20: 0 Bdrm | R20: Do not change this area | AB20: 25% SMI | AC20: 12495 | AD20: 14280 | AE20: 16065 | AF20: =AF14*0.25 -> 17850 | AG20: 19278 | AH20: 20706 | AI20: 22134 | AJ20: 23562 | AK20: Vacant | BC20: 20% SMI | BD20: =$AC$21/12*0.3 -> 287.725 | BE20: =($AC$21+$AD$21)/2/12*0.3 -> 298.7375 | BF20: =$AE$21/12*0.3 -> 346.15 | BG20: =($AF$21+$AG$21)/2/12*0.3 -> 413.9875 | BH20: =$AH$21/12*0.3 -> 495.05 | BI20: =($AI$21+$AJ$21)/2/12*0.3 -> 568.225
D21: 1 Bdrm | F21: 1 Bdrm | H21: 1 Bdrm | J21: 1 Bdrm | AB21: 20% SMI | AC21: 11509 | AD21: 12390 | AE21: 13846 | AF21: 15497 | AG21: 17622 | AH21: 19802 | AI21: 21759 | AJ21: 23699 | AK21: Vacant | BC21: *Assumes 1 person in 0 BR, 1.5 persons per BR in other sizes.
D22: 2 Bdrm | F22: 2 Bdrm | H22: 2 Bdrm | J22: 2 Bdrm
D23: 3 Bdrm | F23: 3 Bdrm | H23: 3 Bdrm | J23: 3 Bdrm
D24: 4 Bdrm | F24: 4 Bdrm | H24: 4 Bdrm | J24: 4 Bdrm | R24: 2013 Non-HERA
D25: 5 Bdrm | F25: 5 Bdrm | H25: 5 Bdrm | J25: 5 Bdrm | R25: 2013 HERA
A26: * When entering the unit number on Worksheet 2, begin the unit number with the appropriate HCD Reference Letter followed by an asterisk then the regular unit number. For example, unit B202 would be entered on worksheet 2, Column [A] as "B*B202". | R26: 2012 Non-HERA
A27: F. CHECKLIST OF REQUIRED ITEMS: Items 1. through 5. must be completed. | R27: 2011 Non-HERA
B28: 1. Checklist, Certification and Instructions | R28: 2010 Non-HERA
B29: 2. Restricted Units Incomes and Rents | R29: 2009 Non-HERA
A30: Yes No | B30: 3. Restricted Unit Mix Summary. Does the Restricted Unit Mix Summary meet the requirements of the Regulatory Agreement? After following the refresh instructions on worksheet 3. Restricted Unit Mix Summary, compare the Restricted Unit Mix Summary to the requirements of the Unit Mix Breakdown, Exhibit B of the HCD Regulatory Agreement. | R30: 2008
B31: If No, explain in the yellow box to the right. | R31: 2007
B32: 4. Non-Restricted Units Rents | R32: 2006
B33: 5. Commercial Space Rents
A34: G. CERTIFICATION: By clicking the appropriate checkbox and completing the remainder of this certification block, I certify that: 1. The current tenant rents and other information submitted on the Schedules of Rental Income are a true and accurate representation; 2. Tenants will be given the appropriate notification required by law of the rent adjustments approved by HCD; 3. I am authorized to provide this information, and 4. It is accurate to the best of my knowledge.
C37: Certifier's Name | G37: Title | K37: Date
A38: H. DEPARTMENT APPROVAL (HCD use only):
B39: I hereby approve this Schedule of Rental Income
C41: HCD Rep's Name | G41: Title | K41: Date
B42: Department Comments:

Sheet MTSP Limits (hidden)
B1: County | C1: Year | D1: 1 Person | E1: 2 Person | F1: 3 Person | G1: 4 Person | H1: 5 Person | I1: 6 Person | J1: 7 Person | K1: 8 Person | L1: HERA 1 Person | M1: HERA 2 Person | N1: HERA 3 Person | O1: HERA 4 Person | P1: HERA 5 Person | Q1: HERA 6 Person | R1: HERA 7 Person | S1: HERA 8 Person
A2: Alameda3/8/06 - 3/19/07 | B2: Alameda | C2: 3/8/06 - 3/19/07 | D2: 29350 | E2: 33500 | F2: 37700 | G2: 41900 | H2: 45250 | I2: 48600 | J2: 51950 | K2: 55300
A3: Alpine3/8/06 - 3/19/07 | B3: Alpine | C3: 3/8/06 - 3/19/07 | D3: 22600 | E3: 25850 | F3: 29050 | G3: 32300 | H3: 34900 | I3: 37450 | J3: 40050 | K3: 42650
A4: Amador3/8/06 - 3/19/07 | B4: Amador | C4: 3/8/06 - 3/19/07 | D4: 21950 | E4: 25100 | F4: 28200 | G4: 31350 | H4: 33850 | I4: 36350 | J4: 38850 | K4: 41400
A5: Butte3/8/06 - 3/19/07 | B5: Butte | C5: 3/8/06 - 3/19/07 | D5: 17800 | E5: 20300 | F5: 22850 | G5: 25400 | H5: 27450 | I5: 29450 | J5: 31500 | K5: 33550
A6: Calaveras3/8/06 - 3/19/07 | B6: Calaveras | C6: 3/8/06 - 3/19/07 | D6: 20350 | E6: 23250 | F6: 26150 | G6: 29050 | H6: 31350 | I6: 33700 | J6: 36000 | K6: 38350
A7: Colusa3/8/06 - 3/19/07 | B7: Colusa | C7: 3/8/06 - 3/19/07 | D7: 17800 | E7: 20300 | F7: 22850 | G7: 25400 | H7: 27450 | I7: 29450 | J7: 31500 | K7: 33550
A8: Contra Costa3/8/06 - 3/19/07 | B8: Contra Costa | C8: 3/8/06 - 3/19/07 | D8: 29350 | E8: 33500 | F8: 37700 | G8: 41900 | H8: 45250 | I8: 48600 | J8: 51950 | K8: 55300
A9: Del Norte3/8/06 - 3/19/07 | B9: Del Norte | C9: 3/8/06 - 3/19/07 | D9: 17800 | E9: 20300 | F9: 22850 | G9: 25400 | H9: 27450 | I9: 29450 | J9: 31500 | K9: 33550
A10: El Dorado3/8/06 - 3/19/07 | B10: El Dorado | C10: 3/8/06 - 3/19/07 | D10: 22900 | E10: 26150 | F10: 29450 | G10: 32700 | H10: 35300 | I10: 37950 | J10: 40550 | K10: 43150
A11: Fresno3/8/06 - 3/19/07 | B11: Fresno | C11: 3/8/06 - 3/19/07 | D11: 17800 | E11: 20300 | F11: 22850 | G11: 25400 | H11: 27450 | I11: 29450 | J11: 31500 | K11: 33550
A12: Glenn3/8/06 - 3/19/07 | B12: Glenn | C12: 3/8/06 - 3/19/07 | D12: 17800 | E12: 20300 | F12: 22850 | G12: 25400 | H12: 27450 | I12: 29450 | J12: 31500 | K12: 33550
A13: Humboldt3/8/06 - 3/19/07 | B13: Humboldt | C13: 3/8/06 - 3/19/07 | D13: 17800 | E13: 20300 | F13: 22850 | G13: 25400 | H13: 27450 | I13: 29450 | J13: 31500 | K13: 33550
A14: Imperial3/8/06 - 3/19/07 | B14: Imperial | C14: 3/8/06 - 3/19/07 | D14: 17800 | E14: 20300 | F14: 22850 | G14: 25400 | H14: 27450 | I14: 29450 | J14: 31500 | K14: 33550
A15: Inyo3/8/06 - 3/19/07 | B15: Inyo | C15: 3/8/06 - 3/19/07 | D15: 19100 | E15: 21850 | F15: 24550 | G15: 27300 | H15: 29500 | I15: 31650 | J15: 33850 | K15: 36050
A16: Kern3/8/06 - 3/19/07 | B16: Kern | C16: 3/8/06 - 3/19/07 | D16: 17800 | E16: 20300 | F16: 22850 | G16: 25400 | H16: 27450 | I16: 29450 | J16: 31500 | K16: 33550
A17: Kings3/8/06 - 3/19/07 | B17: Kings | C17: 3/8/06 - 3/19/07 | D17: 17800 | E17: 20300 | F17: 22850 | G17: 25400 | H17: 27450 | I17: 29450 | J17: 31500 | K17: 33550
A18: Lake3/8/06 - 3/19/07 | B18: Lake | C18: 3/8/06 - 3/19/07 | D18: 17800 | E18: 20300 | F18: 22850 | G18: 25400 | H18: 27450 | I18: 29450 | J18: 31500 | K18: 33550
A19: Lassen3/8/06 - 3/19/07 | B19: Lassen | C19: 3/8/06 - 3/19/07 | D19: 18400 | E19: 21000 | F19: 23650 | G19: 26250 | H19: 28350 | I19: 30450 | J19: 32550 | K19: 34650
A20: Los Angeles3/8/06 - 3/19/07 | B20: Los Angeles | C20: 3/8/06 - 3/19/07 | D20: 24250 | E20: 27700 | F20: 31200 | G20: 34650 | H20: 37400 | I20: 40200 | J20: 42950 | K20: 45750
A21: Madera3/8/06 - 3/19/07 | B21: Madera | C21: 3/8/06 - 3/19/07 | D21: 17800 | E21: 20300 | F21: 22850 | G21: 25400 | H21: 27450 | I21: 29450 | J21: 31500 | K21: 33550
A22: Marin3/8/06 - 3/19/07 | B22: Marin | C22: 3/8/06 - 3/19/07 | D22: 39600 | E22: 45250 | F22: 50900 | G22: 56550 | H22: 61050 | I22: 65600 | J22: 70100 | K22: 74650
A23: Mariposa3/8/06 - 3/19/07 | B23: Mariposa | C23: 3/8/06 - 3/19/07 | D23: 17950 | E23: 20500 | F23: 23100 | G23: 25650 | H23: 27700 | I23: 29750 | J23: 31800 | K23: 33850
A24: Mendocino3/8/06 - 3/19/07 | B24: Mendocino | C24: 3/8/06 - 3/19/07 | D24: 17900 | E24: 20450 | F24: 23000 | G24: 25550 | H24: 27600 | I24: 29650 | J24: 31700 | K24: 33750
A25: Merced3/8/06 - 3/19/07 | B25: Merced | C25: 3/8/06 - 3/19/07 | D25: 17800 | E25: 20300 | F25: 22850 | G25: 25400 | H25: 27450 | I25: 29450 | J25: 31500 | K25: 33550
A26: Modoc3/8/06 - 3/19/07 | B26: Modoc | C26: 3/8/06 - 3/19/07 | D26: 17800 | E26: 20300 | F26: 22850 | G26: 25400 | H26: 27450 | I26: 29450 | J26: 31500 | K26: 33550
A27: Mono3/8/06 - 3/19/07 | B27: Mono | C27: 3/8/06 - 3/19/07 | D27: 21750 | E27: 24850 | F27: 27950 | G27: 31050 | H27: 33550 | I27: 36000 | J27: 38500 | K27: 41000
A28: Monterey3/8/06 - 3/19/07 | B28: Monterey | C28: 3/8/06 - 3/19/07 | D28: 21800 | E28: 24900 | F28: 28050 | G28: 31150 | H28: 33650 | I28: 36150 | J28: 38650 | K28: 41100
A29: Napa3/8/06 - 3/19/07 | B29: Napa | C29: 3/8/06 - 3/19/07 | D29: 26250 | E29: 30000 | F29: 33750 | G29: 37500 | H29: 40500 | I29: 43500 | J29: 46500 | K29: 49500
A30: Nevada3/8/06 - 3/19/07 | B30: Nevada | C30: 3/8/06 - 3/19/07 | D30: 22450 | E30: 25700 | F30: 28900 | G30: 32100 | H30: 34650 | I30: 37250 | J30: 39800 | K30: 42350
A31: Orange3/8/06 - 3/19/07 | B31: Orange | C31: 3/8/06 - 3/19/07 | D31: 28400 | E31: 32450 | F31: 36500 | G31: 40550 | H31: 43800 | I31: 47050 | J31: 50300 | K31: 53550
A32: Placer3/8/06 - 3/19/07 | B32: Placer | C32: 3/8/06 - 3/19/07 | D32: 22900 | E32: 26150 | F32: 29450 | G32: 32700 | H32: 35300 | I32: 37950 | J32: 40550 | K32: 43150
A33: Plumas3/8/06 - 3/19/07 | B33: Plumas | C33: 3/8/06 - 3/19/07 | D33: 19550 | E33: 22350 | F33: 25150 | G33: 27950 | H33: 30200 | I33: 32400 | J33: 34650 | K33: 36900
A34: Riverside3/8/06 - 3/19/07 | B34: Riverside | C34: 3/8/06 - 3/19/07 | D34: 20150 | E34: 23000 | F34: 25900 | G34: 28750 | H34: 31050 | I34: 33350 | J34: 35650 | K34: 37950
A35: Sacramento3/8/06 - 3/19/07 | B35: Sacramento | C35: 3/8/06 - 3/19/07 | D35: 22900 | E35: 26150 | F35: 29450 | G35: 32700 | H35: 35300 | I35: 37950 | J35: 40550 | K35: 43150
A36: San Benito3/8/06 - 3/19/07 | B36: San Benito | C36: 3/8/06 - 3/19/07 | D36: 25950 | E36: 29650 | F36: 33350 | G36: 37050 | H36: 40000 | I36: 43000 | J36: 45950 | K36: 48900
A37: San Bernardino3/8/06 - 3/19/07 | B37: San Bernardino | C37: 3/8/06 - 3/19/07 | D37: 20150 | E37: 23000 | F37: 25900 | G37: 28750 | H37: 31050 | I37: 33350 | J37: 35650 | K37: 37950
A38: San Diego3/8/06 - 3/19/07 | B38: San Diego | C38: 3/8/06 - 3/19/07 | D38: 24150 | E38: 27600 | F38: 31050 | G38: 34500 | H38: 37250 | I38: 40000 | J38: 42800 | K38: 45550
A39: San Francisco3/8/06 - 3/19/07 | B39: San Francisco | C39: 3/8/06 - 3/19/07 | D39: 39600 | E39: 45250 | F39: 50900 | G39: 56550 | H39: 61050 | I39: 65600 | J39: 70100 | K39: 74650
A40: San Joaquin3/8/06 - 3/19/07 | B40: San Joaquin | C40: 3/8/06 - 3/19/07 | D40: 20000 | E40: 22850 | F40: 25700 | G40: 28550 | H40: 30850 | I40: 33100 | J40: 35400 | K40: 37700
A41: San Luis Obispo3/8/06 - 3/19/07 | B41: San Luis Obispo | C41: 3/8/06 - 3/19/07 | D41: 22350 | E41: 25500 | F41: 28700 | G41: 31900 | H41: 34450 | I41: 37000 | J41: 39550 | K41: 42100
A42: San Mateo3/8/06 - 3/19/07 | B42: San Mateo | C42: 3/8/06 - 3/19/07 | D42: 39600 | E42: 45250 | F42: 50900 | G42: 56550 | H42: 61050 | I42: 65600 | J42: 70100 | K42: 74650
A43: Santa Barbara3/8/06 - 3/19/07 | B43: Santa Barbara | C43: 3/8/06 - 3/19/07 | D43: 23050 | E43: 26300 | F43: 29600 | G43: 32900 | H43: 35550 | I43: 38150 | J43: 40800 | K43: 43450
A44: Santa Clara3/8/06 - 3/19/07 | B44: Santa Clara | C44: 3/8/06 - 3/19/07 | D44: 37150 | E44: 42450 | F44: 47750 | G44: 53050 | H44: 57300 | I44: 61550 | J44: 65800 | K44: 70050
A45: Santa Cruz3/8/06 - 3/19/07 | B45: Santa Cruz | C45: 3/8/06 - 3/19/07 | D45: 27500 | E45: 31400 | F45: 35350 | G45: 39250 | H45: 42400 | I45: 45550 | J45: 48650 | K45: 51800
A46: Shasta3/8/06 - 3/19/07 | B46: Shasta | C46: 3/8/06 - 3/19/07 | D46: 17800 | E46: 20300 | F46: 22850 | G46: 25400 | H46: 27450 | I46: 29450 | J46: 31500 | K46: 33550
A47: Sierra3/8/06 - 3/19/07 | B47: Sierra | C47: 3/8/06 - 3/19/07 | D47: 17800 | E47: 20300 | F47: 22850 | G47: 25400 | H47: 27450 | I47: 29450 | J47: 31500 | K47: 33550
A48: Siskiyou3/8/06 - 3/19/07 | B48: Siskiyou | C48: 3/8/06 - 3/19/07 | D48: 17800 | E48: 20300 | F48: 22850 | G48: 25400 | H48: 27450 | I48: 29450 | J48: 31500 | K48: 33550
A49: Solano3/8/06 - 3/19/07 | B49: Solano | C49: 3/8/06 - 3/19/07 | D49: 25900 | E49: 29600 | F49: 33300 | G49: 37000 | H49: 39950 | I49: 42900 | J49: 45900 | K49: 48850
A50: Sonoma3/8/06 - 3/19/07 | B50: Sonoma | C50: 3/8/06 - 3/19/07 | D50: 26300 | E50: 30050 | F50: 33800 | G50: 37550 | H50: 40550 | I50: 43550 | J50: 46550 | K50: 49550
A51: Stanislaus3/8/06 - 3/19/07 | B51: Stanislaus | C51: 3/8/06 - 3/19/07 | D51: 19050 | E51: 21750 | F51: 24500 | G51: 27200 | H51: 29400 | I51: 31550 | J51: 33750 | K51: 35900
A52: Sutter3/8/06 - 3/19/07 | B52: Sutter | C52: 3/8/06 - 3/19/07 | D52: 17800 | E52: 20300 | F52: 22850 | G52: 25400 | H52: 27450 | I52: 29450 | J52: 31500 | K52: 33550
A53: Tehama3/8/06 - 3/19/07 | B53: Tehama | C53: 3/8/06 - 3/19/07 | D53: 17800 | E53: 20300 | F53: 22850 | G53: 25400 | H53: 27450 | I53: 29450 | J53: 31500 | K53: 33550
A54: Trinity3/8/06 - 3/19/07 | B54: Trinity | C54: 3/8/06 - 3/19/07 | D54: 17800 | E54: 20300 | F54: 22850 | G54: 25400 | H54: 27450 | I54: 29450 | J54: 31500 | K54: 33550
A55: Tulare3/8/06 - 3/19/07 | B55: Tulare | C55: 3/8/06 - 3/19/07 | D55: 17800 | E55: 20300 | F55: 22850 | G55: 25400 | H55: 27450 | I55: 29450 | J55: 31500 | K55: 33550
A56: Tuolumne3/8/06 - 3/19/07 | B56: Tuolumne | C56: 3/8/06 - 3/19/07 | D56: 18950 | E56: 21700 | F56: 24400 | G56: 27100 | H56: 29250 | I56: 31450 | J56: 33600 | K56: 35750
A57: Ventura3/8/06 - 3/19/07 | B57: Ventura | C57: 3/8/06 - 3/19/07 | D57: 28200 | E57: 32250 | F57: 36250 | G57: 40300 | H57: 43500 | I57: 46750 | J57: 49950 | K57: 53200
A58: Yolo3/8/06 - 3/19/07 | B58: Yolo | C58: 3/8/06 - 3/19/07 | D58: 21650 | E58: 24750 | F58: 27850 | G58: 30950 | H58: 33450 | I58: 35900 | J58: 38400 | K58: 40850
A59: Yuba3/8/06 - 3/19/07 | B59: Yuba | C59: 3/8/06 - 3/19/07 | D59: 17800 | E59: 20300 | F59: 22850 | G59: 25400 | H59: 27450 | I59: 29450 | J59: 31500 | K59: 33550
A60: Alameda5/4/07 - 2/12/08 | B60: Alameda | C60: 5/4/07 - 2/12/08 | D60: 29350 | E60: 33500 | F60: 37700 | G60: 41900 | H60: 45250 | I60: 48600 | J60: 51950 | K60: 55300
A61: Alpine5/4/07 - 2/12/08 | B61: Alpine | C61: 5/4/07 - 2/12/08 | D61: 23050 | E61: 26300 | F61: 29600 | G61: 32900 | H61: 35550 | I61: 38150 | J61: 40800 | K61: 43450
A62: Amador5/4/07 - 2/12/08 | B62: Amador | C62: 5/4/07 - 2/12/08 | D62: 22300 | E62: 25500 | F62: 28650 | G62: 31850 | H62: 34400 | I62: 36950 | J62: 39500 | K62: 39500
A63: Butte5/4/07 - 2/12/08 | B63: Butte | C63: 5/4/07 - 2/12/08 | D63: 18200 | E63: 20800 | F63: 23400 | G63: 26000 | H63: 28100 | I63: 30150 | J63: 32250 | K63: 34300
A64: Calaveras5/4/07 - 2/12/08 | B64: Calaveras | C64: 5/4/07 - 2/12/08 | D64: 20600 | E64: 23550 | F64: 26500 | G64: 29450 | H64: 31800 | I64: 34150 | J64: 36500 | K64: 38850
A65: Colusa5/4/07 - 2/12/08 | B65: Colusa | C65: 5/4/07 - 2/12/08 | D65: 18050 | E65: 20600 | F65: 23200 | G65: 25750 | H65: 27800 | I65: 29850 | J65: 31950 | K65: 34000
A66: Contra Costa5/4/07 - 2/12/08 | B66: Contra Costa | C66: 5/4/07 - 2/12/08 | D66: 29350 | E66: 33500 | F66: 37700 | G66: 41900 | H66: 45250 | I66: 48600 | J66: 51950 | K66: 55300
A67: Del Norte5/4/07 - 2/12/08 | B67: Del Norte | C67: 5/4/07 - 2/12/08 | D67: 18050 | E67: 20600 | F67: 23200 | G67: 25750 | H67: 27800 | I67: 29850 | J67: 31950 | K67: 34000
A68: El Dorado5/4/07 - 2/12/08 | B68: El Dorado | C68: 5/4/07 - 2/12/08 | D68: 23500 | E68: 26900 | F68: 30250 | G68: 33600 | H68: 36300 | I68: 39000 | J68: 41650 | K68: 44350
A69: Fresno5/4/07 - 2/12/08 | B69: Fresno | C69: 5/4/07 - 2/12/08 | D69: 18050 | E69: 20600 | F69: 23200 | G69: 25750 | H69: 27800 | I69: 29850 | J69: 31950 | K69: 34000
A70: Glenn5/4/07 - 2/12/08 | B70: Glenn | C70: 5/4/07 - 2/12/08 | D70: 18050 | E70: 20600 | F70: 23200 | G70: 25750 | H70: 27800 | I70: 29850 | J70: 31950 | K70: 34000
A71: Humboldt5/4/07 - 2/12/08 | B71: Humboldt | C71: 5/4/07 - 2/12/08 | D71: 18050 | E71: 20600 | F71: 23200 | G71: 25750 | H71: 27800 | I71: 29850 | J71: 31950 | K71: 34000
A72: Imperial5/4/07 - 2/12/08 | B72: Imperial | C72: 5/4/07 - 2/12/08 | D72: 18050 | E72: 20600 | F72: 23200 | G72: 25750 | H72: 27800 | I72: 29850 | J72: 31950 | K72: 34000
A73: Inyo5/4/07 - 2/12/08 | B73: Inyo | C73: 5/4/07 - 2/12/08 | D73: 19250 | E73: 22000 | F73: 24750 | G73: 27500 | H73: 29700 | I73: 31900 | J73: 34100 | K73: 36300
A74: Kern5/4/07 - 2/12/08 | B74: Kern | C74: 5/4/07 - 2/12/08 | D74: 18050 | E74: 20600 | F74: 23200 | G74: 25750 | H74: 27800 | I74: 29850 | J74: 31950 | K74: 34000
A75: Kings5/4/07 - 2/12/08 | B75: Kings | C75: 5/4/07 - 2/12/08 | D75: 18050 | E75: 20600 | F75: 23200 | G75: 25750 | H75: 27800 | I75: 29850 | J75: 31950 | K75: 34000
A76: Lake5/4/07 - 2/12/08 | B76: Lake | C76: 5/4/07 - 2/12/08 | D76: 18050 | E76: 20600 | F76: 23200 | G76: 25750 | H76: 27800 | I76: 29850 | J76: 31950 | K76: 34000
A77: Lassen5/4/07 - 2/12/08 | B77: Lassen | C77: 5/4/07 - 2/12/08 | D77: 18600 | E77: 21300 | F77: 23950 | G77: 26600 | H77: 28750 | I77: 30850 | J77: 33000 | K77: 35100
A78: Los Angeles5/4/07 - 2/12/08 | B78: Los Angeles | C78: 5/4/07 - 2/12/08 | D78: 25900 | E78: 29600 | F78: 33300 | G78: 37000 | H78: 39950 | I78: 42900 | J78: 45900 | K78: 48850
A79: Madera5/4/07 - 2/12/08 | B79: Madera | C79: 5/4/07 - 2/12/08 | D79: 18050 | E79: 20600 | F79: 23200 | G79: 25750 | H79: 27800 | I79: 29850 | J79: 31950 | K79: 34000
A80: Marin5/4/07 - 2/12/08 | B80: Marin | C80: 5/4/07 - 2/12/08 | D80: 39600 | E80: 45250 | F80: 50900 | G80: 56550 | H80: 61050 | I80: 65600 | J80: 70100 | K80: 74650
A81: Mariposa5/4/07 - 2/12/08 | B81: Mariposa | C81: 5/4/07 - 2/12/08 | D81: 18150 | E81: 20700 | F81: 23300 | G81: 25900 | H81: 27950 | I81: 30050 | J81: 32100 | K81: 34200
A82: Mendocino5/4/07 - 2/12/08 | B82: Mendocino | C82: 5/4/07 - 2/12/08 | D82: 18050 | E82: 20600 | F82: 23200 | G82: 25750 | H82: 27800 | I82: 29850 | J82: 31950 | K82: 34000
A83: Merced5/4/07 - 2/12/08 | B83: Merced | C83: 5/4/07 - 2/12/08 | D83: 18050 | E83: 20600 | F83: 23200 | G83: 25750 | H83: 27800 | I83: 29850 | J83: 31950 | K83: 34000
A84: Modoc5/4/07 - 2/12/08 | B84: Modoc | C84: 5/4/07 - 2/12/08 | D84: 18050 | E84: 20600 | F84: 23200 | G84: 25750 | H84: 27800 | I84: 29850 | J84: 31950 | K84: 34000
A85: Mono5/4/07 - 2/12/08 | B85: Mono | C85: 5/4/07 - 2/12/08 | D85: 22450 | E85: 25700 | F85: 28900 | G85: 32100 | H85: 34650 | I85: 37250 | J85: 39800 | K85: 42350
A86: Monterey5/4/07 - 2/12/08 | B86: Monterey | C86: 5/4/07 - 2/12/08 | D86: 22600 | E86: 25800 | F86: 29050 | G86: 32250 | H86: 34850 | I86: 37400 | J86: 40000 | K86: 42550
A87: Napa5/4/07 - 2/12/08 | B87: Napa | C87: 5/4/07 - 2/12/08 | D87: 26550 | E87: 30300 | F87: 34100 | G87: 37900 | H87: 40950 | I87: 43950 | J87: 47000 | K87: 50050
A88: Nevada5/4/07 - 2/12/08 | B88: Nevada | C88: 5/4/07 - 2/12/08 | D88: 22800 | E88: 26050 | F88: 29300 | G88: 32550 | H88: 35150 | I88: 37750 | J88: 40350 | K88: 42950
A89: Orange5/4/07 - 2/12/08 | B89: Orange | C89: 5/4/07 - 2/12/08 | D89: 30300 | E89: 34650 | F89: 38950 | G89: 43300 | H89: 46750 | I89: 50250 | J89: 53700 | K89: 57150
A90: Placer5/4/07 - 2/12/08 | B90: Placer | C90: 5/4/07 - 2/12/08 | D90: 23500 | E90: 26900 | F90: 30250 | G90: 33600 | H90: 36300 | I90: 39000 | J90: 41650 | K90: 44350
A91: Plumas5/4/07 - 2/12/08 | B91: Plumas | C91: 5/4/07 - 2/12/08 | D91: 19800 | E91: 22650 | F91: 25450 | G91: 28300 | H91: 30550 | I91: 32850 | J91: 35100 | K91: 37350
A92: Riverside5/4/07 - 2/12/08 | B92: Riverside | C92: 5/4/07 - 2/12/08 | D92: 20700 | E92: 23700 | F92: 26650 | G92: 29600 | H92: 31950 | I92: 34350 | J92: 36700 | K92: 39050
A93: Sacramento5/4/07 - 2/12/08 | B93: Sacramento | C93: 5/4/07 - 2/12/08 | D93: 23500 | E93: 26900 | F93: 30250 | G93: 33600 | H93: 36300 | I93: 39000 | J93: 41650 | K93: 44350
A94: San Benito5/4/07 - 2/12/08 | B94: San Benito | C94: 5/4/07 - 2/12/08 | D94: 26150 | E94: 29900 | F94: 33600 | G94: 37350 | H94: 40350 | I94: 43350 | J94: 46300 | K94: 49300
A95: San Bernardino5/4/07 - 2/12/08 | B95: San Bernardino | C95: 5/4/07 - 2/12/08 | D95: 20700 | E95: 23700 | F95: 26650 | G95: 29600 | H95: 31950 | I95: 34350 | J95: 36700 | K95: 39050
A96: San Diego5/4/07 - 2/12/08 | B96: San Diego | C96: 5/4/07 - 2/12/08 | D96: 24550 | E96: 28100 | F96: 31600 | G96: 35100 | H96: 37900 | I96: 40700 | J96: 43500 | K96: 46350
A97: San Francisco5/4/07 - 2/12/08 | B97: San Francisco | C97: 5/4/07 - 2/12/08 | D97: 39600 | E97: 45250 | F97: 50900 | G97: 56550 | H97: 61050 | I97: 65600 | J97: 70100 | K97: 74650
A98: San Joaquin5/4/07 - 2/12/08 | B98: San Joaquin | C98: 5/4/07 - 2/12/08 | D98: 21100 | E98: 24100 | F98: 27150 | G98: 30150 | H98: 32550 | I98: 34950 | J98: 37400 | K98: 39800
A99: San Luis Obispo5/4/07 - 2/12/08 | B99: San Luis Obispo | C99: 5/4/07 - 2/12/08 | D99: 22450 | E99: 25700 | F99: 28900 | G99: 32100 | H99: 34650 | I99: 37250 | J99: 39800 | K99: 42350
A100: San Mateo5/4/07 - 2/12/08 | B100: San Mateo | C100: 5/4/07 - 2/12/08 | D100: 39600 | E100: 45250 | F100: 50900 | G100: 56550 | H100: 61050 | I100: 65600 | J100: 70100 | K100: 74650
A101: Santa Barbara5/4/07 - 2/12/08 | B101: Santa Barbara | C101: 5/4/07 - 2/12/08 | D101: 23500 | E101: 26850 | F101: 30200 | G101: 33550 | H101: 36250 | I101: 38900 | J101: 41600 | K101: 44300
A102: Santa Clara5/4/07 - 2/12/08 | B102: Santa Clara | C102: 5/4/07 - 2/12/08 | D102: 37150 | E102: 42450 | F102: 47750 | G102: 53050 | H102: 57300 | I102: 61550 | J102: 65800 | K102: 70050
A103: Santa Cruz5/4/07 - 2/12/08 | B103: Santa Cruz | C103: 5/4/07 - 2/12/08 | D103: 28450 | E103: 32500 | F103: 36600 | G103: 40650 | H103: 43900 | I103: 47150 | J103: 50400 | K103: 53650
A104: Shasta5/4/07 - 2/12/08 | B104: Shasta | C104: 5/4/07 - 2/12/08 | D104: 18450 | E104: 21100 | F104: 23700 | G104: 26350 | H104: 28450 | I104: 30550 | J104: 32650 | K104: 34800
A105: Sierra5/4/07 - 2/12/08 | B105: Sierra | C105: 5/4/07 - 2/12/08 | D105: 18050 | E105: 20600 | F105: 23200 | G105: 25750 | H105: 27800 | I105: 29850 | J105: 31950 | K105: 34000
A106: Siskiyou5/4/07 - 2/12/08 | B106: Siskiyou | C106: 5/4/07 - 2/12/08 | D106: 18050 | E106: 20600 | F106: 23200 | G106: 25750 | H106: 27800 | I106: 29850 | J106: 31950 | K106: 34000
A107: Solano5/4/07 - 2/12/08 | B107: Solano | C107: 5/4/07 - 2/12/08 | D107: 26400 | E107: 30150 | F107: 33950 | G107: 37700 | H107: 40700 | I107: 43750 | J107: 46750 | K107: 49750
A108: Sonoma5/4/07 - 2/12/08 | B108: Sonoma | C108: 5/4/07 - 2/12/08 | D108: 26300 | E108: 30050 | F108: 33800 | G108: 37550 | H108: 40550 | I108: 43550 | J108: 46550 | K108: 49550
A109: Stanislaus5/4/07 - 2/12/08 | B109: Stanislaus | C109: 5/4/07 - 2/12/08 | D109: 19600 | E109: 22400 | F109: 25200 | G109: 28000 | H109: 30250 | I109: 32500 | J109: 34700 | K109: 36950
A110: Sutter5/4/07 - 2/12/08 | B110: Sutter | C110: 5/4/07 - 2/12/08 | D110: 18100 | E110: 20700 | F110: 23250 | G110: 25850 | H110: 27900 | I110: 30000 | J110: 32050 | K110: 34100
A111: Tehama5/4/07 - 2/12/08 | B111: Tehama | C111: 5/4/07 - 2/12/08 | D111: 18050 | E111: 20600 | F111: 23200 | G111: 25750 | H111: 27800 | I111: 29850 | J111: 31950 | K111: 34000
A112: Trinity5/4/07 - 2/12/08 | B112: Trinity | C112: 5/4/07 - 2/12/08 | D112: 18050 | E112: 20600 | F112: 23200 | G112: 25750 | H112: 27800 | I112: 29850 | J112: 31950 | K112: 34000
A113: Tulare5/4/07 - 2/12/08 | B113: Tulare | C113: 5/4/07 - 2/12/08 | D113: 18050 | E113: 20600 | F113: 23200 | G113: 25750 | H113: 27800 | I113: 29850 | J113: 31950 | K113: 34000
A114: Tuolumne5/4/07 - 2/12/08 | B114: Tuolumne | C114: 5/4/07 - 2/12/08 | D114: 19250 | E114: 22000 | F114: 24750 | G114: 27500 | H114: 29700 | I114: 31900 | J114: 34100 | K114: 36300
A115: Ventura5/4/07 - 2/12/08 | B115: Ventura | C115: 5/4/07 - 2/12/08 | D115: 30000 | E115: 34300 | F115: 38550 | G115: 42850 | H115: 46300 | I115: 49700 | J115: 53150 | K115: 56550
A116: Yolo5/4/07 - 2/12/08 | B116: Yolo | C116: 5/4/07 - 2/12/08 | D116: 23000 | E116: 26300 | F116: 29550 | G116: 32850 | H116: 35500 | I116: 38100 | J116: 40750 | K116: 43350
A117: Yuba5/4/07 - 2/12/08 | B117: Yuba | C117: 5/4/07 - 2/12/08 | D117: 18100 | E117: 20700 | F117: 23250 | G117: 25850 | H117: 27900 | I117: 30000 | J117: 32050 | K117: 34100
A118: Alameda3/29/08 - 3/18/09 | B118: Alameda | C118: 3/29/08 - 3/18/09 | D118: 30150 | E118: 34450 | F118: 38750 | G118: 43050 | H118: 46500 | I118: 49950 | J118: 53400 | K118: 56850
A119: Alpine3/29/08 - 3/18/09 | B119: Alpine | C119: 3/29/08 - 3/18/09 | D119: 24300 | E119: 27750 | F119: 31250 | G119: 34700 | H119: 37500 | I119: 40250 | J119: 43050 | K119: 45800
A120: Amador3/29/08 - 3/18/09 | B120: Amador | C120: 3/29/08 - 3/18/09 | D120: 23350 | E120: 26700 | F120: 30000 | G120: 33350 | H120: 36000 | I120: 38700 | J120: 41350 | K120: 44000
A121: Butte3/29/08 - 3/18/09 | B121: Butte | C121: 3/29/08 - 3/18/09 | D121: 19100 | E121: 21800 | F121: 24550 | G121: 27250 | H121: 29450 | I121: 31600 | J121: 33800 | K121: 35950
A122: Calaveras3/29/08 - 3/18/09 | B122: Calaveras | C122: 3/29/08 - 3/18/09 | D122: 21500 | E122: 24550 | F122: 27650 | G122: 30700 | H122: 33150 | I122: 35600 | J122: 38050 | K122: 40500
A123: Colusa3/29/08 - 3/18/09 | B123: Colusa | C123: 3/29/08 - 3/18/09 | D123: 18850 | E123: 21500 | F123: 24200 | G123: 26900 | H123: 29050 | I123: 31200 | J123: 33350 | K123: 35500
A124: Contra Costa3/29/08 - 3/18/09 | B124: Contra Costa | C124: 3/29/08 - 3/18/09 | D124: 30150 | E124: 34450 | F124: 38750 | G124: 43050 | H124: 46500 | I124: 49950 | J124: 53400 | K124: 56850
A125: Del Norte3/29/08 - 3/18/09 | B125: Del Norte | C125: 3/29/08 - 3/18/09 | D125: 18850 | E125: 21500 | F125: 24200 | G125: 26900 | H125: 29050 | I125: 31200 | J125: 33350 | K125: 35500
A126: El Dorado3/29/08 - 3/18/09 | B126: El Dorado | C126: 3/29/08 - 3/18/09 | D126: 24850 | E126: 28400 | F126: 31950 | G126: 35500 | H126: 38350 | I126: 41200 | J126: 44000 | K126: 46850
A127: Fresno3/29/08 - 3/18/09 | B127: Fresno | C127: 3/29/08 - 3/18/09 | D127: 18850 | E127: 21500 | F127: 24200 | G127: 26900 | H127: 29050 | I127: 31200 | J127: 33350 | K127: 35500
A128: Glenn3/29/08 - 3/18/09 | B128: Glenn | C128: 3/29/08 - 3/18/09 | D128: 18850 | E128: 21500 | F128: 24200 | G128: 26900 | H128: 29050 | I128: 31200 | J128: 33350 | K128: 35500
A129: Humboldt3/29/08 - 3/18/09 | B129: Humboldt | C129: 3/29/08 - 3/18/09 | D129: 18850 | E129: 21500 | F129: 24200 | G129: 26900 | H129: 29050 | I129: 31200 | J129: 33350 | K129: 35500
A130: Imperial3/29/08 - 3/18/09 | B130: Imperial | C130: 3/29/08 - 3/18/09 | D130: 18850 | E130: 21500 | F130: 24200 | G130: 26900 | H130: 29050 | I130: 31200 | J130: 33350 | K130: 35500
A131: Inyo3/29/08 - 3/18/09 | B131: Inyo | C131: 3/29/08 - 3/18/09 | D131: 20150 | E131: 23000 | F131: 25900 | G131: 28750 | H131: 31050 | I131: 33350 | J131: 35650 | K131: 37950
A132: Kern3/29/08 - 3/18/09 | B132: Kern | C132: 3/29/08 - 3/18/09 | D132: 18850 | E132: 21500 | F132: 24200 | G132: 26900 | H132: 29050 | I132: 31200 | J132: 33350 | K132: 35500
A133: Kings3/29/08 - 3/18/09 | B133: Kings | C133: 3/29/08 - 3/18/09 | D133: 18850 | E133: 21500 | F133: 24200 | G133: 26900 | H133: 29050 | I133: 31200 | J133: 33350 | K133: 35500
A134: Lake3/29/08 - 3/18/09 | B134: Lake | C134: 3/29/08 - 3/18/09 | D134: 18850 | E134: 21500 | F134: 24200 | G134: 26900 | H134: 29050 | I134: 31200 | J134: 33350 | K134: 35500
A135: Lassen3/29/08 - 3/18/09 | B135: Lassen | C135: 3/29/08 - 3/18/09 | D135: 19450 | E135: 22250 | F135: 25000 | G135: 27800 | H135: 30000 | I135: 32250 | J135: 34450 | K135: 36700
A136: Los Angeles3/29/08 - 3/18/09 | B136: Los Angeles | C136: 3/29/08 - 3/18/09 | D136: 26550 | E136: 30300 | F136: 34100 | G136: 37900 | H136: 40950 | I136: 43950 | J136: 47000 | K136: 50050
A137: Madera3/29/08 - 3/18/09 | B137: Madera | C137: 3/29/08 - 3/18/09 | D137: 18850 | E137: 21500 | F137: 24200 | G137: 26900 | H137: 29050 | I137: 31200 | J137: 33350 | K137: 35500
A138: Marin3/29/08 - 3/18/09 | B138: Marin | C138: 3/29/08 - 3/18/09 | D138: 39600 | E138: 45250 | F138: 50900 | G138: 56550 | H138: 61050 | I138: 65600 | J138: 70100 | K138: 74650
A139: Mariposa3/29/08 - 3/18/09 | B139: Mariposa | C139: 3/29/08 - 3/18/09 | D139: 18900 | E139: 21600 | F139: 24300 | G139: 27000 | H139: 29150 | I139: 31300 | J139: 33500 | K139: 35650
A140: Mendocino3/29/08 - 3/18/09 | B140: Mendocino | C140: 3/29/08 - 3/18/09 | D140: 18850 | E140: 21500 | F140: 24200 | G140: 26900 | H140: 29050 | I140: 31200 | J140: 33350 | K140: 35500
A141: Merced3/29/08 - 3/18/09 | B141: Merced | C141: 3/29/08 - 3/18/09 | D141: 18850 | E141: 21500 | F141: 24200 | G141: 26900 | H141: 29050 | I141: 31200 | J141: 33350 | K141: 35500
A142: Modoc3/29/08 - 3/18/09 | B142: Modoc | C142: 3/29/08 - 3/18/09 | D142: 18850 | E142: 21500 | F142: 24200 | G142: 26900 | H142: 29050 | I142: 31200 | J142: 33350 | K142: 35500
A143: Mono3/29/08 - 3/18/09 | B143: Mono | C143: 3/29/08 - 3/18/09 | D143: 23050 | E143: 26350 | F143: 29650 | G143: 32950 | H143: 35600 | I143: 38200 | J143: 40850 | K143: 43500
A144: Monterey3/29/08 - 3/18/09 | B144: Monterey | C144: 3/29/08 - 3/18/09 | D144: 22700 | E144: 25900 | F144: 29150 | G144: 32400 | H144: 35000 | I144: 37600 | J144: 40200 | K144: 42750
A145: Napa3/29/08 - 3/18/09 | B145: Napa | C145: 3/29/08 - 3/18/09 | D145: 27850 | E145: 31850 | F145: 35800 | G145: 39800 | H145: 43000 | I145: 46150 | J145: 49350 | K145: 52550
A146: Nevada3/29/08 - 3/18/09 | B146: Nevada | C146: 3/29/08 - 3/18/09 | D146: 22800 | E146: 26050 | F146: 29300 | G146: 32550 | H146: 35150 | I146: 37750 | J146: 40350 | K146: 42950
A147: Orange3/29/08 - 3/18/09 | B147: Orange | C147: 3/29/08 - 3/18/09 | D147: 32550 | E147: 37200 | F147: 41850 | G147: 46500 | H147: 50200 | I147: 53950 | J147: 57650 | K147: 61400
A148: Placer3/29/08 - 3/18/09 | B148: Placer | C148: 3/29/08 - 3/18/09 | D148: 24850 | E148: 28400 | F148: 31950 | G148: 35500 | H148: 38350 | I148: 41200 | J148: 44000 | K148: 46850
A149: Plumas3/29/08 - 3/18/09 | B149: Plumas | C149: 3/29/08 - 3/18/09 | D149: 20700 | E149: 23650 | F149: 26600 | G149: 29550 | H149: 31900 | I149: 34300 | J149: 36650 | K149: 39000
A150: Riverside3/29/08 - 3/18/09 | B150: Riverside | C150: 3/29/08 - 3/18/09 | D150: 23300 | E150: 26650 | F150: 29950 | G150: 33300 | H150: 35950 | I150: 38650 | J150: 41300 | K150: 43950
A151: Sacramento3/29/08 - 3/18/09 | B151: Sacramento | C151: 3/29/08 - 3/18/09 | D151: 24850 | E151: 28400 | F151: 31950 | G151: 35500 | H151: 38350 | I151: 41200 | J151: 44000 | K151: 46850
A152: San Benito3/29/08 - 3/18/09 | B152: San Benito | C152: 3/29/08 - 3/18/09 | D152: 27300 | E152: 31200 | F152: 35100 | G152: 39000 | H152: 42100 | I152: 45250 | J152: 48350 | K152: 51500
A153: San Bernardino3/29/08 - 3/18/09 | B153: San Bernardino | C153: 3/29/08 - 3/18/09 | D153: 23300 | E153: 26650 | F153: 29950 | G153: 33300 | H153: 35950 | I153: 38650 | J153: 41300 | K153: 43950
A154: San Diego3/29/08 - 3/18/09 | B154: San Diego | C154: 3/29/08 - 3/18/09 | D154: 27650 | E154: 31600 | F154: 35550 | G154: 39500 | H154: 42650 | I154: 45800 | J154: 49000 | K154: 52150
A155: San Francisco3/29/08 - 3/18/09 | B155: San Francisco | C155: 3/29/08 - 3/18/09 | D155: 39600 | E155: 45250 | F155: 50900 | G155: 56550 | H155: 61050 | I155: 65600 | J155: 70100 | K155: 74650
A156: San Joaquin3/29/08 - 3/18/09 | B156: San Joaquin | C156: 3/29/08 - 3/18/09 | D156: 21450 | E156: 24500 | F156: 27600 | G156: 30650 | H156: 33100 | I156: 35550 | J156: 38000 | K156: 40450
A157: San Luis Obispo3/29/08 - 3/18/09 | B157: San Luis Obispo | C157: 3/29/08 - 3/18/09 | D157: 23450 | E157: 26800 | F157: 30150 | G157: 33500 | H157: 36200 | I157: 38850 | J157: 41550 | K157: 44200
A158: San Mateo3/29/08 - 3/18/09 | B158: San Mateo | C158: 3/29/08 - 3/18/09 | D158: 39600 | E158: 45250 | F158: 50900 | G158: 56550 | H158: 61050 | I158: 65600 | J158: 70100 | K158: 74650
A159: Santa Barbara3/29/08 - 3/18/09 | B159: Santa Barbara | C159: 3/29/08 - 3/18/09 | D159: 27250 | E159: 31100 | F159: 35000 | G159: 38900 | H159: 42000 | I159: 45100 | J159: 48250 | K159: 51350
A160: Santa Clara3/29/08 - 3/18/09 | B160: Santa Clara | C160: 3/29/08 - 3/18/09 | D160: 37150 | E160: 42450 | F160: 47750 | G160: 53050 | H160: 57300 | I160: 61550 | J160: 65800 | K160: 70050
A161: Santa Cruz3/29/08 - 3/18/09 | B161: Santa Cruz | C161: 3/29/08 - 3/18/09 | D161: 30450 | E161: 34800 | F161: 39150 | G161: 43500 | H161: 47000 | I161: 50450 | J161: 53950 | K161: 57400
A162: Shasta3/29/08 - 3/18/09 | B162: Shasta | C162: 3/29/08 - 3/18/09 | D162: 18850 | E162: 21500 | F162: 24200 | G162: 26900 | H162: 29050 | I162: 31200 | J162: 33350 | K162: 35500
A163: Sierra3/29/08 - 3/18/09 | B163: Sierra | C163: 3/29/08 - 3/18/09 | D163: 19750 | E163: 22550 | F163: 25400 | G163: 28200 | H163: 30450 | I163: 32700 | J163: 34950 | K163: 37200
A164: Siskiyou3/29/08 - 3/18/09 | B164: Siskiyou | C164: 3/29/08 - 3/18/09 | D164: 18850 | E164: 21500 | F164: 24200 | G164: 26900 | H164: 29050 | I164: 31200 | J164: 33350 | K164: 35500
A165: Solano3/29/08 - 3/18/09 | B165: Solano | C165: 3/29/08 - 3/18/09 | D165: 26400 | E165: 30150 | F165: 33950 | G165: 37700 | H165: 40700 | I165: 43750 | J165: 46750 | K165: 49750
A166: Sonoma3/29/08 - 3/18/09 | B166: Sonoma | C166: 3/29/08 - 3/18/09 | D166: 27250 | E166: 31100 | F166: 35000 | G166: 38900 | H166: 42000 | I166: 45100 | J166: 48250 | K166: 51350
A167: Stanislaus3/29/08 - 3/18/09 | B167: Stanislaus | C167: 3/29/08 - 3/18/09 | D167: 19800 | E167: 22600 | F167: 25450 | G167: 28250 | H167: 30500 | I167: 32750 | J167: 35050 | K167: 37300
A168: Sutter3/29/08 - 3/18/09 | B168: Sutter | C168: 3/29/08 - 3/18/09 | D168: 18850 | E168: 21500 | F168: 24200 | G168: 26900 | H168: 29050 | I168: 31200 | J168: 33350 | K168: 35500
A169: Tehama3/29/08 - 3/18/09 | B169: Tehama | C169: 3/29/08 - 3/18/09 | D169: 18850 | E169: 21500 | F169: 24200 | G169: 26900 | H169: 29050 | I169: 31200 | J169: 33350 | K169: 35500
A170: Trinity3/29/08 - 3/18/09 | B170: Trinity | C170: 3/29/08 - 3/18/09 | D170: 18850 | E170: 21500 | F170: 24200 | G170: 26900 | H170: 29050 | I170: 31200 | J170: 33350 | K170: 35500
A171: Tulare3/29/08 - 3/18/09 | B171: Tulare | C171: 3/29/08 - 3/18/09 | D171: 18850 | E171: 21500 | F171: 24200 | G171: 26900 | H171: 29050 | I171: 31200 | J171: 33350 | K171: 35500
A172: Tuolumne3/29/08 - 3/18/09 | B172: Tuolumne | C172: 3/29/08 - 3/18/09 | D172: 20150 | E172: 23000 | F172: 25900 | G172: 28750 | H172: 31050 | I172: 33350 | J172: 35650 | K172: 37950
A173: Ventura3/29/08 - 3/18/09 | B173: Ventura | C173: 3/29/08 - 3/18/09 | D173: 30000 | E173: 34300 | F173: 38550 | G173: 42850 | H173: 46300 | I173: 49700 | J173: 53150 | K173: 56550
A174: Yolo3/29/08 - 3/18/09 | B174: Yolo | C174: 3/29/08 - 3/18/09 | D174: 24850 | E174: 28400 | F174: 31950 | G174: 35500 | H174: 38350 | I174: 41200 | J174: 44000 | K174: 46850
A175: Yuba3/29/08 - 3/18/09 | B175: Yuba | C175: 3/29/08 - 3/18/09 | D175: 18850 | E175: 21500 | F175: 24200 | G175: 26900 | H175: 29050 | I175: 31200 | J175: 33350 | K175: 35500
A176: AlamedaBefore 1/1/09 | B176: Alameda | C176: Before 1/1/09 | D176: 31250 | E176: 35700 | F176: 40200 | G176: 44650 | H176: 48200 | I176: 51800 | J176: 55350 | K176: 58950 | L176: 32550 | M176: 37200 | N176: 41850 | O176: 46450 | P176: 50200 | Q176: 53900 | R176: 57600 | S176: 61350
A177: AlpineBefore 1/1/09 | B177: Alpine | C177: Before 1/1/09 | D177: 24300 | E177: 27750 | F177: 31250 | G177: 34700 | H177: 37500 | I177: 40250 | J177: 43050 | K177: 45800
A178: AmadorBefore 1/1/09 | B178: Amador | C178: Before 1/1/09 | D178: 23800 | E178: 27200 | F178: 30600 | G178: 34000 | H178: 36700 | I178: 39450 | J178: 42150 | K178: 44900
A179: ButteBefore 1/1/09 | B179: Butte | C179: Before 1/1/09 | D179: 19550 | E179: 22300 | F179: 25100 | G179: 27900 | H179: 30150 | I179: 32350 | J179: 34600 | K179: 36850
A180: CalaverasBefore 1/1/09 | B180: Calaveras | C180: Before 1/1/09 | D180: 22100 | E180: 25250 | F180: 28400 | G180: 31550 | H180: 34050 | I180: 36600 | J180: 39100 | K180: 41650
A181: ColusaBefore 1/1/09 | B181: Colusa | C181: Before 1/1/09 | D181: 19550 | E181: 22300 | F181: 25100 | G181: 27900 | H181: 30150 | I181: 32350 | J181: 34600 | K181: 36850
A182: Contra CostaBefore 1/1/09 | B182: Contra Costa | C182: Before 1/1/09 | D182: 31250 | E182: 35700 | F182: 40200 | G182: 44650 | H182: 48200 | I182: 51800 | J182: 55350 | K182: 58950 | L182: 34150 | M182: 39000 | N182: 43900 | O182: 48750 | P182: 52650 | Q182: 56550 | R182: 60450 | S182: 64350
A183: Del NorteBefore 1/1/09 | B183: Del Norte | C183: Before 1/1/09 | D183: 19550 | E183: 22300 | F183: 25100 | G183: 27900 | H183: 30150 | I183: 32350 | J183: 34600 | K183: 36850
A184: El DoradoBefore 1/1/09 | B184: El Dorado | C184: Before 1/1/09 | D184: 25500 | E184: 29100 | F184: 32750 | G184: 36400 | H184: 39300 | I184: 42200 | J184: 45150 | K184: 48050
A185: FresnoBefore 1/1/09 | B185: Fresno | C185: Before 1/1/09 | D185: 19550 | E185: 22300 | F185: 25100 | G185: 27900 | H185: 30150 | I185: 32350 | J185: 34600 | K185: 36850
A186: GlennBefore 1/1/09 | B186: Glenn | C186: Before 1/1/09 | D186: 19550 | E186: 22300 | F186: 25100 | G186: 27900 | H186: 30150 | I186: 32350 | J186: 34600 | K186: 36850
A187: HumboldtBefore 1/1/09 | B187: Humboldt | C187: Before 1/1/09 | D187: 19550 | E187: 22300 | F187: 25100 | G187: 27900 | H187: 30150 | I187: 32350 | J187: 34600 | K187: 36850
A188: ImperialBefore 1/1/09 | B188: Imperial | C188: Before 1/1/09 | D188: 19550 | E188: 22300 | F188: 25100 | G188: 27900 | H188: 30150 | I188: 32350 | J188: 34600 | K188: 36850
A189: InyoBefore 1/1/09 | B189: Inyo | C189: Before 1/1/09 | D189: 20900 | E189: 23900 | F189: 26850 | G189: 29850 | H189: 32250 | I189: 34650 | J189: 37000 | K189: 39400
A190: KernBefore 1/1/09 | B190: Kern | C190: Before 1/1/09 | D190: 19550 | E190: 22300 | F190: 25100 | G190: 27900 | H190: 30150 | I190: 32350 | J190: 34600 | K190: 36850
A191: KingsBefore 1/1/09 | B191: Kings | C191: Before 1/1/09 | D191: 19550 | E191: 22300 | F191: 25100 | G191: 27900 | H191: 30150 | I191: 32350 | J191: 34600 | K191: 36850
A192: LakeBefore 1/1/09 | B192: Lake | C192: Before 1/1/09 | D192: 19550 | E192: 22300 | F192: 25100 | G192: 27900 | H192: 30150 | I192: 32350 | J192: 34600 | K192: 36850
A193: LassenBefore 1/1/09 | B193: Lassen | C193: Before 1/1/09 | D193: 20150 | E193: 23050 | F193: 25900 | G193: 28800 | H193: 31100 | I193: 33400 | J193: 35700 | K193: 38000
A194: Los AngelesBefore 1/1/09 | B194: Los Angeles | C194: Before 1/1/09 | D194: 27750 | E194: 31700 | F194: 35700 | G194: 39650 | H194: 42800 | I194: 46000 | J194: 49150 | K194: 52350
A195: MaderaBefore 1/1/09 | B195: Madera | C195: Before 1/1/09 | D195: 19550 | E195: 22300 | F195: 25100 | G195: 27900 | H195: 30150 | I195: 32350 | J195: 34600 | K195: 36850
A196: MarinBefore 1/1/09 | B196: Marin | C196: Before 1/1/09 | D196: 39600 | E196: 45250 | F196: 50900 | G196: 56550 | H196: 61050 | I196: 65600 | J196: 70100 | K196: 74650 | L196: 45250 | M196: 51700 | N196: 58150 | O196: 64600 | P196: 69800 | Q196: 74950 | R196: 80150 | S196: 85300
A197: MariposaBefore 1/1/09 | B197: Mariposa | C197: Before 1/1/09 | D197: 19800 | E197: 22650 | F197: 25450 | G197: 28300 | H197: 30550 | I197: 32850 | J197: 35100 | K197: 37350
A198: MendocinoBefore 1/1/09 | B198: Mendocino | C198: Before 1/1/09 | D198: 19550 | E198: 22300 | F198: 25100 | G198: 27900 | H198: 30150 | I198: 32350 | J198: 34600 | K198: 36850
A199: MercedBefore 1/1/09 | B199: Merced | C199: Before 1/1/09 | D199: 19550 | E199: 22300 | F199: 25100 | G199: 27900 | H199: 30150 | I199: 32350 | J199: 34600 | K199: 36850
A200: ModocBefore 1/1/09 | B200: Modoc | C200: Before 1/1/09 | D200: 19550 | E200: 22300 | F200: 25100 | G200: 27900 | H200: 30150 | I200: 32350 | J200: 34600 | K200: 36850
... 555 more rows

Sheet HOME 2-25-2013 (hidden)
A1: 1 | B1: 2 | C1: 6 | D1: 7 | E1: 8 | F1: 9 | G1: 10 | H1: 11 | I1: 12 | J1: 13 | K1: 14 | L1: 15 | M1: 16 | N1: 17 | O1: 18 | P1: 19 | Q1: 20 | R1: 21 | S1: 22 | T1: 23 | U1: 24 | V1: 25 | W1: 26 | X1: 27 | Y1: 28 | Z1: 29 | AA1: 30 | AB1: 31 | AC1: 32 | AD1: 33 | AE1: 34 | AF1: 35 | AG1: 36 | AH1: 37 | AI1: 38 | AJ1: 39 | AK1: 40 | AL1: 41 | AM1: 42 | AN1: 43 | AO1: 44 | AP1: 45 | AQ1: 46 | AR1: 47 | AS1: 48 | AT1: 49 | AU1: 50 | AV1: 51 | AW1: 52 | AX1: 53 | AY1: 54 | AZ1: 55 | BA1: 56 | BB1: 57 | BC1: 58 | BD1: 59 | BE1: 60
A2: County | B2: Lim30_13p1 | C2: Lim30_13p2 | D2: Lim30_13p3 | E2: Lim30_13p4 | F2: Lim30_13p5 | G2: Lim30_13p6 | H2: Lim30_13p7 | I2: Lim30_13p8 | J2: lim50_13p1 | K2: lim50_13p2 | L2: lim50_13p3 | M2: lim50_13p4 | N2: lim50_13p5 | O2: lim50_13p6 | P2: lim50_13p7 | Q2: lim50_13p8 | R2: Lim60_13p1 | S2: Lim60_13p2 | T2: Lim60_13p3 | U2: Lim60_13p4 | V2: Lim60_13p5 | W2: Lim60_13p6 | X2: Lim60_13p7 | Y2: Lim60_13p8 | Z2: Lim80_13p1 | AA2: Lim80_13p2 | AB2: Lim80_13p3 | AC2: Lim80_13p4 | AD2: Lim80_13p5 | AE2: Lim80_13p6 | AF2: Lim80_13p7 | AG2: Lim80_13p8 | AH2: lowrent_0 | AI2: lowrent_1 | AJ2: lowrent_2 | AK2: lowrent_3 | AL2: lowrent_4 | AM2: lowrent_5 | AN2: HighRent_0 | AO2: HighRent_1 | AP2: HighRent_2 | AQ2: HighRent_3 | AR2: HighRent_4 | AS2: HighRent_5 | AT2: HomeRent50_0 | AU2: HomeRent50_1 | AV2: HomeRent50_2 | AW2: HomeRent50_3 | AX2: HomeRent50_4 | AY2: HomeRent50_5 | AZ2: HomeRent65_0 | BA2: HomeRent65_1 | BB2: HomeRent65_2 | BC2: HomeRent65_3 | BD2: HomeRent65_4 | BE2: HomeRent65_5
A3: Alameda | B3: 18750 | C3: 21400 | D3: 24100 | E3: 26750 | F3: 28900 | G3: 31050 | H3: 33200 | I3: 35350 | J3: 31250 | K3: 35700 | L3: 40150 | M3: 44600 | N3: 48200 | O3: 51750 | P3: 55350 | Q3: 58900 | R3: 37500 | S3: 42840 | T3: 48180 | U3: 53520 | V3: 57840 | W3: 62100 | X3: 66420 | Y3: 70680 | Z3: 45100 | AA3: 51550 | AB3: 58000 | AC3: 64400 | AD3: 69600 | AE3: 74750 | AF3: 79900 | AG3: 85050 | AH3: 818 | AI3: 876 | AJ3: 1052 | AK3: 1215 | AL3: 1356 | AM3: 1496 | AN3: 892 | AO3: 1082 | AP3: 1347 | AQ3: 1547 | AR3: 1706 | AS3: 1864 | AT3: 818 | AU3: 876 | AV3: 1052 | AW3: 1215 | AX3: 1356 | AY3: 1496 | AZ3: 1045 | BA3: 1121 | BB3: 1347 | BC3: 1547 | BD3: 1706 | BE3: 1864
A4: Alpine | B4: 16350 | C4: 18700 | D4: 21050 | E4: 23350 | F4: 25250 | G4: 27100 | H4: 29000 | I4: 30850 | J4: 27250 | K4: 31150 | L4: 35050 | M4: 38900 | N4: 42050 | O4: 45150 | P4: 48250 | Q4: 51350 | R4: 32700 | S4: 37380 | T4: 42060 | U4: 46680 | V4: 50460 | W4: 54180 | X4: 57900 | Y4: 61620 | Z4: 43600 | AA4: 49800 | AB4: 56050 | AC4: 62250 | AD4: 67250 | AE4: 72250 | AF4: 77200 | AG4: 82200 | AH4: 664 | AI4: 717 | AJ4: 876 | AK4: 1011 | AL4: 1128 | AM4: 1245 | AN4: 664 | AO4: 717 | AP4: 931 | AQ4: 1136 | AR4: 1409 | AS4: 1536 | AT4: 681 | AU4: 730 | AV4: 876 | AW4: 1011 | AX4: 1128 | AY4: 1245 | AZ4: 865 | BA4: 928 | BB4: 1116 | BC4: 1280 | BD4: 1409 | BE4: 1536
A5: Amador | B5: 14550 | C5: 16600 | D5: 18700 | E5: 20750 | F5: 22450 | G5: 24100 | H5: 25750 | I5: 27400 | J5: 24250 | K5: 27700 | L5: 31150 | M5: 34600 | N5: 37400 | O5: 40150 | P5: 42950 | Q5: 45700 | R5: 29100 | S5: 33240 | T5: 37380 | U5: 41520 | V5: 44880 | W5: 48180 | X5: 51540 | Y5: 54840 | Z5: 38750 | AA5: 44300 | AB5: 49850 | AC5: 55350 | AD5: 59800 | AE5: 64250 | AF5: 68650 | AG5: 73100 | AH5: 606 | AI5: 649 | AJ5: 778 | AK5: 900 | AL5: 1003 | AM5: 1108 | AN5: 688 | AO5: 800 | AP5: 991 | AQ5: 1136 | AR5: 1248 | AS5: 1358 | AT5: 606 | AU5: 649 | AV5: 778 | AW5: 900 | AX5: 1003 | AY5: 1108 | AZ5: 768 | BA5: 824 | BB5: 991 | BC5: 1136 | BD5: 1248 | BE5: 1358
A6: Butte | B6: 12050 | C6: 13800 | D6: 15500 | E6: 17200 | F6: 18600 | G6: 20000 | H6: 21350 | I6: 22750 | J6: 20100 | K6: 22950 | L6: 25800 | M6: 28650 | N6: 30950 | O6: 33250 | P6: 35550 | Q6: 37850 | R6: 24120 | S6: 27540 | T6: 30960 | U6: 34380 | V6: 37140 | W6: 39900 | X6: 42660 | Y6: 45420 | Z6: 32100 | AA6: 36700 | AB6: 41300 | AC6: 45850 | AD6: 49550 | AE6: 53200 | AF6: 56900 | AG6: 60550 | AH6: 513 | AI6: 550 | AJ6: 661 | AK6: 763 | AL6: 851 | AM6: 939 | AN6: 532 | AO6: 666 | AP6: 837 | AQ6: 959 | AR6: 1050 | AS6: 1140 | AT6: 513 | AU6: 550 | AV6: 661 | AW6: 763 | AX6: 851 | AY6: 939 | AZ6: 649 | BA6: 696 | BB6: 837 | BC6: 959 | BD6: 1050 | BE6: 1140
A7: Calaveras | B7: 14650 | C7: 16750 | D7: 18850 | E7: 20900 | F7: 22600 | G7: 24250 | H7: 25950 | I7: 27600 | J7: 24400 | K7: 27900 | L7: 31400 | M7: 34850 | N7: 37650 | O7: 40450 | P7: 43250 | Q7: 46050 | R7: 29280 | S7: 33480 | T7: 37680 | U7: 41820 | V7: 45180 | W7: 48540 | X7: 51900 | Y7: 55260 | Z7: 39050 | AA7: 44600 | AB7: 50200 | AC7: 55750 | AD7: 60250 | AE7: 64700 | AF7: 69150 | AG7: 73600 | AH7: 610 | AI7: 653 | AJ7: 785 | AK7: 906 | AL7: 1011 | AM7: 1116 | AN7: 707 | AO7: 732 | AP7: 923 | AQ7: 1144 | AR7: 1256 | AS7: 1368 | AT7: 610 | AU7: 653 | AV7: 785 | AW7: 906 | AX7: 1011 | AY7: 1116 | AZ7: 774 | BA7: 830 | BB7: 998 | BC7: 1144 | BD7: 1256 | BE7: 1368
A8: Colusa | B8: 12050 | C8: 13800 | D8: 15500 | E8: 17200 | F8: 18600 | G8: 20000 | H8: 21350 | I8: 22750 | J8: 20100 | K8: 22950 | L8: 25800 | M8: 28650 | N8: 30950 | O8: 33250 | P8: 35550 | Q8: 37850 | R8: 24120 | S8: 27540 | T8: 30960 | U8: 34380 | V8: 37140 | W8: 39900 | X8: 42660 | Y8: 45420 | Z8: 32100 | AA8: 36700 | AB8: 41300 | AC8: 45850 | AD8: 49550 | AE8: 53200 | AF8: 56900 | AG8: 60550 | AH8: 507 | AI8: 543 | AJ8: 652 | AK8: 753 | AL8: 840 | AM8: 926 | AN8: 608 | AO8: 631 | AP8: 799 | AQ8: 945 | AR8: 1035 | AS8: 1123 | AT8: 507 | AU8: 543 | AV8: 652 | AW8: 753 | AX8: 840 | AY8: 926 | AZ8: 640 | BA8: 687 | BB8: 826 | BC8: 945 | BD8: 1035 | BE8: 1123
A9: Contra Costa | B9: 18750 | C9: 21400 | D9: 24100 | E9: 26750 | F9: 28900 | G9: 31050 | H9: 33200 | I9: 35350 | J9: 31250 | K9: 35700 | L9: 40150 | M9: 44600 | N9: 48200 | O9: 51750 | P9: 55350 | Q9: 58900 | R9: 37500 | S9: 42840 | T9: 48180 | U9: 53520 | V9: 57840 | W9: 62100 | X9: 66420 | Y9: 70680 | Z9: 45100 | AA9: 51550 | AB9: 58000 | AC9: 64400 | AD9: 69600 | AE9: 74750 | AF9: 79900 | AG9: 85050 | AH9: 818 | AI9: 876 | AJ9: 1052 | AK9: 1215 | AL9: 1356 | AM9: 1496 | AN9: 892 | AO9: 1082 | AP9: 1347 | AQ9: 1547 | AR9: 1706 | AS9: 1864 | AT9: 818 | AU9: 876 | AV9: 1052 | AW9: 1215 | AX9: 1356 | AY9: 1496 | AZ9: 1045 | BA9: 1121 | BB9: 1347 | BC9: 1547 | BD9: 1706 | BE9: 1864
A10: Del Norte | B10: 12050 | C10: 13800 | D10: 15500 | E10: 17200 | F10: 18600 | G10: 20000 | H10: 21350 | I10: 22750 | J10: 20100 | K10: 22950 | L10: 25800 | M10: 28650 | N10: 30950 | O10: 33250 | P10: 35550 | Q10: 37850 | R10: 24120 | S10: 27540 | T10: 30960 | U10: 34380 | V10: 37140 | W10: 39900 | X10: 42660 | Y10: 45420 | Z10: 32100 | AA10: 36700 | AB10: 41300 | AC10: 45850 | AD10: 49550 | AE10: 53200 | AF10: 56900 | AG10: 60550 | AH10: 507 | AI10: 543 | AJ10: 652 | AK10: 753 | AL10: 840 | AM10: 926 | AN10: 628 | AO10: 646 | AP10: 826 | AQ10: 945 | AR10: 1035 | AS10: 1123 | AT10: 507 | AU10: 543 | AV10: 652 | AW10: 753 | AX10: 840 | AY10: 926 | AZ10: 640 | BA10: 687 | BB10: 826 | BC10: 945 | BD10: 1035 | BE10: 1123
A11: El Dorado | B11: 15200 | C11: 17400 | D11: 19550 | E11: 21700 | F11: 23450 | G11: 25200 | H11: 26950 | I11: 28650 | J11: 25350 | K11: 28950 | L11: 32550 | M11: 36150 | N11: 39050 | O11: 41950 | P11: 44850 | Q11: 47750 | R11: 30420 | S11: 34740 | T11: 39060 | U11: 43380 | V11: 46860 | W11: 50340 | X11: 53820 | Y11: 57300 | Z11: 40550 | AA11: 46350 | AB11: 52150 | AC11: 57900 | AD11: 62550 | AE11: 67200 | AF11: 71800 | AG11: 76450 | AH11: 666 | AI11: 713 | AJ11: 856 | AK11: 989 | AL11: 1103 | AM11: 1218 | AN11: 731 | AO11: 843 | AP11: 1038 | AQ11: 1252 | AR11: 1378 | AS11: 1501 | AT11: 666 | AU11: 713 | AV11: 856 | AW11: 989 | AX11: 1103 | AY11: 1218 | AZ11: 846 | BA11: 908 | BB11: 1092 | BC11: 1252 | BD11: 1378 | BE11: 1501
A12: Fresno | B12: 12050 | C12: 13800 | D12: 15500 | E12: 17200 | F12: 18600 | G12: 20000 | H12: 21350 | I12: 22750 | J12: 20100 | K12: 22950 | L12: 25800 | M12: 28650 | N12: 30950 | O12: 33250 | P12: 35550 | Q12: 37850 | R12: 24120 | S12: 27540 | T12: 30960 | U12: 34380 | V12: 37140 | W12: 39900 | X12: 42660 | Y12: 45420 | Z12: 32100 | AA12: 36700 | AB12: 41300 | AC12: 45850 | AD12: 49550 | AE12: 53200 | AF12: 56900 | AG12: 60550 | AH12: 507 | AI12: 543 | AJ12: 652 | AK12: 753 | AL12: 840 | AM12: 926 | AN12: 640 | AO12: 687 | AP12: 826 | AQ12: 945 | AR12: 1035 | AS12: 1123 | AT12: 507 | AU12: 543 | AV12: 652 | AW12: 753 | AX12: 840 | AY12: 926 | AZ12: 640 | BA12: 687 | BB12: 826 | BC12: 945 | BD12: 1035 | BE12: 1123
A13: Glenn | B13: 12050 | C13: 13800 | D13: 15500 | E13: 17200 | F13: 18600 | G13: 20000 | H13: 21350 | I13: 22750 | J13: 20100 | K13: 22950 | L13: 25800 | M13: 28650 | N13: 30950 | O13: 33250 | P13: 35550 | Q13: 37850 | R13: 24120 | S13: 27540 | T13: 30960 | U13: 34380 | V13: 37140 | W13: 39900 | X13: 42660 | Y13: 45420 | Z13: 32100 | AA13: 36700 | AB13: 41300 | AC13: 45850 | AD13: 49550 | AE13: 53200 | AF13: 56900 | AG13: 60550 | AH13: 507 | AI13: 543 | AJ13: 652 | AK13: 753 | AL13: 840 | AM13: 926 | AN13: 570 | AO13: 574 | AP13: 776 | AQ13: 945 | AR13: 1035 | AS13: 1123 | AT13: 507 | AU13: 543 | AV13: 652 | AW13: 753 | AX13: 840 | AY13: 926 | AZ13: 640 | BA13: 687 | BB13: 826 | BC13: 945 | BD13: 1035 | BE13: 1123
A14: Humboldt | B14: 12050 | C14: 13800 | D14: 15500 | E14: 17200 | F14: 18600 | G14: 20000 | H14: 21350 | I14: 22750 | J14: 20100 | K14: 22950 | L14: 25800 | M14: 28650 | N14: 30950 | O14: 33250 | P14: 35550 | Q14: 37850 | R14: 24120 | S14: 27540 | T14: 30960 | U14: 34380 | V14: 37140 | W14: 39900 | X14: 42660 | Y14: 45420 | Z14: 32100 | AA14: 36700 | AB14: 41300 | AC14: 45850 | AD14: 49550 | AE14: 53200 | AF14: 56900 | AG14: 60550 | AH14: 507 | AI14: 543 | AJ14: 652 | AK14: 753 | AL14: 840 | AM14: 926 | AN14: 640 | AO14: 687 | AP14: 826 | AQ14: 945 | AR14: 1035 | AS14: 1123 | AT14: 507 | AU14: 543 | AV14: 652 | AW14: 753 | AX14: 840 | AY14: 926 | AZ14: 640 | BA14: 687 | BB14: 826 | BC14: 945 | BD14: 1035 | BE14: 1123
A15: Imperial | B15: 12050 | C15: 13800 | D15: 15500 | E15: 17200 | F15: 18600 | G15: 20000 | H15: 21350 | I15: 22750 | J15: 20100 | K15: 22950 | L15: 25800 | M15: 28650 | N15: 30950 | O15: 33250 | P15: 35550 | Q15: 37850 | R15: 24120 | S15: 27540 | T15: 30960 | U15: 34380 | V15: 37140 | W15: 39900 | X15: 42660 | Y15: 45420 | Z15: 32100 | AA15: 36700 | AB15: 41300 | AC15: 45850 | AD15: 49550 | AE15: 53200 | AF15: 56900 | AG15: 60550 | AH15: 507 | AI15: 543 | AJ15: 652 | AK15: 753 | AL15: 840 | AM15: 926 | AN15: 589 | AO15: 664 | AP15: 822 | AQ15: 945 | AR15: 1035 | AS15: 1123 | AT15: 507 | AU15: 543 | AV15: 652 | AW15: 753 | AX15: 840 | AY15: 926 | AZ15: 640 | BA15: 687 | BB15: 826 | BC15: 945 | BD15: 1035 | BE15: 1123
A16: Inyo | B16: 13850 | C16: 15800 | D16: 17800 | E16: 19750 | F16: 21350 | G16: 22950 | H16: 24500 | I16: 26100 | J16: 23050 | K16: 26350 | L16: 29650 | M16: 32900 | N16: 35550 | O16: 38200 | P16: 40800 | Q16: 43450 | R16: 27660 | S16: 31620 | T16: 35580 | U16: 39480 | V16: 42660 | W16: 45840 | X16: 48960 | Y16: 52140 | Z16: 36900 | AA16: 42150 | AB16: 47400 | AC16: 52650 | AD16: 56900 | AE16: 61100 | AF16: 65300 | AG16: 69500 | AH16: 576 | AI16: 617 | AJ16: 741 | AK16: 855 | AL16: 955 | AM16: 1053 | AN16: 675 | AO16: 703 | AP16: 836 | AQ16: 1078 | AR16: 1183 | AS16: 1287 | AT16: 576 | AU16: 617 | AV16: 741 | AW16: 855 | AX16: 955 | AY16: 1053 | AZ16: 729 | BA16: 782 | BB16: 941 | BC16: 1078 | BD16: 1183 | BE16: 1287
A17: Kern | B17: 12050 | C17: 13800 | D17: 15500 | E17: 17200 | F17: 18600 | G17: 20000 | H17: 21350 | I17: 22750 | J17: 20100 | K17: 22950 | L17: 25800 | M17: 28650 | N17: 30950 | O17: 33250 | P17: 35550 | Q17: 37850 | R17: 24120 | S17: 27540 | T17: 30960 | U17: 34380 | V17: 37140 | W17: 39900 | X17: 42660 | Y17: 45420 | Z17: 32100 | AA17: 36700 | AB17: 41300 | AC17: 45850 | AD17: 49550 | AE17: 53200 | AF17: 56900 | AG17: 60550 | AH17: 507 | AI17: 543 | AJ17: 652 | AK17: 753 | AL17: 840 | AM17: 926 | AN17: 611 | AO17: 649 | AP17: 804 | AQ17: 945 | AR17: 1035 | AS17: 1123 | AT17: 507 | AU17: 543 | AV17: 652 | AW17: 753 | AX17: 840 | AY17: 926 | AZ17: 640 | BA17: 687 | BB17: 826 | BC17: 945 | BD17: 1035 | BE17: 1123
A18: Kings | B18: 12050 | C18: 13800 | D18: 15500 | E18: 17200 | F18: 18600 | G18: 20000 | H18: 21350 | I18: 22750 | J18: 20100 | K18: 22950 | L18: 25800 | M18: 28650 | N18: 30950 | O18: 33250 | P18: 35550 | Q18: 37850 | R18: 24120 | S18: 27540 | T18: 30960 | U18: 34380 | V18: 37140 | W18: 39900 | X18: 42660 | Y18: 45420 | Z18: 32100 | AA18: 36700 | AB18: 41300 | AC18: 45850 | AD18: 49550 | AE18: 53200 | AF18: 56900 | AG18: 60550 | AH18: 486 | AI18: 543 | AJ18: 652 | AK18: 753 | AL18: 840 | AM18: 926 | AN18: 486 | AO18: 575 | AP18: 778 | AQ18: 945 | AR18: 1035 | AS18: 1123 | AT18: 507 | AU18: 543 | AV18: 652 | AW18: 753 | AX18: 840 | AY18: 926 | AZ18: 640 | BA18: 687 | BB18: 826 | BC18: 945 | BD18: 1035 | BE18: 1123
A19: Lake | B19: 12050 | C19: 13800 | D19: 15500 | E19: 17200 | F19: 18600 | G19: 20000 | H19: 21350 | I19: 22750 | J19: 20100 | K19: 22950 | L19: 25800 | M19: 28650 | N19: 30950 | O19: 33250 | P19: 35550 | Q19: 37850 | R19: 24120 | S19: 27540 | T19: 30960 | U19: 34380 | V19: 37140 | W19: 39900 | X19: 42660 | Y19: 45420 | Z19: 32100 | AA19: 36700 | AB19: 41300 | AC19: 45850 | AD19: 49550 | AE19: 53200 | AF19: 56900 | AG19: 60550 | AH19: 507 | AI19: 543 | AJ19: 652 | AK19: 753 | AL19: 840 | AM19: 926 | AN19: 640 | AO19: 650 | AP19: 826 | AQ19: 945 | AR19: 1035 | AS19: 1123 | AT19: 507 | AU19: 543 | AV19: 652 | AW19: 753 | AX19: 840 | AY19: 926 | AZ19: 640 | BA19: 687 | BB19: 826 | BC19: 945 | BD19: 1035 | BE19: 1123
A20: Lassen | B20: 13600 | C20: 15550 | D20: 17500 | E20: 19400 | F20: 21000 | G20: 22550 | H20: 24100 | I20: 25650 | J20: 22650 | K20: 25900 | L20: 29150 | M20: 32350 | N20: 34950 | O20: 37550 | P20: 40150 | Q20: 42750 | R20: 27180 | S20: 31080 | T20: 34980 | U20: 38820 | V20: 41940 | W20: 45060 | X20: 48180 | Y20: 51300 | Z20: 36250 | AA20: 41400 | AB20: 46600 | AC20: 51750 | AD20: 55900 | AE20: 60050 | AF20: 64200 | AG20: 68350 | AH20: 566 | AI20: 606 | AJ20: 728 | AK20: 841 | AL20: 938 | AM20: 1036 | AN20: 700 | AO20: 740 | AP20: 924 | AQ20: 1060 | AR20: 1163 | AS20: 1264 | AT20: 566 | AU20: 606 | AV20: 728 | AW20: 841 | AX20: 938 | AY20: 1036 | AZ20: 716 | BA20: 769 | BB20: 924 | BC20: 1060 | BD20: 1163 | BE20: 1264
A21: Los Angeles | B21: 17400 | C21: 19900 | D21: 22400 | E21: 24850 | F21: 26850 | G21: 28850 | H21: 30850 | I21: 32850 | J21: 29000 | K21: 33150 | L21: 37300 | M21: 41400 | N21: 44750 | O21: 48050 | P21: 51350 | Q21: 54650 | R21: 34800 | S21: 39780 | T21: 44760 | U21: 49680 | V21: 53700 | W21: 57660 | X21: 61620 | Y21: 65580 | Z21: 46400 | AA21: 53000 | AB21: 59650 | AC21: 66250 | AD21: 71550 | AE21: 76850 | AF21: 82150 | AG21: 87450 | AH21: 738 | AI21: 791 | AJ21: 951 | AK21: 1100 | AL21: 1228 | AM21: 1356 | AN21: 938 | AO21: 1011 | AP21: 1217 | AQ21: 1399 | AR21: 1543 | AS21: 1685 | AT21: 738 | AU21: 791 | AV21: 948 | AW21: 1096 | AX21: 1222 | AY21: 1349 | AZ21: 940 | BA21: 1008 | BB21: 1212 | BC21: 1391 | BD21: 1533 | BE21: 1672
A22: Madera | B22: 12050 | C22: 13800 | D22: 15500 | E22: 17200 | F22: 18600 | G22: 20000 | H22: 21350 | I22: 22750 | J22: 20100 | K22: 22950 | L22: 25800 | M22: 28650 | N22: 30950 | O22: 33250 | P22: 35550 | Q22: 37850 | R22: 24120 | S22: 27540 | T22: 30960 | U22: 34380 | V22: 37140 | W22: 39900 | X22: 42660 | Y22: 45420 | Z22: 32100 | AA22: 36700 | AB22: 41300 | AC22: 45850 | AD22: 49550 | AE22: 53200 | AF22: 56900 | AG22: 60550 | AH22: 507 | AI22: 543 | AJ22: 652 | AK22: 753 | AL22: 840 | AM22: 926 | AN22: 632 | AO22: 664 | AP22: 826 | AQ22: 945 | AR22: 1035 | AS22: 1123 | AT22: 507 | AU22: 543 | AV22: 652 | AW22: 753 | AX22: 840 | AY22: 926 | AZ22: 640 | BA22: 687 | BB22: 826 | BC22: 945 | BD22: 1035 | BE22: 1123
A23: Marin | B23: 22200 | C23: 25350 | D23: 28500 | E23: 31650 | F23: 34200 | G23: 36750 | H23: 39250 | I23: 41800 | J23: 36950 | K23: 42200 | L23: 47500 | M23: 52750 | N23: 57000 | O23: 61200 | P23: 65450 | Q23: 69650 | R23: 44340 | S23: 50640 | T23: 57000 | U23: 63300 | V23: 68400 | W23: 73440 | X23: 78540 | Y23: 83580 | Z23: 59100 | AA23: 67550 | AB23: 76000 | AC23: 84400 | AD23: 91200 | AE23: 97950 | AF23: 104700 | AG23: 111450 | AH23: 980 | AI23: 1050 | AJ23: 1262 | AK23: 1460 | AL23: 1630 | AM23: 1798 | AN23: 1093 | AO23: 1334 | AP23: 1602 | AQ23: 1842 | AR23: 2035 | AS23: 2227 | AT23: 971 | AU23: 1040 | AV23: 1248 | AW23: 1443 | AX23: 1610 | AY23: 1776 | AZ23: 1244 | BA23: 1334 | BB23: 1602 | BC23: 1842 | BD23: 2035 | BE23: 2227
A24: Mariposa | B24: 12900 | C24: 14750 | D24: 16600 | E24: 18400 | F24: 19900 | G24: 21350 | H24: 22850 | I24: 24300 | J24: 21500 | K24: 24550 | L24: 27600 | M24: 30650 | N24: 33150 | O24: 35600 | P24: 38050 | Q24: 40500 | R24: 25800 | S24: 29460 | T24: 33120 | U24: 36780 | V24: 39780 | W24: 42720 | X24: 45660 | Y24: 48600 | Z24: 34350 | AA24: 39250 | AB24: 44150 | AC24: 49050 | AD24: 53000 | AE24: 56900 | AF24: 60850 | AG24: 64750 | AH24: 537 | AI24: 575 | AJ24: 690 | AK24: 797 | AL24: 890 | AM24: 981 | AN24: 634 | AO24: 669 | AP24: 831 | AQ24: 1002 | AR24: 1099 | AS24: 1194 | AT24: 537 | AU24: 575 | AV24: 690 | AW24: 797 | AX24: 890 | AY24: 981 | AZ24: 678 | BA24: 728 | BB24: 876 | BC24: 1002 | BD24: 1099 | BE24: 1194
A25: Mendocino | B25: 12150 | C25: 13850 | D25: 15600 | E25: 17300 | F25: 18700 | G25: 20100 | H25: 21500 | I25: 22850 | J25: 20200 | K25: 23050 | L25: 25950 | M25: 28800 | N25: 31150 | O25: 33450 | P25: 35750 | Q25: 38050 | R25: 24240 | S25: 27660 | T25: 31140 | U25: 34560 | V25: 37380 | W25: 40140 | X25: 42900 | Y25: 45660 | Z25: 32300 | AA25: 36900 | AB25: 41500 | AC25: 46100 | AD25: 49800 | AE25: 53500 | AF25: 57200 | AG25: 60900 | AH25: 507 | AI25: 543 | AJ25: 652 | AK25: 753 | AL25: 840 | AM25: 926 | AN25: 640 | AO25: 687 | AP25: 826 | AQ25: 945 | AR25: 1035 | AS25: 1123 | AT25: 507 | AU25: 543 | AV25: 652 | AW25: 753 | AX25: 840 | AY25: 926 | AZ25: 640 | BA25: 687 | BB25: 826 | BC25: 945 | BD25: 1035 | BE25: 1123
A26: Merced | B26: 12050 | C26: 13800 | D26: 15500 | E26: 17200 | F26: 18600 | G26: 20000 | H26: 21350 | I26: 22750 | J26: 20100 | K26: 22950 | L26: 25800 | M26: 28650 | N26: 30950 | O26: 33250 | P26: 35550 | Q26: 37850 | R26: 24120 | S26: 27540 | T26: 30960 | U26: 34380 | V26: 37140 | W26: 39900 | X26: 42660 | Y26: 45420 | Z26: 32100 | AA26: 36700 | AB26: 41300 | AC26: 45850 | AD26: 49550 | AE26: 53200 | AF26: 56900 | AG26: 60550 | AH26: 507 | AI26: 543 | AJ26: 652 | AK26: 753 | AL26: 840 | AM26: 926 | AN26: 563 | AO26: 645 | AP26: 801 | AQ26: 945 | AR26: 1035 | AS26: 1123 | AT26: 507 | AU26: 543 | AV26: 652 | AW26: 753 | AX26: 840 | AY26: 926 | AZ26: 640 | BA26: 687 | BB26: 826 | BC26: 945 | BD26: 1035 | BE26: 1123
A27: Modoc | B27: 12050 | C27: 13800 | D27: 15500 | E27: 17200 | F27: 18600 | G27: 20000 | H27: 21350 | I27: 22750 | J27: 20100 | K27: 22950 | L27: 25800 | M27: 28650 | N27: 30950 | O27: 33250 | P27: 35550 | Q27: 37850 | R27: 24120 | S27: 27540 | T27: 30960 | U27: 34380 | V27: 37140 | W27: 39900 | X27: 42660 | Y27: 45420 | Z27: 32100 | AA27: 36700 | AB27: 41300 | AC27: 45850 | AD27: 49550 | AE27: 53200 | AF27: 56900 | AG27: 60550 | AH27: 507 | AI27: 543 | AJ27: 652 | AK27: 753 | AL27: 840 | AM27: 926 | AN27: 533 | AO27: 597 | AP27: 753 | AQ27: 924 | AR27: 1035 | AS27: 1123 | AT27: 507 | AU27: 543 | AV27: 652 | AW27: 753 | AX27: 840 | AY27: 926 | AZ27: 640 | BA27: 687 | BB27: 826 | BC27: 945 | BD27: 1035 | BE27: 1123
A28: Mono | B28: 16450 | C28: 18800 | D28: 21150 | E28: 23500 | F28: 25400 | G28: 27300 | H28: 29150 | I28: 31050 | J28: 27450 | K28: 31350 | L28: 35250 | M28: 39150 | N28: 42300 | O28: 45450 | P28: 48550 | Q28: 51700 | R28: 32940 | S28: 37620 | T28: 42300 | U28: 46980 | V28: 50760 | W28: 54540 | X28: 58260 | Y28: 62040 | Z28: 43900 | AA28: 50150 | AB28: 56400 | AC28: 62650 | AD28: 67700 | AE28: 72700 | AF28: 77700 | AG28: 82700 | AH28: 686 | AI28: 735 | AJ28: 881 | AK28: 1018 | AL28: 1136 | AM28: 1253 | AN28: 871 | AO28: 935 | AP28: 1124 | AQ28: 1290 | AR28: 1419 | AS28: 1547 | AT28: 686 | AU28: 735 | AV28: 881 | AW28: 1018 | AX28: 1136 | AY28: 1253 | AZ28: 871 | BA28: 935 | BB28: 1124 | BC28: 1290 | BD28: 1419 | BE28: 1547
A29: Monterey | B29: 15000 | C29: 17150 | D29: 19300 | E29: 21400 | F29: 23150 | G29: 24850 | H29: 26550 | I29: 28250 | J29: 25000 | K29: 28550 | L29: 32100 | M29: 35650 | N29: 38550 | O29: 41400 | P29: 44250 | Q29: 47100 | R29: 30000 | S29: 34260 | T29: 38520 | U29: 42780 | V29: 46260 | W29: 49680 | X29: 53100 | Y29: 56520 | Z29: 39950 | AA29: 45650 | AB29: 51350 | AC29: 57050 | AD29: 61650 | AE29: 66200 | AF29: 70750 | AG29: 75350 | AH29: 625 | AI29: 669 | AJ29: 802 | AK29: 927 | AL29: 1035 | AM29: 1141 | AN29: 791 | AO29: 849 | AP29: 1022 | AQ29: 1172 | AR29: 1288 | AS29: 1402 | AT29: 625 | AU29: 669 | AV29: 802 | AW29: 927 | AX29: 1035 | AY29: 1141 | AZ29: 791 | BA29: 849 | BB29: 1022 | BC29: 1172 | BD29: 1288 | BE29: 1402
A30: Napa | B30: 17200 | C30: 19650 | D30: 22100 | E30: 24550 | F30: 26550 | G30: 28500 | H30: 30450 | I30: 32450 | J30: 28650 | K30: 32750 | L30: 36850 | M30: 40900 | N30: 44200 | O30: 47450 | P30: 50750 | Q30: 54000 | R30: 34380 | S30: 39300 | T30: 44220 | U30: 49080 | V30: 53040 | W30: 56940 | X30: 60900 | Y30: 64800 | Z30: 45100 | AA30: 51550 | AB30: 58000 | AC30: 64400 | AD30: 69600 | AE30: 74750 | AF30: 79900 | AG30: 85050 | AH30: 753 | AI30: 807 | AJ30: 968 | AK30: 1119 | AL30: 1248 | AM30: 1378 | AN30: 891 | AO30: 1002 | AP30: 1238 | AQ30: 1421 | AR30: 1566 | AS30: 1709 | AT30: 753 | AU30: 807 | AV30: 968 | AW30: 1119 | AX30: 1248 | AY30: 1378 | AZ30: 960 | BA30: 1030 | BB30: 1238 | BC30: 1421 | BD30: 1566 | BE30: 1709
A31: Nevada | B31: 14500 | C31: 16600 | D31: 18650 | E31: 20700 | F31: 22400 | G31: 24050 | H31: 25700 | I31: 27350 | J31: 24150 | K31: 27600 | L31: 31050 | M31: 34500 | N31: 37300 | O31: 40050 | P31: 42800 | Q31: 45550 | R31: 28980 | S31: 33120 | T31: 37260 | U31: 41400 | V31: 44760 | W31: 48060 | X31: 51360 | Y31: 54660 | Z31: 38650 | AA31: 44200 | AB31: 49700 | AC31: 55200 | AD31: 59650 | AE31: 64050 | AF31: 68450 | AG31: 72900 | AH31: 636 | AI31: 681 | AJ31: 817 | AK31: 944 | AL31: 1053 | AM31: 1162 | AN31: 775 | AO31: 829 | AP31: 1034 | AQ31: 1194 | AR31: 1313 | AS31: 1429 | AT31: 636 | AU31: 681 | AV31: 817 | AW31: 944 | AX31: 1053 | AY31: 1162 | AZ31: 806 | BA31: 866 | BB31: 1041 | BC31: 1194 | BD31: 1313 | BE31: 1429
A32: Orange | B32: 19250 | C32: 22000 | D32: 24750 | E32: 27450 | F32: 29650 | G32: 31850 | H32: 34050 | I32: 36250 | J32: 32050 | K32: 36600 | L32: 41200 | M32: 45750 | N32: 49450 | O32: 53100 | P32: 56750 | Q32: 60400 | R32: 38460 | S32: 43920 | T32: 49440 | U32: 54900 | V32: 59340 | W32: 63720 | X32: 68100 | Y32: 72480 | Z32: 51250 | AA32: 58600 | AB32: 65900 | AC32: 73200 | AD32: 79100 | AE32: 84950 | AF32: 90800 | AG32: 96650 | AH32: 843 | AI32: 903 | AJ32: 1083 | AK32: 1252 | AL32: 1397 | AM32: 1541 | AN32: 1061 | AO32: 1154 | AP32: 1387 | AQ32: 1594 | AR32: 1759 | AS32: 1922 | AT32: 843 | AU32: 903 | AV32: 1083 | AW32: 1252 | AX32: 1397 | AY32: 1541 | AZ32: 1076 | BA32: 1154 | BB32: 1387 | BC32: 1594 | BD32: 1759 | BE32: 1922
A33: Placer | B33: 15200 | C33: 17400 | D33: 19550 | E33: 21700 | F33: 23450 | G33: 25200 | H33: 26950 | I33: 28650 | J33: 25350 | K33: 28950 | L33: 32550 | M33: 36150 | N33: 39050 | O33: 41950 | P33: 44850 | Q33: 47750 | R33: 30420 | S33: 34740 | T33: 39060 | U33: 43380 | V33: 46860 | W33: 50340 | X33: 53820 | Y33: 57300 | Z33: 40550 | AA33: 46350 | AB33: 52150 | AC33: 57900 | AD33: 62550 | AE33: 67200 | AF33: 71800 | AG33: 76450 | AH33: 666 | AI33: 713 | AJ33: 856 | AK33: 989 | AL33: 1103 | AM33: 1218 | AN33: 731 | AO33: 843 | AP33: 1038 | AQ33: 1252 | AR33: 1378 | AS33: 1501 | AT33: 666 | AU33: 713 | AV33: 856 | AW33: 989 | AX33: 1103 | AY33: 1218 | AZ33: 846 | BA33: 908 | BB33: 1092 | BC33: 1252 | BD33: 1378 | BE33: 1501
A34: Plumas | B34: 12150 | C34: 13850 | D34: 15600 | E34: 17300 | F34: 18700 | G34: 20100 | H34: 21500 | I34: 22850 | J34: 20200 | K34: 23050 | L34: 25950 | M34: 28800 | N34: 31150 | O34: 33450 | P34: 35750 | Q34: 38050 | R34: 24240 | S34: 27660 | T34: 31140 | U34: 34560 | V34: 37380 | W34: 40140 | X34: 42900 | Y34: 45660 | Z34: 32300 | AA34: 36900 | AB34: 41500 | AC34: 46100 | AD34: 49800 | AE34: 53500 | AF34: 57200 | AG34: 60900 | AH34: 530 | AI34: 568 | AJ34: 682 | AK34: 788 | AL34: 880 | AM34: 970 | AN34: 565 | AO34: 687 | AP34: 866 | AQ34: 991 | AR34: 1086 | AS34: 1180 | AT34: 507 | AU34: 543 | AV34: 652 | AW34: 753 | AX34: 840 | AY34: 926 | AZ34: 640 | BA34: 687 | BB34: 826 | BC34: 945 | BD34: 1035 | BE34: 1123
A35: Riverside | B35: 13400 | C35: 15300 | D35: 17200 | E35: 19100 | F35: 20650 | G35: 22200 | H35: 23700 | I35: 25250 | J35: 22300 | K35: 25500 | L35: 28700 | M35: 31850 | N35: 34400 | O35: 36950 | P35: 39500 | Q35: 42050 | R35: 26760 | S35: 30600 | T35: 34440 | U35: 38220 | V35: 41280 | W35: 44340 | X35: 47400 | Y35: 50460 | Z35: 35700 | AA35: 40800 | AB35: 45900 | AC35: 50950 | AD35: 55050 | AE35: 59150 | AF35: 63200 | AG35: 67300 | AH35: 586 | AI35: 628 | AJ35: 753 | AK35: 871 | AL35: 972 | AM35: 1072 | AN35: 708 | AO35: 797 | AP35: 958 | AQ35: 1099 | AR35: 1206 | AS35: 1312 | AT35: 586 | AU35: 628 | AV35: 753 | AW35: 871 | AX35: 972 | AY35: 1072 | AZ35: 743 | BA35: 797 | BB35: 958 | BC35: 1099 | BD35: 1206 | BE35: 1312
A36: Sacramento | B36: 15200 | C36: 17400 | D36: 19550 | E36: 21700 | F36: 23450 | G36: 25200 | H36: 26950 | I36: 28650 | J36: 25350 | K36: 28950 | L36: 32550 | M36: 36150 | N36: 39050 | O36: 41950 | P36: 44850 | Q36: 47750 | R36: 30420 | S36: 34740 | T36: 39060 | U36: 43380 | V36: 46860 | W36: 50340 | X36: 53820 | Y36: 57300 | Z36: 40550 | AA36: 46350 | AB36: 52150 | AC36: 57900 | AD36: 62550 | AE36: 67200 | AF36: 71800 | AG36: 76450 | AH36: 666 | AI36: 713 | AJ36: 856 | AK36: 989 | AL36: 1103 | AM36: 1218 | AN36: 731 | AO36: 843 | AP36: 1038 | AQ36: 1252 | AR36: 1378 | AS36: 1501 | AT36: 666 | AU36: 713 | AV36: 856 | AW36: 989 | AX36: 1103 | AY36: 1218 | AZ36: 846 | BA36: 908 | BB36: 1092 | BC36: 1252 | BD36: 1378 | BE36: 1501
A37: San Benito | B37: 16800 | C37: 19200 | D37: 21600 | E37: 23950 | F37: 25900 | G37: 27800 | H37: 29700 | I37: 31650 | J37: 27950 | K37: 31950 | L37: 35950 | M37: 39900 | N37: 43100 | O37: 46300 | P37: 49500 | Q37: 52700 | R37: 33540 | S37: 38340 | T37: 43140 | U37: 47880 | V37: 51720 | W37: 55560 | X37: 59400 | Y37: 63240 | Z37: 44700 | AA37: 51100 | AB37: 57500 | AC37: 63850 | AD37: 69000 | AE37: 74100 | AF37: 79200 | AG37: 84300 | AH37: 700 | AI37: 750 | AJ37: 902 | AK37: 1044 | AL37: 1166 | AM37: 1288 | AN37: 798 | AO37: 936 | AP37: 1154 | AQ37: 1327 | AR37: 1461 | AS37: 1595 | AT37: 698 | AU37: 748 | AV37: 898 | AW37: 1037 | AX37: 1157 | AY37: 1277 | AZ37: 888 | BA37: 953 | BB37: 1146 | BC37: 1314 | BD37: 1446 | BE37: 1577
A38: San Bernardino | B38: 13400 | C38: 15300 | D38: 17200 | E38: 19100 | F38: 20650 | G38: 22200 | H38: 23700 | I38: 25250 | J38: 22300 | K38: 25500 | L38: 28700 | M38: 31850 | N38: 34400 | O38: 36950 | P38: 39500 | Q38: 42050 | R38: 26760 | S38: 30600 | T38: 34440 | U38: 38220 | V38: 41280 | W38: 44340 | X38: 47400 | Y38: 50460 | Z38: 35700 | AA38: 40800 | AB38: 45900 | AC38: 50950 | AD38: 55050 | AE38: 59150 | AF38: 63200 | AG38: 67300 | AH38: 586 | AI38: 628 | AJ38: 753 | AK38: 871 | AL38: 972 | AM38: 1072 | AN38: 708 | AO38: 797 | AP38: 958 | AQ38: 1099 | AR38: 1206 | AS38: 1312 | AT38: 586 | AU38: 628 | AV38: 753 | AW38: 871 | AX38: 972 | AY38: 1072 | AZ38: 743 | BA38: 797 | BB38: 958 | BC38: 1099 | BD38: 1206 | BE38: 1312
A39: San Diego | B39: 16950 | C39: 19400 | D39: 21800 | E39: 24200 | F39: 26150 | G39: 28100 | H39: 30050 | I39: 31950 | J39: 28250 | K39: 32250 | L39: 36300 | M39: 40300 | N39: 43550 | O39: 46750 | P39: 50000 | Q39: 53200 | R39: 33900 | S39: 38700 | T39: 43560 | U39: 48360 | V39: 52260 | W39: 56100 | X39: 60000 | Y39: 63840 | Z39: 45150 | AA39: 51600 | AB39: 58050 | AC39: 64500 | AD39: 69700 | AE39: 74850 | AF39: 80000 | AG39: 85150 | AH39: 712 | AI39: 764 | AJ39: 918 | AK39: 1063 | AL39: 1187 | AM39: 1311 | AN39: 910 | AO39: 977 | AP39: 1177 | AQ39: 1351 | AR39: 1488 | AS39: 1623 | AT39: 706 | AU39: 756 | AV39: 907 | AW39: 1048 | AX39: 1168 | AY39: 1290 | AZ39: 898 | BA39: 963 | BB39: 1158 | BC39: 1329 | BD39: 1463 | BE39: 1596
A40: San Francisco | B40: 22200 | C40: 25350 | D40: 28500 | E40: 31650 | F40: 34200 | G40: 36750 | H40: 39250 | I40: 41800 | J40: 36950 | K40: 42200 | L40: 47500 | M40: 52750 | N40: 57000 | O40: 61200 | P40: 65450 | Q40: 69650 | R40: 44340 | S40: 50640 | T40: 57000 | U40: 63300 | V40: 68400 | W40: 73440 | X40: 78540 | Y40: 83580 | Z40: 59100 | AA40: 67550 | AB40: 76000 | AC40: 84400 | AD40: 91200 | AE40: 97950 | AF40: 104700 | AG40: 111450 | AH40: 980 | AI40: 1050 | AJ40: 1262 | AK40: 1460 | AL40: 1630 | AM40: 1798 | AN40: 1093 | AO40: 1334 | AP40: 1602 | AQ40: 1842 | AR40: 2035 | AS40: 2227 | AT40: 971 | AU40: 1040 | AV40: 1248 | AW40: 1443 | AX40: 1610 | AY40: 1776 | AZ40: 1244 | BA40: 1334 | BB40: 1602 | BC40: 1842 | BD40: 2035 | BE40: 2227
A41: San Joaquin | B41: 13250 | C41: 15150 | D41: 17050 | E41: 18900 | F41: 20450 | G41: 21950 | H41: 23450 | I41: 24950 | J41: 22050 | K41: 25200 | L41: 28350 | M41: 31500 | N41: 34050 | O41: 36550 | P41: 39100 | Q41: 41600 | R41: 26460 | S41: 30240 | T41: 34020 | U41: 37800 | V41: 40860 | W41: 43860 | X41: 46920 | Y41: 49920 | Z41: 35300 | AA41: 40350 | AB41: 45400 | AC41: 50400 | AD41: 54450 | AE41: 58500 | AF41: 62500 | AG41: 66550 | AH41: 581 | AI41: 622 | AJ41: 746 | AK41: 862 | AL41: 962 | AM41: 1061 | AN41: 663 | AO41: 760 | AP41: 948 | AQ41: 1087 | AR41: 1193 | AS41: 1297 | AT41: 581 | AU41: 622 | AV41: 746 | AW41: 862 | AX41: 962 | AY41: 1061 | AZ41: 735 | BA41: 789 | BB41: 948 | BC41: 1087 | BD41: 1193 | BE41: 1297
A42: San Luis Obispo | B42: 15050 | C42: 17200 | D42: 19350 | E42: 21500 | F42: 23250 | G42: 24950 | H42: 26700 | I42: 28400 | J42: 25100 | K42: 28700 | L42: 32300 | M42: 35850 | N42: 38750 | O42: 41600 | P42: 44500 | Q42: 47350 | R42: 30120 | S42: 34440 | T42: 38760 | U42: 43020 | V42: 46500 | W42: 49920 | X42: 53400 | Y42: 56820 | Z42: 40150 | AA42: 45900 | AB42: 51650 | AC42: 57350 | AD42: 61950 | AE42: 66550 | AF42: 71150 | AG42: 75750 | AH42: 660 | AI42: 707 | AJ42: 848 | AK42: 980 | AL42: 1093 | AM42: 1206 | AN42: 804 | AO42: 880 | AP42: 1081 | AQ42: 1240 | AR42: 1364 | AS42: 1487 | AT42: 660 | AU42: 707 | AV42: 848 | AW42: 980 | AX42: 1093 | AY42: 1206 | AZ42: 838 | BA42: 899 | BB42: 1081 | BC42: 1240 | BD42: 1364 | BE42: 1487
A43: San Mateo | B43: 22200 | C43: 25350 | D43: 28500 | E43: 31650 | F43: 34200 | G43: 36750 | H43: 39250 | I43: 41800 | J43: 36950 | K43: 42200 | L43: 47500 | M43: 52750 | N43: 57000 | O43: 61200 | P43: 65450 | Q43: 69650 | R43: 44340 | S43: 50640 | T43: 57000 | U43: 63300 | V43: 68400 | W43: 73440 | X43: 78540 | Y43: 83580 | Z43: 59100 | AA43: 67550 | AB43: 76000 | AC43: 84400 | AD43: 91200 | AE43: 97950 | AF43: 104700 | AG43: 111450 | AH43: 980 | AI43: 1050 | AJ43: 1262 | AK43: 1460 | AL43: 1630 | AM43: 1798 | AN43: 1093 | AO43: 1334 | AP43: 1602 | AQ43: 1842 | AR43: 2035 | AS43: 2227 | AT43: 971 | AU43: 1040 | AV43: 1248 | AW43: 1443 | AX43: 1610 | AY43: 1776 | AZ43: 1244 | BA43: 1334 | BB43: 1602 | BC43: 1842 | BD43: 2035 | BE43: 2227
A44: Santa Barbara | B44: 16750 | C44: 19150 | D44: 21550 | E44: 23900 | F44: 25850 | G44: 27750 | H44: 29650 | I44: 31550 | J44: 27900 | K44: 31850 | L44: 35850 | M44: 39800 | N44: 43000 | O44: 46200 | P44: 49400 | Q44: 52550 | R44: 33480 | S44: 38220 | T44: 43020 | U44: 47760 | V44: 51600 | W44: 55440 | X44: 59280 | Y44: 63060 | Z44: 44600 | AA44: 51000 | AB44: 57350 | AC44: 63700 | AD44: 68800 | AE44: 73900 | AF44: 79000 | AG44: 84100 | AH44: 697 | AI44: 746 | AJ44: 896 | AK44: 1035 | AL44: 1155 | AM44: 1274 | AN44: 886 | AO44: 951 | AP44: 1143 | AQ44: 1312 | AR44: 1444 | AS44: 1575 | AT44: 697 | AU44: 746 | AV44: 896 | AW44: 1035 | AX44: 1155 | AY44: 1274 | AZ44: 886 | BA44: 951 | BB44: 1143 | BC44: 1312 | BD44: 1444 | BE44: 1575
A45: Santa Clara | B45: 21300 | C45: 24350 | D45: 27400 | E45: 30400 | F45: 32850 | G45: 35300 | H45: 37700 | I45: 40150 | J45: 35500 | K45: 40550 | L45: 45600 | M45: 50650 | N45: 54750 | O45: 58800 | P45: 62850 | Q45: 66900 | R45: 42600 | S45: 48660 | T45: 54720 | U45: 60780 | V45: 65700 | W45: 70560 | X45: 75420 | Y45: 80280 | Z45: 52550 | AA45: 60050 | AB45: 67550 | AC45: 75050 | AD45: 81100 | AE45: 87100 | AF45: 93100 | AG45: 99100 | AH45: 918 | AI45: 985 | AJ45: 1183 | AK45: 1369 | AL45: 1528 | AM45: 1688 | AN45: 1079 | AO45: 1199 | AP45: 1441 | AQ45: 1656 | AR45: 1828 | AS45: 1998 | AT45: 918 | AU45: 984 | AV45: 1181 | AW45: 1365 | AX45: 1522 | AY45: 1680 | AZ45: 1118 | BA45: 1199 | BB45: 1441 | BC45: 1656 | BD45: 1828 | BE45: 1998
A46: Santa Cruz | B46: 19450 | C46: 22200 | D46: 25000 | E46: 27750 | F46: 30000 | G46: 32200 | H46: 34450 | I46: 36650 | J46: 32400 | K46: 37000 | L46: 41650 | M46: 46250 | N46: 49950 | O46: 53650 | P46: 57350 | Q46: 61050 | R46: 38880 | S46: 44400 | T46: 49980 | U46: 55500 | V46: 59940 | W46: 64380 | X46: 68820 | Y46: 73260 | Z46: 51800 | AA46: 59200 | AB46: 66600 | AC46: 74000 | AD46: 79950 | AE46: 85850 | AF46: 91800 | AG46: 97700 | AH46: 867 | AI46: 929 | AJ46: 1116 | AK46: 1288 | AL46: 1438 | AM46: 1586 | AN46: 1073 | AO46: 1188 | AP46: 1428 | AQ46: 1641 | AR46: 1812 | AS46: 1980 | AT46: 838 | AU46: 898 | AV46: 1078 | AW46: 1245 | AX46: 1390 | AY46: 1533 | AZ46: 1070 | BA46: 1148 | BB46: 1379 | BC46: 1585 | BD46: 1749 | BE46: 1911
A47: Shasta | B47: 12050 | C47: 13800 | D47: 15500 | E47: 17200 | F47: 18600 | G47: 20000 | H47: 21350 | I47: 22750 | J47: 20100 | K47: 22950 | L47: 25800 | M47: 28650 | N47: 30950 | O47: 33250 | P47: 35550 | Q47: 37850 | R47: 24120 | S47: 27540 | T47: 30960 | U47: 34380 | V47: 37140 | W47: 39900 | X47: 42660 | Y47: 45420 | Z47: 32100 | AA47: 36700 | AB47: 41300 | AC47: 45850 | AD47: 49550 | AE47: 53200 | AF47: 56900 | AG47: 60550 | AH47: 516 | AI47: 553 | AJ47: 663 | AK47: 767 | AL47: 856 | AM47: 944 | AN47: 651 | AO47: 699 | AP47: 842 | AQ47: 964 | AR47: 1055 | AS47: 1146 | AT47: 516 | AU47: 553 | AV47: 663 | AW47: 767 | AX47: 856 | AY47: 944 | AZ47: 651 | BA47: 699 | BB47: 842 | BC47: 964 | BD47: 1055 | BE47: 1146
A48: Sierra | B48: 14800 | C48: 16900 | D48: 19000 | E48: 21100 | F48: 22800 | G48: 24500 | H48: 26200 | I48: 27900 | J48: 24650 | K48: 28150 | L48: 31650 | M48: 35150 | N48: 38000 | O48: 40800 | P48: 43600 | Q48: 46400 | R48: 29580 | S48: 33780 | T48: 37980 | U48: 42180 | V48: 45600 | W48: 48960 | X48: 52320 | Y48: 55680 | Z48: 39400 | AA48: 45000 | AB48: 50650 | AC48: 56250 | AD48: 60750 | AE48: 65250 | AF48: 69750 | AG48: 74250 | AH48: 616 | AI48: 660 | AJ48: 791 | AK48: 914 | AL48: 1020 | AM48: 1125 | AN48: 664 | AO48: 710 | AP48: 884 | AQ48: 1155 | AR48: 1269 | AS48: 1381 | AT48: 616 | AU48: 660 | AV48: 791 | AW48: 914 | AX48: 1020 | AY48: 1125 | AZ48: 780 | BA48: 838 | BB48: 1007 | BC48: 1155 | BD48: 1269 | BE48: 1381
A49: Siskiyou | B49: 12050 | C49: 13800 | D49: 15500 | E49: 17200 | F49: 18600 | G49: 20000 | H49: 21350 | I49: 22750 | J49: 20100 | K49: 22950 | L49: 25800 | M49: 28650 | N49: 30950 | O49: 33250 | P49: 35550 | Q49: 37850 | R49: 24120 | S49: 27540 | T49: 30960 | U49: 34380 | V49: 37140 | W49: 39900 | X49: 42660 | Y49: 45420 | Z49: 32100 | AA49: 36700 | AB49: 41300 | AC49: 45850 | AD49: 49550 | AE49: 53200 | AF49: 56900 | AG49: 60550 | AH49: 507 | AI49: 543 | AJ49: 652 | AK49: 753 | AL49: 840 | AM49: 926 | AN49: 528 | AO49: 629 | AP49: 803 | AQ49: 945 | AR49: 1035 | AS49: 1123 | AT49: 507 | AU49: 543 | AV49: 652 | AW49: 753 | AX49: 840 | AY49: 926 | AZ49: 640 | BA49: 687 | BB49: 826 | BC49: 945 | BD49: 1035 | BE49: 1123
A50: Solano | B50: 16600 | C50: 18950 | D50: 21300 | E50: 23650 | F50: 25550 | G50: 27450 | H50: 29350 | I50: 31250 | J50: 27600 | K50: 31550 | L50: 35500 | M50: 39400 | N50: 42600 | O50: 45750 | P50: 48900 | Q50: 52050 | R50: 33120 | S50: 37860 | T50: 42600 | U50: 47280 | V50: 51120 | W50: 54900 | X50: 58680 | Y50: 62460 | Z50: 44150 | AA50: 50450 | AB50: 56750 | AC50: 63050 | AD50: 68100 | AE50: 73150 | AF50: 78200 | AG50: 83250 | AH50: 723 | AI50: 775 | AJ50: 930 | AK50: 1074 | AL50: 1198 | AM50: 1322 | AN50: 739 | AO50: 931 | AP50: 1166 | AQ50: 1362 | AR50: 1500 | AS50: 1637 | AT50: 723 | AU50: 775 | AV50: 930 | AW50: 1074 | AX50: 1198 | AY50: 1322 | AZ50: 920 | BA50: 988 | BB50: 1187 | BC50: 1362 | BD50: 1500 | BE50: 1637
A51: Sonoma | B51: 16500 | C51: 18850 | D51: 21200 | E51: 23550 | F51: 25450 | G51: 27350 | H51: 29250 | I51: 31100 | J51: 27500 | K51: 31400 | L51: 35350 | M51: 39250 | N51: 42400 | O51: 45550 | P51: 48700 | Q51: 51850 | R51: 33000 | S51: 37680 | T51: 42420 | U51: 47100 | V51: 50880 | W51: 54660 | X51: 58440 | Y51: 62220 | Z51: 44000 | AA51: 50250 | AB51: 56550 | AC51: 62800 | AD51: 67850 | AE51: 72850 | AF51: 77900 | AG51: 82900 | AH51: 723 | AI51: 775 | AJ51: 930 | AK51: 1074 | AL51: 1198 | AM51: 1322 | AN51: 873 | AO51: 988 | AP51: 1187 | AQ51: 1362 | AR51: 1500 | AS51: 1637 | AT51: 723 | AU51: 775 | AV51: 930 | AW51: 1074 | AX51: 1198 | AY51: 1322 | AZ51: 920 | BA51: 988 | BB51: 1187 | BC51: 1362 | BD51: 1500 | BE51: 1637
A52: Stanislaus | B52: 12400 | C52: 14150 | D52: 15900 | E52: 17650 | F52: 19100 | G52: 20500 | H52: 21900 | I52: 23300 | J52: 20650 | K52: 23600 | L52: 26550 | M52: 29450 | N52: 31850 | O52: 34200 | P52: 36550 | Q52: 38900 | R52: 24780 | S52: 28320 | T52: 31860 | U52: 35340 | V52: 38220 | W52: 41040 | X52: 43860 | Y52: 46680 | Z52: 33050 | AA52: 37750 | AB52: 42450 | AC52: 47150 | AD52: 50950 | AE52: 54700 | AF52: 58500 | AG52: 62250 | AH52: 542 | AI52: 581 | AJ52: 697 | AK52: 806 | AL52: 900 | AM52: 992 | AN52: 594 | AO52: 734 | AP52: 886 | AQ52: 1014 | AR52: 1111 | AS52: 1208 | AT52: 542 | AU52: 581 | AV52: 697 | AW52: 806 | AX52: 900 | AY52: 992 | AZ52: 686 | BA52: 736 | BB52: 886 | BC52: 1014 | BD52: 1111 | BE52: 1208
A53: Sutter | B53: 12050 | C53: 13800 | D53: 15500 | E53: 17200 | F53: 18600 | G53: 20000 | H53: 21350 | I53: 22750 | J53: 20100 | K53: 22950 | L53: 25800 | M53: 28650 | N53: 30950 | O53: 33250 | P53: 35550 | Q53: 37850 | R53: 24120 | S53: 27540 | T53: 30960 | U53: 34380 | V53: 37140 | W53: 39900 | X53: 42660 | Y53: 45420 | Z53: 32100 | AA53: 36700 | AB53: 41300 | AC53: 45850 | AD53: 49550 | AE53: 53200 | AF53: 56900 | AG53: 60550 | AH53: 520 | AI53: 557 | AJ53: 668 | AK53: 772 | AL53: 862 | AM53: 951 | AN53: 526 | AO53: 634 | AP53: 812 | AQ53: 970 | AR53: 1063 | AS53: 1154 | AT53: 520 | AU53: 557 | AV53: 668 | AW53: 772 | AX53: 862 | AY53: 951 | AZ53: 656 | BA53: 704 | BB53: 847 | BC53: 970 | BD53: 1063 | BE53: 1154
A54: Tehama | B54: 12050 | C54: 13800 | D54: 15500 | E54: 17200 | F54: 18600 | G54: 20000 | H54: 21350 | I54: 22750 | J54: 20100 | K54: 22950 | L54: 25800 | M54: 28650 | N54: 30950 | O54: 33250 | P54: 35550 | Q54: 37850 | R54: 24120 | S54: 27540 | T54: 30960 | U54: 34380 | V54: 37140 | W54: 39900 | X54: 42660 | Y54: 45420 | Z54: 32100 | AA54: 36700 | AB54: 41300 | AC54: 45850 | AD54: 49550 | AE54: 53200 | AF54: 56900 | AG54: 60550 | AH54: 507 | AI54: 543 | AJ54: 652 | AK54: 753 | AL54: 840 | AM54: 926 | AN54: 522 | AO54: 611 | AP54: 826 | AQ54: 945 | AR54: 1035 | AS54: 1123 | AT54: 507 | AU54: 543 | AV54: 652 | AW54: 753 | AX54: 840 | AY54: 926 | AZ54: 640 | BA54: 687 | BB54: 826 | BC54: 945 | BD54: 1035 | BE54: 1123
A55: Trinity | B55: 12050 | C55: 13800 | D55: 15500 | E55: 17200 | F55: 18600 | G55: 20000 | H55: 21350 | I55: 22750 | J55: 20100 | K55: 22950 | L55: 25800 | M55: 28650 | N55: 30950 | O55: 33250 | P55: 35550 | Q55: 37850 | R55: 24120 | S55: 27540 | T55: 30960 | U55: 34380 | V55: 37140 | W55: 39900 | X55: 42660 | Y55: 45420 | Z55: 32100 | AA55: 36700 | AB55: 41300 | AC55: 45850 | AD55: 49550 | AE55: 53200 | AF55: 56900 | AG55: 60550 | AH55: 507 | AI55: 543 | AJ55: 652 | AK55: 753 | AL55: 840 | AM55: 926 | AN55: 581 | AO55: 602 | AP55: 793 | AQ55: 945 | AR55: 1035 | AS55: 1123 | AT55: 507 | AU55: 543 | AV55: 652 | AW55: 753 | AX55: 840 | AY55: 926 | AZ55: 640 | BA55: 687 | BB55: 826 | BC55: 945 | BD55: 1035 | BE55: 1123
A56: Tulare | B56: 12050 | C56: 13800 | D56: 15500 | E56: 17200 | F56: 18600 | G56: 20000 | H56: 21350 | I56: 22750 | J56: 20100 | K56: 22950 | L56: 25800 | M56: 28650 | N56: 30950 | O56: 33250 | P56: 35550 | Q56: 37850 | R56: 24120 | S56: 27540 | T56: 30960 | U56: 34380 | V56: 37140 | W56: 39900 | X56: 42660 | Y56: 45420 | Z56: 32100 | AA56: 36700 | AB56: 41300 | AC56: 45850 | AD56: 49550 | AE56: 53200 | AF56: 56900 | AG56: 60550 | AH56: 507 | AI56: 543 | AJ56: 652 | AK56: 753 | AL56: 840 | AM56: 926 | AN56: 575 | AO56: 590 | AP56: 768 | AQ56: 945 | AR56: 1035 | AS56: 1123 | AT56: 507 | AU56: 543 | AV56: 652 | AW56: 753 | AX56: 840 | AY56: 926 | AZ56: 640 | BA56: 687 | BB56: 826 | BC56: 945 | BD56: 1035 | BE56: 1123
A57: Tuolumne | B57: 13950 | C57: 15950 | D57: 17950 | E57: 19900 | F57: 21500 | G57: 23100 | H57: 24700 | I57: 26300 | J57: 23250 | K57: 26600 | L57: 29900 | M57: 33200 | N57: 35900 | O57: 38550 | P57: 41200 | Q57: 43850 | R57: 27900 | S57: 31920 | T57: 35880 | U57: 39840 | V57: 43080 | W57: 46260 | X57: 49440 | Y57: 52620 | Z57: 37200 | AA57: 42500 | AB57: 47800 | AC57: 53100 | AD57: 57350 | AE57: 61600 | AF57: 65850 | AG57: 70100 | AH57: 581 | AI57: 623 | AJ57: 747 | AK57: 863 | AL57: 963 | AM57: 1063 | AN57: 630 | AO57: 744 | AP57: 949 | AQ57: 1089 | AR57: 1195 | AS57: 1300 | AT57: 581 | AU57: 623 | AV57: 747 | AW57: 863 | AX57: 963 | AY57: 1063 | AZ57: 736 | BA57: 790 | BB57: 949 | BC57: 1089 | BD57: 1195 | BE57: 1300
A58: Ventura | B58: 18350 | C58: 21000 | D58: 23600 | E58: 26200 | F58: 28300 | G58: 30400 | H58: 32500 | I58: 34600 | J58: 30600 | K58: 35000 | L58: 39350 | M58: 43700 | N58: 47200 | O58: 50700 | P58: 54200 | Q58: 57700 | R58: 36720 | S58: 42000 | T58: 47220 | U58: 52440 | V58: 56640 | W58: 60840 | X58: 65040 | Y58: 69240 | Z58: 48950 | AA58: 55950 | AB58: 62950 | AC58: 69900 | AD58: 75500 | AE58: 81100 | AF58: 86700 | AG58: 92300 | AH58: 782 | AI58: 838 | AJ58: 1005 | AK58: 1161 | AL58: 1295 | AM58: 1429 | AN58: 934 | AO58: 1069 | AP58: 1284 | AQ58: 1475 | AR58: 1626 | AS58: 1776 | AT58: 782 | AU58: 838 | AV58: 1005 | AW58: 1161 | AX58: 1295 | AY58: 1429 | AZ58: 996 | BA58: 1069 | BB58: 1284 | BC58: 1475 | BD58: 1626 | BE58: 1776
A59: Yolo | B59: 15750 | C59: 18000 | D59: 20250 | E59: 22500 | F59: 24300 | G59: 26100 | H59: 27900 | I59: 29700 | J59: 26250 | K59: 30000 | L59: 33750 | M59: 37500 | N59: 40500 | O59: 43500 | P59: 46500 | Q59: 49500 | R59: 31500 | S59: 36000 | T59: 40500 | U59: 45000 | V59: 48600 | W59: 52200 | X59: 55800 | Y59: 59400 | Z59: 42000 | AA59: 48000 | AB59: 54000 | AC59: 60000 | AD59: 64800 | AE59: 69600 | AF59: 74400 | AG59: 79200 | AH59: 673 | AI59: 721 | AJ59: 866 | AK59: 1000 | AL59: 1116 | AM59: 1231 | AN59: 794 | AO59: 846 | AP59: 1082 | AQ59: 1266 | AR59: 1393 | AS59: 1518 | AT59: 673 | AU59: 721 | AV59: 866 | AW59: 1000 | AX59: 1116 | AY59: 1231 | AZ59: 855 | BA59: 918 | BB59: 1103 | BC59: 1266 | BD59: 1393 | BE59: 1518
A60: Yuba | B60: 12050 | C60: 13800 | D60: 15500 | E60: 17200 | F60: 18600 | G60: 20000 | H60: 21350 | I60: 22750 | J60: 20100 | K60: 22950 | L60: 25800 | M60: 28650 | N60: 30950 | O60: 33250 | P60: 35550 | Q60: 37850 | R60: 24120 | S60: 27540 | T60: 30960 | U60: 34380 | V60: 37140 | W60: 39900 | X60: 42660 | Y60: 45420 | Z60: 32100 | AA60: 36700 | AB60: 41300 | AC60: 45850 | AD60: 49550 | AE60: 53200 | AF60: 56900 | AG60: 60550 | AH60: 520 | AI60: 557 | AJ60: 668 | AK60: 772 | AL60: 862 | AM60: 951 | AN60: 526 | AO60: 634 | AP60: 812 | AQ60: 970 | AR60: 1063 | AS60: 1154 | AT60: 520 | AU60: 557 | AV60: 668 | AW60: 772 | AX60: 862 | AY60: 951 | AZ60: 656 | BA60: 704 | BB60: 847 | BC60: 970 | BD60: 1063 | BE60: 1154

Sheet HOME Rent 2-9-2012 (hidden)
A1: County | B1: lowrent_0 | C1: lowrent_1 | D1: lowrent_2 | E1: lowrent_3 | F1: lowrent_4 | G1: lowrent_5 | H1: highrent_0 | I1: highrent_1 | J1: highrent_2 | K1: highrent_3 | L1: highrent_4 | M1: highrent_5
A2: Alameda | B2: 818 | C2: 876 | D2: 1052 | E2: 1215 | F2: 1356 | G2: 1496 | H2: 980 | I2: 1121 | J2: 1347 | K2: 1547 | L2: 1706 | M2: 1864
A3: Alpine | B3: 648 | C3: 695 | D3: 833 | E3: 963 | F3: 1075 | G3: 1186 | H3: 658 | I3: 738 | J3: 941 | K3: 1219 | L3: 1274 | M3: 1460
A4: Amador | B4: 595 | C4: 637 | D4: 765 | E4: 883 | F4: 986 | G4: 1088 | H4: 710 | I4: 809 | J4: 973 | K4: 1115 | L4: 1224 | M4: 1332
A5: Butte | B5: 513 | C5: 550 | D5: 661 | E5: 763 | F5: 851 | G5: 939 | H5: 625 | I5: 696 | J5: 837 | K5: 959 | L5: 1050 | M5: 1140
A6: Calaveras | B6: 610 | C6: 653 | D6: 785 | E6: 906 | F6: 1011 | G6: 1116 | H6: 725 | I6: 726 | J6: 873 | K6: 1144 | L6: 1256 | M6: 1368
A7: Colusa | B7: 507 | C7: 543 | D7: 652 | E7: 753 | F7: 840 | G7: 926 | H7: 631 | I7: 663 | J7: 816 | K7: 945 | L7: 1035 | M7: 1123
A8: Contra Costa | B8: 818 | C8: 876 | D8: 1052 | E8: 1215 | F8: 1356 | G8: 1496 | H8: 980 | I8: 1121 | J8: 1347 | K8: 1547 | L8: 1706 | M8: 1864
A9: Del Norte | B9: 507 | C9: 543 | D9: 652 | E9: 753 | F9: 840 | G9: 926 | H9: 631 | I9: 656 | J9: 816 | K9: 945 | L9: 1035 | M9: 1123
A10: El Dorado | B10: 666 | C10: 713 | D10: 856 | E10: 989 | F10: 1103 | G10: 1218 | H10: 757 | I10: 861 | J10: 1050 | K10: 1252 | L10: 1378 | M10: 1501
A11: Fresno | B11: 507 | C11: 543 | D11: 652 | E11: 753 | F11: 840 | G11: 926 | H11: 638 | I11: 687 | J11: 826 | K11: 945 | L11: 1035 | M11: 1123
A12: Glenn | B12: 507 | C12: 543 | D12: 652 | E12: 753 | F12: 840 | G12: 926 | H12: 566 | I12: 581 | J12: 764 | K12: 945 | L12: 1021 | M12: 1123
A13: Humboldt | B13: 507 | C13: 543 | D13: 652 | E13: 753 | F13: 840 | G13: 926 | H13: 602 | I13: 678 | J13: 826 | K13: 945 | L13: 1035 | M13: 1123
A14: Imperial | B14: 507 | C14: 543 | D14: 652 | E14: 753 | F14: 840 | G14: 926 | H14: 622 | I14: 678 | J14: 816 | K14: 945 | L14: 1035 | M14: 1123
A15: Inyo | B15: 573 | C15: 614 | D15: 737 | E15: 851 | F15: 950 | G15: 1048 | H15: 596 | I15: 624 | J15: 812 | K15: 1074 | L15: 1179 | M15: 1282
A16: Kern | B16: 507 | C16: 543 | D16: 652 | E16: 753 | F16: 840 | G16: 926 | H16: 621 | I16: 667 | J16: 799 | K16: 945 | L16: 1035 | M16: 1123
A17: Kings | B17: 507 | C17: 543 | D17: 652 | E17: 753 | F17: 840 | G17: 926 | H17: 640 | I17: 687 | J17: 815 | K17: 945 | L17: 1035 | M17: 1123
A18: Lake | B18: 507 | C18: 543 | D18: 652 | E18: 753 | F18: 840 | G18: 926 | H18: 595 | I18: 687 | J18: 826 | K18: 945 | L18: 1035 | M18: 1123
A19: Lassen | B19: 540 | C19: 578 | D19: 695 | E19: 802 | F19: 895 | G19: 988 | H19: 577 | I19: 677 | J19: 881 | K19: 1009 | L19: 1106 | M19: 1202
A20: Los Angeles | B20: 747 | C20: 801 | D20: 961 | E20: 1110 | F20: 1238 | G20: 1366 | H20: 951 | I20: 1021 | J20: 1227 | K20: 1409 | L20: 1553 | M20: 1695
A21: Madera | B21: 507 | C21: 543 | D21: 652 | E21: 753 | F21: 840 | G21: 926 | H21: 631 | I21: 678 | J21: 816 | K21: 945 | L21: 1035 | M21: 1123
A22: Marin | B22: 990 | C22: 1060 | D22: 1272 | E22: 1470 | F22: 1640 | G22: 1809 | H22: 1238 | I22: 1334 | J22: 1602 | K22: 1842 | L22: 2035 | M22: 2227
A23: Mariposa | B23: 521 | C23: 558 | D23: 670 | E23: 773 | F23: 863 | G23: 952 | H23: 649 | I23: 696 | J23: 837 | K23: 972 | L23: 1065 | M23: 1157
A24: Mendocino | B24: 507 | C24: 543 | D24: 652 | E24: 753 | F24: 840 | G24: 926 | H24: 640 | I24: 687 | J24: 826 | K24: 945 | L24: 1035 | M24: 1123
A25: Merced | B25: 507 | C25: 543 | D25: 652 | E25: 753 | F25: 840 | G25: 926 | H25: 591 | I25: 674 | J25: 816 | K25: 945 | L25: 1035 | M25: 1123
A26: Modoc | B26: 507 | C26: 543 | D26: 652 | E26: 753 | F26: 840 | G26: 926 | H26: 572 | I26: 632 | J26: 816 | K26: 934 | L26: 1023 | M26: 1109
A27: Mono | B27: 653 | C27: 700 | D27: 840 | E27: 970 | F27: 1082 | G27: 1194 | H27: 796 | I27: 889 | J27: 1069 | K27: 1227 | L27: 1350 | M27: 1471
A28: Monterey | B28: 606 | C28: 649 | D28: 778 | E28: 900 | F28: 1003 | G28: 1108 | H28: 768 | I28: 824 | J28: 991 | K28: 1136 | L28: 1248 | M28: 1358
A29: Napa | B29: 753 | C29: 807 | D29: 968 | E29: 1119 | F29: 1248 | G29: 1378 | H29: 948 | I29: 1016 | J29: 1238 | K29: 1421 | L29: 1566 | M29: 1709
A30: Nevada | B30: 636 | C30: 681 | D30: 817 | E30: 944 | F30: 1053 | G30: 1162 | H30: 745 | I30: 853 | J30: 1041 | K30: 1194 | L30: 1313 | M30: 1429
A31: Orange | B31: 843 | C31: 903 | D31: 1083 | E31: 1252 | F31: 1397 | G31: 1541 | H31: 1076 | I31: 1154 | J31: 1387 | K31: 1594 | L31: 1759 | M31: 1922
A32: Placer | B32: 666 | C32: 713 | D32: 856 | E32: 989 | F32: 1103 | G32: 1218 | H32: 757 | I32: 861 | J32: 1050 | K32: 1252 | L32: 1378 | M32: 1501
A33: Plumas | B33: 542 | C33: 581 | D33: 697 | E33: 806 | F33: 900 | G33: 992 | H33: 613 | I33: 691 | J33: 886 | K33: 1014 | L33: 1111 | M33: 1208
A34: Riverside | B34: 586 | C34: 628 | D34: 753 | E34: 871 | F34: 972 | G34: 1072 | H34: 743 | I34: 797 | J34: 958 | K34: 1099 | L34: 1206 | M34: 1312
A35: Sacramento | B35: 666 | C35: 713 | D35: 856 | E35: 989 | F35: 1103 | G35: 1218 | H35: 757 | I35: 861 | J35: 1050 | K35: 1252 | L35: 1378 | M35: 1501
A36: San Benito | B36: 710 | C36: 760 | D36: 912 | E36: 1054 | F36: 1176 | G36: 1298 | H36: 847 | I36: 969 | J36: 1164 | K36: 1337 | L36: 1471 | M36: 1605
A37: San Bernardino | B37: 586 | C37: 628 | D37: 753 | E37: 871 | F37: 972 | G37: 1072 | H37: 743 | I37: 797 | J37: 958 | K37: 1099 | L37: 1206 | M37: 1312
A38: San Diego | B38: 722 | C38: 774 | D38: 928 | E38: 1073 | F38: 1197 | G38: 1321 | H38: 920 | I38: 987 | J38: 1187 | K38: 1362 | L38: 1500 | M38: 1637
A39: San Francisco | B39: 990 | C39: 1060 | D39: 1272 | E39: 1470 | F39: 1640 | G39: 1809 | H39: 1238 | I39: 1334 | J39: 1602 | K39: 1842 | L39: 2035 | M39: 2227
A40: San Joaquin | B40: 581 | C40: 622 | D40: 746 | E40: 862 | F40: 962 | G40: 1061 | H40: 675 | I40: 756 | J40: 922 | K40: 1087 | L40: 1193 | M40: 1297
A41: San Luis Obispo | B41: 660 | C41: 707 | D41: 848 | E41: 980 | F41: 1093 | G41: 1206 | H41: 826 | I41: 899 | J41: 1081 | K41: 1240 | L41: 1364 | M41: 1487
A42: San Mateo | B42: 990 | C42: 1060 | D42: 1272 | E42: 1470 | F42: 1640 | G42: 1809 | H42: 1238 | I42: 1334 | J42: 1602 | K42: 1842 | L42: 2035 | M42: 2227
A43: Santa Barbara | B43: 681 | C43: 729 | D43: 875 | E43: 1011 | F43: 1127 | G43: 1245 | H43: 865 | I43: 928 | J43: 1116 | K43: 1280 | L43: 1409 | M43: 1536
A44: Santa Clara | B44: 928 | C44: 995 | D44: 1193 | E44: 1379 | F44: 1538 | G44: 1698 | H44: 1118 | I44: 1199 | J44: 1441 | K44: 1656 | L44: 1828 | M44: 1998
A45: Santa Cruz | B45: 882 | C45: 945 | D45: 1135 | E45: 1310 | F45: 1462 | G45: 1613 | H45: 1125 | I45: 1208 | J45: 1452 | K45: 1669 | L45: 1843 | M45: 2015
A46: Shasta | B46: 516 | C46: 553 | D46: 663 | E46: 767 | F46: 856 | G46: 944 | H46: 599 | I46: 693 | J46: 842 | K46: 964 | L46: 1055 | M46: 1146
A47: Sierra | B47: 586 | C47: 628 | D47: 753 | E47: 871 | F47: 972 | G47: 1072 | H47: 696 | I47: 759 | J47: 913 | K47: 1099 | L47: 1206 | M47: 1312
A48: Siskiyou | B48: 507 | C48: 543 | D48: 652 | E48: 753 | F48: 840 | G48: 926 | H48: 514 | I48: 617 | J48: 789 | K48: 945 | L48: 1035 | M48: 1123
A49: Solano | B49: 723 | C49: 775 | D49: 930 | E49: 1074 | F49: 1198 | G49: 1322 | H49: 920 | I49: 988 | J49: 1187 | K49: 1362 | L49: 1500 | M49: 1637
A50: Sonoma | B50: 723 | C50: 775 | D50: 930 | E50: 1074 | F50: 1198 | G50: 1322 | H50: 850 | I50: 974 | J50: 1178 | K50: 1362 | L50: 1500 | M50: 1637
A51: Stanislaus | B51: 542 | C51: 581 | D51: 697 | E51: 806 | F51: 900 | G51: 992 | H51: 686 | I51: 736 | J51: 886 | K51: 1014 | L51: 1111 | M51: 1208
A52: Sutter | B52: 520 | C52: 557 | D52: 668 | E52: 772 | F52: 862 | G52: 951 | H52: 618 | I52: 697 | J52: 847 | K52: 970 | L52: 1063 | M52: 1154
A53: Tehama | B53: 507 | C53: 543 | D53: 652 | E53: 753 | F53: 840 | G53: 926 | H53: 538 | I53: 611 | J53: 798 | K53: 945 | L53: 1035 | M53: 1123
A54: Trinity | B54: 507 | C54: 543 | D54: 652 | E54: 753 | F54: 840 | G54: 926 | H54: 583 | I54: 612 | J54: 803 | K54: 945 | L54: 1035 | M54: 1123
A55: Tulare | B55: 507 | C55: 543 | D55: 652 | E55: 753 | F55: 840 | G55: 926 | H55: 558 | I55: 624 | J55: 725 | K55: 945 | L55: 1035 | M55: 1123
A56: Tuolumne | B56: 575 | C56: 616 | D56: 740 | E56: 854 | F56: 953 | G56: 1051 | H56: 640 | I56: 744 | J56: 929 | K56: 1077 | L56: 1181 | M56: 1285
A57: Ventura | B57: 782 | C57: 838 | D57: 1005 | E57: 1161 | F57: 1295 | G57: 1429 | H57: 996 | I57: 1069 | J57: 1284 | K57: 1475 | L57: 1626 | M57: 1776
A58: Yolo | B58: 673 | C58: 721 | D58: 866 | E58: 1000 | F58: 1116 | G58: 1231 | H58: 821 | I58: 869 | J58: 1062 | K58: 1266 | L58: 1393 | M58: 1518
A59: Yuba | B59: 520 | C59: 557 | D59: 668 | E59: 772 | F59: 862 | G59: 951 | H59: 618 | I59: 697 | J59: 847 | K59: 970 | L59: 1063 | M59: 1154

Sheet HOME Rent 6-1-2013 (hidden)
A1: County | B1: lowrent_0 | C1: lowrent_1 | D1: lowrent_2 | E1: lowrent_3 | F1: lowrent_4 | G1: lowrent_5 | H1: highrent_0 | I1: highrent_1 | J1: highrent_2 | K1: highrent_3 | L1: highrent_4 | M1: highrent_5
A2: Alameda | B2: 818 | C2: 876 | D2: 1052 | E2: 1215 | F2: 1356 | G2: 1496 | H2: 892 | I2: 1082 | J2: 1347 | K2: 1547 | L2: 1706 | M2: 1864
A3: Alpine | B3: 664 | C3: 717 | D3: 876 | E3: 1011 | F3: 1128 | G3: 1245 | H3: 664 | I3: 717 | J3: 931 | K3: 1136 | L3: 1409 | M3: 1536
A4: Amador | B4: 606 | C4: 649 | D4: 778 | E4: 900 | F4: 1003 | G4: 1108 | H4: 688 | I4: 800 | J4: 991 | K4: 1136 | L4: 1248 | M4: 1358
A5: Butte | B5: 513 | C5: 550 | D5: 661 | E5: 763 | F5: 851 | G5: 939 | H5: 532 | I5: 666 | J5: 837 | K5: 959 | L5: 1050 | M5: 1140
A6: Calaveras | B6: 610 | C6: 653 | D6: 785 | E6: 906 | F6: 1011 | G6: 1116 | H6: 707 | I6: 732 | J6: 923 | K6: 1144 | L6: 1256 | M6: 1368
A7: Colusa | B7: 507 | C7: 543 | D7: 652 | E7: 753 | F7: 840 | G7: 926 | H7: 608 | I7: 631 | J7: 799 | K7: 945 | L7: 1035 | M7: 1123
A8: Contra Costa | B8: 818 | C8: 876 | D8: 1052 | E8: 1215 | F8: 1356 | G8: 1496 | H8: 892 | I8: 1082 | J8: 1347 | K8: 1547 | L8: 1706 | M8: 1864
A9: Del Norte | B9: 507 | C9: 543 | D9: 652 | E9: 753 | F9: 840 | G9: 926 | H9: 628 | I9: 646 | J9: 826 | K9: 945 | L9: 1035 | M9: 1123
A10: El Dorado | B10: 666 | C10: 713 | D10: 856 | E10: 989 | F10: 1103 | G10: 1218 | H10: 731 | I10: 843 | J10: 1038 | K10: 1252 | L10: 1378 | M10: 1501
A11: Fresno | B11: 507 | C11: 543 | D11: 652 | E11: 753 | F11: 840 | G11: 926 | H11: 640 | I11: 687 | J11: 826 | K11: 945 | L11: 1035 | M11: 1123
A12: Glenn | B12: 507 | C12: 543 | D12: 652 | E12: 753 | F12: 840 | G12: 926 | H12: 570 | I12: 574 | J12: 776 | K12: 945 | L12: 1035 | M12: 1123
A13: Humboldt | B13: 507 | C13: 543 | D13: 652 | E13: 753 | F13: 840 | G13: 926 | H13: 640 | I13: 687 | J13: 826 | K13: 945 | L13: 1035 | M13: 1123
A14: Imperial | B14: 507 | C14: 543 | D14: 652 | E14: 753 | F14: 840 | G14: 926 | H14: 589 | I14: 664 | J14: 822 | K14: 945 | L14: 1035 | M14: 1123
A15: Inyo | B15: 576 | C15: 617 | D15: 741 | E15: 855 | F15: 955 | G15: 1053 | H15: 675 | I15: 703 | J15: 836 | K15: 1078 | L15: 1183 | M15: 1287
A16: Kern | B16: 507 | C16: 543 | D16: 652 | E16: 753 | F16: 840 | G16: 926 | H16: 611 | I16: 649 | J16: 804 | K16: 945 | L16: 1035 | M16: 1123
A17: Kings | B17: 486 | C17: 543 | D17: 652 | E17: 753 | F17: 840 | G17: 926 | H17: 486 | I17: 575 | J17: 778 | K17: 945 | L17: 1035 | M17: 1123
A18: Lake | B18: 507 | C18: 543 | D18: 652 | E18: 753 | F18: 840 | G18: 926 | H18: 640 | I18: 650 | J18: 826 | K18: 945 | L18: 1035 | M18: 1123
A19: Lassen | B19: 566 | C19: 606 | D19: 728 | E19: 841 | F19: 938 | G19: 1036 | H19: 700 | I19: 740 | J19: 924 | K19: 1060 | L19: 1163 | M19: 1264
A20: Los Angeles | B20: 738 | C20: 791 | D20: 951 | E20: 1100 | F20: 1228 | G20: 1356 | H20: 938 | I20: 1011 | J20: 1217 | K20: 1399 | L20: 1543 | M20: 1685
A21: Madera | B21: 507 | C21: 543 | D21: 652 | E21: 753 | F21: 840 | G21: 926 | H21: 632 | I21: 664 | J21: 826 | K21: 945 | L21: 1035 | M21: 1123
A22: Marin | B22: 980 | C22: 1050 | D22: 1262 | E22: 1460 | F22: 1630 | G22: 1798 | H22: 1093 | I22: 1334 | J22: 1602 | K22: 1842 | L22: 2035 | M22: 2227
A23: Mariposa | B23: 537 | C23: 575 | D23: 690 | E23: 797 | F23: 890 | G23: 981 | H23: 634 | I23: 669 | J23: 831 | K23: 1002 | L23: 1099 | M23: 1194
A24: Mendocino | B24: 507 | C24: 543 | D24: 652 | E24: 753 | F24: 840 | G24: 926 | H24: 640 | I24: 687 | J24: 826 | K24: 945 | L24: 1035 | M24: 1123
A25: Merced | B25: 507 | C25: 543 | D25: 652 | E25: 753 | F25: 840 | G25: 926 | H25: 563 | I25: 645 | J25: 801 | K25: 945 | L25: 1035 | M25: 1123
A26: Modoc | B26: 507 | C26: 543 | D26: 652 | E26: 753 | F26: 840 | G26: 926 | H26: 533 | I26: 597 | J26: 753 | K26: 924 | L26: 1035 | M26: 1123
A27: Mono | B27: 686 | C27: 735 | D27: 881 | E27: 1018 | F27: 1136 | G27: 1253 | H27: 871 | I27: 935 | J27: 1124 | K27: 1290 | L27: 1419 | M27: 1547
A28: Monterey | B28: 625 | C28: 669 | D28: 802 | E28: 927 | F28: 1035 | G28: 1141 | H28: 791 | I28: 849 | J28: 1022 | K28: 1172 | L28: 1288 | M28: 1402
A29: Napa | B29: 753 | C29: 807 | D29: 968 | E29: 1119 | F29: 1248 | G29: 1378 | H29: 891 | I29: 1002 | J29: 1238 | K29: 1421 | L29: 1566 | M29: 1709
A30: Nevada | B30: 636 | C30: 681 | D30: 817 | E30: 944 | F30: 1053 | G30: 1162 | H30: 775 | I30: 829 | J30: 1034 | K30: 1194 | L30: 1313 | M30: 1429
A31: Orange | B31: 843 | C31: 903 | D31: 1083 | E31: 1252 | F31: 1397 | G31: 1541 | H31: 1061 | I31: 1154 | J31: 1387 | K31: 1594 | L31: 1759 | M31: 1922
A32: Placer | B32: 666 | C32: 713 | D32: 856 | E32: 989 | F32: 1103 | G32: 1218 | H32: 731 | I32: 843 | J32: 1038 | K32: 1252 | L32: 1378 | M32: 1501
A33: Plumas | B33: 530 | C33: 568 | D33: 682 | E33: 788 | F33: 880 | G33: 970 | H33: 565 | I33: 687 | J33: 866 | K33: 991 | L33: 1086 | M33: 1180
A34: Riverside | B34: 586 | C34: 628 | D34: 753 | E34: 871 | F34: 972 | G34: 1072 | H34: 708 | I34: 797 | J34: 958 | K34: 1099 | L34: 1206 | M34: 1312
A35: Sacramento | B35: 666 | C35: 713 | D35: 856 | E35: 989 | F35: 1103 | G35: 1218 | H35: 731 | I35: 843 | J35: 1038 | K35: 1252 | L35: 1378 | M35: 1501
A36: San Benito | B36: 700 | C36: 750 | D36: 902 | E36: 1044 | F36: 1166 | G36: 1288 | H36: 798 | I36: 936 | J36: 1154 | K36: 1327 | L36: 1461 | M36: 1595
A37: San Bernardino | B37: 586 | C37: 628 | D37: 753 | E37: 871 | F37: 972 | G37: 1072 | H37: 708 | I37: 797 | J37: 958 | K37: 1099 | L37: 1206 | M37: 1312
A38: San Diego | B38: 712 | C38: 764 | D38: 918 | E38: 1063 | F38: 1187 | G38: 1311 | H38: 910 | I38: 977 | J38: 1177 | K38: 1351 | L38: 1488 | M38: 1623
A39: San Francisco | B39: 980 | C39: 1050 | D39: 1262 | E39: 1460 | F39: 1630 | G39: 1798 | H39: 1093 | I39: 1334 | J39: 1602 | K39: 1842 | L39: 2035 | M39: 2227
A40: San Joaquin | B40: 581 | C40: 622 | D40: 746 | E40: 862 | F40: 962 | G40: 1061 | H40: 663 | I40: 760 | J40: 948 | K40: 1087 | L40: 1193 | M40: 1297
A41: San Luis Obispo | B41: 660 | C41: 707 | D41: 848 | E41: 980 | F41: 1093 | G41: 1206 | H41: 804 | I41: 880 | J41: 1081 | K41: 1240 | L41: 1364 | M41: 1487
A42: San Mateo | B42: 980 | C42: 1050 | D42: 1262 | E42: 1460 | F42: 1630 | G42: 1798 | H42: 1093 | I42: 1334 | J42: 1602 | K42: 1842 | L42: 2035 | M42: 2227
A43: Santa Barbara | B43: 697 | C43: 746 | D43: 896 | E43: 1035 | F43: 1155 | G43: 1274 | H43: 886 | I43: 951 | J43: 1143 | K43: 1312 | L43: 1444 | M43: 1575
A44: Santa Clara | B44: 918 | C44: 985 | D44: 1183 | E44: 1369 | F44: 1528 | G44: 1688 | H44: 1079 | I44: 1199 | J44: 1441 | K44: 1656 | L44: 1828 | M44: 1998
A45: Santa Cruz | B45: 867 | C45: 929 | D45: 1116 | E45: 1288 | F45: 1438 | G45: 1586 | H45: 1073 | I45: 1188 | J45: 1428 | K45: 1641 | L45: 1812 | M45: 1980
A46: Shasta | B46: 516 | C46: 553 | D46: 663 | E46: 767 | F46: 856 | G46: 944 | H46: 651 | I46: 699 | J46: 842 | K46: 964 | L46: 1055 | M46: 1146
A47: Sierra | B47: 616 | C47: 660 | D47: 791 | E47: 914 | F47: 1020 | G47: 1125 | H47: 664 | I47: 710 | J47: 884 | K47: 1155 | L47: 1269 | M47: 1381
A48: Siskiyou | B48: 507 | C48: 543 | D48: 652 | E48: 753 | F48: 840 | G48: 926 | H48: 528 | I48: 629 | J48: 803 | K48: 945 | L48: 1035 | M48: 1123
A49: Solano | B49: 723 | C49: 775 | D49: 930 | E49: 1074 | F49: 1198 | G49: 1322 | H49: 739 | I49: 931 | J49: 1166 | K49: 1362 | L49: 1500 | M49: 1637
A50: Sonoma | B50: 723 | C50: 775 | D50: 930 | E50: 1074 | F50: 1198 | G50: 1322 | H50: 873 | I50: 988 | J50: 1187 | K50: 1362 | L50: 1500 | M50: 1637
A51: Stanislaus | B51: 542 | C51: 581 | D51: 697 | E51: 806 | F51: 900 | G51: 992 | H51: 594 | I51: 734 | J51: 886 | K51: 1014 | L51: 1111 | M51: 1208
A52: Sutter | B52: 520 | C52: 557 | D52: 668 | E52: 772 | F52: 862 | G52: 951 | H52: 526 | I52: 634 | J52: 812 | K52: 970 | L52: 1063 | M52: 1154
A53: Tehama | B53: 507 | C53: 543 | D53: 652 | E53: 753 | F53: 840 | G53: 926 | H53: 522 | I53: 611 | J53: 826 | K53: 945 | L53: 1035 | M53: 1123
A54: Trinity | B54: 507 | C54: 543 | D54: 652 | E54: 753 | F54: 840 | G54: 926 | H54: 581 | I54: 602 | J54: 793 | K54: 945 | L54: 1035 | M54: 1123
A55: Tulare | B55: 507 | C55: 543 | D55: 652 | E55: 753 | F55: 840 | G55: 926 | H55: 575 | I55: 590 | J55: 768 | K55: 945 | L55: 1035 | M55: 1123
A56: Tuolumne | B56: 581 | C56: 623 | D56: 747 | E56: 863 | F56: 963 | G56: 1063 | H56: 630 | I56: 744 | J56: 949 | K56: 1089 | L56: 1195 | M56: 1300
A57: Ventura | B57: 782 | C57: 838 | D57: 1005 | E57: 1161 | F57: 1295 | G57: 1429 | H57: 934 | I57: 1069 | J57: 1284 | K57: 1475 | L57: 1626 | M57: 1776
A58: Yolo | B58: 673 | C58: 721 | D58: 866 | E58: 1000 | F58: 1116 | G58: 1231 | H58: 794 | I58: 846 | J58: 1082 | K58: 1266 | L58: 1393 | M58: 1518
A59: Yuba | B59: 520 | C59: 557 | D59: 668 | E59: 772 | F59: 862 | G59: 951 | H59: 526 | I59: 634 | J59: 812 | K59: 970 | L59: 1063 | M59: 1154

Sheet 2. Income-Rent Calculator
A1: 2. MHP Income and Rent Limit Calculator (for calculating Multifamily Tax Subsidy Projects (MTSP) AMI Income and Rent Limits)1 | L1: =Instructions!J1 -> Rev. 4/21/16 | AH1: COUNTIES | AJ1: PIS Dates | AK1: Rent Floor Dates | AL1: Yes Tax Credits - PIS Docs | AM1: Yes_1 Tax Credits - Rent Floor
A2: (1) Project Name: | H2: (2) What county is the Project located in: | AG2: 4% Housing Tax Credits | AH2: Alameda | AJ2: On or After 5/12/16 | AK2: On or After 5/12/16 | AL2: IRS Form 8609 | AM2: TCAC Project Staff Report (4%)
A3: (3) Tax Credit Project? | C3: (4) Placed In Service (PIS) Date: | G3: HCD: if Project Summary PIS or rent floor date is wrong, email George date and what it is based on. | AG3: 9% Housing Tax Credits | AH3: Alpine | AJ3: 3/28/16 - 5/11/16 | AK3: 3/28/16 - 5/11/16 | AL3: Temporary Certificate of Occupancy | AM3: TCAC Carryover Allocation Agrmnt (9%)
A4: (5) Documentation supporting PIS date (see below, HCD to obtain): | H4: =IF(E3="Before 1/1/09","Not Required","") ->  | AG4: Tax-Exempt Bonds | AH4: Amador | AJ4: 4/20/15 - 3/27/16 | AK4: 4/20/15 - 3/27/16 | AL4: Certificate of Occupancy | AM4: Proxy - HCD use only
A5: Tax Credit Projects - PIS Documentation All projects- IRS Form 8609 line 5 (if unavailable, use other documentation below) New Construction- first building Temporary Certificate of Occupancy (TCO); if none, Permanent Certificate of Occupancy (CO). If unavailable, Sponsor to obtain letter from tax professional stating the PIS date and how it was determined. Acq/Rehab or Rehab - Sponsor to obtain letter from tax professional stating the PIS date and how it was determined. | F5: Non-Tax Credit Projects - PIS Documentation New Construction - first building Temporary Certificate of Occupancy (TCO); if none, Permanent Certificate of Occupancy (CO). Acq/Rehab - if building was occupied or ready for occupancy on date of transfer to current owner - title policy, title report or other official record, such as grant deed showing property transfer date (use transfer date). If building was unoccupied at transfer, TCO; if none, Permanent CO. Rehab - if building was occupied during rehab - HCD Award Letter date. If building was unoccupied, TCO; if none, Permanent CO. | AG5: HOME | AH5: Butte | AJ5: 3/6/15 - 4/19/15 | AK5: 3/6/15 - 4/19/15 | AL5: Letter from tax professional | AM5: No_1 Tax Credits - Rent Floor
A6: If HERA Special Eligilbe is Yes, project is subject to the current HERA Special income and rent limits: | H6: =IF(E3=0,"",IF(AND(OR($K$2="Marin",$K$2="Nevada",$K$2="San Francisco",$K$2="San Mateo",$K$2="Santa Clara",$K$2="Solano",,$K$2="Sonoma"),(E3="Before 1/1/09")),"Yes","No")) ->  | AG6: NSP | AH6: Calaveras | AJ6: 2/1/14 - 3/5/15 | AK6: 2/1/14 - 3/5/15 | AL6: Building Permit, Other | AM6: HCD Award Letter
A7: (6) Gross Rent Floor date: | E7: =IF(E3="Before 1/1/09","Not Required","") ->  | AG7: Housing Trust Fund | AH7: Colusa | AJ7: 12/18/13 - 1/31/14 | AK7: 12/18/13 - 1/31/14 | AL7: Proxy - HCD use only | AM7: Proxy - HCD use only
A8: (7) Documentation supporting the Gross Rent Floor date (see below, HCD to obtain): | I8: =IF(E3="Before 1/1/09","Not Required","") ->  | AH8: Contra Costa | AJ8: 1/18/13 - 12/17/13 | AK8: 1/18/13 - 12/17/13 | AL8: No Tax Credits - PIS Docs
A9: Tax Credit Projects - Gross Rent Floor date documentation 9% tax credit projects - TCAC Carryover Allocation Agreement - execution date. 4% tax credit projects - TCAC preliminary reservation (Staff Report) - report date. | F9: Non-Tax Credit Projects - Gross Rent Floor date documentation HCD Award Letter - letter date. | K9: =IF(B3="Yes","Yes_1","No_1") -> No_1 | AH9: Del Norte | AJ9: 12/4/12 - 1/17/13 | AK9: 12/4/12 - 1/17/13 | AL9: Temporary Certificate of Occupancy
A10: (8) Underwriting Use Only: Select Lower Limits to lower rents and DSCR. This applies if the PIS Date or Rent Floor Date is during the 45-day grace period after the effective release date of HUD's rent and income limits (see cell comments). | D10: INCOME LIMITS | F10: =CONCATENATE(" for ",B2," based on ",IF(H6="Yes","Current MTSP HERA Special Income Limits",IFERROR(VLOOKUP($M20,W44:X64,2,FALSE),""))) -> for based on | N10: INCOME LIMITS USED FOR RENTS | AH10: El Dorado | AJ10: 1/15/12 - 12/3/12 | AK10: 1/15/12 - 12/3/12 | AL10: Certificate of Occupancy
D11: AMI % | E11: Number of Household Members | N11: AMI % | O11: Number of Household Members | AH11: Fresno | AJ11: 12/1/11 - 1/14/12 | AK11: 12/1/11 - 1/14/12 | AL11: HCD Award Letter
E12: 1 | F12: 2 | G12: 3 | H12: 4 | I12: 5 | J12: 6 | K12: 7 | L12: 8 | O12: 1 | P12: 2 | Q12: 3 | R12: 4 | S12: 5 | T12: 6 | U12: 7 | V12: 8 | AH12: Glenn | AJ12: 7/15/11 - 11/30/11 | AK12: 7/15/11 - 11/30/11 | AL12: Grant Deed, Title Report, other official doc
D13: 15 | E13: =+IF(OR($K$2=0,$E$3=0),"",E20*2*0.15) ->  | N13: 15 | O13: =O20*2*0.15 -> 0 | P13: 0 | Q13: 0 | R13: 0 | S13: 0 | T13: 0 | U13: 0 | V13: 0 | AH13: Humboldt | AJ13: 5/31/11 - 7/14/11 | AK13: 5/31/11 - 7/14/11 | AL13: Proxy - HCD use only
D14: 20 | E14: =+IF(OR($K$2=0,$E$3=0),"",E20*2*0.2) ->  | N14: 20 | O14: =O20*2*0.2 -> 0 | P14: 0 | Q14: 0 | R14: 0 | S14: 0 | T14: 0 | U14: 0 | V14: 0 | AH14: Imperial | AJ14: 6/28/10 - 5/30/11 | AK14: 6/28/10 - 5/30/11
D15: 25 | E15: =+IF(OR($K$2=0,$E$3=0),"",E20*2*0.25) ->  | N15: 25 | O15: =O20*2*0.25 -> 0 | P15: 0 | Q15: 0 | R15: 0 | S15: 0 | T15: 0 | U15: 0 | V15: 0 | AH15: Inyo | AJ15: 5/14/10 - 6/27/10 | AK15: 5/14/10 - 6/27/10
D16: 30 | E16: =+IF(OR($K$2=0,$E$3=0),"",E20*2*0.3) ->  | N16: 30 | O16: =O20*2*0.3 -> 0 | P16: 0 | Q16: 0 | R16: 0 | S16: 0 | T16: 0 | U16: 0 | V16: 0 | AH16: Kern | AJ16: 1/1/09 - 5/13/10 | AK16: 4/3/09 - 5/13/10
D17: 35 | E17: =+IF(OR($K$2=0,$E$3=0),"",E20*2*0.35) ->  | N17: 35 | O17: =O20*2*0.35 -> 0 | P17: 0 | Q17: 0 | R17: 0 | S17: 0 | T17: 0 | U17: 0 | V17: 0 | AH17: Kings | AJ17: Before 1/1/09 | AK17: 3/19/09 - 4/2/09
D18: 40 | E18: =+IF(OR($K$2=0,$E$3=0),"",E20*2*0.4) ->  | N18: 40 | O18: =O20*2*0.4 -> 0 | P18: 0 | Q18: 0 | R18: 0 | S18: 0 | T18: 0 | U18: 0 | V18: 0 | AH18: Lake | AK18: 3/29/08 - 3/18/09
D19: 45 | E19: =+IF(OR($K$2=0,$E$3=0),"",E20*2*0.45) ->  | N19: 45 | O19: =O20*2*0.45 -> 0 | P19: 0 | Q19: 0 | R19: 0 | S19: 0 | T19: 0 | U19: 0 | V19: 0 | AH19: Lassen | AK19: 2/13/08 - 3/28/08
D20: 50 | E20: =IF(OR($K$2=0,$E$3=0),"",IF($H$6="Yes",M44,MAX(IF($B$44:$B$64=1,E44:E64)))) ->  | F20: =+IF(OR($K$2=0,$E$3=0),"",IF($H$6="Yes",N44,MAX(IF($B$44:$B$64=1,F44:F64)))) ->  | G20: =+IF(OR($K$2=0,$E$3=0),"",IF($H$6="Yes",O44,MAX(IF($B$44:$B$64=1,G44:G64)))) ->  | H20: =+IF(OR($K$2=0,$E$3=0),"",IF($H$6="Yes",P44,MAX(IF($B$44:$B$64=1,H44:H64)))) ->  | I20: =+IF(OR($K$2=0,$E$3=0),"",IF($H$6="Yes",Q44,MAX(IF($B$44:$B$64=1,I44:I64)))) ->  | J20: =+IF(OR($K$2=0,$E$3=0),"",IF($H$6="Yes",R44,MAX(IF($B$44:$B$64=1,J44:J64)))) ->  | K20: =+IF(OR($K$2=0,$E$3=0),"",IF($H$6="Yes",S44,MAX(IF($B$44:$B$64=1,K44:K64)))) ->  | L20: =+IF(OR($K$2=0,$E$3=0),"",IF($H$6="Yes",T44,MAX(IF($B$44:$B$64=1,L44:L64)))) ->  | M20: =MAX(IF($V$44:$V$64=1,W44:W64)) ->  | N20: 50 | O20: =IF($H$6="Yes",M44,MAX(IF($C$44:$C$64=1,E44:E64))) -> 0 | P20: =IF($H$6="Yes",N44,MAX(IF($C$44:$C$64=1,F44:F64))) -> 0 | Q20: =IF($H$6="Yes",O44,MAX(IF($C$44:$C$64=1,G44:G64))) -> 0 | R20: =IF($H$6="Yes",P44,MAX(IF($C$44:$C$64=1,H44:H64))) -> 0 | S20: =IF($H$6="Yes",Q44,MAX(IF($C$44:$C$64=1,I44:I64))) -> 0 | T20: =IF($H$6="Yes",R44,MAX(IF($C$44:$C$64=1,J44:J64))) -> 0 | U20: =IF($H$6="Yes",S44,MAX(IF($C$44:$C$64=1,K44:K64))) -> 0 | V20: =IF($H$6="Yes",T44,MAX(IF($C$44:$C$64=1,L44:L64))) -> 0 | W20: =MAX(IF($Z$44:$Z$64=1,AA44:AA64)) ->  | AH20: Los Angeles | AK20: 5/4/07 - 2/12/08
D21: 55 | E21: =+IF(OR($K$2=0,$E$3=0),"",E20*2*0.55) ->  | N21: 55 | O21: =O20*2*0.55 -> 0 | P21: 0 | Q21: 0 | R21: 0 | S21: 0 | T21: 0 | U21: 0 | V21: 0 | AH21: Madera | AK21: 3/20/07 - 5/3/07
D22: 60 | E22: =+IF(OR($K$2=0,$E$3=0),"",E20*2*0.6) ->  | N22: 60 | O22: =O20*2*0.6 -> 0 | P22: 0 | Q22: 0 | R22: 0 | S22: 0 | T22: 0 | U22: 0 | V22: 0 | AH22: Marin | AK22: 3/8/06 - 3/19/07
D23: 80 | E23: =+IF(OR($K$2=0,$E$3=0),"",E20*2*0.8) ->  | N23: 80 | O23: =O20*2*0.8 -> 0 | P23: =P20*2*0.8 -> 0 | Q23: 0 | R23: 0 | S23: 0 | T23: 0 | U23: 0 | V23: 0 | AH23: Mariposa
D24: RENT LIMITS | F24: =CONCATENATE(" for ",B2," based on ",IF(H6="Yes","Current MTSP HERA Special Income Limits",IFERROR(VLOOKUP($W20,W44:X64,2,FALSE),""))) -> for based on | AH24: Mendocino
D25: AMI % | E25: Number of Bedrooms | AH25: Merced
E26: 0 | F26: 1 | G26: 2 | H26: 3 | I26: 4 | J26: 5 | AH26: Modoc
D27: 15 | E27: =+IF(OR($K$2=0,$E$3=0),"",ROUNDDOWN(0.3*O13/12,0)) ->  | F27: =+IF(OR($K$2=0,$E$3=0),"",ROUNDDOWN(AVERAGE(O13,P13)/12*0.3,0)) ->  | G27: =+IF(OR($K$2=0,$E$3=0),"",ROUNDDOWN(0.3*Q13/12,0)) ->  | H27: =+IF(OR($K$2=0,$E$3=0),"",ROUNDDOWN(AVERAGE(R13,S13)/12*0.3,0)) ->  | I27: =+IF(OR($K$2=0,$E$3=0),"",ROUNDDOWN(0.3*T13/12,0)) ->  | J27: =+IF(OR($K$2=0,$E$3=0),"",ROUNDDOWN(AVERAGE(U13,V13)/12*0.3,0)) ->  | AH27: Mono
D28: 20 | AH28: Monterey
D29: 25 | AH29: Napa
D30: 30 | AH30: Nevada
D31: 35 | AH31: Orange
D32: 40 | AH32: Placer
D33: 45 | AH33: Plumas
D34: 50 | AH34: Riverside
D35: 55 | AH35: Sacramento
D36: 60 | AH36: San Benito
D37: 80 | AH37: San Bernardino
A38: 1The calculator is provided to assist the determination of the rents and income limits applicable to specific projects given a set of project related information such as placed in service date. IRS Guidelines and actual HUD published data should be used for final decisions. Independent verification by accounting and tax professionals is encouraged. Please contact George Rodine at (916) 263-6105 or George.Rodine@hcd.ca.gov if you have questions, concerns or if your determination of the income and rent limits differs from those using this tool. | AH38: San Diego
AH39: San Francisco
AH40: San Joaquin
AH41: San Luis Obispo
E42: Non HERA | M42: HERA | AH42: San Mateo
A43: Rent Floor | B43: PIS | C43: RENT | E43: 1p 50% | F43: 2p 50% | G43: 3p 50% | H43: 4p 50% | I43: 5p 50% | J43: 6p 50% | K43: 7p 50% | L43: 8p 50% | M43: 1p 50% | N43: 2p 50% | O43: 3p 50% | P43: 4p 50% | Q43: 5p 50% | R43: 6p 50% | S43: 7p 50% | T43: 8p 50% | U43: Income | X43: MTSP Limits | Y43: Rents | AH43: Santa Barbara
A44: =IF($C$7='2. Income-Rent Calculator'!$AK22,1,0) -> 0 | B44: =IF($E$3='2. Income-Rent Calculator'!$AJ17,1,0) -> 0 | C44: =+IF((A44+B44)=2,1,A44+B44) -> 0 | E44: =IF($H$6="Yes",0,VLOOKUP($U44,'MTSP Limits'!$A$1:$K$755,4,FALSE)) ->  | F44: =IF($H$6="Yes",0,VLOOKUP($U44,'MTSP Limits'!$A$1:$K$755,5,FALSE)) ->  | G44: =IF($H$6="Yes",0,VLOOKUP($U44,'MTSP Limits'!$A$1:$K$755,6,FALSE)) ->  | H44: =IF($H$6="Yes",0,VLOOKUP($U44,'MTSP Limits'!$A$1:$K$755,7,FALSE)) ->  | I44: =IF($H$6="Yes",0,VLOOKUP($U44,'MTSP Limits'!$A$1:$K$755,8,FALSE)) ->  | J44: =IF($H$6="Yes",0,VLOOKUP($U44,'MTSP Limits'!$A$1:$K$755,9,FALSE)) ->  | K44: =IF($H$6="Yes",0,VLOOKUP($U44,'MTSP Limits'!$A$1:$K$755,10,FALSE)) ->  | L44: =IF($H$6="Yes",0,VLOOKUP($U44,'MTSP Limits'!$A$1:$K$755,11,FALSE)) ->  | M44: =IF($H$6="No",0,VLOOKUP($U44,'MTSP Limits'!$A$1:$S$697,12,FALSE)) ->  | N44: =IF($H$6="No",0,VLOOKUP($U44,'MTSP Limits'!$A$1:$S$697,13,FALSE)) ->  | O44: =IF($H$6="No",0,VLOOKUP($U44,'MTSP Limits'!$A$1:$S$697,14,FALSE)) ->  | P44: =IF($H$6="No",0,VLOOKUP($U44,'MTSP Limits'!$A$1:$S$697,15,FALSE)) ->  | Q44: =IF($H$6="No",0,VLOOKUP($U44,'MTSP Limits'!$A$1:$S$697,16,FALSE)) ->  | R44: =IF($H$6="No",0,VLOOKUP($U44,'MTSP Limits'!$A$1:$S$697,17,FALSE)) ->  | S44: =IF($H$6="No",0,VLOOKUP($U44,'MTSP Limits'!$A$1:$S$697,18,FALSE)) ->  | T44: =IF($H$6="No",0,VLOOKUP($U44,'MTSP Limits'!$A$1:$S$697,19,FALSE)) ->  | U44: =CONCATENATE($K$2,'2. Income-Rent Calculator'!AJ17) -> Before 1/1/09 | V44: =IF($E$20=E44,1,0) ->  | W44: 1 | Y44: =CONCATENATE($K$2,'2. Income-Rent Calculator'!AK2) -> On or After 5/12/16 | Z44: =IF($O$20=E44,1,0) ->  | AA44: 1 | AB44: 2006 MTSP Income Limits | AH44: Santa Clara
A45: =IF($C$7='2. Income-Rent Calculator'!$AK21,1,0) -> 0 | B45: =IF(OR(B44=1,$E$3='2. Income-Rent Calculator'!$AJ16),1,0) -> 0 | C45: 0 | E45: =IF($B$18="Lower Limits",MIN(E44,E46),MAX(E44,E46)) ->  | U45: =CONCATENATE($K$2,'2. Income-Rent Calculator'!AJ17) -> Before 1/1/09 | W45: 0 | Y45: =CONCATENATE($K$2,'2. Income-Rent Calculator'!AK3) -> 3/28/16 - 5/11/16 | Z45: =IF($O$20=E45,1,0) ->  | AA45: 0 | AH45: Santa Cruz
A46: =IF($C$7='2. Income-Rent Calculator'!$AK20,1,0) -> 0 | B46: =IF(OR(B44=1,$E$3='2. Income-Rent Calculator'!$AJ16),1,0) -> 0 | C46: 0 | E46: =IF($H$6="Yes",0,VLOOKUP($U46,'MTSP Limits'!$A$1:$K$755,4,FALSE)) ->  | F46: =IF($H$6="Yes",0,VLOOKUP($U46,'MTSP Limits'!$A$1:$K$755,5,FALSE)) ->  | G46: =IF($H$6="Yes",0,VLOOKUP($U46,'MTSP Limits'!$A$1:$K$755,6,FALSE)) ->  | H46: =IF($H$6="Yes",0,VLOOKUP($U46,'MTSP Limits'!$A$1:$K$755,7,FALSE)) ->  | I46: =IF($H$6="Yes",0,VLOOKUP($U46,'MTSP Limits'!$A$1:$K$755,8,FALSE)) ->  | J46: =IF($H$6="Yes",0,VLOOKUP($U46,'MTSP Limits'!$A$1:$K$755,9,FALSE)) ->  | K46: =IF($H$6="Yes",0,VLOOKUP($U46,'MTSP Limits'!$A$1:$K$755,10,FALSE)) ->  | L46: =IF($H$6="Yes",0,VLOOKUP($U46,'MTSP Limits'!$A$1:$K$755,11,FALSE)) ->  | U46: =CONCATENATE($K$2,'2. Income-Rent Calculator'!AJ17) -> Before 1/1/09 | W46: 2 | Y46: =CONCATENATE($K$2,'2. Income-Rent Calculator'!AK4) -> 4/20/15 - 3/27/16 | AA46: 2 | AB46: 2007 MTSP Income Limits | AH46: Shasta
A47: =IF($C$7='2. Income-Rent Calculator'!$AK19,1,0) -> 0 | B47: =IF(OR(B44=1,$E$3='2. Income-Rent Calculator'!$AJ16),1,0) -> 0 | C47: 0 | E47: =IF($B$18="Lower Limits",MIN(E46,E48),MAX(E46,E48)) ->  | U47: =CONCATENATE($K$2,'2. Income-Rent Calculator'!AJ17) -> Before 1/1/09 | W47: 0 | Y47: =CONCATENATE($K$2,'2. Income-Rent Calculator'!AK5) -> 3/6/15 - 4/19/15 | AA47: 0 | AH47: Sierra
A48: =IF($C$7='2. Income-Rent Calculator'!$AK18,1,0) -> 0 | B48: =IF(OR(B44=1,$E$3='2. Income-Rent Calculator'!$AJ16),1,0) -> 0 | C48: 0 | E48: =IF($H$6="Yes",0,VLOOKUP($U48,'MTSP Limits'!$A$1:$K$755,4,FALSE)) ->  | F48: =IF($H$6="Yes",0,VLOOKUP($U48,'MTSP Limits'!$A$1:$K$755,5,FALSE)) ->  | G48: =IF($H$6="Yes",0,VLOOKUP($U48,'MTSP Limits'!$A$1:$K$755,6,FALSE)) ->  | H48: =IF($H$6="Yes",0,VLOOKUP($U48,'MTSP Limits'!$A$1:$K$755,7,FALSE)) ->  | I48: =IF($H$6="Yes",0,VLOOKUP($U48,'MTSP Limits'!$A$1:$K$755,8,FALSE)) ->  | J48: =IF($H$6="Yes",0,VLOOKUP($U48,'MTSP Limits'!$A$1:$K$755,9,FALSE)) ->  | K48: =IF($H$6="Yes",0,VLOOKUP($U48,'MTSP Limits'!$A$1:$K$755,10,FALSE)) ->  | L48: =IF($H$6="Yes",0,VLOOKUP($U48,'MTSP Limits'!$A$1:$K$755,11,FALSE)) ->  | U48: =CONCATENATE($K$2,'2. Income-Rent Calculator'!AJ17) -> Before 1/1/09 | W48: 3 | Y48: =CONCATENATE($K$2,'2. Income-Rent Calculator'!AK6) -> 2/1/14 - 3/5/15 | AA48: 3 | AB48: 2008 MTSP Income Limits | AH48: Siskiyou
A49: =IF($C$7='2. Income-Rent Calculator'!$AK17,1,0) -> 0 | B49: =IF(OR(B44=1,$E$3='2. Income-Rent Calculator'!$AJ16),1,0) -> 0 | C49: 0 | E49: =IF($B$18="Lower Limits",MIN(E48,E50),MAX(E48,E50)) ->  | U49: =CONCATENATE($K$2,'2. Income-Rent Calculator'!AJ17) -> Before 1/1/09 | W49: 0 | Y49: =CONCATENATE($K$2,'2. Income-Rent Calculator'!AK7) -> 12/18/13 - 1/31/14 | AA49: 0 | AH49: Solano
A50: =IF($C$7='2. Income-Rent Calculator'!$AK16,1,0) -> 0 | B50: =IF(OR(B44=1,$E$3='2. Income-Rent Calculator'!$AJ16),1,0) -> 0 | C50: 0 | E50: =IF($H$6="Yes",0,VLOOKUP($U50,'MTSP Limits'!$A$1:$K$755,4,FALSE)) ->  | F50: =IF($H$6="Yes",0,VLOOKUP($U50,'MTSP Limits'!$A$1:$K$755,5,FALSE)) ->  | G50: =IF($H$6="Yes",0,VLOOKUP($U50,'MTSP Limits'!$A$1:$K$755,6,FALSE)) ->  | H50: =IF($H$6="Yes",0,VLOOKUP($U50,'MTSP Limits'!$A$1:$K$755,7,FALSE)) ->  | I50: =IF($H$6="Yes",0,VLOOKUP($U50,'MTSP Limits'!$A$1:$K$755,8,FALSE)) ->  | J50: =IF($H$6="Yes",0,VLOOKUP($U50,'MTSP Limits'!$A$1:$K$755,9,FALSE)) ->  | K50: =IF($H$6="Yes",0,VLOOKUP($U50,'MTSP Limits'!$A$1:$K$755,10,FALSE)) ->  | L50: =IF($H$6="Yes",0,VLOOKUP($U50,'MTSP Limits'!$A$1:$K$755,11,FALSE)) ->  | U50: =CONCATENATE($K$2,'2. Income-Rent Calculator'!AJ16) -> 1/1/09 - 5/13/10 | W50: 4 | X50: 2009 MTSP Income Limits | Y50: =CONCATENATE($K$2,'2. Income-Rent Calculator'!AK8) -> 1/18/13 - 12/17/13 | AA50: 4 | AB50: 2009 MTSP Income Limits | AH50: Sonoma
A51: =IF($C$7='2. Income-Rent Calculator'!$AK15,1,0) -> 0 | B51: =IF(OR(B50=1,$E$3='2. Income-Rent Calculator'!$AJ15),1,0) -> 0 | C51: 0 | E51: =IF($B$18="Lower Limits",MIN(E50,E52),MAX(E50,E52)) ->  | U51: =CONCATENATE($K$2,'2. Income-Rent Calculator'!AJ15) -> 5/14/10 - 6/27/10 | W51: 0 | Y51: =CONCATENATE($K$2,'2. Income-Rent Calculator'!AK9) -> 12/4/12 - 1/17/13 | AA51: 0 | AH51: Stanislaus
A52: =IF($C$7='2. Income-Rent Calculator'!$AK14,1,0) -> 0 | B52: =IF(OR(B51=1,$E$3='2. Income-Rent Calculator'!$AJ14),1,0) -> 0 | C52: 0 | E52: =IF($H$6="Yes",0,VLOOKUP($U52,'MTSP Limits'!$A$1:$K$755,4,FALSE)) ->  | F52: =IF($H$6="Yes",0,VLOOKUP($U52,'MTSP Limits'!$A$1:$K$755,5,FALSE)) ->  | G52: =IF($H$6="Yes",0,VLOOKUP($U52,'MTSP Limits'!$A$1:$K$755,6,FALSE)) ->  | H52: =IF($H$6="Yes",0,VLOOKUP($U52,'MTSP Limits'!$A$1:$K$755,7,FALSE)) ->  | I52: =IF($H$6="Yes",0,VLOOKUP($U52,'MTSP Limits'!$A$1:$K$755,8,FALSE)) ->  | J52: =IF($H$6="Yes",0,VLOOKUP($U52,'MTSP Limits'!$A$1:$K$755,9,FALSE)) ->  | K52: =IF($H$6="Yes",0,VLOOKUP($U52,'MTSP Limits'!$A$1:$K$755,10,FALSE)) ->  | L52: =IF($H$6="Yes",0,VLOOKUP($U52,'MTSP Limits'!$A$1:$K$755,11,FALSE)) ->  | U52: =CONCATENATE($K$2,'2. Income-Rent Calculator'!AJ14) -> 6/28/10 - 5/30/11 | W52: 5 | X52: 2010 MTSP Income Limits | Y52: =CONCATENATE($K$2,'2. Income-Rent Calculator'!AK10) -> 1/15/12 - 12/3/12 | AA52: 5 | AB52: 2010 MTSP Income Limits | AH52: Sutter
A53: =IF($C$7='2. Income-Rent Calculator'!$AK13,1,0) -> 0 | B53: =IF(OR(B52=1,$E$3='2. Income-Rent Calculator'!$AJ13),1,0) -> 0 | C53: 0 | E53: =IF($B$18="Lower Limits",MIN(E52,E54),MAX(E52,E54)) ->  | U53: =CONCATENATE($K$2,'2. Income-Rent Calculator'!AJ13) -> 5/31/11 - 7/14/11 | W53: 0 | Y53: =CONCATENATE($K$2,'2. Income-Rent Calculator'!AK11) -> 12/1/11 - 1/14/12 | AA53: 0 | AH53: Tehama
A54: =IF($C$7='2. Income-Rent Calculator'!$AK12,1,0) -> 0 | B54: =IF(OR(B53=1,$E$3='2. Income-Rent Calculator'!$AJ12),1,0) -> 0 | C54: 0 | E54: =IF($H$6="Yes",0,VLOOKUP($U54,'MTSP Limits'!$A$1:$K$755,4,FALSE)) ->  | F54: =IF($H$6="Yes",0,VLOOKUP($U54,'MTSP Limits'!$A$1:$K$755,5,FALSE)) ->  | G54: =IF($H$6="Yes",0,VLOOKUP($U54,'MTSP Limits'!$A$1:$K$755,6,FALSE)) ->  | H54: =IF($H$6="Yes",0,VLOOKUP($U54,'MTSP Limits'!$A$1:$K$755,7,FALSE)) ->  | I54: =IF($H$6="Yes",0,VLOOKUP($U54,'MTSP Limits'!$A$1:$K$755,8,FALSE)) ->  | J54: =IF($H$6="Yes",0,VLOOKUP($U54,'MTSP Limits'!$A$1:$K$755,9,FALSE)) ->  | K54: =IF($H$6="Yes",0,VLOOKUP($U54,'MTSP Limits'!$A$1:$K$755,10,FALSE)) ->  | L54: =IF($H$6="Yes",0,VLOOKUP($U54,'MTSP Limits'!$A$1:$K$755,11,FALSE)) ->  | U54: =CONCATENATE($K$2,'2. Income-Rent Calculator'!AJ12) -> 7/15/11 - 11/30/11 | W54: 6 | X54: 2011 MTSP Income Limits | Y54: =CONCATENATE($K$2,'2. Income-Rent Calculator'!AK12) -> 7/15/11 - 11/30/11 | AA54: 6 | AB54: 2011 MTSP Income Limits | AH54: Trinity
A55: =IF($C$7='2. Income-Rent Calculator'!$AK11,1,0) -> 0 | B55: =IF(OR(B54=1,$E$3='2. Income-Rent Calculator'!$AJ11),1,0) -> 0 | C55: 0 | E55: =IF($B$18="Lower Limits",MIN(E54,E56),MAX(E54,E56)) ->  | U55: =CONCATENATE($K$2,'2. Income-Rent Calculator'!AJ11) -> 12/1/11 - 1/14/12 | W55: 0 | Y55: =CONCATENATE($K$2,'2. Income-Rent Calculator'!AK13) -> 5/31/11 - 7/14/11 | AA55: 0 | AH55: Tulare
A56: =IF($C$7='2. Income-Rent Calculator'!$AK10,1,0) -> 0 | B56: =IF(OR(B55=1,$E$3='2. Income-Rent Calculator'!$AJ10),1,0) -> 0 | C56: 0 | E56: =IF($H$6="Yes",0,VLOOKUP($U56,'MTSP Limits'!$A$1:$K$755,4,FALSE)) ->  | F56: =IF($H$6="Yes",0,VLOOKUP($U56,'MTSP Limits'!$A$1:$K$755,5,FALSE)) ->  | G56: =IF($H$6="Yes",0,VLOOKUP($U56,'MTSP Limits'!$A$1:$K$755,6,FALSE)) ->  | H56: =IF($H$6="Yes",0,VLOOKUP($U56,'MTSP Limits'!$A$1:$K$755,7,FALSE)) ->  | I56: =IF($H$6="Yes",0,VLOOKUP($U56,'MTSP Limits'!$A$1:$K$755,8,FALSE)) ->  | J56: =IF($H$6="Yes",0,VLOOKUP($U56,'MTSP Limits'!$A$1:$K$755,9,FALSE)) ->  | K56: =IF($H$6="Yes",0,VLOOKUP($U56,'MTSP Limits'!$A$1:$K$755,10,FALSE)) ->  | L56: =IF($H$6="Yes",0,VLOOKUP($U56,'MTSP Limits'!$A$1:$K$755,11,FALSE)) ->  | U56: =CONCATENATE($K$2,'2. Income-Rent Calculator'!AJ10) -> 1/15/12 - 12/3/12 | W56: 7 | X56: 2012 MTSP Income Limits | Y56: =CONCATENATE($K$2,'2. Income-Rent Calculator'!AK14) -> 6/28/10 - 5/30/11 | AA56: 7 | AB56: 2012 MTSP Income Limits | AH56: Tuolumne
A57: =IF($C$7='2. Income-Rent Calculator'!$AK9,1,0) -> 0 | B57: =IF(OR(B56=1,$E$3='2. Income-Rent Calculator'!$AJ9),1,0) -> 0 | C57: 0 | E57: =IF($B$18="Lower Limits",MIN(E56,E58),MAX(E56,E58)) ->  | U57: =CONCATENATE($K$2,'2. Income-Rent Calculator'!AJ9) -> 12/4/12 - 1/17/13 | W57: 0 | Y57: =CONCATENATE($K$2,'2. Income-Rent Calculator'!AK15) -> 5/14/10 - 6/27/10 | AA57: 0 | AH57: Ventura
A58: =IF($C$7='2. Income-Rent Calculator'!$AK8,1,0) -> 0 | B58: =IF(OR(B57=1,$E$3='2. Income-Rent Calculator'!$AJ8),1,0) -> 0 | C58: 0 | E58: =IF($H$6="Yes",0,VLOOKUP($U58,'MTSP Limits'!$A$1:$K$755,4,FALSE)) ->  | F58: =IF($H$6="Yes",0,VLOOKUP($U58,'MTSP Limits'!$A$1:$K$755,5,FALSE)) ->  | G58: =IF($H$6="Yes",0,VLOOKUP($U58,'MTSP Limits'!$A$1:$K$755,6,FALSE)) ->  | H58: =IF($H$6="Yes",0,VLOOKUP($U58,'MTSP Limits'!$A$1:$K$755,7,FALSE)) ->  | I58: =IF($H$6="Yes",0,VLOOKUP($U58,'MTSP Limits'!$A$1:$K$755,8,FALSE)) ->  | J58: =IF($H$6="Yes",0,VLOOKUP($U58,'MTSP Limits'!$A$1:$K$755,9,FALSE)) ->  | K58: =IF($H$6="Yes",0,VLOOKUP($U58,'MTSP Limits'!$A$1:$K$755,10,FALSE)) ->  | L58: =IF($H$6="Yes",0,VLOOKUP($U58,'MTSP Limits'!$A$1:$K$755,11,FALSE)) ->  | U58: =CONCATENATE($K$2,'2. Income-Rent Calculator'!AJ8) -> 1/18/13 - 12/17/13 | W58: 8 | X58: 2013 MTSP Income Limits | Y58: =CONCATENATE($K$2,'2. Income-Rent Calculator'!AK16) -> 4/3/09 - 5/13/10 | AA58: 8 | AB58: 2013 MTSP Income Limits | AH58: Yolo
A59: =IF($C$7='2. Income-Rent Calculator'!$AK7,1,0) -> 0 | B59: =IF(OR(B58=1,$E$3='2. Income-Rent Calculator'!$AJ7),1,0) -> 0 | C59: =+IF((A59+B59)=2,1,A59+B59) -> 0 | E59: =IF($B$18="Lower Limits",MIN(E58,E60),MAX(E58,E60)) ->  | U59: =CONCATENATE($K$2,'2. Income-Rent Calculator'!AJ7) -> 12/18/13 - 1/31/14 | W59: 0 | Y59: =CONCATENATE($K$2,'2. Income-Rent Calculator'!AK17) -> 3/19/09 - 4/2/09 | AA59: 0 | AH59: Yuba
A60: =IF($C$7='2. Income-Rent Calculator'!$AK6,1,0) -> 0 | B60: =IF(OR(B59=1,$E$3='2. Income-Rent Calculator'!$AJ6),1,0) -> 0 | C60: 0 | E60: =IF($H$6="Yes",0,VLOOKUP($U60,'MTSP Limits'!$A$1:$K$755,4,FALSE)) ->  | F60: =IF($H$6="Yes",0,VLOOKUP($U60,'MTSP Limits'!$A$1:$K$755,5,FALSE)) ->  | G60: =IF($H$6="Yes",0,VLOOKUP($U60,'MTSP Limits'!$A$1:$K$755,6,FALSE)) ->  | H60: =IF($H$6="Yes",0,VLOOKUP($U60,'MTSP Limits'!$A$1:$K$755,7,FALSE)) ->  | I60: =IF($H$6="Yes",0,VLOOKUP($U60,'MTSP Limits'!$A$1:$K$755,8,FALSE)) ->  | J60: =IF($H$6="Yes",0,VLOOKUP($U60,'MTSP Limits'!$A$1:$K$755,9,FALSE)) ->  | K60: =IF($H$6="Yes",0,VLOOKUP($U60,'MTSP Limits'!$A$1:$K$755,10,FALSE)) ->  | L60: =IF($H$6="Yes",0,VLOOKUP($U60,'MTSP Limits'!$A$1:$K$755,11,FALSE)) ->  | U60: =CONCATENATE($K$2,'2. Income-Rent Calculator'!AJ6) -> 2/1/14 - 3/5/15 | W60: 9 | X60: 2014 MTSP Income Limits | Y60: =CONCATENATE($K$2,'2. Income-Rent Calculator'!AK18) -> 3/29/08 - 3/18/09 | AA60: 9 | AB60: 2014 MTSP Income Limits
A61: =IF($C$7='2. Income-Rent Calculator'!$AK5,1,0) -> 0 | B61: =IF(OR(B60=1,$E$3='2. Income-Rent Calculator'!$AJ5),1,0) -> 0 | C61: 0 | E61: =IF($B$18="Lower Limits",MIN(E60,E62),MAX(E60,E62)) ->  | U61: =CONCATENATE($K$2,'2. Income-Rent Calculator'!AJ5) -> 3/6/15 - 4/19/15 | W61: 0 | Y61: =CONCATENATE($K$2,'2. Income-Rent Calculator'!AK19) -> 2/13/08 - 3/28/08 | AA61: 0
A62: =IF($C$7='2. Income-Rent Calculator'!$AK4,1,0) -> 0 | B62: =IF(OR(B61=1,$E$3='2. Income-Rent Calculator'!$AJ4),1,0) -> 0 | C62: 0 | E62: =IF($H$6="Yes",0,VLOOKUP($U62,'MTSP Limits'!$A$1:$K$755,4,FALSE)) ->  | F62: =IF($H$6="Yes",0,VLOOKUP($U62,'MTSP Limits'!$A$1:$K$755,5,FALSE)) ->  | G62: =IF($H$6="Yes",0,VLOOKUP($U62,'MTSP Limits'!$A$1:$K$755,6,FALSE)) ->  | H62: =IF($H$6="Yes",0,VLOOKUP($U62,'MTSP Limits'!$A$1:$K$755,7,FALSE)) ->  | I62: =IF($H$6="Yes",0,VLOOKUP($U62,'MTSP Limits'!$A$1:$K$755,8,FALSE)) ->  | J62: =IF($H$6="Yes",0,VLOOKUP($U62,'MTSP Limits'!$A$1:$K$755,9,FALSE)) ->  | K62: =IF($H$6="Yes",0,VLOOKUP($U62,'MTSP Limits'!$A$1:$K$755,10,FALSE)) ->  | L62: =IF($H$6="Yes",0,VLOOKUP($U62,'MTSP Limits'!$A$1:$K$755,11,FALSE)) ->  | U62: =CONCATENATE($K$2,'2. Income-Rent Calculator'!AJ4) -> 4/20/15 - 3/27/16 | W62: 10 | X62: 2015 MTSP Income Limits | Y62: =CONCATENATE($K$2,'2. Income-Rent Calculator'!AK20) -> 5/4/07 - 2/12/08 | AA62: 10 | AB62: 2015 MTSP Income Limits
A63: =IF($C$7='2. Income-Rent Calculator'!$AK3,1,0) -> 0 | B63: =IF(OR(B62=1,$E$3='2. Income-Rent Calculator'!$AJ3),1,0) -> 0 | C63: 0 | E63: =IF($B$18="Lower Limits",MIN(E62,E64),MAX(E62,E64)) ->  | U63: =CONCATENATE($K$2,'2. Income-Rent Calculator'!AJ3) -> 3/28/16 - 5/11/16 | W63: 0 | Y63: =CONCATENATE($K$2,'2. Income-Rent Calculator'!AK21) -> 3/20/07 - 5/3/07 | Z63: =IF($O$20=E63,1,0) ->  | AA63: 0
A64: =IF($C$7='2. Income-Rent Calculator'!$AK2,1,0) -> 0 | B64: =IF(OR(B63=1,$E$3='2. Income-Rent Calculator'!$AJ2),1,0) -> 0 | C64: 0 | E64: =IF($H$6="Yes",0,VLOOKUP($U64,'MTSP Limits'!$A$1:$K$755,4,FALSE)) ->  | F64: =IF($H$6="Yes",0,VLOOKUP($U64,'MTSP Limits'!$A$1:$K$755,5,FALSE)) ->  | G64: =IF($H$6="Yes",0,VLOOKUP($U64,'MTSP Limits'!$A$1:$K$755,6,FALSE)) ->  | H64: =IF($H$6="Yes",0,VLOOKUP($U64,'MTSP Limits'!$A$1:$K$755,7,FALSE)) ->  | I64: =IF($H$6="Yes",0,VLOOKUP($U64,'MTSP Limits'!$A$1:$K$755,8,FALSE)) ->  | J64: =IF($H$6="Yes",0,VLOOKUP($U64,'MTSP Limits'!$A$1:$K$755,9,FALSE)) ->  | K64: =IF($H$6="Yes",0,VLOOKUP($U64,'MTSP Limits'!$A$1:$K$755,10,FALSE)) ->  | L64: =IF($H$6="Yes",0,VLOOKUP($U64,'MTSP Limits'!$A$1:$K$755,11,FALSE)) ->  | U64: =CONCATENATE($K$2,'2. Income-Rent Calculator'!AJ2) -> On or After 5/12/16 | W64: 11 | X64: 2016 MTSP Income Limits | Y64: =CONCATENATE($K$2,'2. Income-Rent Calculator'!AK22) -> 3/8/06 - 3/19/07 | AA64: 11 | AB64: 2016 MTSP Income Limits
S199: Alameda
S200: Alpine
S201: Amador
S202: Butte
S203: Calaveras
S204: Colusa
S205: Contra Costa
S206: Del Norte
S207: El Dorado
S208: Fresno
S209: Glenn
S210: Humboldt
S211: Imperial
S212: Inyo
S213: Kern
S214: Kings
S215: Lake
S216: Lassen
S217: Los Angeles
S218: Madera
S219: Marin
S220: Mariposa
S221: Mendocino
S222: Merced
S223: Modoc
S224: Mono
S225: Monterey
S226: Napa
S227: Nevada
S228: Orange
S229: Placer
S230: Plumas
S231: Riverside
S232: Sacramento
S233: San Benito
S234: San Bernardino
S235: San Diego
S236: San Francisco
S237: San Joaquin
S238: San Luis Obispo
S239: San Mateo
S240: Santa Barbara
S241: Santa Clara
S242: Santa Cruz
S243: Shasta
S244: Sierra
S245: Siskiyou
S246: Solano
S247: Sonoma
S248: Stanislaus
S249: Sutter
S250: Tehama
S251: Trinity
S252: Tulare
S253: Tuolumne
S254: Ventura
S255: Yolo
S256: Yuba

Sheet 3. Restric Units Incomes&Rents
A1: =Instructions!J1 -> Rev. 4/21/16 | H1: ='1. Checklist & Certification'!$A$1 -> Use the dropown menu to select the appropriate HCD funding program here (first tab)
H3: 3. Restricted Units Incomes and Rents
H4: [Group by Unit Size and Income Limit]
Q5: Monthly Utility Allowances
A6: Sponsor Name: | D6: ='1. Checklist & Certification'!C8 -> 0 | N6: Bedroom Size/Unit Designation | Q6: Primary | R6: Ref. Ltr. B* | S6: Ref. Ltr. C* | T6: Ref. Ltr. D* | U6: Ref. Ltr. E*
A7: Management Agent: | D7: ='1. Checklist & Certification'!C9 -> 0 | N7: Zero Bedroom or Studio: | Q7: ='1. Checklist & Certification'!J8 -> 0 | R7: ='1. Checklist & Certification'!E20 -> 0 | S7: ='1. Checklist & Certification'!G20 -> 0 | T7: ='1. Checklist & Certification'!I20 -> 0 | U7: ='1. Checklist & Certification'!K20 -> 0
A8: Prepared By: | D8: ='1. Checklist & Certification'!C10 -> 0 | N8: One Bedroom: | Q8: ='1. Checklist & Certification'!J9 -> 0 | R8: ='1. Checklist & Certification'!E21 -> 0 | S8: ='1. Checklist & Certification'!G21 -> 0 | T8: ='1. Checklist & Certification'!I21 -> 0 | U8: ='1. Checklist & Certification'!K21 -> 0
A9: County: | D9: ='1. Checklist & Certification'!C13 -> 0 | N9: Two Bedroom: | Q9: ='1. Checklist & Certification'!J10 -> 0 | R9: ='1. Checklist & Certification'!E22 -> 0 | S9: ='1. Checklist & Certification'!G22 -> 0 | T9: ='1. Checklist & Certification'!I22 -> 0 | U9: ='1. Checklist & Certification'!K22 -> 0
A10: Contract Number(s): | D10: ='1. Checklist & Certification'!C6 -> 0 | N10: Three Bedroom: | Q10: ='1. Checklist & Certification'!J11 -> 0 | R10: ='1. Checklist & Certification'!E23 -> 0 | S10: ='1. Checklist & Certification'!G23 -> 0 | T10: ='1. Checklist & Certification'!I23 -> 0 | U10: ='1. Checklist & Certification'!K23 -> 0
A11: Project Name: | D11: ='1. Checklist & Certification'!C7 -> 0 | N11: Four Bedroom: | Q11: ='1. Checklist & Certification'!J12 -> 0 | R11: ='1. Checklist & Certification'!E24 -> 0 | S11: ='1. Checklist & Certification'!G24 -> 0 | T11: ='1. Checklist & Certification'!I24 -> 0 | U11: ='1. Checklist & Certification'!K24 -> 0
A12: Fiscal Year: | D12: ='1. Checklist & Certification'!C12 -> 0 | N12: Five Bedroom: | Q12: ='1. Checklist & Certification'!J13 -> 0 | R12: ='1. Checklist & Certification'!E25 -> 0 | S12: ='1. Checklist & Certification'!G25 -> 0 | T12: ='1. Checklist & Certification'!I25 -> 0 | U12: ='1. Checklist & Certification'!K25 -> 0
E15: [E] | F15: [F] | G15: [G] | T15: [T] | AJ15: HCD Use Only
A16: [A] | B16: [B] | C16: [C] | D16: [D] | E16: Demographics | H16: [H] | I16: [I] | J16: [J] | K16: [K] | L16: [L] | M16: [M] | N16: [N] | O16: [O] | P16: [P] | Q16: [Q] | R16: [R] | S16: [S] | T16: Error/Exception Codes | U16: [U] | V16: [V] | W16: [W] | X16: [W] | AK16: FALSE
A17: Unit Number (see instructions and cell comments) | B17: Number of Persons in Household | C17: Unit Size/ No. of BRs | D17: Unit Desig. | E17: Veterans | F17: Elderly | G17: Agricultural Workers | H17: AMI or SMI Income Limits | I17: Actual Certified Household Income | J17: Targeted Income Level (% of AMI or SMI) | K17: Current Tenant Rent (Gross Rent minus Utility Allow.) | L17: Current Max Allowable AMI or SMI Monthly Rent (Gross Rent) | M17: Current Max Allowable AMI or SMI Monthly Rent minus Utility Allow. | N17: Proposed Tenant Rent (Gross Rent minus Utility Allow.) Don't include Rent Subsidy [Q] | O17: Proposed Tenant Rent Increase | P17: Approved Tenant Rent Doesn't Include Rent Subsidy [Q] (HCD use) | Q17: *Rent Subsidy Amount (Month) (e.g. Sec 8) | R17: Total Proposed Annual Rental Income | S17: Total Approved Annual Rental Income (HCD use) | T17: "VACANT" = unit is vacant "NO INCOME" = [I] = $0 "OVER INCOME" = [I] > [H] "P-RENT" = [N] > [M] "U-OCCUP" = under-occupied (UMR 8305(b)) "#N/A" = row has a unit number; missing required data or Managers unit. | U17: Move-In Date | V17: FWHG Max (30%) Monthly Tenant Rent | W17: FWHG Current Tenant Rent as a % of HI | X17: FWHG Proposed Tenant Rent as a % of HI
H18: =IF(AND(D18="FWHG",G18<>""),"",IF(B18="Vacant","Vacant",IF(J18<>"",INDEX('1. Checklist & Certification'!$AC$3:$AK$21,MATCH(J18,'1. Checklist & Certification'!$AB$3:$AB$21,0),MATCH(B18,'1. Checklist & Certification'!$AC$2:$AK$2,0)),""))) ->  | L18: =IF(AND(D18="FWHG",G18<>""),"",IF(J18>1,INDEX('1. Checklist & Certification'!$BD$3:$BI$20,MATCH(J18,'1. Checklist & Certification'!$BC$3:$BC$20,0),MATCH(C18,'1. Checklist & Certification'!$BD$2:$BI$2,0)),"")) ->  | M18: =IF(AND(D18="FWHG",G18<>""),"",IFERROR(ROUNDUP(IF($L18="","",$L18-IF(LEFT($A18,2)="B*",VLOOKUP($C18,'1. Checklist & Certification'!$D$20:$E$25,2),IF(LEFT($A18,2)="C*",VLOOKUP($C18,'1. Checklist & Certification'!$F$20:$G$25,2),IF(LEFT($A18,2)="D*",VLOOKUP($C18,'1. Checklist & Certification'!$H$20:$I$25,2),IF(LEFT($A18,2)="E*",VLOOKUP($C18,'1. Checklist & Certification'!$J$20:$K$25,2),VLOOKUP($C18,'1. Checklist & Certification'!$I$8:$J$13,2)))))),0),"")) ->  | O18: =IF(N18-K18>0,N18-K18,"") ->  | P18: =IF($AK$16=TRUE,N18,"") ->  | R18: =IF(SUM((N18+Q18)*12)>0,SUM(N18+Q18)*12,"") ->  | S18: =IF(P18="","",(P18+Q18)*12) ->  | T18: =IF(AND(D18="FWHG",G18<>""),"",IF(A18="","",IF(OR(B18="",C18="",D18="",I18="",J18="",K18="",N18=""),"#N/A",IF(D18<>"OR",IF(N18>M18,"P-RENT; ","")&IF(B18="Vacant","VACANT",IF(I18=0,"NO INCOME; ",IF(I18>H18,"OVER INCOME; ",""))&IF(B18>=VLOOKUP(C18,'1. Checklist & Certification'!$AN$3:$AO$8,2),"","U-OCCUP")),"")))) ->  | V18: =IF(B18="Vacant","",IF(OR(G18="",I18=""),"",I18*0.3/12)) ->  | W18: =IF(B18="Vacant",0,IF(OR(G18="",I18=""),0,(K18*12)/I18)) -> 0 | X18: =IF(B18="Vacant",0,IF(OR(G18="",I18=""),0,(N18*12)/I18)) -> 0
H19: =IF(AND(D19="FWHG",G19<>""),"",IF(B19="Vacant","Vacant",IF(J19<>"",INDEX('1. Checklist & Certification'!$AC$3:$AK$21,MATCH(J19,'1. Checklist & Certification'!$AB$3:$AB$21,0),MATCH(B19,'1. Checklist & Certification'!$AC$2:$AK$2,0)),""))) ->  | L19: =IF(AND(D19="FWHG",G19<>""),"",IF(J19>1,INDEX('1. Checklist & Certification'!$BD$3:$BI$20,MATCH(J19,'1. Checklist & Certification'!$BC$3:$BC$20,0),MATCH(C19,'1. Checklist & Certification'!$BD$2:$BI$2,0)),"")) ->  | M19: =IF(AND(D19="FWHG",G19<>""),"",IFERROR(ROUNDUP(IF($L19="","",$L19-IF(LEFT($A19,2)="B*",VLOOKUP($C19,'1. Checklist & Certification'!$D$20:$E$25,2),IF(LEFT($A19,2)="C*",VLOOKUP($C19,'1. Checklist & Certification'!$F$20:$G$25,2),IF(LEFT($A19,2)="D*",VLOOKUP($C19,'1. Checklist & Certification'!$H$20:$I$25,2),IF(LEFT($A19,2)="E*",VLOOKUP($C19,'1. Checklist & Certification'!$J$20:$K$25,2),VLOOKUP($C19,'1. Checklist & Certification'!$I$8:$J$13,2)))))),0),"")) ->  | P19: =IF($AK$16=TRUE,N19,"") ->  | S19: =IF(P19="","",(P19+Q19)*12) ->  | T19: =IF(AND(D19="FWHG",G19<>""),"",IF(A19="","",IF(OR(B19="",C19="",D19="",I19="",J19="",K19="",N19=""),"#N/A",IF(D19<>"OR",IF(N19>M19,"P-RENT; ","")&IF(B19="Vacant","VACANT",IF(I19=0,"NO INCOME; ",IF(I19>H19,"OVER INCOME; ",""))&IF(B19>=VLOOKUP(C19,'1. Checklist & Certification'!$AN$3:$AO$8,2),"","U-OCCUP")),"")))) ->  | V19: =IF(B19="Vacant","",IF(OR(G19="",I19=""),"",I19*0.3/12)) ->  | W19: =IF(B19="Vacant",0,IF(OR(G19="",I19=""),0,(K19*12)/I19)) -> 0 | X19: =IF(B19="Vacant",0,IF(OR(G19="",I19=""),0,(N19*12)/I19)) -> 0
H20: =IF(AND(D20="FWHG",G20<>""),"",IF(B20="Vacant","Vacant",IF(J20<>"",INDEX('1. Checklist & Certification'!$AC$3:$AK$21,MATCH(J20,'1. Checklist & Certification'!$AB$3:$AB$21,0),MATCH(B20,'1. Checklist & Certification'!$AC$2:$AK$2,0)),""))) ->  | L20: =IF(AND(D20="FWHG",G20<>""),"",IF(J20>1,INDEX('1. Checklist & Certification'!$BD$3:$BI$20,MATCH(J20,'1. Checklist & Certification'!$BC$3:$BC$20,0),MATCH(C20,'1. Checklist & Certification'!$BD$2:$BI$2,0)),"")) ->  | M20: =IF(AND(D20="FWHG",G20<>""),"",IFERROR(ROUNDUP(IF($L20="","",$L20-IF(LEFT($A20,2)="B*",VLOOKUP($C20,'1. Checklist & Certification'!$D$20:$E$25,2),IF(LEFT($A20,2)="C*",VLOOKUP($C20,'1. Checklist & Certification'!$F$20:$G$25,2),IF(LEFT($A20,2)="D*",VLOOKUP($C20,'1. Checklist & Certification'!$H$20:$I$25,2),IF(LEFT($A20,2)="E*",VLOOKUP($C20,'1. Checklist & Certification'!$J$20:$K$25,2),VLOOKUP($C20,'1. Checklist & Certification'!$I$8:$J$13,2)))))),0),"")) ->  | T20: =IF(AND(D20="FWHG",G20<>""),"",IF(A20="","",IF(OR(B20="",C20="",D20="",I20="",J20="",K20="",N20=""),"#N/A",IF(D20<>"OR",IF(N20>M20,"P-RENT; ","")&IF(B20="Vacant","VACANT",IF(I20=0,"NO INCOME; ",IF(I20>H20,"OVER INCOME; ",""))&IF(B20>=VLOOKUP(C20,'1. Checklist & Certification'!$AN$3:$AO$8,2),"","U-OCCUP")),"")))) ->  | W20: 0 | X20: 0
H21: =IF(AND(D21="FWHG",G21<>""),"",IF(B21="Vacant","Vacant",IF(J21<>"",INDEX('1. Checklist & Certification'!$AC$3:$AK$21,MATCH(J21,'1. Checklist & Certification'!$AB$3:$AB$21,0),MATCH(B21,'1. Checklist & Certification'!$AC$2:$AK$2,0)),""))) ->  | L21: =IF(AND(D21="FWHG",G21<>""),"",IF(J21>1,INDEX('1. Checklist & Certification'!$BD$3:$BI$20,MATCH(J21,'1. Checklist & Certification'!$BC$3:$BC$20,0),MATCH(C21,'1. Checklist & Certification'!$BD$2:$BI$2,0)),"")) ->  | M21: =IF(AND(D21="FWHG",G21<>""),"",IFERROR(ROUNDUP(IF($L21="","",$L21-IF(LEFT($A21,2)="B*",VLOOKUP($C21,'1. Checklist & Certification'!$D$20:$E$25,2),IF(LEFT($A21,2)="C*",VLOOKUP($C21,'1. Checklist & Certification'!$F$20:$G$25,2),IF(LEFT($A21,2)="D*",VLOOKUP($C21,'1. Checklist & Certification'!$H$20:$I$25,2),IF(LEFT($A21,2)="E*",VLOOKUP($C21,'1. Checklist & Certification'!$J$20:$K$25,2),VLOOKUP($C21,'1. Checklist & Certification'!$I$8:$J$13,2)))))),0),"")) ->  | T21: =IF(AND(D21="FWHG",G21<>""),"",IF(A21="","",IF(OR(B21="",C21="",D21="",I21="",J21="",K21="",N21=""),"#N/A",IF(D21<>"OR",IF(N21>M21,"P-RENT; ","")&IF(B21="Vacant","VACANT",IF(I21=0,"NO INCOME; ",IF(I21>H21,"OVER INCOME; ",""))&IF(B21>=VLOOKUP(C21,'1. Checklist & Certification'!$AN$3:$AO$8,2),"","U-OCCUP")),"")))) ->  | W21: 0 | X21: 0
H22: =IF(AND(D22="FWHG",G22<>""),"",IF(B22="Vacant","Vacant",IF(J22<>"",INDEX('1. Checklist & Certification'!$AC$3:$AK$21,MATCH(J22,'1. Checklist & Certification'!$AB$3:$AB$21,0),MATCH(B22,'1. Checklist & Certification'!$AC$2:$AK$2,0)),""))) ->  | L22: =IF(AND(D22="FWHG",G22<>""),"",IF(J22>1,INDEX('1. Checklist & Certification'!$BD$3:$BI$20,MATCH(J22,'1. Checklist & Certification'!$BC$3:$BC$20,0),MATCH(C22,'1. Checklist & Certification'!$BD$2:$BI$2,0)),"")) ->  | M22: =IF(AND(D22="FWHG",G22<>""),"",IFERROR(ROUNDUP(IF($L22="","",$L22-IF(LEFT($A22,2)="B*",VLOOKUP($C22,'1. Checklist & Certification'!$D$20:$E$25,2),IF(LEFT($A22,2)="C*",VLOOKUP($C22,'1. Checklist & Certification'!$F$20:$G$25,2),IF(LEFT($A22,2)="D*",VLOOKUP($C22,'1. Checklist & Certification'!$H$20:$I$25,2),IF(LEFT($A22,2)="E*",VLOOKUP($C22,'1. Checklist & Certification'!$J$20:$K$25,2),VLOOKUP($C22,'1. Checklist & Certification'!$I$8:$J$13,2)))))),0),"")) ->  | T22: =IF(AND(D22="FWHG",G22<>""),"",IF(A22="","",IF(OR(B22="",C22="",D22="",I22="",J22="",K22="",N22=""),"#N/A",IF(D22<>"OR",IF(N22>M22,"P-RENT; ","")&IF(B22="Vacant","VACANT",IF(I22=0,"NO INCOME; ",IF(I22>H22,"OVER INCOME; ",""))&IF(B22>=VLOOKUP(C22,'1. Checklist & Certification'!$AN$3:$AO$8,2),"","U-OCCUP")),"")))) ->  | W22: 0 | X22: 0
H23: =IF(AND(D23="FWHG",G23<>""),"",IF(B23="Vacant","Vacant",IF(J23<>"",INDEX('1. Checklist & Certification'!$AC$3:$AK$21,MATCH(J23,'1. Checklist & Certification'!$AB$3:$AB$21,0),MATCH(B23,'1. Checklist & Certification'!$AC$2:$AK$2,0)),""))) ->  | L23: =IF(AND(D23="FWHG",G23<>""),"",IF(J23>1,INDEX('1. Checklist & Certification'!$BD$3:$BI$20,MATCH(J23,'1. Checklist & Certification'!$BC$3:$BC$20,0),MATCH(C23,'1. Checklist & Certification'!$BD$2:$BI$2,0)),"")) ->  | M23: =IF(AND(D23="FWHG",G23<>""),"",IFERROR(ROUNDUP(IF($L23="","",$L23-IF(LEFT($A23,2)="B*",VLOOKUP($C23,'1. Checklist & Certification'!$D$20:$E$25,2),IF(LEFT($A23,2)="C*",VLOOKUP($C23,'1. Checklist & Certification'!$F$20:$G$25,2),IF(LEFT($A23,2)="D*",VLOOKUP($C23,'1. Checklist & Certification'!$H$20:$I$25,2),IF(LEFT($A23,2)="E*",VLOOKUP($C23,'1. Checklist & Certification'!$J$20:$K$25,2),VLOOKUP($C23,'1. Checklist & Certification'!$I$8:$J$13,2)))))),0),"")) ->  | T23: =IF(AND(D23="FWHG",G23<>""),"",IF(A23="","",IF(OR(B23="",C23="",D23="",I23="",J23="",K23="",N23=""),"#N/A",IF(D23<>"OR",IF(N23>M23,"P-RENT; ","")&IF(B23="Vacant","VACANT",IF(I23=0,"NO INCOME; ",IF(I23>H23,"OVER INCOME; ",""))&IF(B23>=VLOOKUP(C23,'1. Checklist & Certification'!$AN$3:$AO$8,2),"","U-OCCUP")),"")))) ->  | W23: 0 | X23: 0
H24: =IF(AND(D24="FWHG",G24<>""),"",IF(B24="Vacant","Vacant",IF(J24<>"",INDEX('1. Checklist & Certification'!$AC$3:$AK$21,MATCH(J24,'1. Checklist & Certification'!$AB$3:$AB$21,0),MATCH(B24,'1. Checklist & Certification'!$AC$2:$AK$2,0)),""))) ->  | L24: =IF(AND(D24="FWHG",G24<>""),"",IF(J24>1,INDEX('1. Checklist & Certification'!$BD$3:$BI$20,MATCH(J24,'1. Checklist & Certification'!$BC$3:$BC$20,0),MATCH(C24,'1. Checklist & Certification'!$BD$2:$BI$2,0)),"")) ->  | M24: =IF(AND(D24="FWHG",G24<>""),"",IFERROR(ROUNDUP(IF($L24="","",$L24-IF(LEFT($A24,2)="B*",VLOOKUP($C24,'1. Checklist & Certification'!$D$20:$E$25,2),IF(LEFT($A24,2)="C*",VLOOKUP($C24,'1. Checklist & Certification'!$F$20:$G$25,2),IF(LEFT($A24,2)="D*",VLOOKUP($C24,'1. Checklist & Certification'!$H$20:$I$25,2),IF(LEFT($A24,2)="E*",VLOOKUP($C24,'1. Checklist & Certification'!$J$20:$K$25,2),VLOOKUP($C24,'1. Checklist & Certification'!$I$8:$J$13,2)))))),0),"")) ->  | T24: =IF(AND(D24="FWHG",G24<>""),"",IF(A24="","",IF(OR(B24="",C24="",D24="",I24="",J24="",K24="",N24=""),"#N/A",IF(D24<>"OR",IF(N24>M24,"P-RENT; ","")&IF(B24="Vacant","VACANT",IF(I24=0,"NO INCOME; ",IF(I24>H24,"OVER INCOME; ",""))&IF(B24>=VLOOKUP(C24,'1. Checklist & Certification'!$AN$3:$AO$8,2),"","U-OCCUP")),"")))) ->  | W24: 0 | X24: 0
H25: =IF(AND(D25="FWHG",G25<>""),"",IF(B25="Vacant","Vacant",IF(J25<>"",INDEX('1. Checklist & Certification'!$AC$3:$AK$21,MATCH(J25,'1. Checklist & Certification'!$AB$3:$AB$21,0),MATCH(B25,'1. Checklist & Certification'!$AC$2:$AK$2,0)),""))) ->  | L25: =IF(AND(D25="FWHG",G25<>""),"",IF(J25>1,INDEX('1. Checklist & Certification'!$BD$3:$BI$20,MATCH(J25,'1. Checklist & Certification'!$BC$3:$BC$20,0),MATCH(C25,'1. Checklist & Certification'!$BD$2:$BI$2,0)),"")) ->  | M25: =IF(AND(D25="FWHG",G25<>""),"",IFERROR(ROUNDUP(IF($L25="","",$L25-IF(LEFT($A25,2)="B*",VLOOKUP($C25,'1. Checklist & Certification'!$D$20:$E$25,2),IF(LEFT($A25,2)="C*",VLOOKUP($C25,'1. Checklist & Certification'!$F$20:$G$25,2),IF(LEFT($A25,2)="D*",VLOOKUP($C25,'1. Checklist & Certification'!$H$20:$I$25,2),IF(LEFT($A25,2)="E*",VLOOKUP($C25,'1. Checklist & Certification'!$J$20:$K$25,2),VLOOKUP($C25,'1. Checklist & Certification'!$I$8:$J$13,2)))))),0),"")) ->  | T25: =IF(AND(D25="FWHG",G25<>""),"",IF(A25="","",IF(OR(B25="",C25="",D25="",I25="",J25="",K25="",N25=""),"#N/A",IF(D25<>"OR",IF(N25>M25,"P-RENT; ","")&IF(B25="Vacant","VACANT",IF(I25=0,"NO INCOME; ",IF(I25>H25,"OVER INCOME; ",""))&IF(B25>=VLOOKUP(C25,'1. Checklist & Certification'!$AN$3:$AO$8,2),"","U-OCCUP")),"")))) ->  | W25: 0 | X25: 0
H26: =IF(AND(D26="FWHG",G26<>""),"",IF(B26="Vacant","Vacant",IF(J26<>"",INDEX('1. Checklist & Certification'!$AC$3:$AK$21,MATCH(J26,'1. Checklist & Certification'!$AB$3:$AB$21,0),MATCH(B26,'1. Checklist & Certification'!$AC$2:$AK$2,0)),""))) ->  | L26: =IF(AND(D26="FWHG",G26<>""),"",IF(J26>1,INDEX('1. Checklist & Certification'!$BD$3:$BI$20,MATCH(J26,'1. Checklist & Certification'!$BC$3:$BC$20,0),MATCH(C26,'1. Checklist & Certification'!$BD$2:$BI$2,0)),"")) ->  | M26: =IF(AND(D26="FWHG",G26<>""),"",IFERROR(ROUNDUP(IF($L26="","",$L26-IF(LEFT($A26,2)="B*",VLOOKUP($C26,'1. Checklist & Certification'!$D$20:$E$25,2),IF(LEFT($A26,2)="C*",VLOOKUP($C26,'1. Checklist & Certification'!$F$20:$G$25,2),IF(LEFT($A26,2)="D*",VLOOKUP($C26,'1. Checklist & Certification'!$H$20:$I$25,2),IF(LEFT($A26,2)="E*",VLOOKUP($C26,'1. Checklist & Certification'!$J$20:$K$25,2),VLOOKUP($C26,'1. Checklist & Certification'!$I$8:$J$13,2)))))),0),"")) ->  | T26: =IF(AND(D26="FWHG",G26<>""),"",IF(A26="","",IF(OR(B26="",C26="",D26="",I26="",J26="",K26="",N26=""),"#N/A",IF(D26<>"OR",IF(N26>M26,"P-RENT; ","")&IF(B26="Vacant","VACANT",IF(I26=0,"NO INCOME; ",IF(I26>H26,"OVER INCOME; ",""))&IF(B26>=VLOOKUP(C26,'1. Checklist & Certification'!$AN$3:$AO$8,2),"","U-OCCUP")),"")))) ->  | W26: 0 | X26: 0
H27: =IF(AND(D27="FWHG",G27<>""),"",IF(B27="Vacant","Vacant",IF(J27<>"",INDEX('1. Checklist & Certification'!$AC$3:$AK$21,MATCH(J27,'1. Checklist & Certification'!$AB$3:$AB$21,0),MATCH(B27,'1. Checklist & Certification'!$AC$2:$AK$2,0)),""))) ->  | L27: =IF(AND(D27="FWHG",G27<>""),"",IF(J27>1,INDEX('1. Checklist & Certification'!$BD$3:$BI$20,MATCH(J27,'1. Checklist & Certification'!$BC$3:$BC$20,0),MATCH(C27,'1. Checklist & Certification'!$BD$2:$BI$2,0)),"")) ->  | M27: =IF(AND(D27="FWHG",G27<>""),"",IFERROR(ROUNDUP(IF($L27="","",$L27-IF(LEFT($A27,2)="B*",VLOOKUP($C27,'1. Checklist & Certification'!$D$20:$E$25,2),IF(LEFT($A27,2)="C*",VLOOKUP($C27,'1. Checklist & Certification'!$F$20:$G$25,2),IF(LEFT($A27,2)="D*",VLOOKUP($C27,'1. Checklist & Certification'!$H$20:$I$25,2),IF(LEFT($A27,2)="E*",VLOOKUP($C27,'1. Checklist & Certification'!$J$20:$K$25,2),VLOOKUP($C27,'1. Checklist & Certification'!$I$8:$J$13,2)))))),0),"")) ->  | T27: =IF(AND(D27="FWHG",G27<>""),"",IF(A27="","",IF(OR(B27="",C27="",D27="",I27="",J27="",K27="",N27=""),"#N/A",IF(D27<>"OR",IF(N27>M27,"P-RENT; ","")&IF(B27="Vacant","VACANT",IF(I27=0,"NO INCOME; ",IF(I27>H27,"OVER INCOME; ",""))&IF(B27>=VLOOKUP(C27,'1. Checklist & Certification'!$AN$3:$AO$8,2),"","U-OCCUP")),"")))) ->  | W27: 0 | X27: 0
H28: =IF(AND(D28="FWHG",G28<>""),"",IF(B28="Vacant","Vacant",IF(J28<>"",INDEX('1. Checklist & Certification'!$AC$3:$AK$21,MATCH(J28,'1. Checklist & Certification'!$AB$3:$AB$21,0),MATCH(B28,'1. Checklist & Certification'!$AC$2:$AK$2,0)),""))) ->  | L28: =IF(AND(D28="FWHG",G28<>""),"",IF(J28>1,INDEX('1. Checklist & Certification'!$BD$3:$BI$20,MATCH(J28,'1. Checklist & Certification'!$BC$3:$BC$20,0),MATCH(C28,'1. Checklist & Certification'!$BD$2:$BI$2,0)),"")) ->  | M28: =IF(AND(D28="FWHG",G28<>""),"",IFERROR(ROUNDUP(IF($L28="","",$L28-IF(LEFT($A28,2)="B*",VLOOKUP($C28,'1. Checklist & Certification'!$D$20:$E$25,2),IF(LEFT($A28,2)="C*",VLOOKUP($C28,'1. Checklist & Certification'!$F$20:$G$25,2),IF(LEFT($A28,2)="D*",VLOOKUP($C28,'1. Checklist & Certification'!$H$20:$I$25,2),IF(LEFT($A28,2)="E*",VLOOKUP($C28,'1. Checklist & Certification'!$J$20:$K$25,2),VLOOKUP($C28,'1. Checklist & Certification'!$I$8:$J$13,2)))))),0),"")) ->  | T28: =IF(AND(D28="FWHG",G28<>""),"",IF(A28="","",IF(OR(B28="",C28="",D28="",I28="",J28="",K28="",N28=""),"#N/A",IF(D28<>"OR",IF(N28>M28,"P-RENT; ","")&IF(B28="Vacant","VACANT",IF(I28=0,"NO INCOME; ",IF(I28>H28,"OVER INCOME; ",""))&IF(B28>=VLOOKUP(C28,'1. Checklist & Certification'!$AN$3:$AO$8,2),"","U-OCCUP")),"")))) ->  | W28: 0 | X28: 0
H29: =IF(AND(D29="FWHG",G29<>""),"",IF(B29="Vacant","Vacant",IF(J29<>"",INDEX('1. Checklist & Certification'!$AC$3:$AK$21,MATCH(J29,'1. Checklist & Certification'!$AB$3:$AB$21,0),MATCH(B29,'1. Checklist & Certification'!$AC$2:$AK$2,0)),""))) ->  | L29: =IF(AND(D29="FWHG",G29<>""),"",IF(J29>1,INDEX('1. Checklist & Certification'!$BD$3:$BI$20,MATCH(J29,'1. Checklist & Certification'!$BC$3:$BC$20,0),MATCH(C29,'1. Checklist & Certification'!$BD$2:$BI$2,0)),"")) ->  | M29: =IF(AND(D29="FWHG",G29<>""),"",IFERROR(ROUNDUP(IF($L29="","",$L29-IF(LEFT($A29,2)="B*",VLOOKUP($C29,'1. Checklist & Certification'!$D$20:$E$25,2),IF(LEFT($A29,2)="C*",VLOOKUP($C29,'1. Checklist & Certification'!$F$20:$G$25,2),IF(LEFT($A29,2)="D*",VLOOKUP($C29,'1. Checklist & Certification'!$H$20:$I$25,2),IF(LEFT($A29,2)="E*",VLOOKUP($C29,'1. Checklist & Certification'!$J$20:$K$25,2),VLOOKUP($C29,'1. Checklist & Certification'!$I$8:$J$13,2)))))),0),"")) ->  | T29: =IF(AND(D29="FWHG",G29<>""),"",IF(A29="","",IF(OR(B29="",C29="",D29="",I29="",J29="",K29="",N29=""),"#N/A",IF(D29<>"OR",IF(N29>M29,"P-RENT; ","")&IF(B29="Vacant","VACANT",IF(I29=0,"NO INCOME; ",IF(I29>H29,"OVER INCOME; ",""))&IF(B29>=VLOOKUP(C29,'1. Checklist & Certification'!$AN$3:$AO$8,2),"","U-OCCUP")),"")))) ->  | W29: 0 | X29: 0
H30: =IF(AND(D30="FWHG",G30<>""),"",IF(B30="Vacant","Vacant",IF(J30<>"",INDEX('1. Checklist & Certification'!$AC$3:$AK$21,MATCH(J30,'1. Checklist & Certification'!$AB$3:$AB$21,0),MATCH(B30,'1. Checklist & Certification'!$AC$2:$AK$2,0)),""))) ->  | L30: =IF(AND(D30="FWHG",G30<>""),"",IF(J30>1,INDEX('1. Checklist & Certification'!$BD$3:$BI$20,MATCH(J30,'1. Checklist & Certification'!$BC$3:$BC$20,0),MATCH(C30,'1. Checklist & Certification'!$BD$2:$BI$2,0)),"")) ->  | M30: =IF(AND(D30="FWHG",G30<>""),"",IFERROR(ROUNDUP(IF($L30="","",$L30-IF(LEFT($A30,2)="B*",VLOOKUP($C30,'1. Checklist & Certification'!$D$20:$E$25,2),IF(LEFT($A30,2)="C*",VLOOKUP($C30,'1. Checklist & Certification'!$F$20:$G$25,2),IF(LEFT($A30,2)="D*",VLOOKUP($C30,'1. Checklist & Certification'!$H$20:$I$25,2),IF(LEFT($A30,2)="E*",VLOOKUP($C30,'1. Checklist & Certification'!$J$20:$K$25,2),VLOOKUP($C30,'1. Checklist & Certification'!$I$8:$J$13,2)))))),0),"")) ->  | T30: =IF(AND(D30="FWHG",G30<>""),"",IF(A30="","",IF(OR(B30="",C30="",D30="",I30="",J30="",K30="",N30=""),"#N/A",IF(D30<>"OR",IF(N30>M30,"P-RENT; ","")&IF(B30="Vacant","VACANT",IF(I30=0,"NO INCOME; ",IF(I30>H30,"OVER INCOME; ",""))&IF(B30>=VLOOKUP(C30,'1. Checklist & Certification'!$AN$3:$AO$8,2),"","U-OCCUP")),"")))) ->  | W30: 0 | X30: 0
H31: =IF(AND(D31="FWHG",G31<>""),"",IF(B31="Vacant","Vacant",IF(J31<>"",INDEX('1. Checklist & Certification'!$AC$3:$AK$21,MATCH(J31,'1. Checklist & Certification'!$AB$3:$AB$21,0),MATCH(B31,'1. Checklist & Certification'!$AC$2:$AK$2,0)),""))) ->  | L31: =IF(AND(D31="FWHG",G31<>""),"",IF(J31>1,INDEX('1. Checklist & Certification'!$BD$3:$BI$20,MATCH(J31,'1. Checklist & Certification'!$BC$3:$BC$20,0),MATCH(C31,'1. Checklist & Certification'!$BD$2:$BI$2,0)),"")) ->  | M31: =IF(AND(D31="FWHG",G31<>""),"",IFERROR(ROUNDUP(IF($L31="","",$L31-IF(LEFT($A31,2)="B*",VLOOKUP($C31,'1. Checklist & Certification'!$D$20:$E$25,2),IF(LEFT($A31,2)="C*",VLOOKUP($C31,'1. Checklist & Certification'!$F$20:$G$25,2),IF(LEFT($A31,2)="D*",VLOOKUP($C31,'1. Checklist & Certification'!$H$20:$I$25,2),IF(LEFT($A31,2)="E*",VLOOKUP($C31,'1. Checklist & Certification'!$J$20:$K$25,2),VLOOKUP($C31,'1. Checklist & Certification'!$I$8:$J$13,2)))))),0),"")) ->  | T31: =IF(AND(D31="FWHG",G31<>""),"",IF(A31="","",IF(OR(B31="",C31="",D31="",I31="",J31="",K31="",N31=""),"#N/A",IF(D31<>"OR",IF(N31>M31,"P-RENT; ","")&IF(B31="Vacant","VACANT",IF(I31=0,"NO INCOME; ",IF(I31>H31,"OVER INCOME; ",""))&IF(B31>=VLOOKUP(C31,'1. Checklist & Certification'!$AN$3:$AO$8,2),"","U-OCCUP")),"")))) ->  | W31: 0 | X31: 0
H32: =IF(AND(D32="FWHG",G32<>""),"",IF(B32="Vacant","Vacant",IF(J32<>"",INDEX('1. Checklist & Certification'!$AC$3:$AK$21,MATCH(J32,'1. Checklist & Certification'!$AB$3:$AB$21,0),MATCH(B32,'1. Checklist & Certification'!$AC$2:$AK$2,0)),""))) ->  | L32: =IF(AND(D32="FWHG",G32<>""),"",IF(J32>1,INDEX('1. Checklist & Certification'!$BD$3:$BI$20,MATCH(J32,'1. Checklist & Certification'!$BC$3:$BC$20,0),MATCH(C32,'1. Checklist & Certification'!$BD$2:$BI$2,0)),"")) ->  | M32: =IF(AND(D32="FWHG",G32<>""),"",IFERROR(ROUNDUP(IF($L32="","",$L32-IF(LEFT($A32,2)="B*",VLOOKUP($C32,'1. Checklist & Certification'!$D$20:$E$25,2),IF(LEFT($A32,2)="C*",VLOOKUP($C32,'1. Checklist & Certification'!$F$20:$G$25,2),IF(LEFT($A32,2)="D*",VLOOKUP($C32,'1. Checklist & Certification'!$H$20:$I$25,2),IF(LEFT($A32,2)="E*",VLOOKUP($C32,'1. Checklist & Certification'!$J$20:$K$25,2),VLOOKUP($C32,'1. Checklist & Certification'!$I$8:$J$13,2)))))),0),"")) ->  | T32: =IF(AND(D32="FWHG",G32<>""),"",IF(A32="","",IF(OR(B32="",C32="",D32="",I32="",J32="",K32="",N32=""),"#N/A",IF(D32<>"OR",IF(N32>M32,"P-RENT; ","")&IF(B32="Vacant","VACANT",IF(I32=0,"NO INCOME; ",IF(I32>H32,"OVER INCOME; ",""))&IF(B32>=VLOOKUP(C32,'1. Checklist & Certification'!$AN$3:$AO$8,2),"","U-OCCUP")),"")))) ->  | W32: 0 | X32: 0
H33: =IF(AND(D33="FWHG",G33<>""),"",IF(B33="Vacant","Vacant",IF(J33<>"",INDEX('1. Checklist & Certification'!$AC$3:$AK$21,MATCH(J33,'1. Checklist & Certification'!$AB$3:$AB$21,0),MATCH(B33,'1. Checklist & Certification'!$AC$2:$AK$2,0)),""))) ->  | L33: =IF(AND(D33="FWHG",G33<>""),"",IF(J33>1,INDEX('1. Checklist & Certification'!$BD$3:$BI$20,MATCH(J33,'1. Checklist & Certification'!$BC$3:$BC$20,0),MATCH(C33,'1. Checklist & Certification'!$BD$2:$BI$2,0)),"")) ->  | M33: =IF(AND(D33="FWHG",G33<>""),"",IFERROR(ROUNDUP(IF($L33="","",$L33-IF(LEFT($A33,2)="B*",VLOOKUP($C33,'1. Checklist & Certification'!$D$20:$E$25,2),IF(LEFT($A33,2)="C*",VLOOKUP($C33,'1. Checklist & Certification'!$F$20:$G$25,2),IF(LEFT($A33,2)="D*",VLOOKUP($C33,'1. Checklist & Certification'!$H$20:$I$25,2),IF(LEFT($A33,2)="E*",VLOOKUP($C33,'1. Checklist & Certification'!$J$20:$K$25,2),VLOOKUP($C33,'1. Checklist & Certification'!$I$8:$J$13,2)))))),0),"")) ->  | T33: =IF(AND(D33="FWHG",G33<>""),"",IF(A33="","",IF(OR(B33="",C33="",D33="",I33="",J33="",K33="",N33=""),"#N/A",IF(D33<>"OR",IF(N33>M33,"P-RENT; ","")&IF(B33="Vacant","VACANT",IF(I33=0,"NO INCOME; ",IF(I33>H33,"OVER INCOME; ",""))&IF(B33>=VLOOKUP(C33,'1. Checklist & Certification'!$AN$3:$AO$8,2),"","U-OCCUP")),"")))) ->  | W33: 0 | X33: 0
H34: =IF(AND(D34="FWHG",G34<>""),"",IF(B34="Vacant","Vacant",IF(J34<>"",INDEX('1. Checklist & Certification'!$AC$3:$AK$21,MATCH(J34,'1. Checklist & Certification'!$AB$3:$AB$21,0),MATCH(B34,'1. Checklist & Certification'!$AC$2:$AK$2,0)),""))) ->  | L34: =IF(AND(D34="FWHG",G34<>""),"",IF(J34>1,INDEX('1. Checklist & Certification'!$BD$3:$BI$20,MATCH(J34,'1. Checklist & Certification'!$BC$3:$BC$20,0),MATCH(C34,'1. Checklist & Certification'!$BD$2:$BI$2,0)),"")) ->  | M34: =IF(AND(D34="FWHG",G34<>""),"",IFERROR(ROUNDUP(IF($L34="","",$L34-IF(LEFT($A34,2)="B*",VLOOKUP($C34,'1. Checklist & Certification'!$D$20:$E$25,2),IF(LEFT($A34,2)="C*",VLOOKUP($C34,'1. Checklist & Certification'!$F$20:$G$25,2),IF(LEFT($A34,2)="D*",VLOOKUP($C34,'1. Checklist & Certification'!$H$20:$I$25,2),IF(LEFT($A34,2)="E*",VLOOKUP($C34,'1. Checklist & Certification'!$J$20:$K$25,2),VLOOKUP($C34,'1. Checklist & Certification'!$I$8:$J$13,2)))))),0),"")) ->  | T34: =IF(AND(D34="FWHG",G34<>""),"",IF(A34="","",IF(OR(B34="",C34="",D34="",I34="",J34="",K34="",N34=""),"#N/A",IF(D34<>"OR",IF(N34>M34,"P-RENT; ","")&IF(B34="Vacant","VACANT",IF(I34=0,"NO INCOME; ",IF(I34>H34,"OVER INCOME; ",""))&IF(B34>=VLOOKUP(C34,'1. Checklist & Certification'!$AN$3:$AO$8,2),"","U-OCCUP")),"")))) ->  | W34: 0 | X34: 0
H35: =IF(AND(D35="FWHG",G35<>""),"",IF(B35="Vacant","Vacant",IF(J35<>"",INDEX('1. Checklist & Certification'!$AC$3:$AK$21,MATCH(J35,'1. Checklist & Certification'!$AB$3:$AB$21,0),MATCH(B35,'1. Checklist & Certification'!$AC$2:$AK$2,0)),""))) ->  | L35: =IF(AND(D35="FWHG",G35<>""),"",IF(J35>1,INDEX('1. Checklist & Certification'!$BD$3:$BI$20,MATCH(J35,'1. Checklist & Certification'!$BC$3:$BC$20,0),MATCH(C35,'1. Checklist & Certification'!$BD$2:$BI$2,0)),"")) ->  | M35: =IF(AND(D35="FWHG",G35<>""),"",IFERROR(ROUNDUP(IF($L35="","",$L35-IF(LEFT($A35,2)="B*",VLOOKUP($C35,'1. Checklist & Certification'!$D$20:$E$25,2),IF(LEFT($A35,2)="C*",VLOOKUP($C35,'1. Checklist & Certification'!$F$20:$G$25,2),IF(LEFT($A35,2)="D*",VLOOKUP($C35,'1. Checklist & Certification'!$H$20:$I$25,2),IF(LEFT($A35,2)="E*",VLOOKUP($C35,'1. Checklist & Certification'!$J$20:$K$25,2),VLOOKUP($C35,'1. Checklist & Certification'!$I$8:$J$13,2)))))),0),"")) ->  | T35: =IF(AND(D35="FWHG",G35<>""),"",IF(A35="","",IF(OR(B35="",C35="",D35="",I35="",J35="",K35="",N35=""),"#N/A",IF(D35<>"OR",IF(N35>M35,"P-RENT; ","")&IF(B35="Vacant","VACANT",IF(I35=0,"NO INCOME; ",IF(I35>H35,"OVER INCOME; ",""))&IF(B35>=VLOOKUP(C35,'1. Checklist & Certification'!$AN$3:$AO$8,2),"","U-OCCUP")),"")))) ->  | W35: 0 | X35: 0
H36: =IF(AND(D36="FWHG",G36<>""),"",IF(B36="Vacant","Vacant",IF(J36<>"",INDEX('1. Checklist & Certification'!$AC$3:$AK$21,MATCH(J36,'1. Checklist & Certification'!$AB$3:$AB$21,0),MATCH(B36,'1. Checklist & Certification'!$AC$2:$AK$2,0)),""))) ->  | L36: =IF(AND(D36="FWHG",G36<>""),"",IF(J36>1,INDEX('1. Checklist & Certification'!$BD$3:$BI$20,MATCH(J36,'1. Checklist & Certification'!$BC$3:$BC$20,0),MATCH(C36,'1. Checklist & Certification'!$BD$2:$BI$2,0)),"")) ->  | M36: =IF(AND(D36="FWHG",G36<>""),"",IFERROR(ROUNDUP(IF($L36="","",$L36-IF(LEFT($A36,2)="B*",VLOOKUP($C36,'1. Checklist & Certification'!$D$20:$E$25,2),IF(LEFT($A36,2)="C*",VLOOKUP($C36,'1. Checklist & Certification'!$F$20:$G$25,2),IF(LEFT($A36,2)="D*",VLOOKUP($C36,'1. Checklist & Certification'!$H$20:$I$25,2),IF(LEFT($A36,2)="E*",VLOOKUP($C36,'1. Checklist & Certification'!$J$20:$K$25,2),VLOOKUP($C36,'1. Checklist & Certification'!$I$8:$J$13,2)))))),0),"")) ->  | T36: =IF(AND(D36="FWHG",G36<>""),"",IF(A36="","",IF(OR(B36="",C36="",D36="",I36="",J36="",K36="",N36=""),"#N/A",IF(D36<>"OR",IF(N36>M36,"P-RENT; ","")&IF(B36="Vacant","VACANT",IF(I36=0,"NO INCOME; ",IF(I36>H36,"OVER INCOME; ",""))&IF(B36>=VLOOKUP(C36,'1. Checklist & Certification'!$AN$3:$AO$8,2),"","U-OCCUP")),"")))) ->  | W36: 0 | X36: 0
H37: =IF(AND(D37="FWHG",G37<>""),"",IF(B37="Vacant","Vacant",IF(J37<>"",INDEX('1. Checklist & Certification'!$AC$3:$AK$21,MATCH(J37,'1. Checklist & Certification'!$AB$3:$AB$21,0),MATCH(B37,'1. Checklist & Certification'!$AC$2:$AK$2,0)),""))) ->  | L37: =IF(AND(D37="FWHG",G37<>""),"",IF(J37>1,INDEX('1. Checklist & Certification'!$BD$3:$BI$20,MATCH(J37,'1. Checklist & Certification'!$BC$3:$BC$20,0),MATCH(C37,'1. Checklist & Certification'!$BD$2:$BI$2,0)),"")) ->  | M37: =IF(AND(D37="FWHG",G37<>""),"",IFERROR(ROUNDUP(IF($L37="","",$L37-IF(LEFT($A37,2)="B*",VLOOKUP($C37,'1. Checklist & Certification'!$D$20:$E$25,2),IF(LEFT($A37,2)="C*",VLOOKUP($C37,'1. Checklist & Certification'!$F$20:$G$25,2),IF(LEFT($A37,2)="D*",VLOOKUP($C37,'1. Checklist & Certification'!$H$20:$I$25,2),IF(LEFT($A37,2)="E*",VLOOKUP($C37,'1. Checklist & Certification'!$J$20:$K$25,2),VLOOKUP($C37,'1. Checklist & Certification'!$I$8:$J$13,2)))))),0),"")) ->  | T37: =IF(AND(D37="FWHG",G37<>""),"",IF(A37="","",IF(OR(B37="",C37="",D37="",I37="",J37="",K37="",N37=""),"#N/A",IF(D37<>"OR",IF(N37>M37,"P-RENT; ","")&IF(B37="Vacant","VACANT",IF(I37=0,"NO INCOME; ",IF(I37>H37,"OVER INCOME; ",""))&IF(B37>=VLOOKUP(C37,'1. Checklist & Certification'!$AN$3:$AO$8,2),"","U-OCCUP")),"")))) ->  | W37: 0 | X37: 0
H38: =IF(AND(D38="FWHG",G38<>""),"",IF(B38="Vacant","Vacant",IF(J38<>"",INDEX('1. Checklist & Certification'!$AC$3:$AK$21,MATCH(J38,'1. Checklist & Certification'!$AB$3:$AB$21,0),MATCH(B38,'1. Checklist & Certification'!$AC$2:$AK$2,0)),""))) ->  | L38: =IF(AND(D38="FWHG",G38<>""),"",IF(J38>1,INDEX('1. Checklist & Certification'!$BD$3:$BI$20,MATCH(J38,'1. Checklist & Certification'!$BC$3:$BC$20,0),MATCH(C38,'1. Checklist & Certification'!$BD$2:$BI$2,0)),"")) ->  | M38: =IF(AND(D38="FWHG",G38<>""),"",IFERROR(ROUNDUP(IF($L38="","",$L38-IF(LEFT($A38,2)="B*",VLOOKUP($C38,'1. Checklist & Certification'!$D$20:$E$25,2),IF(LEFT($A38,2)="C*",VLOOKUP($C38,'1. Checklist & Certification'!$F$20:$G$25,2),IF(LEFT($A38,2)="D*",VLOOKUP($C38,'1. Checklist & Certification'!$H$20:$I$25,2),IF(LEFT($A38,2)="E*",VLOOKUP($C38,'1. Checklist & Certification'!$J$20:$K$25,2),VLOOKUP($C38,'1. Checklist & Certification'!$I$8:$J$13,2)))))),0),"")) ->  | T38: =IF(AND(D38="FWHG",G38<>""),"",IF(A38="","",IF(OR(B38="",C38="",D38="",I38="",J38="",K38="",N38=""),"#N/A",IF(D38<>"OR",IF(N38>M38,"P-RENT; ","")&IF(B38="Vacant","VACANT",IF(I38=0,"NO INCOME; ",IF(I38>H38,"OVER INCOME; ",""))&IF(B38>=VLOOKUP(C38,'1. Checklist & Certification'!$AN$3:$AO$8,2),"","U-OCCUP")),"")))) ->  | W38: 0 | X38: 0
H39: =IF(AND(D39="FWHG",G39<>""),"",IF(B39="Vacant","Vacant",IF(J39<>"",INDEX('1. Checklist & Certification'!$AC$3:$AK$21,MATCH(J39,'1. Checklist & Certification'!$AB$3:$AB$21,0),MATCH(B39,'1. Checklist & Certification'!$AC$2:$AK$2,0)),""))) ->  | L39: =IF(AND(D39="FWHG",G39<>""),"",IF(J39>1,INDEX('1. Checklist & Certification'!$BD$3:$BI$20,MATCH(J39,'1. Checklist & Certification'!$BC$3:$BC$20,0),MATCH(C39,'1. Checklist & Certification'!$BD$2:$BI$2,0)),"")) ->  | M39: =IF(AND(D39="FWHG",G39<>""),"",IFERROR(ROUNDUP(IF($L39="","",$L39-IF(LEFT($A39,2)="B*",VLOOKUP($C39,'1. Checklist & Certification'!$D$20:$E$25,2),IF(LEFT($A39,2)="C*",VLOOKUP($C39,'1. Checklist & Certification'!$F$20:$G$25,2),IF(LEFT($A39,2)="D*",VLOOKUP($C39,'1. Checklist & Certification'!$H$20:$I$25,2),IF(LEFT($A39,2)="E*",VLOOKUP($C39,'1. Checklist & Certification'!$J$20:$K$25,2),VLOOKUP($C39,'1. Checklist & Certification'!$I$8:$J$13,2)))))),0),"")) ->  | T39: =IF(AND(D39="FWHG",G39<>""),"",IF(A39="","",IF(OR(B39="",C39="",D39="",I39="",J39="",K39="",N39=""),"#N/A",IF(D39<>"OR",IF(N39>M39,"P-RENT; ","")&IF(B39="Vacant","VACANT",IF(I39=0,"NO INCOME; ",IF(I39>H39,"OVER INCOME; ",""))&IF(B39>=VLOOKUP(C39,'1. Checklist & Certification'!$AN$3:$AO$8,2),"","U-OCCUP")),"")))) ->  | W39: 0 | X39: 0
H40: =IF(AND(D40="FWHG",G40<>""),"",IF(B40="Vacant","Vacant",IF(J40<>"",INDEX('1. Checklist & Certification'!$AC$3:$AK$21,MATCH(J40,'1. Checklist & Certification'!$AB$3:$AB$21,0),MATCH(B40,'1. Checklist & Certification'!$AC$2:$AK$2,0)),""))) ->  | L40: =IF(AND(D40="FWHG",G40<>""),"",IF(J40>1,INDEX('1. Checklist & Certification'!$BD$3:$BI$20,MATCH(J40,'1. Checklist & Certification'!$BC$3:$BC$20,0),MATCH(C40,'1. Checklist & Certification'!$BD$2:$BI$2,0)),"")) ->  | M40: =IF(AND(D40="FWHG",G40<>""),"",IFERROR(ROUNDUP(IF($L40="","",$L40-IF(LEFT($A40,2)="B*",VLOOKUP($C40,'1. Checklist & Certification'!$D$20:$E$25,2),IF(LEFT($A40,2)="C*",VLOOKUP($C40,'1. Checklist & Certification'!$F$20:$G$25,2),IF(LEFT($A40,2)="D*",VLOOKUP($C40,'1. Checklist & Certification'!$H$20:$I$25,2),IF(LEFT($A40,2)="E*",VLOOKUP($C40,'1. Checklist & Certification'!$J$20:$K$25,2),VLOOKUP($C40,'1. Checklist & Certification'!$I$8:$J$13,2)))))),0),"")) ->  | T40: =IF(AND(D40="FWHG",G40<>""),"",IF(A40="","",IF(OR(B40="",C40="",D40="",I40="",J40="",K40="",N40=""),"#N/A",IF(D40<>"OR",IF(N40>M40,"P-RENT; ","")&IF(B40="Vacant","VACANT",IF(I40=0,"NO INCOME; ",IF(I40>H40,"OVER INCOME; ",""))&IF(B40>=VLOOKUP(C40,'1. Checklist & Certification'!$AN$3:$AO$8,2),"","U-OCCUP")),"")))) ->  | W40: 0 | X40: 0
H41: =IF(AND(D41="FWHG",G41<>""),"",IF(B41="Vacant","Vacant",IF(J41<>"",INDEX('1. Checklist & Certification'!$AC$3:$AK$21,MATCH(J41,'1. Checklist & Certification'!$AB$3:$AB$21,0),MATCH(B41,'1. Checklist & Certification'!$AC$2:$AK$2,0)),""))) ->  | L41: =IF(AND(D41="FWHG",G41<>""),"",IF(J41>1,INDEX('1. Checklist & Certification'!$BD$3:$BI$20,MATCH(J41,'1. Checklist & Certification'!$BC$3:$BC$20,0),MATCH(C41,'1. Checklist & Certification'!$BD$2:$BI$2,0)),"")) ->  | M41: =IF(AND(D41="FWHG",G41<>""),"",IFERROR(ROUNDUP(IF($L41="","",$L41-IF(LEFT($A41,2)="B*",VLOOKUP($C41,'1. Checklist & Certification'!$D$20:$E$25,2),IF(LEFT($A41,2)="C*",VLOOKUP($C41,'1. Checklist & Certification'!$F$20:$G$25,2),IF(LEFT($A41,2)="D*",VLOOKUP($C41,'1. Checklist & Certification'!$H$20:$I$25,2),IF(LEFT($A41,2)="E*",VLOOKUP($C41,'1. Checklist & Certification'!$J$20:$K$25,2),VLOOKUP($C41,'1. Checklist & Certification'!$I$8:$J$13,2)))))),0),"")) ->  | T41: =IF(AND(D41="FWHG",G41<>""),"",IF(A41="","",IF(OR(B41="",C41="",D41="",I41="",J41="",K41="",N41=""),"#N/A",IF(D41<>"OR",IF(N41>M41,"P-RENT; ","")&IF(B41="Vacant","VACANT",IF(I41=0,"NO INCOME; ",IF(I41>H41,"OVER INCOME; ",""))&IF(B41>=VLOOKUP(C41,'1. Checklist & Certification'!$AN$3:$AO$8,2),"","U-OCCUP")),"")))) ->  | W41: 0 | X41: 0
H42: =IF(AND(D42="FWHG",G42<>""),"",IF(B42="Vacant","Vacant",IF(J42<>"",INDEX('1. Checklist & Certification'!$AC$3:$AK$21,MATCH(J42,'1. Checklist & Certification'!$AB$3:$AB$21,0),MATCH(B42,'1. Checklist & Certification'!$AC$2:$AK$2,0)),""))) ->  | L42: =IF(AND(D42="FWHG",G42<>""),"",IF(J42>1,INDEX('1. Checklist & Certification'!$BD$3:$BI$20,MATCH(J42,'1. Checklist & Certification'!$BC$3:$BC$20,0),MATCH(C42,'1. Checklist & Certification'!$BD$2:$BI$2,0)),"")) ->  | M42: =IF(AND(D42="FWHG",G42<>""),"",IFERROR(ROUNDUP(IF($L42="","",$L42-IF(LEFT($A42,2)="B*",VLOOKUP($C42,'1. Checklist & Certification'!$D$20:$E$25,2),IF(LEFT($A42,2)="C*",VLOOKUP($C42,'1. Checklist & Certification'!$F$20:$G$25,2),IF(LEFT($A42,2)="D*",VLOOKUP($C42,'1. Checklist & Certification'!$H$20:$I$25,2),IF(LEFT($A42,2)="E*",VLOOKUP($C42,'1. Checklist & Certification'!$J$20:$K$25,2),VLOOKUP($C42,'1. Checklist & Certification'!$I$8:$J$13,2)))))),0),"")) ->  | T42: =IF(AND(D42="FWHG",G42<>""),"",IF(A42="","",IF(OR(B42="",C42="",D42="",I42="",J42="",K42="",N42=""),"#N/A",IF(D42<>"OR",IF(N42>M42,"P-RENT; ","")&IF(B42="Vacant","VACANT",IF(I42=0,"NO INCOME; ",IF(I42>H42,"OVER INCOME; ",""))&IF(B42>=VLOOKUP(C42,'1. Checklist & Certification'!$AN$3:$AO$8,2),"","U-OCCUP")),"")))) ->  | W42: 0 | X42: 0
H43: =IF(AND(D43="FWHG",G43<>""),"",IF(B43="Vacant","Vacant",IF(J43<>"",INDEX('1. Checklist & Certification'!$AC$3:$AK$21,MATCH(J43,'1. Checklist & Certification'!$AB$3:$AB$21,0),MATCH(B43,'1. Checklist & Certification'!$AC$2:$AK$2,0)),""))) ->  | L43: =IF(AND(D43="FWHG",G43<>""),"",IF(J43>1,INDEX('1. Checklist & Certification'!$BD$3:$BI$20,MATCH(J43,'1. Checklist & Certification'!$BC$3:$BC$20,0),MATCH(C43,'1. Checklist & Certification'!$BD$2:$BI$2,0)),"")) ->  | M43: =IF(AND(D43="FWHG",G43<>""),"",IFERROR(ROUNDUP(IF($L43="","",$L43-IF(LEFT($A43,2)="B*",VLOOKUP($C43,'1. Checklist & Certification'!$D$20:$E$25,2),IF(LEFT($A43,2)="C*",VLOOKUP($C43,'1. Checklist & Certification'!$F$20:$G$25,2),IF(LEFT($A43,2)="D*",VLOOKUP($C43,'1. Checklist & Certification'!$H$20:$I$25,2),IF(LEFT($A43,2)="E*",VLOOKUP($C43,'1. Checklist & Certification'!$J$20:$K$25,2),VLOOKUP($C43,'1. Checklist & Certification'!$I$8:$J$13,2)))))),0),"")) ->  | T43: =IF(AND(D43="FWHG",G43<>""),"",IF(A43="","",IF(OR(B43="",C43="",D43="",I43="",J43="",K43="",N43=""),"#N/A",IF(D43<>"OR",IF(N43>M43,"P-RENT; ","")&IF(B43="Vacant","VACANT",IF(I43=0,"NO INCOME; ",IF(I43>H43,"OVER INCOME; ",""))&IF(B43>=VLOOKUP(C43,'1. Checklist & Certification'!$AN$3:$AO$8,2),"","U-OCCUP")),"")))) ->  | W43: 0 | X43: 0
H44: =IF(AND(D44="FWHG",G44<>""),"",IF(B44="Vacant","Vacant",IF(J44<>"",INDEX('1. Checklist & Certification'!$AC$3:$AK$21,MATCH(J44,'1. Checklist & Certification'!$AB$3:$AB$21,0),MATCH(B44,'1. Checklist & Certification'!$AC$2:$AK$2,0)),""))) ->  | L44: =IF(AND(D44="FWHG",G44<>""),"",IF(J44>1,INDEX('1. Checklist & Certification'!$BD$3:$BI$20,MATCH(J44,'1. Checklist & Certification'!$BC$3:$BC$20,0),MATCH(C44,'1. Checklist & Certification'!$BD$2:$BI$2,0)),"")) ->  | M44: =IF(AND(D44="FWHG",G44<>""),"",IFERROR(ROUNDUP(IF($L44="","",$L44-IF(LEFT($A44,2)="B*",VLOOKUP($C44,'1. Checklist & Certification'!$D$20:$E$25,2),IF(LEFT($A44,2)="C*",VLOOKUP($C44,'1. Checklist & Certification'!$F$20:$G$25,2),IF(LEFT($A44,2)="D*",VLOOKUP($C44,'1. Checklist & Certification'!$H$20:$I$25,2),IF(LEFT($A44,2)="E*",VLOOKUP($C44,'1. Checklist & Certification'!$J$20:$K$25,2),VLOOKUP($C44,'1. Checklist & Certification'!$I$8:$J$13,2)))))),0),"")) ->  | T44: =IF(AND(D44="FWHG",G44<>""),"",IF(A44="","",IF(OR(B44="",C44="",D44="",I44="",J44="",K44="",N44=""),"#N/A",IF(D44<>"OR",IF(N44>M44,"P-RENT; ","")&IF(B44="Vacant","VACANT",IF(I44=0,"NO INCOME; ",IF(I44>H44,"OVER INCOME; ",""))&IF(B44>=VLOOKUP(C44,'1. Checklist & Certification'!$AN$3:$AO$8,2),"","U-OCCUP")),"")))) ->  | W44: 0 | X44: 0
H45: =IF(AND(D45="FWHG",G45<>""),"",IF(B45="Vacant","Vacant",IF(J45<>"",INDEX('1. Checklist & Certification'!$AC$3:$AK$21,MATCH(J45,'1. Checklist & Certification'!$AB$3:$AB$21,0),MATCH(B45,'1. Checklist & Certification'!$AC$2:$AK$2,0)),""))) ->  | L45: =IF(AND(D45="FWHG",G45<>""),"",IF(J45>1,INDEX('1. Checklist & Certification'!$BD$3:$BI$20,MATCH(J45,'1. Checklist & Certification'!$BC$3:$BC$20,0),MATCH(C45,'1. Checklist & Certification'!$BD$2:$BI$2,0)),"")) ->  | M45: =IF(AND(D45="FWHG",G45<>""),"",IFERROR(ROUNDUP(IF($L45="","",$L45-IF(LEFT($A45,2)="B*",VLOOKUP($C45,'1. Checklist & Certification'!$D$20:$E$25,2),IF(LEFT($A45,2)="C*",VLOOKUP($C45,'1. Checklist & Certification'!$F$20:$G$25,2),IF(LEFT($A45,2)="D*",VLOOKUP($C45,'1. Checklist & Certification'!$H$20:$I$25,2),IF(LEFT($A45,2)="E*",VLOOKUP($C45,'1. Checklist & Certification'!$J$20:$K$25,2),VLOOKUP($C45,'1. Checklist & Certification'!$I$8:$J$13,2)))))),0),"")) ->  | T45: =IF(AND(D45="FWHG",G45<>""),"",IF(A45="","",IF(OR(B45="",C45="",D45="",I45="",J45="",K45="",N45=""),"#N/A",IF(D45<>"OR",IF(N45>M45,"P-RENT; ","")&IF(B45="Vacant","VACANT",IF(I45=0,"NO INCOME; ",IF(I45>H45,"OVER INCOME; ",""))&IF(B45>=VLOOKUP(C45,'1. Checklist & Certification'!$AN$3:$AO$8,2),"","U-OCCUP")),"")))) ->  | W45: 0 | X45: 0
H46: =IF(AND(D46="FWHG",G46<>""),"",IF(B46="Vacant","Vacant",IF(J46<>"",INDEX('1. Checklist & Certification'!$AC$3:$AK$21,MATCH(J46,'1. Checklist & Certification'!$AB$3:$AB$21,0),MATCH(B46,'1. Checklist & Certification'!$AC$2:$AK$2,0)),""))) ->  | L46: =IF(AND(D46="FWHG",G46<>""),"",IF(J46>1,INDEX('1. Checklist & Certification'!$BD$3:$BI$20,MATCH(J46,'1. Checklist & Certification'!$BC$3:$BC$20,0),MATCH(C46,'1. Checklist & Certification'!$BD$2:$BI$2,0)),"")) ->  | M46: =IF(AND(D46="FWHG",G46<>""),"",IFERROR(ROUNDUP(IF($L46="","",$L46-IF(LEFT($A46,2)="B*",VLOOKUP($C46,'1. Checklist & Certification'!$D$20:$E$25,2),IF(LEFT($A46,2)="C*",VLOOKUP($C46,'1. Checklist & Certification'!$F$20:$G$25,2),IF(LEFT($A46,2)="D*",VLOOKUP($C46,'1. Checklist & Certification'!$H$20:$I$25,2),IF(LEFT($A46,2)="E*",VLOOKUP($C46,'1. Checklist & Certification'!$J$20:$K$25,2),VLOOKUP($C46,'1. Checklist & Certification'!$I$8:$J$13,2)))))),0),"")) ->  | T46: =IF(AND(D46="FWHG",G46<>""),"",IF(A46="","",IF(OR(B46="",C46="",D46="",I46="",J46="",K46="",N46=""),"#N/A",IF(D46<>"OR",IF(N46>M46,"P-RENT; ","")&IF(B46="Vacant","VACANT",IF(I46=0,"NO INCOME; ",IF(I46>H46,"OVER INCOME; ",""))&IF(B46>=VLOOKUP(C46,'1. Checklist & Certification'!$AN$3:$AO$8,2),"","U-OCCUP")),"")))) ->  | W46: 0 | X46: 0
H47: =IF(AND(D47="FWHG",G47<>""),"",IF(B47="Vacant","Vacant",IF(J47<>"",INDEX('1. Checklist & Certification'!$AC$3:$AK$21,MATCH(J47,'1. Checklist & Certification'!$AB$3:$AB$21,0),MATCH(B47,'1. Checklist & Certification'!$AC$2:$AK$2,0)),""))) ->  | L47: =IF(AND(D47="FWHG",G47<>""),"",IF(J47>1,INDEX('1. Checklist & Certification'!$BD$3:$BI$20,MATCH(J47,'1. Checklist & Certification'!$BC$3:$BC$20,0),MATCH(C47,'1. Checklist & Certification'!$BD$2:$BI$2,0)),"")) ->  | M47: =IF(AND(D47="FWHG",G47<>""),"",IFERROR(ROUNDUP(IF($L47="","",$L47-IF(LEFT($A47,2)="B*",VLOOKUP($C47,'1. Checklist & Certification'!$D$20:$E$25,2),IF(LEFT($A47,2)="C*",VLOOKUP($C47,'1. Checklist & Certification'!$F$20:$G$25,2),IF(LEFT($A47,2)="D*",VLOOKUP($C47,'1. Checklist & Certification'!$H$20:$I$25,2),IF(LEFT($A47,2)="E*",VLOOKUP($C47,'1. Checklist & Certification'!$J$20:$K$25,2),VLOOKUP($C47,'1. Checklist & Certification'!$I$8:$J$13,2)))))),0),"")) ->  | T47: =IF(AND(D47="FWHG",G47<>""),"",IF(A47="","",IF(OR(B47="",C47="",D47="",I47="",J47="",K47="",N47=""),"#N/A",IF(D47<>"OR",IF(N47>M47,"P-RENT; ","")&IF(B47="Vacant","VACANT",IF(I47=0,"NO INCOME; ",IF(I47>H47,"OVER INCOME; ",""))&IF(B47>=VLOOKUP(C47,'1. Checklist & Certification'!$AN$3:$AO$8,2),"","U-OCCUP")),"")))) ->  | W47: 0 | X47: 0
H48: =IF(AND(D48="FWHG",G48<>""),"",IF(B48="Vacant","Vacant",IF(J48<>"",INDEX('1. Checklist & Certification'!$AC$3:$AK$21,MATCH(J48,'1. Checklist & Certification'!$AB$3:$AB$21,0),MATCH(B48,'1. Checklist & Certification'!$AC$2:$AK$2,0)),""))) ->  | L48: =IF(AND(D48="FWHG",G48<>""),"",IF(J48>1,INDEX('1. Checklist & Certification'!$BD$3:$BI$20,MATCH(J48,'1. Checklist & Certification'!$BC$3:$BC$20,0),MATCH(C48,'1. Checklist & Certification'!$BD$2:$BI$2,0)),"")) ->  | M48: =IF(AND(D48="FWHG",G48<>""),"",IFERROR(ROUNDUP(IF($L48="","",$L48-IF(LEFT($A48,2)="B*",VLOOKUP($C48,'1. Checklist & Certification'!$D$20:$E$25,2),IF(LEFT($A48,2)="C*",VLOOKUP($C48,'1. Checklist & Certification'!$F$20:$G$25,2),IF(LEFT($A48,2)="D*",VLOOKUP($C48,'1. Checklist & Certification'!$H$20:$I$25,2),IF(LEFT($A48,2)="E*",VLOOKUP($C48,'1. Checklist & Certification'!$J$20:$K$25,2),VLOOKUP($C48,'1. Checklist & Certification'!$I$8:$J$13,2)))))),0),"")) ->  | T48: =IF(AND(D48="FWHG",G48<>""),"",IF(A48="","",IF(OR(B48="",C48="",D48="",I48="",J48="",K48="",N48=""),"#N/A",IF(D48<>"OR",IF(N48>M48,"P-RENT; ","")&IF(B48="Vacant","VACANT",IF(I48=0,"NO INCOME; ",IF(I48>H48,"OVER INCOME; ",""))&IF(B48>=VLOOKUP(C48,'1. Checklist & Certification'!$AN$3:$AO$8,2),"","U-OCCUP")),"")))) ->  | W48: 0 | X48: 0
H49: =IF(AND(D49="FWHG",G49<>""),"",IF(B49="Vacant","Vacant",IF(J49<>"",INDEX('1. Checklist & Certification'!$AC$3:$AK$21,MATCH(J49,'1. Checklist & Certification'!$AB$3:$AB$21,0),MATCH(B49,'1. Checklist & Certification'!$AC$2:$AK$2,0)),""))) ->  | L49: =IF(AND(D49="FWHG",G49<>""),"",IF(J49>1,INDEX('1. Checklist & Certification'!$BD$3:$BI$20,MATCH(J49,'1. Checklist & Certification'!$BC$3:$BC$20,0),MATCH(C49,'1. Checklist & Certification'!$BD$2:$BI$2,0)),"")) ->  | M49: =IF(AND(D49="FWHG",G49<>""),"",IFERROR(ROUNDUP(IF($L49="","",$L49-IF(LEFT($A49,2)="B*",VLOOKUP($C49,'1. Checklist & Certification'!$D$20:$E$25,2),IF(LEFT($A49,2)="C*",VLOOKUP($C49,'1. Checklist & Certification'!$F$20:$G$25,2),IF(LEFT($A49,2)="D*",VLOOKUP($C49,'1. Checklist & Certification'!$H$20:$I$25,2),IF(LEFT($A49,2)="E*",VLOOKUP($C49,'1. Checklist & Certification'!$J$20:$K$25,2),VLOOKUP($C49,'1. Checklist & Certification'!$I$8:$J$13,2)))))),0),"")) ->  | T49: =IF(AND(D49="FWHG",G49<>""),"",IF(A49="","",IF(OR(B49="",C49="",D49="",I49="",J49="",K49="",N49=""),"#N/A",IF(D49<>"OR",IF(N49>M49,"P-RENT; ","")&IF(B49="Vacant","VACANT",IF(I49=0,"NO INCOME; ",IF(I49>H49,"OVER INCOME; ",""))&IF(B49>=VLOOKUP(C49,'1. Checklist & Certification'!$AN$3:$AO$8,2),"","U-OCCUP")),"")))) ->  | W49: 0 | X49: 0
H50: =IF(AND(D50="FWHG",G50<>""),"",IF(B50="Vacant","Vacant",IF(J50<>"",INDEX('1. Checklist & Certification'!$AC$3:$AK$21,MATCH(J50,'1. Checklist & Certification'!$AB$3:$AB$21,0),MATCH(B50,'1. Checklist & Certification'!$AC$2:$AK$2,0)),""))) ->  | L50: =IF(AND(D50="FWHG",G50<>""),"",IF(J50>1,INDEX('1. Checklist & Certification'!$BD$3:$BI$20,MATCH(J50,'1. Checklist & Certification'!$BC$3:$BC$20,0),MATCH(C50,'1. Checklist & Certification'!$BD$2:$BI$2,0)),"")) ->  | M50: =IF(AND(D50="FWHG",G50<>""),"",IFERROR(ROUNDUP(IF($L50="","",$L50-IF(LEFT($A50,2)="B*",VLOOKUP($C50,'1. Checklist & Certification'!$D$20:$E$25,2),IF(LEFT($A50,2)="C*",VLOOKUP($C50,'1. Checklist & Certification'!$F$20:$G$25,2),IF(LEFT($A50,2)="D*",VLOOKUP($C50,'1. Checklist & Certification'!$H$20:$I$25,2),IF(LEFT($A50,2)="E*",VLOOKUP($C50,'1. Checklist & Certification'!$J$20:$K$25,2),VLOOKUP($C50,'1. Checklist & Certification'!$I$8:$J$13,2)))))),0),"")) ->  | T50: =IF(AND(D50="FWHG",G50<>""),"",IF(A50="","",IF(OR(B50="",C50="",D50="",I50="",J50="",K50="",N50=""),"#N/A",IF(D50<>"OR",IF(N50>M50,"P-RENT; ","")&IF(B50="Vacant","VACANT",IF(I50=0,"NO INCOME; ",IF(I50>H50,"OVER INCOME; ",""))&IF(B50>=VLOOKUP(C50,'1. Checklist & Certification'!$AN$3:$AO$8,2),"","U-OCCUP")),"")))) ->  | W50: 0 | X50: 0
H51: =IF(AND(D51="FWHG",G51<>""),"",IF(B51="Vacant","Vacant",IF(J51<>"",INDEX('1. Checklist & Certification'!$AC$3:$AK$21,MATCH(J51,'1. Checklist & Certification'!$AB$3:$AB$21,0),MATCH(B51,'1. Checklist & Certification'!$AC$2:$AK$2,0)),""))) ->  | L51: =IF(AND(D51="FWHG",G51<>""),"",IF(J51>1,INDEX('1. Checklist & Certification'!$BD$3:$BI$20,MATCH(J51,'1. Checklist & Certification'!$BC$3:$BC$20,0),MATCH(C51,'1. Checklist & Certification'!$BD$2:$BI$2,0)),"")) ->  | M51: =IF(AND(D51="FWHG",G51<>""),"",IFERROR(ROUNDUP(IF($L51="","",$L51-IF(LEFT($A51,2)="B*",VLOOKUP($C51,'1. Checklist & Certification'!$D$20:$E$25,2),IF(LEFT($A51,2)="C*",VLOOKUP($C51,'1. Checklist & Certification'!$F$20:$G$25,2),IF(LEFT($A51,2)="D*",VLOOKUP($C51,'1. Checklist & Certification'!$H$20:$I$25,2),IF(LEFT($A51,2)="E*",VLOOKUP($C51,'1. Checklist & Certification'!$J$20:$K$25,2),VLOOKUP($C51,'1. Checklist & Certification'!$I$8:$J$13,2)))))),0),"")) ->  | T51: =IF(AND(D51="FWHG",G51<>""),"",IF(A51="","",IF(OR(B51="",C51="",D51="",I51="",J51="",K51="",N51=""),"#N/A",IF(D51<>"OR",IF(N51>M51,"P-RENT; ","")&IF(B51="Vacant","VACANT",IF(I51=0,"NO INCOME; ",IF(I51>H51,"OVER INCOME; ",""))&IF(B51>=VLOOKUP(C51,'1. Checklist & Certification'!$AN$3:$AO$8,2),"","U-OCCUP")),"")))) ->  | W51: 0 | X51: 0
H52: =IF(AND(D52="FWHG",G52<>""),"",IF(B52="Vacant","Vacant",IF(J52<>"",INDEX('1. Checklist & Certification'!$AC$3:$AK$21,MATCH(J52,'1. Checklist & Certification'!$AB$3:$AB$21,0),MATCH(B52,'1. Checklist & Certification'!$AC$2:$AK$2,0)),""))) ->  | L52: =IF(AND(D52="FWHG",G52<>""),"",IF(J52>1,INDEX('1. Checklist & Certification'!$BD$3:$BI$20,MATCH(J52,'1. Checklist & Certification'!$BC$3:$BC$20,0),MATCH(C52,'1. Checklist & Certification'!$BD$2:$BI$2,0)),"")) ->  | M52: =IF(AND(D52="FWHG",G52<>""),"",IFERROR(ROUNDUP(IF($L52="","",$L52-IF(LEFT($A52,2)="B*",VLOOKUP($C52,'1. Checklist & Certification'!$D$20:$E$25,2),IF(LEFT($A52,2)="C*",VLOOKUP($C52,'1. Checklist & Certification'!$F$20:$G$25,2),IF(LEFT($A52,2)="D*",VLOOKUP($C52,'1. Checklist & Certification'!$H$20:$I$25,2),IF(LEFT($A52,2)="E*",VLOOKUP($C52,'1. Checklist & Certification'!$J$20:$K$25,2),VLOOKUP($C52,'1. Checklist & Certification'!$I$8:$J$13,2)))))),0),"")) ->  | T52: =IF(AND(D52="FWHG",G52<>""),"",IF(A52="","",IF(OR(B52="",C52="",D52="",I52="",J52="",K52="",N52=""),"#N/A",IF(D52<>"OR",IF(N52>M52,"P-RENT; ","")&IF(B52="Vacant","VACANT",IF(I52=0,"NO INCOME; ",IF(I52>H52,"OVER INCOME; ",""))&IF(B52>=VLOOKUP(C52,'1. Checklist & Certification'!$AN$3:$AO$8,2),"","U-OCCUP")),"")))) ->  | W52: 0 | X52: 0
H53: =IF(AND(D53="FWHG",G53<>""),"",IF(B53="Vacant","Vacant",IF(J53<>"",INDEX('1. Checklist & Certification'!$AC$3:$AK$21,MATCH(J53,'1. Checklist & Certification'!$AB$3:$AB$21,0),MATCH(B53,'1. Checklist & Certification'!$AC$2:$AK$2,0)),""))) ->  | L53: =IF(AND(D53="FWHG",G53<>""),"",IF(J53>1,INDEX('1. Checklist & Certification'!$BD$3:$BI$20,MATCH(J53,'1. Checklist & Certification'!$BC$3:$BC$20,0),MATCH(C53,'1. Checklist & Certification'!$BD$2:$BI$2,0)),"")) ->  | M53: =IF(AND(D53="FWHG",G53<>""),"",IFERROR(ROUNDUP(IF($L53="","",$L53-IF(LEFT($A53,2)="B*",VLOOKUP($C53,'1. Checklist & Certification'!$D$20:$E$25,2),IF(LEFT($A53,2)="C*",VLOOKUP($C53,'1. Checklist & Certification'!$F$20:$G$25,2),IF(LEFT($A53,2)="D*",VLOOKUP($C53,'1. Checklist & Certification'!$H$20:$I$25,2),IF(LEFT($A53,2)="E*",VLOOKUP($C53,'1. Checklist & Certification'!$J$20:$K$25,2),VLOOKUP($C53,'1. Checklist & Certification'!$I$8:$J$13,2)))))),0),"")) ->  | T53: =IF(AND(D53="FWHG",G53<>""),"",IF(A53="","",IF(OR(B53="",C53="",D53="",I53="",J53="",K53="",N53=""),"#N/A",IF(D53<>"OR",IF(N53>M53,"P-RENT; ","")&IF(B53="Vacant","VACANT",IF(I53=0,"NO INCOME; ",IF(I53>H53,"OVER INCOME; ",""))&IF(B53>=VLOOKUP(C53,'1. Checklist & Certification'!$AN$3:$AO$8,2),"","U-OCCUP")),"")))) ->  | W53: 0 | X53: 0
H54: =IF(AND(D54="FWHG",G54<>""),"",IF(B54="Vacant","Vacant",IF(J54<>"",INDEX('1. Checklist & Certification'!$AC$3:$AK$21,MATCH(J54,'1. Checklist & Certification'!$AB$3:$AB$21,0),MATCH(B54,'1. Checklist & Certification'!$AC$2:$AK$2,0)),""))) ->  | L54: =IF(AND(D54="FWHG",G54<>""),"",IF(J54>1,INDEX('1. Checklist & Certification'!$BD$3:$BI$20,MATCH(J54,'1. Checklist & Certification'!$BC$3:$BC$20,0),MATCH(C54,'1. Checklist & Certification'!$BD$2:$BI$2,0)),"")) ->  | M54: =IF(AND(D54="FWHG",G54<>""),"",IFERROR(ROUNDUP(IF($L54="","",$L54-IF(LEFT($A54,2)="B*",VLOOKUP($C54,'1. Checklist & Certification'!$D$20:$E$25,2),IF(LEFT($A54,2)="C*",VLOOKUP($C54,'1. Checklist & Certification'!$F$20:$G$25,2),IF(LEFT($A54,2)="D*",VLOOKUP($C54,'1. Checklist & Certification'!$H$20:$I$25,2),IF(LEFT($A54,2)="E*",VLOOKUP($C54,'1. Checklist & Certification'!$J$20:$K$25,2),VLOOKUP($C54,'1. Checklist & Certification'!$I$8:$J$13,2)))))),0),"")) ->  | T54: =IF(AND(D54="FWHG",G54<>""),"",IF(A54="","",IF(OR(B54="",C54="",D54="",I54="",J54="",K54="",N54=""),"#N/A",IF(D54<>"OR",IF(N54>M54,"P-RENT; ","")&IF(B54="Vacant","VACANT",IF(I54=0,"NO INCOME; ",IF(I54>H54,"OVER INCOME; ",""))&IF(B54>=VLOOKUP(C54,'1. Checklist & Certification'!$AN$3:$AO$8,2),"","U-OCCUP")),"")))) ->  | W54: 0 | X54: 0
H55: =IF(AND(D55="FWHG",G55<>""),"",IF(B55="Vacant","Vacant",IF(J55<>"",INDEX('1. Checklist & Certification'!$AC$3:$AK$21,MATCH(J55,'1. Checklist & Certification'!$AB$3:$AB$21,0),MATCH(B55,'1. Checklist & Certification'!$AC$2:$AK$2,0)),""))) ->  | L55: =IF(AND(D55="FWHG",G55<>""),"",IF(J55>1,INDEX('1. Checklist & Certification'!$BD$3:$BI$20,MATCH(J55,'1. Checklist & Certification'!$BC$3:$BC$20,0),MATCH(C55,'1. Checklist & Certification'!$BD$2:$BI$2,0)),"")) ->  | M55: =IF(AND(D55="FWHG",G55<>""),"",IFERROR(ROUNDUP(IF($L55="","",$L55-IF(LEFT($A55,2)="B*",VLOOKUP($C55,'1. Checklist & Certification'!$D$20:$E$25,2),IF(LEFT($A55,2)="C*",VLOOKUP($C55,'1. Checklist & Certification'!$F$20:$G$25,2),IF(LEFT($A55,2)="D*",VLOOKUP($C55,'1. Checklist & Certification'!$H$20:$I$25,2),IF(LEFT($A55,2)="E*",VLOOKUP($C55,'1. Checklist & Certification'!$J$20:$K$25,2),VLOOKUP($C55,'1. Checklist & Certification'!$I$8:$J$13,2)))))),0),"")) ->  | T55: =IF(AND(D55="FWHG",G55<>""),"",IF(A55="","",IF(OR(B55="",C55="",D55="",I55="",J55="",K55="",N55=""),"#N/A",IF(D55<>"OR",IF(N55>M55,"P-RENT; ","")&IF(B55="Vacant","VACANT",IF(I55=0,"NO INCOME; ",IF(I55>H55,"OVER INCOME; ",""))&IF(B55>=VLOOKUP(C55,'1. Checklist & Certification'!$AN$3:$AO$8,2),"","U-OCCUP")),"")))) ->  | W55: 0 | X55: 0
H56: =IF(AND(D56="FWHG",G56<>""),"",IF(B56="Vacant","Vacant",IF(J56<>"",INDEX('1. Checklist & Certification'!$AC$3:$AK$21,MATCH(J56,'1. Checklist & Certification'!$AB$3:$AB$21,0),MATCH(B56,'1. Checklist & Certification'!$AC$2:$AK$2,0)),""))) ->  | L56: =IF(AND(D56="FWHG",G56<>""),"",IF(J56>1,INDEX('1. Checklist & Certification'!$BD$3:$BI$20,MATCH(J56,'1. Checklist & Certification'!$BC$3:$BC$20,0),MATCH(C56,'1. Checklist & Certification'!$BD$2:$BI$2,0)),"")) ->  | M56: =IF(AND(D56="FWHG",G56<>""),"",IFERROR(ROUNDUP(IF($L56="","",$L56-IF(LEFT($A56,2)="B*",VLOOKUP($C56,'1. Checklist & Certification'!$D$20:$E$25,2),IF(LEFT($A56,2)="C*",VLOOKUP($C56,'1. Checklist & Certification'!$F$20:$G$25,2),IF(LEFT($A56,2)="D*",VLOOKUP($C56,'1. Checklist & Certification'!$H$20:$I$25,2),IF(LEFT($A56,2)="E*",VLOOKUP($C56,'1. Checklist & Certification'!$J$20:$K$25,2),VLOOKUP($C56,'1. Checklist & Certification'!$I$8:$J$13,2)))))),0),"")) ->  | T56: =IF(AND(D56="FWHG",G56<>""),"",IF(A56="","",IF(OR(B56="",C56="",D56="",I56="",J56="",K56="",N56=""),"#N/A",IF(D56<>"OR",IF(N56>M56,"P-RENT; ","")&IF(B56="Vacant","VACANT",IF(I56=0,"NO INCOME; ",IF(I56>H56,"OVER INCOME; ",""))&IF(B56>=VLOOKUP(C56,'1. Checklist & Certification'!$AN$3:$AO$8,2),"","U-OCCUP")),"")))) ->  | W56: 0 | X56: 0
H57: =IF(AND(D57="FWHG",G57<>""),"",IF(B57="Vacant","Vacant",IF(J57<>"",INDEX('1. Checklist & Certification'!$AC$3:$AK$21,MATCH(J57,'1. Checklist & Certification'!$AB$3:$AB$21,0),MATCH(B57,'1. Checklist & Certification'!$AC$2:$AK$2,0)),""))) ->  | L57: =IF(AND(D57="FWHG",G57<>""),"",IF(J57>1,INDEX('1. Checklist & Certification'!$BD$3:$BI$20,MATCH(J57,'1. Checklist & Certification'!$BC$3:$BC$20,0),MATCH(C57,'1. Checklist & Certification'!$BD$2:$BI$2,0)),"")) ->  | M57: =IF(AND(D57="FWHG",G57<>""),"",IFERROR(ROUNDUP(IF($L57="","",$L57-IF(LEFT($A57,2)="B*",VLOOKUP($C57,'1. Checklist & Certification'!$D$20:$E$25,2),IF(LEFT($A57,2)="C*",VLOOKUP($C57,'1. Checklist & Certification'!$F$20:$G$25,2),IF(LEFT($A57,2)="D*",VLOOKUP($C57,'1. Checklist & Certification'!$H$20:$I$25,2),IF(LEFT($A57,2)="E*",VLOOKUP($C57,'1. Checklist & Certification'!$J$20:$K$25,2),VLOOKUP($C57,'1. Checklist & Certification'!$I$8:$J$13,2)))))),0),"")) ->  | T57: =IF(AND(D57="FWHG",G57<>""),"",IF(A57="","",IF(OR(B57="",C57="",D57="",I57="",J57="",K57="",N57=""),"#N/A",IF(D57<>"OR",IF(N57>M57,"P-RENT; ","")&IF(B57="Vacant","VACANT",IF(I57=0,"NO INCOME; ",IF(I57>H57,"OVER INCOME; ",""))&IF(B57>=VLOOKUP(C57,'1. Checklist & Certification'!$AN$3:$AO$8,2),"","U-OCCUP")),"")))) ->  | W57: 0 | X57: 0
H58: =IF(AND(D58="FWHG",G58<>""),"",IF(B58="Vacant","Vacant",IF(J58<>"",INDEX('1. Checklist & Certification'!$AC$3:$AK$21,MATCH(J58,'1. Checklist & Certification'!$AB$3:$AB$21,0),MATCH(B58,'1. Checklist & Certification'!$AC$2:$AK$2,0)),""))) ->  | L58: =IF(AND(D58="FWHG",G58<>""),"",IF(J58>1,INDEX('1. Checklist & Certification'!$BD$3:$BI$20,MATCH(J58,'1. Checklist & Certification'!$BC$3:$BC$20,0),MATCH(C58,'1. Checklist & Certification'!$BD$2:$BI$2,0)),"")) ->  | M58: =IF(AND(D58="FWHG",G58<>""),"",IFERROR(ROUNDUP(IF($L58="","",$L58-IF(LEFT($A58,2)="B*",VLOOKUP($C58,'1. Checklist & Certification'!$D$20:$E$25,2),IF(LEFT($A58,2)="C*",VLOOKUP($C58,'1. Checklist & Certification'!$F$20:$G$25,2),IF(LEFT($A58,2)="D*",VLOOKUP($C58,'1. Checklist & Certification'!$H$20:$I$25,2),IF(LEFT($A58,2)="E*",VLOOKUP($C58,'1. Checklist & Certification'!$J$20:$K$25,2),VLOOKUP($C58,'1. Checklist & Certification'!$I$8:$J$13,2)))))),0),"")) ->  | T58: =IF(AND(D58="FWHG",G58<>""),"",IF(A58="","",IF(OR(B58="",C58="",D58="",I58="",J58="",K58="",N58=""),"#N/A",IF(D58<>"OR",IF(N58>M58,"P-RENT; ","")&IF(B58="Vacant","VACANT",IF(I58=0,"NO INCOME; ",IF(I58>H58,"OVER INCOME; ",""))&IF(B58>=VLOOKUP(C58,'1. Checklist & Certification'!$AN$3:$AO$8,2),"","U-OCCUP")),"")))) ->  | W58: 0 | X58: 0
H59: =IF(AND(D59="FWHG",G59<>""),"",IF(B59="Vacant","Vacant",IF(J59<>"",INDEX('1. Checklist & Certification'!$AC$3:$AK$21,MATCH(J59,'1. Checklist & Certification'!$AB$3:$AB$21,0),MATCH(B59,'1. Checklist & Certification'!$AC$2:$AK$2,0)),""))) ->  | L59: =IF(AND(D59="FWHG",G59<>""),"",IF(J59>1,INDEX('1. Checklist & Certification'!$BD$3:$BI$20,MATCH(J59,'1. Checklist & Certification'!$BC$3:$BC$20,0),MATCH(C59,'1. Checklist & Certification'!$BD$2:$BI$2,0)),"")) ->  | M59: =IF(AND(D59="FWHG",G59<>""),"",IFERROR(ROUNDUP(IF($L59="","",$L59-IF(LEFT($A59,2)="B*",VLOOKUP($C59,'1. Checklist & Certification'!$D$20:$E$25,2),IF(LEFT($A59,2)="C*",VLOOKUP($C59,'1. Checklist & Certification'!$F$20:$G$25,2),IF(LEFT($A59,2)="D*",VLOOKUP($C59,'1. Checklist & Certification'!$H$20:$I$25,2),IF(LEFT($A59,2)="E*",VLOOKUP($C59,'1. Checklist & Certification'!$J$20:$K$25,2),VLOOKUP($C59,'1. Checklist & Certification'!$I$8:$J$13,2)))))),0),"")) ->  | T59: =IF(AND(D59="FWHG",G59<>""),"",IF(A59="","",IF(OR(B59="",C59="",D59="",I59="",J59="",K59="",N59=""),"#N/A",IF(D59<>"OR",IF(N59>M59,"P-RENT; ","")&IF(B59="Vacant","VACANT",IF(I59=0,"NO INCOME; ",IF(I59>H59,"OVER INCOME; ",""))&IF(B59>=VLOOKUP(C59,'1. Checklist & Certification'!$AN$3:$AO$8,2),"","U-OCCUP")),"")))) ->  | W59: 0 | X59: 0
H60: =IF(AND(D60="FWHG",G60<>""),"",IF(B60="Vacant","Vacant",IF(J60<>"",INDEX('1. Checklist & Certification'!$AC$3:$AK$21,MATCH(J60,'1. Checklist & Certification'!$AB$3:$AB$21,0),MATCH(B60,'1. Checklist & Certification'!$AC$2:$AK$2,0)),""))) ->  | L60: =IF(AND(D60="FWHG",G60<>""),"",IF(J60>1,INDEX('1. Checklist & Certification'!$BD$3:$BI$20,MATCH(J60,'1. Checklist & Certification'!$BC$3:$BC$20,0),MATCH(C60,'1. Checklist & Certification'!$BD$2:$BI$2,0)),"")) ->  | M60: =IF(AND(D60="FWHG",G60<>""),"",IFERROR(ROUNDUP(IF($L60="","",$L60-IF(LEFT($A60,2)="B*",VLOOKUP($C60,'1. Checklist & Certification'!$D$20:$E$25,2),IF(LEFT($A60,2)="C*",VLOOKUP($C60,'1. Checklist & Certification'!$F$20:$G$25,2),IF(LEFT($A60,2)="D*",VLOOKUP($C60,'1. Checklist & Certification'!$H$20:$I$25,2),IF(LEFT($A60,2)="E*",VLOOKUP($C60,'1. Checklist & Certification'!$J$20:$K$25,2),VLOOKUP($C60,'1. Checklist & Certification'!$I$8:$J$13,2)))))),0),"")) ->  | T60: =IF(AND(D60="FWHG",G60<>""),"",IF(A60="","",IF(OR(B60="",C60="",D60="",I60="",J60="",K60="",N60=""),"#N/A",IF(D60<>"OR",IF(N60>M60,"P-RENT; ","")&IF(B60="Vacant","VACANT",IF(I60=0,"NO INCOME; ",IF(I60>H60,"OVER INCOME; ",""))&IF(B60>=VLOOKUP(C60,'1. Checklist & Certification'!$AN$3:$AO$8,2),"","U-OCCUP")),"")))) ->  | W60: 0 | X60: 0
H61: =IF(AND(D61="FWHG",G61<>""),"",IF(B61="Vacant","Vacant",IF(J61<>"",INDEX('1. Checklist & Certification'!$AC$3:$AK$21,MATCH(J61,'1. Checklist & Certification'!$AB$3:$AB$21,0),MATCH(B61,'1. Checklist & Certification'!$AC$2:$AK$2,0)),""))) ->  | L61: =IF(AND(D61="FWHG",G61<>""),"",IF(J61>1,INDEX('1. Checklist & Certification'!$BD$3:$BI$20,MATCH(J61,'1. Checklist & Certification'!$BC$3:$BC$20,0),MATCH(C61,'1. Checklist & Certification'!$BD$2:$BI$2,0)),"")) ->  | M61: =IF(AND(D61="FWHG",G61<>""),"",IFERROR(ROUNDUP(IF($L61="","",$L61-IF(LEFT($A61,2)="B*",VLOOKUP($C61,'1. Checklist & Certification'!$D$20:$E$25,2),IF(LEFT($A61,2)="C*",VLOOKUP($C61,'1. Checklist & Certification'!$F$20:$G$25,2),IF(LEFT($A61,2)="D*",VLOOKUP($C61,'1. Checklist & Certification'!$H$20:$I$25,2),IF(LEFT($A61,2)="E*",VLOOKUP($C61,'1. Checklist & Certification'!$J$20:$K$25,2),VLOOKUP($C61,'1. Checklist & Certification'!$I$8:$J$13,2)))))),0),"")) ->  | T61: =IF(AND(D61="FWHG",G61<>""),"",IF(A61="","",IF(OR(B61="",C61="",D61="",I61="",J61="",K61="",N61=""),"#N/A",IF(D61<>"OR",IF(N61>M61,"P-RENT; ","")&IF(B61="Vacant","VACANT",IF(I61=0,"NO INCOME; ",IF(I61>H61,"OVER INCOME; ",""))&IF(B61>=VLOOKUP(C61,'1. Checklist & Certification'!$AN$3:$AO$8,2),"","U-OCCUP")),"")))) ->  | W61: 0 | X61: 0
H62: =IF(AND(D62="FWHG",G62<>""),"",IF(B62="Vacant","Vacant",IF(J62<>"",INDEX('1. Checklist & Certification'!$AC$3:$AK$21,MATCH(J62,'1. Checklist & Certification'!$AB$3:$AB$21,0),MATCH(B62,'1. Checklist & Certification'!$AC$2:$AK$2,0)),""))) ->  | L62: =IF(AND(D62="FWHG",G62<>""),"",IF(J62>1,INDEX('1. Checklist & Certification'!$BD$3:$BI$20,MATCH(J62,'1. Checklist & Certification'!$BC$3:$BC$20,0),MATCH(C62,'1. Checklist & Certification'!$BD$2:$BI$2,0)),"")) ->  | M62: =IF(AND(D62="FWHG",G62<>""),"",IFERROR(ROUNDUP(IF($L62="","",$L62-IF(LEFT($A62,2)="B*",VLOOKUP($C62,'1. Checklist & Certification'!$D$20:$E$25,2),IF(LEFT($A62,2)="C*",VLOOKUP($C62,'1. Checklist & Certification'!$F$20:$G$25,2),IF(LEFT($A62,2)="D*",VLOOKUP($C62,'1. Checklist & Certification'!$H$20:$I$25,2),IF(LEFT($A62,2)="E*",VLOOKUP($C62,'1. Checklist & Certification'!$J$20:$K$25,2),VLOOKUP($C62,'1. Checklist & Certification'!$I$8:$J$13,2)))))),0),"")) ->  | T62: =IF(AND(D62="FWHG",G62<>""),"",IF(A62="","",IF(OR(B62="",C62="",D62="",I62="",J62="",K62="",N62=""),"#N/A",IF(D62<>"OR",IF(N62>M62,"P-RENT; ","")&IF(B62="Vacant","VACANT",IF(I62=0,"NO INCOME; ",IF(I62>H62,"OVER INCOME; ",""))&IF(B62>=VLOOKUP(C62,'1. Checklist & Certification'!$AN$3:$AO$8,2),"","U-OCCUP")),"")))) ->  | W62: 0 | X62: 0
H63: =IF(AND(D63="FWHG",G63<>""),"",IF(B63="Vacant","Vacant",IF(J63<>"",INDEX('1. Checklist & Certification'!$AC$3:$AK$21,MATCH(J63,'1. Checklist & Certification'!$AB$3:$AB$21,0),MATCH(B63,'1. Checklist & Certification'!$AC$2:$AK$2,0)),""))) ->  | L63: =IF(AND(D63="FWHG",G63<>""),"",IF(J63>1,INDEX('1. Checklist & Certification'!$BD$3:$BI$20,MATCH(J63,'1. Checklist & Certification'!$BC$3:$BC$20,0),MATCH(C63,'1. Checklist & Certification'!$BD$2:$BI$2,0)),"")) ->  | M63: =IF(AND(D63="FWHG",G63<>""),"",IFERROR(ROUNDUP(IF($L63="","",$L63-IF(LEFT($A63,2)="B*",VLOOKUP($C63,'1. Checklist & Certification'!$D$20:$E$25,2),IF(LEFT($A63,2)="C*",VLOOKUP($C63,'1. Checklist & Certification'!$F$20:$G$25,2),IF(LEFT($A63,2)="D*",VLOOKUP($C63,'1. Checklist & Certification'!$H$20:$I$25,2),IF(LEFT($A63,2)="E*",VLOOKUP($C63,'1. Checklist & Certification'!$J$20:$K$25,2),VLOOKUP($C63,'1. Checklist & Certification'!$I$8:$J$13,2)))))),0),"")) ->  | T63: =IF(AND(D63="FWHG",G63<>""),"",IF(A63="","",IF(OR(B63="",C63="",D63="",I63="",J63="",K63="",N63=""),"#N/A",IF(D63<>"OR",IF(N63>M63,"P-RENT; ","")&IF(B63="Vacant","VACANT",IF(I63=0,"NO INCOME; ",IF(I63>H63,"OVER INCOME; ",""))&IF(B63>=VLOOKUP(C63,'1. Checklist & Certification'!$AN$3:$AO$8,2),"","U-OCCUP")),"")))) ->  | W63: 0 | X63: 0
H64: =IF(AND(D64="FWHG",G64<>""),"",IF(B64="Vacant","Vacant",IF(J64<>"",INDEX('1. Checklist & Certification'!$AC$3:$AK$21,MATCH(J64,'1. Checklist & Certification'!$AB$3:$AB$21,0),MATCH(B64,'1. Checklist & Certification'!$AC$2:$AK$2,0)),""))) ->  | L64: =IF(AND(D64="FWHG",G64<>""),"",IF(J64>1,INDEX('1. Checklist & Certification'!$BD$3:$BI$20,MATCH(J64,'1. Checklist & Certification'!$BC$3:$BC$20,0),MATCH(C64,'1. Checklist & Certification'!$BD$2:$BI$2,0)),"")) ->  | M64: =IF(AND(D64="FWHG",G64<>""),"",IFERROR(ROUNDUP(IF($L64="","",$L64-IF(LEFT($A64,2)="B*",VLOOKUP($C64,'1. Checklist & Certification'!$D$20:$E$25,2),IF(LEFT($A64,2)="C*",VLOOKUP($C64,'1. Checklist & Certification'!$F$20:$G$25,2),IF(LEFT($A64,2)="D*",VLOOKUP($C64,'1. Checklist & Certification'!$H$20:$I$25,2),IF(LEFT($A64,2)="E*",VLOOKUP($C64,'1. Checklist & Certification'!$J$20:$K$25,2),VLOOKUP($C64,'1. Checklist & Certification'!$I$8:$J$13,2)))))),0),"")) ->  | T64: =IF(AND(D64="FWHG",G64<>""),"",IF(A64="","",IF(OR(B64="",C64="",D64="",I64="",J64="",K64="",N64=""),"#N/A",IF(D64<>"OR",IF(N64>M64,"P-RENT; ","")&IF(B64="Vacant","VACANT",IF(I64=0,"NO INCOME; ",IF(I64>H64,"OVER INCOME; ",""))&IF(B64>=VLOOKUP(C64,'1. Checklist & Certification'!$AN$3:$AO$8,2),"","U-OCCUP")),"")))) ->  | W64: 0 | X64: 0
H65: =IF(AND(D65="FWHG",G65<>""),"",IF(B65="Vacant","Vacant",IF(J65<>"",INDEX('1. Checklist & Certification'!$AC$3:$AK$21,MATCH(J65,'1. Checklist & Certification'!$AB$3:$AB$21,0),MATCH(B65,'1. Checklist & Certification'!$AC$2:$AK$2,0)),""))) ->  | L65: =IF(AND(D65="FWHG",G65<>""),"",IF(J65>1,INDEX('1. Checklist & Certification'!$BD$3:$BI$20,MATCH(J65,'1. Checklist & Certification'!$BC$3:$BC$20,0),MATCH(C65,'1. Checklist & Certification'!$BD$2:$BI$2,0)),"")) ->  | M65: =IF(AND(D65="FWHG",G65<>""),"",IFERROR(ROUNDUP(IF($L65="","",$L65-IF(LEFT($A65,2)="B*",VLOOKUP($C65,'1. Checklist & Certification'!$D$20:$E$25,2),IF(LEFT($A65,2)="C*",VLOOKUP($C65,'1. Checklist & Certification'!$F$20:$G$25,2),IF(LEFT($A65,2)="D*",VLOOKUP($C65,'1. Checklist & Certification'!$H$20:$I$25,2),IF(LEFT($A65,2)="E*",VLOOKUP($C65,'1. Checklist & Certification'!$J$20:$K$25,2),VLOOKUP($C65,'1. Checklist & Certification'!$I$8:$J$13,2)))))),0),"")) ->  | T65: =IF(AND(D65="FWHG",G65<>""),"",IF(A65="","",IF(OR(B65="",C65="",D65="",I65="",J65="",K65="",N65=""),"#N/A",IF(D65<>"OR",IF(N65>M65,"P-RENT; ","")&IF(B65="Vacant","VACANT",IF(I65=0,"NO INCOME; ",IF(I65>H65,"OVER INCOME; ",""))&IF(B65>=VLOOKUP(C65,'1. Checklist & Certification'!$AN$3:$AO$8,2),"","U-OCCUP")),"")))) ->  | W65: 0 | X65: 0
H66: =IF(AND(D66="FWHG",G66<>""),"",IF(B66="Vacant","Vacant",IF(J66<>"",INDEX('1. Checklist & Certification'!$AC$3:$AK$21,MATCH(J66,'1. Checklist & Certification'!$AB$3:$AB$21,0),MATCH(B66,'1. Checklist & Certification'!$AC$2:$AK$2,0)),""))) ->  | L66: =IF(AND(D66="FWHG",G66<>""),"",IF(J66>1,INDEX('1. Checklist & Certification'!$BD$3:$BI$20,MATCH(J66,'1. Checklist & Certification'!$BC$3:$BC$20,0),MATCH(C66,'1. Checklist & Certification'!$BD$2:$BI$2,0)),"")) ->  | M66: =IF(AND(D66="FWHG",G66<>""),"",IFERROR(ROUNDUP(IF($L66="","",$L66-IF(LEFT($A66,2)="B*",VLOOKUP($C66,'1. Checklist & Certification'!$D$20:$E$25,2),IF(LEFT($A66,2)="C*",VLOOKUP($C66,'1. Checklist & Certification'!$F$20:$G$25,2),IF(LEFT($A66,2)="D*",VLOOKUP($C66,'1. Checklist & Certification'!$H$20:$I$25,2),IF(LEFT($A66,2)="E*",VLOOKUP($C66,'1. Checklist & Certification'!$J$20:$K$25,2),VLOOKUP($C66,'1. Checklist & Certification'!$I$8:$J$13,2)))))),0),"")) ->  | T66: =IF(AND(D66="FWHG",G66<>""),"",IF(A66="","",IF(OR(B66="",C66="",D66="",I66="",J66="",K66="",N66=""),"#N/A",IF(D66<>"OR",IF(N66>M66,"P-RENT; ","")&IF(B66="Vacant","VACANT",IF(I66=0,"NO INCOME; ",IF(I66>H66,"OVER INCOME; ",""))&IF(B66>=VLOOKUP(C66,'1. Checklist & Certification'!$AN$3:$AO$8,2),"","U-OCCUP")),"")))) ->  | W66: 0 | X66: 0
H67: =IF(AND(D67="FWHG",G67<>""),"",IF(B67="Vacant","Vacant",IF(J67<>"",INDEX('1. Checklist & Certification'!$AC$3:$AK$21,MATCH(J67,'1. Checklist & Certification'!$AB$3:$AB$21,0),MATCH(B67,'1. Checklist & Certification'!$AC$2:$AK$2,0)),""))) ->  | L67: =IF(AND(D67="FWHG",G67<>""),"",IF(J67>1,INDEX('1. Checklist & Certification'!$BD$3:$BI$20,MATCH(J67,'1. Checklist & Certification'!$BC$3:$BC$20,0),MATCH(C67,'1. Checklist & Certification'!$BD$2:$BI$2,0)),"")) ->  | M67: =IF(AND(D67="FWHG",G67<>""),"",IFERROR(ROUNDUP(IF($L67="","",$L67-IF(LEFT($A67,2)="B*",VLOOKUP($C67,'1. Checklist & Certification'!$D$20:$E$25,2),IF(LEFT($A67,2)="C*",VLOOKUP($C67,'1. Checklist & Certification'!$F$20:$G$25,2),IF(LEFT($A67,2)="D*",VLOOKUP($C67,'1. Checklist & Certification'!$H$20:$I$25,2),IF(LEFT($A67,2)="E*",VLOOKUP($C67,'1. Checklist & Certification'!$J$20:$K$25,2),VLOOKUP($C67,'1. Checklist & Certification'!$I$8:$J$13,2)))))),0),"")) ->  | T67: =IF(AND(D67="FWHG",G67<>""),"",IF(A67="","",IF(OR(B67="",C67="",D67="",I67="",J67="",K67="",N67=""),"#N/A",IF(D67<>"OR",IF(N67>M67,"P-RENT; ","")&IF(B67="Vacant","VACANT",IF(I67=0,"NO INCOME; ",IF(I67>H67,"OVER INCOME; ",""))&IF(B67>=VLOOKUP(C67,'1. Checklist & Certification'!$AN$3:$AO$8,2),"","U-OCCUP")),"")))) ->  | W67: 0 | X67: 0
H68: =IF(AND(D68="FWHG",G68<>""),"",IF(B68="Vacant","Vacant",IF(J68<>"",INDEX('1. Checklist & Certification'!$AC$3:$AK$21,MATCH(J68,'1. Checklist & Certification'!$AB$3:$AB$21,0),MATCH(B68,'1. Checklist & Certification'!$AC$2:$AK$2,0)),""))) ->  | L68: =IF(AND(D68="FWHG",G68<>""),"",IF(J68>1,INDEX('1. Checklist & Certification'!$BD$3:$BI$20,MATCH(J68,'1. Checklist & Certification'!$BC$3:$BC$20,0),MATCH(C68,'1. Checklist & Certification'!$BD$2:$BI$2,0)),"")) ->  | M68: =IF(AND(D68="FWHG",G68<>""),"",IFERROR(ROUNDUP(IF($L68="","",$L68-IF(LEFT($A68,2)="B*",VLOOKUP($C68,'1. Checklist & Certification'!$D$20:$E$25,2),IF(LEFT($A68,2)="C*",VLOOKUP($C68,'1. Checklist & Certification'!$F$20:$G$25,2),IF(LEFT($A68,2)="D*",VLOOKUP($C68,'1. Checklist & Certification'!$H$20:$I$25,2),IF(LEFT($A68,2)="E*",VLOOKUP($C68,'1. Checklist & Certification'!$J$20:$K$25,2),VLOOKUP($C68,'1. Checklist & Certification'!$I$8:$J$13,2)))))),0),"")) ->  | T68: =IF(AND(D68="FWHG",G68<>""),"",IF(A68="","",IF(OR(B68="",C68="",D68="",I68="",J68="",K68="",N68=""),"#N/A",IF(D68<>"OR",IF(N68>M68,"P-RENT; ","")&IF(B68="Vacant","VACANT",IF(I68=0,"NO INCOME; ",IF(I68>H68,"OVER INCOME; ",""))&IF(B68>=VLOOKUP(C68,'1. Checklist & Certification'!$AN$3:$AO$8,2),"","U-OCCUP")),"")))) ->  | W68: 0 | X68: 0
H69: =IF(AND(D69="FWHG",G69<>""),"",IF(B69="Vacant","Vacant",IF(J69<>"",INDEX('1. Checklist & Certification'!$AC$3:$AK$21,MATCH(J69,'1. Checklist & Certification'!$AB$3:$AB$21,0),MATCH(B69,'1. Checklist & Certification'!$AC$2:$AK$2,0)),""))) ->  | L69: =IF(AND(D69="FWHG",G69<>""),"",IF(J69>1,INDEX('1. Checklist & Certification'!$BD$3:$BI$20,MATCH(J69,'1. Checklist & Certification'!$BC$3:$BC$20,0),MATCH(C69,'1. Checklist & Certification'!$BD$2:$BI$2,0)),"")) ->  | M69: =IF(AND(D69="FWHG",G69<>""),"",IFERROR(ROUNDUP(IF($L69="","",$L69-IF(LEFT($A69,2)="B*",VLOOKUP($C69,'1. Checklist & Certification'!$D$20:$E$25,2),IF(LEFT($A69,2)="C*",VLOOKUP($C69,'1. Checklist & Certification'!$F$20:$G$25,2),IF(LEFT($A69,2)="D*",VLOOKUP($C69,'1. Checklist & Certification'!$H$20:$I$25,2),IF(LEFT($A69,2)="E*",VLOOKUP($C69,'1. Checklist & Certification'!$J$20:$K$25,2),VLOOKUP($C69,'1. Checklist & Certification'!$I$8:$J$13,2)))))),0),"")) ->  | T69: =IF(AND(D69="FWHG",G69<>""),"",IF(A69="","",IF(OR(B69="",C69="",D69="",I69="",J69="",K69="",N69=""),"#N/A",IF(D69<>"OR",IF(N69>M69,"P-RENT; ","")&IF(B69="Vacant","VACANT",IF(I69=0,"NO INCOME; ",IF(I69>H69,"OVER INCOME; ",""))&IF(B69>=VLOOKUP(C69,'1. Checklist & Certification'!$AN$3:$AO$8,2),"","U-OCCUP")),"")))) ->  | W69: 0 | X69: 0
H70: =IF(AND(D70="FWHG",G70<>""),"",IF(B70="Vacant","Vacant",IF(J70<>"",INDEX('1. Checklist & Certification'!$AC$3:$AK$21,MATCH(J70,'1. Checklist & Certification'!$AB$3:$AB$21,0),MATCH(B70,'1. Checklist & Certification'!$AC$2:$AK$2,0)),""))) ->  | L70: =IF(AND(D70="FWHG",G70<>""),"",IF(J70>1,INDEX('1. Checklist & Certification'!$BD$3:$BI$20,MATCH(J70,'1. Checklist & Certification'!$BC$3:$BC$20,0),MATCH(C70,'1. Checklist & Certification'!$BD$2:$BI$2,0)),"")) ->  | M70: =IF(AND(D70="FWHG",G70<>""),"",IFERROR(ROUNDUP(IF($L70="","",$L70-IF(LEFT($A70,2)="B*",VLOOKUP($C70,'1. Checklist & Certification'!$D$20:$E$25,2),IF(LEFT($A70,2)="C*",VLOOKUP($C70,'1. Checklist & Certification'!$F$20:$G$25,2),IF(LEFT($A70,2)="D*",VLOOKUP($C70,'1. Checklist & Certification'!$H$20:$I$25,2),IF(LEFT($A70,2)="E*",VLOOKUP($C70,'1. Checklist & Certification'!$J$20:$K$25,2),VLOOKUP($C70,'1. Checklist & Certification'!$I$8:$J$13,2)))))),0),"")) ->  | T70: =IF(AND(D70="FWHG",G70<>""),"",IF(A70="","",IF(OR(B70="",C70="",D70="",I70="",J70="",K70="",N70=""),"#N/A",IF(D70<>"OR",IF(N70>M70,"P-RENT; ","")&IF(B70="Vacant","VACANT",IF(I70=0,"NO INCOME; ",IF(I70>H70,"OVER INCOME; ",""))&IF(B70>=VLOOKUP(C70,'1. Checklist & Certification'!$AN$3:$AO$8,2),"","U-OCCUP")),"")))) ->  | W70: 0 | X70: 0
H71: =IF(AND(D71="FWHG",G71<>""),"",IF(B71="Vacant","Vacant",IF(J71<>"",INDEX('1. Checklist & Certification'!$AC$3:$AK$21,MATCH(J71,'1. Checklist & Certification'!$AB$3:$AB$21,0),MATCH(B71,'1. Checklist & Certification'!$AC$2:$AK$2,0)),""))) ->  | L71: =IF(AND(D71="FWHG",G71<>""),"",IF(J71>1,INDEX('1. Checklist & Certification'!$BD$3:$BI$20,MATCH(J71,'1. Checklist & Certification'!$BC$3:$BC$20,0),MATCH(C71,'1. Checklist & Certification'!$BD$2:$BI$2,0)),"")) ->  | M71: =IF(AND(D71="FWHG",G71<>""),"",IFERROR(ROUNDUP(IF($L71="","",$L71-IF(LEFT($A71,2)="B*",VLOOKUP($C71,'1. Checklist & Certification'!$D$20:$E$25,2),IF(LEFT($A71,2)="C*",VLOOKUP($C71,'1. Checklist & Certification'!$F$20:$G$25,2),IF(LEFT($A71,2)="D*",VLOOKUP($C71,'1. Checklist & Certification'!$H$20:$I$25,2),IF(LEFT($A71,2)="E*",VLOOKUP($C71,'1. Checklist & Certification'!$J$20:$K$25,2),VLOOKUP($C71,'1. Checklist & Certification'!$I$8:$J$13,2)))))),0),"")) ->  | T71: =IF(AND(D71="FWHG",G71<>""),"",IF(A71="","",IF(OR(B71="",C71="",D71="",I71="",J71="",K71="",N71=""),"#N/A",IF(D71<>"OR",IF(N71>M71,"P-RENT; ","")&IF(B71="Vacant","VACANT",IF(I71=0,"NO INCOME; ",IF(I71>H71,"OVER INCOME; ",""))&IF(B71>=VLOOKUP(C71,'1. Checklist & Certification'!$AN$3:$AO$8,2),"","U-OCCUP")),"")))) ->  | W71: 0 | X71: 0
H72: =IF(AND(D72="FWHG",G72<>""),"",IF(B72="Vacant","Vacant",IF(J72<>"",INDEX('1. Checklist & Certification'!$AC$3:$AK$21,MATCH(J72,'1. Checklist & Certification'!$AB$3:$AB$21,0),MATCH(B72,'1. Checklist & Certification'!$AC$2:$AK$2,0)),""))) ->  | L72: =IF(AND(D72="FWHG",G72<>""),"",IF(J72>1,INDEX('1. Checklist & Certification'!$BD$3:$BI$20,MATCH(J72,'1. Checklist & Certification'!$BC$3:$BC$20,0),MATCH(C72,'1. Checklist & Certification'!$BD$2:$BI$2,0)),"")) ->  | M72: =IF(AND(D72="FWHG",G72<>""),"",IFERROR(ROUNDUP(IF($L72="","",$L72-IF(LEFT($A72,2)="B*",VLOOKUP($C72,'1. Checklist & Certification'!$D$20:$E$25,2),IF(LEFT($A72,2)="C*",VLOOKUP($C72,'1. Checklist & Certification'!$F$20:$G$25,2),IF(LEFT($A72,2)="D*",VLOOKUP($C72,'1. Checklist & Certification'!$H$20:$I$25,2),IF(LEFT($A72,2)="E*",VLOOKUP($C72,'1. Checklist & Certification'!$J$20:$K$25,2),VLOOKUP($C72,'1. Checklist & Certification'!$I$8:$J$13,2)))))),0),"")) ->  | T72: =IF(AND(D72="FWHG",G72<>""),"",IF(A72="","",IF(OR(B72="",C72="",D72="",I72="",J72="",K72="",N72=""),"#N/A",IF(D72<>"OR",IF(N72>M72,"P-RENT; ","")&IF(B72="Vacant","VACANT",IF(I72=0,"NO INCOME; ",IF(I72>H72,"OVER INCOME; ",""))&IF(B72>=VLOOKUP(C72,'1. Checklist & Certification'!$AN$3:$AO$8,2),"","U-OCCUP")),"")))) ->  | W72: 0 | X72: 0
H73: =IF(AND(D73="FWHG",G73<>""),"",IF(B73="Vacant","Vacant",IF(J73<>"",INDEX('1. Checklist & Certification'!$AC$3:$AK$21,MATCH(J73,'1. Checklist & Certification'!$AB$3:$AB$21,0),MATCH(B73,'1. Checklist & Certification'!$AC$2:$AK$2,0)),""))) ->  | L73: =IF(AND(D73="FWHG",G73<>""),"",IF(J73>1,INDEX('1. Checklist & Certification'!$BD$3:$BI$20,MATCH(J73,'1. Checklist & Certification'!$BC$3:$BC$20,0),MATCH(C73,'1. Checklist & Certification'!$BD$2:$BI$2,0)),"")) ->  | M73: =IF(AND(D73="FWHG",G73<>""),"",IFERROR(ROUNDUP(IF($L73="","",$L73-IF(LEFT($A73,2)="B*",VLOOKUP($C73,'1. Checklist & Certification'!$D$20:$E$25,2),IF(LEFT($A73,2)="C*",VLOOKUP($C73,'1. Checklist & Certification'!$F$20:$G$25,2),IF(LEFT($A73,2)="D*",VLOOKUP($C73,'1. Checklist & Certification'!$H$20:$I$25,2),IF(LEFT($A73,2)="E*",VLOOKUP($C73,'1. Checklist & Certification'!$J$20:$K$25,2),VLOOKUP($C73,'1. Checklist & Certification'!$I$8:$J$13,2)))))),0),"")) ->  | T73: =IF(AND(D73="FWHG",G73<>""),"",IF(A73="","",IF(OR(B73="",C73="",D73="",I73="",J73="",K73="",N73=""),"#N/A",IF(D73<>"OR",IF(N73>M73,"P-RENT; ","")&IF(B73="Vacant","VACANT",IF(I73=0,"NO INCOME; ",IF(I73>H73,"OVER INCOME; ",""))&IF(B73>=VLOOKUP(C73,'1. Checklist & Certification'!$AN$3:$AO$8,2),"","U-OCCUP")),"")))) ->  | W73: 0 | X73: 0
H74: =IF(AND(D74="FWHG",G74<>""),"",IF(B74="Vacant","Vacant",IF(J74<>"",INDEX('1. Checklist & Certification'!$AC$3:$AK$21,MATCH(J74,'1. Checklist & Certification'!$AB$3:$AB$21,0),MATCH(B74,'1. Checklist & Certification'!$AC$2:$AK$2,0)),""))) ->  | L74: =IF(AND(D74="FWHG",G74<>""),"",IF(J74>1,INDEX('1. Checklist & Certification'!$BD$3:$BI$20,MATCH(J74,'1. Checklist & Certification'!$BC$3:$BC$20,0),MATCH(C74,'1. Checklist & Certification'!$BD$2:$BI$2,0)),"")) ->  | M74: =IF(AND(D74="FWHG",G74<>""),"",IFERROR(ROUNDUP(IF($L74="","",$L74-IF(LEFT($A74,2)="B*",VLOOKUP($C74,'1. Checklist & Certification'!$D$20:$E$25,2),IF(LEFT($A74,2)="C*",VLOOKUP($C74,'1. Checklist & Certification'!$F$20:$G$25,2),IF(LEFT($A74,2)="D*",VLOOKUP($C74,'1. Checklist & Certification'!$H$20:$I$25,2),IF(LEFT($A74,2)="E*",VLOOKUP($C74,'1. Checklist & Certification'!$J$20:$K$25,2),VLOOKUP($C74,'1. Checklist & Certification'!$I$8:$J$13,2)))))),0),"")) ->  | T74: =IF(AND(D74="FWHG",G74<>""),"",IF(A74="","",IF(OR(B74="",C74="",D74="",I74="",J74="",K74="",N74=""),"#N/A",IF(D74<>"OR",IF(N74>M74,"P-RENT; ","")&IF(B74="Vacant","VACANT",IF(I74=0,"NO INCOME; ",IF(I74>H74,"OVER INCOME; ",""))&IF(B74>=VLOOKUP(C74,'1. Checklist & Certification'!$AN$3:$AO$8,2),"","U-OCCUP")),"")))) ->  | W74: 0 | X74: 0
H75: =IF(AND(D75="FWHG",G75<>""),"",IF(B75="Vacant","Vacant",IF(J75<>"",INDEX('1. Checklist & Certification'!$AC$3:$AK$21,MATCH(J75,'1. Checklist & Certification'!$AB$3:$AB$21,0),MATCH(B75,'1. Checklist & Certification'!$AC$2:$AK$2,0)),""))) ->  | L75: =IF(AND(D75="FWHG",G75<>""),"",IF(J75>1,INDEX('1. Checklist & Certification'!$BD$3:$BI$20,MATCH(J75,'1. Checklist & Certification'!$BC$3:$BC$20,0),MATCH(C75,'1. Checklist & Certification'!$BD$2:$BI$2,0)),"")) ->  | M75: =IF(AND(D75="FWHG",G75<>""),"",IFERROR(ROUNDUP(IF($L75="","",$L75-IF(LEFT($A75,2)="B*",VLOOKUP($C75,'1. Checklist & Certification'!$D$20:$E$25,2),IF(LEFT($A75,2)="C*",VLOOKUP($C75,'1. Checklist & Certification'!$F$20:$G$25,2),IF(LEFT($A75,2)="D*",VLOOKUP($C75,'1. Checklist & Certification'!$H$20:$I$25,2),IF(LEFT($A75,2)="E*",VLOOKUP($C75,'1. Checklist & Certification'!$J$20:$K$25,2),VLOOKUP($C75,'1. Checklist & Certification'!$I$8:$J$13,2)))))),0),"")) ->  | T75: =IF(AND(D75="FWHG",G75<>""),"",IF(A75="","",IF(OR(B75="",C75="",D75="",I75="",J75="",K75="",N75=""),"#N/A",IF(D75<>"OR",IF(N75>M75,"P-RENT; ","")&IF(B75="Vacant","VACANT",IF(I75=0,"NO INCOME; ",IF(I75>H75,"OVER INCOME; ",""))&IF(B75>=VLOOKUP(C75,'1. Checklist & Certification'!$AN$3:$AO$8,2),"","U-OCCUP")),"")))) ->  | W75: 0 | X75: 0
H76: =IF(AND(D76="FWHG",G76<>""),"",IF(B76="Vacant","Vacant",IF(J76<>"",INDEX('1. Checklist & Certification'!$AC$3:$AK$21,MATCH(J76,'1. Checklist & Certification'!$AB$3:$AB$21,0),MATCH(B76,'1. Checklist & Certification'!$AC$2:$AK$2,0)),""))) ->  | L76: =IF(AND(D76="FWHG",G76<>""),"",IF(J76>1,INDEX('1. Checklist & Certification'!$BD$3:$BI$20,MATCH(J76,'1. Checklist & Certification'!$BC$3:$BC$20,0),MATCH(C76,'1. Checklist & Certification'!$BD$2:$BI$2,0)),"")) ->  | M76: =IF(AND(D76="FWHG",G76<>""),"",IFERROR(ROUNDUP(IF($L76="","",$L76-IF(LEFT($A76,2)="B*",VLOOKUP($C76,'1. Checklist & Certification'!$D$20:$E$25,2),IF(LEFT($A76,2)="C*",VLOOKUP($C76,'1. Checklist & Certification'!$F$20:$G$25,2),IF(LEFT($A76,2)="D*",VLOOKUP($C76,'1. Checklist & Certification'!$H$20:$I$25,2),IF(LEFT($A76,2)="E*",VLOOKUP($C76,'1. Checklist & Certification'!$J$20:$K$25,2),VLOOKUP($C76,'1. Checklist & Certification'!$I$8:$J$13,2)))))),0),"")) ->  | T76: =IF(AND(D76="FWHG",G76<>""),"",IF(A76="","",IF(OR(B76="",C76="",D76="",I76="",J76="",K76="",N76=""),"#N/A",IF(D76<>"OR",IF(N76>M76,"P-RENT; ","")&IF(B76="Vacant","VACANT",IF(I76=0,"NO INCOME; ",IF(I76>H76,"OVER INCOME; ",""))&IF(B76>=VLOOKUP(C76,'1. Checklist & Certification'!$AN$3:$AO$8,2),"","U-OCCUP")),"")))) ->  | W76: 0 | X76: 0
H77: =IF(AND(D77="FWHG",G77<>""),"",IF(B77="Vacant","Vacant",IF(J77<>"",INDEX('1. Checklist & Certification'!$AC$3:$AK$21,MATCH(J77,'1. Checklist & Certification'!$AB$3:$AB$21,0),MATCH(B77,'1. Checklist & Certification'!$AC$2:$AK$2,0)),""))) ->  | L77: =IF(AND(D77="FWHG",G77<>""),"",IF(J77>1,INDEX('1. Checklist & Certification'!$BD$3:$BI$20,MATCH(J77,'1. Checklist & Certification'!$BC$3:$BC$20,0),MATCH(C77,'1. Checklist & Certification'!$BD$2:$BI$2,0)),"")) ->  | M77: =IF(AND(D77="FWHG",G77<>""),"",IFERROR(ROUNDUP(IF($L77="","",$L77-IF(LEFT($A77,2)="B*",VLOOKUP($C77,'1. Checklist & Certification'!$D$20:$E$25,2),IF(LEFT($A77,2)="C*",VLOOKUP($C77,'1. Checklist & Certification'!$F$20:$G$25,2),IF(LEFT($A77,2)="D*",VLOOKUP($C77,'1. Checklist & Certification'!$H$20:$I$25,2),IF(LEFT($A77,2)="E*",VLOOKUP($C77,'1. Checklist & Certification'!$J$20:$K$25,2),VLOOKUP($C77,'1. Checklist & Certification'!$I$8:$J$13,2)))))),0),"")) ->  | T77: =IF(AND(D77="FWHG",G77<>""),"",IF(A77="","",IF(OR(B77="",C77="",D77="",I77="",J77="",K77="",N77=""),"#N/A",IF(D77<>"OR",IF(N77>M77,"P-RENT; ","")&IF(B77="Vacant","VACANT",IF(I77=0,"NO INCOME; ",IF(I77>H77,"OVER INCOME; ",""))&IF(B77>=VLOOKUP(C77,'1. Checklist & Certification'!$AN$3:$AO$8,2),"","U-OCCUP")),"")))) ->  | W77: 0 | X77: 0
H78: =IF(AND(D78="FWHG",G78<>""),"",IF(B78="Vacant","Vacant",IF(J78<>"",INDEX('1. Checklist & Certification'!$AC$3:$AK$21,MATCH(J78,'1. Checklist & Certification'!$AB$3:$AB$21,0),MATCH(B78,'1. Checklist & Certification'!$AC$2:$AK$2,0)),""))) ->  | L78: =IF(AND(D78="FWHG",G78<>""),"",IF(J78>1,INDEX('1. Checklist & Certification'!$BD$3:$BI$20,MATCH(J78,'1. Checklist & Certification'!$BC$3:$BC$20,0),MATCH(C78,'1. Checklist & Certification'!$BD$2:$BI$2,0)),"")) ->  | M78: =IF(AND(D78="FWHG",G78<>""),"",IFERROR(ROUNDUP(IF($L78="","",$L78-IF(LEFT($A78,2)="B*",VLOOKUP($C78,'1. Checklist & Certification'!$D$20:$E$25,2),IF(LEFT($A78,2)="C*",VLOOKUP($C78,'1. Checklist & Certification'!$F$20:$G$25,2),IF(LEFT($A78,2)="D*",VLOOKUP($C78,'1. Checklist & Certification'!$H$20:$I$25,2),IF(LEFT($A78,2)="E*",VLOOKUP($C78,'1. Checklist & Certification'!$J$20:$K$25,2),VLOOKUP($C78,'1. Checklist & Certification'!$I$8:$J$13,2)))))),0),"")) ->  | T78: =IF(AND(D78="FWHG",G78<>""),"",IF(A78="","",IF(OR(B78="",C78="",D78="",I78="",J78="",K78="",N78=""),"#N/A",IF(D78<>"OR",IF(N78>M78,"P-RENT; ","")&IF(B78="Vacant","VACANT",IF(I78=0,"NO INCOME; ",IF(I78>H78,"OVER INCOME; ",""))&IF(B78>=VLOOKUP(C78,'1. Checklist & Certification'!$AN$3:$AO$8,2),"","U-OCCUP")),"")))) ->  | W78: 0 | X78: 0
H79: =IF(AND(D79="FWHG",G79<>""),"",IF(B79="Vacant","Vacant",IF(J79<>"",INDEX('1. Checklist & Certification'!$AC$3:$AK$21,MATCH(J79,'1. Checklist & Certification'!$AB$3:$AB$21,0),MATCH(B79,'1. Checklist & Certification'!$AC$2:$AK$2,0)),""))) ->  | L79: =IF(AND(D79="FWHG",G79<>""),"",IF(J79>1,INDEX('1. Checklist & Certification'!$BD$3:$BI$20,MATCH(J79,'1. Checklist & Certification'!$BC$3:$BC$20,0),MATCH(C79,'1. Checklist & Certification'!$BD$2:$BI$2,0)),"")) ->  | M79: =IF(AND(D79="FWHG",G79<>""),"",IFERROR(ROUNDUP(IF($L79="","",$L79-IF(LEFT($A79,2)="B*",VLOOKUP($C79,'1. Checklist & Certification'!$D$20:$E$25,2),IF(LEFT($A79,2)="C*",VLOOKUP($C79,'1. Checklist & Certification'!$F$20:$G$25,2),IF(LEFT($A79,2)="D*",VLOOKUP($C79,'1. Checklist & Certification'!$H$20:$I$25,2),IF(LEFT($A79,2)="E*",VLOOKUP($C79,'1. Checklist & Certification'!$J$20:$K$25,2),VLOOKUP($C79,'1. Checklist & Certification'!$I$8:$J$13,2)))))),0),"")) ->  | T79: =IF(AND(D79="FWHG",G79<>""),"",IF(A79="","",IF(OR(B79="",C79="",D79="",I79="",J79="",K79="",N79=""),"#N/A",IF(D79<>"OR",IF(N79>M79,"P-RENT; ","")&IF(B79="Vacant","VACANT",IF(I79=0,"NO INCOME; ",IF(I79>H79,"OVER INCOME; ",""))&IF(B79>=VLOOKUP(C79,'1. Checklist & Certification'!$AN$3:$AO$8,2),"","U-OCCUP")),"")))) ->  | W79: 0 | X79: 0
H80: =IF(AND(D80="FWHG",G80<>""),"",IF(B80="Vacant","Vacant",IF(J80<>"",INDEX('1. Checklist & Certification'!$AC$3:$AK$21,MATCH(J80,'1. Checklist & Certification'!$AB$3:$AB$21,0),MATCH(B80,'1. Checklist & Certification'!$AC$2:$AK$2,0)),""))) ->  | L80: =IF(AND(D80="FWHG",G80<>""),"",IF(J80>1,INDEX('1. Checklist & Certification'!$BD$3:$BI$20,MATCH(J80,'1. Checklist & Certification'!$BC$3:$BC$20,0),MATCH(C80,'1. Checklist & Certification'!$BD$2:$BI$2,0)),"")) ->  | M80: =IF(AND(D80="FWHG",G80<>""),"",IFERROR(ROUNDUP(IF($L80="","",$L80-IF(LEFT($A80,2)="B*",VLOOKUP($C80,'1. Checklist & Certification'!$D$20:$E$25,2),IF(LEFT($A80,2)="C*",VLOOKUP($C80,'1. Checklist & Certification'!$F$20:$G$25,2),IF(LEFT($A80,2)="D*",VLOOKUP($C80,'1. Checklist & Certification'!$H$20:$I$25,2),IF(LEFT($A80,2)="E*",VLOOKUP($C80,'1. Checklist & Certification'!$J$20:$K$25,2),VLOOKUP($C80,'1. Checklist & Certification'!$I$8:$J$13,2)))))),0),"")) ->  | T80: =IF(AND(D80="FWHG",G80<>""),"",IF(A80="","",IF(OR(B80="",C80="",D80="",I80="",J80="",K80="",N80=""),"#N/A",IF(D80<>"OR",IF(N80>M80,"P-RENT; ","")&IF(B80="Vacant","VACANT",IF(I80=0,"NO INCOME; ",IF(I80>H80,"OVER INCOME; ",""))&IF(B80>=VLOOKUP(C80,'1. Checklist & Certification'!$AN$3:$AO$8,2),"","U-OCCUP")),"")))) ->  | W80: 0 | X80: 0
H81: =IF(AND(D81="FWHG",G81<>""),"",IF(B81="Vacant","Vacant",IF(J81<>"",INDEX('1. Checklist & Certification'!$AC$3:$AK$21,MATCH(J81,'1. Checklist & Certification'!$AB$3:$AB$21,0),MATCH(B81,'1. Checklist & Certification'!$AC$2:$AK$2,0)),""))) ->  | L81: =IF(AND(D81="FWHG",G81<>""),"",IF(J81>1,INDEX('1. Checklist & Certification'!$BD$3:$BI$20,MATCH(J81,'1. Checklist & Certification'!$BC$3:$BC$20,0),MATCH(C81,'1. Checklist & Certification'!$BD$2:$BI$2,0)),"")) ->  | M81: =IF(AND(D81="FWHG",G81<>""),"",IFERROR(ROUNDUP(IF($L81="","",$L81-IF(LEFT($A81,2)="B*",VLOOKUP($C81,'1. Checklist & Certification'!$D$20:$E$25,2),IF(LEFT($A81,2)="C*",VLOOKUP($C81,'1. Checklist & Certification'!$F$20:$G$25,2),IF(LEFT($A81,2)="D*",VLOOKUP($C81,'1. Checklist & Certification'!$H$20:$I$25,2),IF(LEFT($A81,2)="E*",VLOOKUP($C81,'1. Checklist & Certification'!$J$20:$K$25,2),VLOOKUP($C81,'1. Checklist & Certification'!$I$8:$J$13,2)))))),0),"")) ->  | T81: =IF(AND(D81="FWHG",G81<>""),"",IF(A81="","",IF(OR(B81="",C81="",D81="",I81="",J81="",K81="",N81=""),"#N/A",IF(D81<>"OR",IF(N81>M81,"P-RENT; ","")&IF(B81="Vacant","VACANT",IF(I81=0,"NO INCOME; ",IF(I81>H81,"OVER INCOME; ",""))&IF(B81>=VLOOKUP(C81,'1. Checklist & Certification'!$AN$3:$AO$8,2),"","U-OCCUP")),"")))) ->  | W81: 0 | X81: 0
H82: =IF(AND(D82="FWHG",G82<>""),"",IF(B82="Vacant","Vacant",IF(J82<>"",INDEX('1. Checklist & Certification'!$AC$3:$AK$21,MATCH(J82,'1. Checklist & Certification'!$AB$3:$AB$21,0),MATCH(B82,'1. Checklist & Certification'!$AC$2:$AK$2,0)),""))) ->  | L82: =IF(AND(D82="FWHG",G82<>""),"",IF(J82>1,INDEX('1. Checklist & Certification'!$BD$3:$BI$20,MATCH(J82,'1. Checklist & Certification'!$BC$3:$BC$20,0),MATCH(C82,'1. Checklist & Certification'!$BD$2:$BI$2,0)),"")) ->  | M82: =IF(AND(D82="FWHG",G82<>""),"",IFERROR(ROUNDUP(IF($L82="","",$L82-IF(LEFT($A82,2)="B*",VLOOKUP($C82,'1. Checklist & Certification'!$D$20:$E$25,2),IF(LEFT($A82,2)="C*",VLOOKUP($C82,'1. Checklist & Certification'!$F$20:$G$25,2),IF(LEFT($A82,2)="D*",VLOOKUP($C82,'1. Checklist & Certification'!$H$20:$I$25,2),IF(LEFT($A82,2)="E*",VLOOKUP($C82,'1. Checklist & Certification'!$J$20:$K$25,2),VLOOKUP($C82,'1. Checklist & Certification'!$I$8:$J$13,2)))))),0),"")) ->  | O82: =IF(N82-K82>0,N82-K82,"") ->  | R82: =IF(SUM((N82+Q82)*12)>0,SUM(N82+Q82)*12,"") ->  | T82: =IF(AND(D82="FWHG",G82<>""),"",IF(A82="","",IF(OR(B82="",C82="",D82="",I82="",J82="",K82="",N82=""),"#N/A",IF(D82<>"OR",IF(N82>M82,"P-RENT; ","")&IF(B82="Vacant","VACANT",IF(I82=0,"NO INCOME; ",IF(I82>H82,"OVER INCOME; ",""))&IF(B82>=VLOOKUP(C82,'1. Checklist & Certification'!$AN$3:$AO$8,2),"","U-OCCUP")),"")))) ->  | W82: 0 | X82: 0
H83: =IF(AND(D83="FWHG",G83<>""),"",IF(B83="Vacant","Vacant",IF(J83<>"",INDEX('1. Checklist & Certification'!$AC$3:$AK$21,MATCH(J83,'1. Checklist & Certification'!$AB$3:$AB$21,0),MATCH(B83,'1. Checklist & Certification'!$AC$2:$AK$2,0)),""))) ->  | L83: =IF(AND(D83="FWHG",G83<>""),"",IF(J83>1,INDEX('1. Checklist & Certification'!$BD$3:$BI$20,MATCH(J83,'1. Checklist & Certification'!$BC$3:$BC$20,0),MATCH(C83,'1. Checklist & Certification'!$BD$2:$BI$2,0)),"")) ->  | M83: =IF(AND(D83="FWHG",G83<>""),"",IFERROR(ROUNDUP(IF($L83="","",$L83-IF(LEFT($A83,2)="B*",VLOOKUP($C83,'1. Checklist & Certification'!$D$20:$E$25,2),IF(LEFT($A83,2)="C*",VLOOKUP($C83,'1. Checklist & Certification'!$F$20:$G$25,2),IF(LEFT($A83,2)="D*",VLOOKUP($C83,'1. Checklist & Certification'!$H$20:$I$25,2),IF(LEFT($A83,2)="E*",VLOOKUP($C83,'1. Checklist & Certification'!$J$20:$K$25,2),VLOOKUP($C83,'1. Checklist & Certification'!$I$8:$J$13,2)))))),0),"")) ->  | P83: =IF($AK$16=TRUE,N83,"") ->  | S83: =IF(P83="","",(P83+Q83)*12) ->  | T83: =IF(AND(D83="FWHG",G83<>""),"",IF(A83="","",IF(OR(B83="",C83="",D83="",I83="",J83="",K83="",N83=""),"#N/A",IF(D83<>"OR",IF(N83>M83,"P-RENT; ","")&IF(B83="Vacant","VACANT",IF(I83=0,"NO INCOME; ",IF(I83>H83,"OVER INCOME; ",""))&IF(B83>=VLOOKUP(C83,'1. Checklist & Certification'!$AN$3:$AO$8,2),"","U-OCCUP")),"")))) ->  | V83: =IF(B83="Vacant","",IF(OR(G83="",I83=""),"",I83*0.3/12)) ->  | W83: =IF(B83="Vacant",0,IF(OR(G83="",I83=""),0,(K83*12)/I83)) -> 0 | X83: =IF(B83="Vacant",0,IF(OR(G83="",I83=""),0,(N83*12)/I83)) -> 0
H84: =IF(AND(D84="FWHG",G84<>""),"",IF(B84="Vacant","Vacant",IF(J84<>"",INDEX('1. Checklist & Certification'!$AC$3:$AK$21,MATCH(J84,'1. Checklist & Certification'!$AB$3:$AB$21,0),MATCH(B84,'1. Checklist & Certification'!$AC$2:$AK$2,0)),""))) ->  | L84: =IF(AND(D84="FWHG",G84<>""),"",IF(J84>1,INDEX('1. Checklist & Certification'!$BD$3:$BI$20,MATCH(J84,'1. Checklist & Certification'!$BC$3:$BC$20,0),MATCH(C84,'1. Checklist & Certification'!$BD$2:$BI$2,0)),"")) ->  | M84: =IF(AND(D84="FWHG",G84<>""),"",IFERROR(ROUNDUP(IF($L84="","",$L84-IF(LEFT($A84,2)="B*",VLOOKUP($C84,'1. Checklist & Certification'!$D$20:$E$25,2),IF(LEFT($A84,2)="C*",VLOOKUP($C84,'1. Checklist & Certification'!$F$20:$G$25,2),IF(LEFT($A84,2)="D*",VLOOKUP($C84,'1. Checklist & Certification'!$H$20:$I$25,2),IF(LEFT($A84,2)="E*",VLOOKUP($C84,'1. Checklist & Certification'!$J$20:$K$25,2),VLOOKUP($C84,'1. Checklist & Certification'!$I$8:$J$13,2)))))),0),"")) ->  | T84: =IF(AND(D84="FWHG",G84<>""),"",IF(A84="","",IF(OR(B84="",C84="",D84="",I84="",J84="",K84="",N84=""),"#N/A",IF(D84<>"OR",IF(N84>M84,"P-RENT; ","")&IF(B84="Vacant","VACANT",IF(I84=0,"NO INCOME; ",IF(I84>H84,"OVER INCOME; ",""))&IF(B84>=VLOOKUP(C84,'1. Checklist & Certification'!$AN$3:$AO$8,2),"","U-OCCUP")),"")))) ->  | W84: 0 | X84: 0
H85: =IF(AND(D85="FWHG",G85<>""),"",IF(B85="Vacant","Vacant",IF(J85<>"",INDEX('1. Checklist & Certification'!$AC$3:$AK$21,MATCH(J85,'1. Checklist & Certification'!$AB$3:$AB$21,0),MATCH(B85,'1. Checklist & Certification'!$AC$2:$AK$2,0)),""))) ->  | L85: =IF(AND(D85="FWHG",G85<>""),"",IF(J85>1,INDEX('1. Checklist & Certification'!$BD$3:$BI$20,MATCH(J85,'1. Checklist & Certification'!$BC$3:$BC$20,0),MATCH(C85,'1. Checklist & Certification'!$BD$2:$BI$2,0)),"")) ->  | M85: =IF(AND(D85="FWHG",G85<>""),"",IFERROR(ROUNDUP(IF($L85="","",$L85-IF(LEFT($A85,2)="B*",VLOOKUP($C85,'1. Checklist & Certification'!$D$20:$E$25,2),IF(LEFT($A85,2)="C*",VLOOKUP($C85,'1. Checklist & Certification'!$F$20:$G$25,2),IF(LEFT($A85,2)="D*",VLOOKUP($C85,'1. Checklist & Certification'!$H$20:$I$25,2),IF(LEFT($A85,2)="E*",VLOOKUP($C85,'1. Checklist & Certification'!$J$20:$K$25,2),VLOOKUP($C85,'1. Checklist & Certification'!$I$8:$J$13,2)))))),0),"")) ->  | T85: =IF(AND(D85="FWHG",G85<>""),"",IF(A85="","",IF(OR(B85="",C85="",D85="",I85="",J85="",K85="",N85=""),"#N/A",IF(D85<>"OR",IF(N85>M85,"P-RENT; ","")&IF(B85="Vacant","VACANT",IF(I85=0,"NO INCOME; ",IF(I85>H85,"OVER INCOME; ",""))&IF(B85>=VLOOKUP(C85,'1. Checklist & Certification'!$AN$3:$AO$8,2),"","U-OCCUP")),"")))) ->  | W85: 0 | X85: 0
H86: =IF(AND(D86="FWHG",G86<>""),"",IF(B86="Vacant","Vacant",IF(J86<>"",INDEX('1. Checklist & Certification'!$AC$3:$AK$21,MATCH(J86,'1. Checklist & Certification'!$AB$3:$AB$21,0),MATCH(B86,'1. Checklist & Certification'!$AC$2:$AK$2,0)),""))) ->  | L86: =IF(AND(D86="FWHG",G86<>""),"",IF(J86>1,INDEX('1. Checklist & Certification'!$BD$3:$BI$20,MATCH(J86,'1. Checklist & Certification'!$BC$3:$BC$20,0),MATCH(C86,'1. Checklist & Certification'!$BD$2:$BI$2,0)),"")) ->  | M86: =IF(AND(D86="FWHG",G86<>""),"",IFERROR(ROUNDUP(IF($L86="","",$L86-IF(LEFT($A86,2)="B*",VLOOKUP($C86,'1. Checklist & Certification'!$D$20:$E$25,2),IF(LEFT($A86,2)="C*",VLOOKUP($C86,'1. Checklist & Certification'!$F$20:$G$25,2),IF(LEFT($A86,2)="D*",VLOOKUP($C86,'1. Checklist & Certification'!$H$20:$I$25,2),IF(LEFT($A86,2)="E*",VLOOKUP($C86,'1. Checklist & Certification'!$J$20:$K$25,2),VLOOKUP($C86,'1. Checklist & Certification'!$I$8:$J$13,2)))))),0),"")) ->  | T86: =IF(AND(D86="FWHG",G86<>""),"",IF(A86="","",IF(OR(B86="",C86="",D86="",I86="",J86="",K86="",N86=""),"#N/A",IF(D86<>"OR",IF(N86>M86,"P-RENT; ","")&IF(B86="Vacant","VACANT",IF(I86=0,"NO INCOME; ",IF(I86>H86,"OVER INCOME; ",""))&IF(B86>=VLOOKUP(C86,'1. Checklist & Certification'!$AN$3:$AO$8,2),"","U-OCCUP")),"")))) ->  | W86: 0 | X86: 0
H87: =IF(AND(D87="FWHG",G87<>""),"",IF(B87="Vacant","Vacant",IF(J87<>"",INDEX('1. Checklist & Certification'!$AC$3:$AK$21,MATCH(J87,'1. Checklist & Certification'!$AB$3:$AB$21,0),MATCH(B87,'1. Checklist & Certification'!$AC$2:$AK$2,0)),""))) ->  | L87: =IF(AND(D87="FWHG",G87<>""),"",IF(J87>1,INDEX('1. Checklist & Certification'!$BD$3:$BI$20,MATCH(J87,'1. Checklist & Certification'!$BC$3:$BC$20,0),MATCH(C87,'1. Checklist & Certification'!$BD$2:$BI$2,0)),"")) ->  | M87: =IF(AND(D87="FWHG",G87<>""),"",IFERROR(ROUNDUP(IF($L87="","",$L87-IF(LEFT($A87,2)="B*",VLOOKUP($C87,'1. Checklist & Certification'!$D$20:$E$25,2),IF(LEFT($A87,2)="C*",VLOOKUP($C87,'1. Checklist & Certification'!$F$20:$G$25,2),IF(LEFT($A87,2)="D*",VLOOKUP($C87,'1. Checklist & Certification'!$H$20:$I$25,2),IF(LEFT($A87,2)="E*",VLOOKUP($C87,'1. Checklist & Certification'!$J$20:$K$25,2),VLOOKUP($C87,'1. Checklist & Certification'!$I$8:$J$13,2)))))),0),"")) ->  | T87: =IF(AND(D87="FWHG",G87<>""),"",IF(A87="","",IF(OR(B87="",C87="",D87="",I87="",J87="",K87="",N87=""),"#N/A",IF(D87<>"OR",IF(N87>M87,"P-RENT; ","")&IF(B87="Vacant","VACANT",IF(I87=0,"NO INCOME; ",IF(I87>H87,"OVER INCOME; ",""))&IF(B87>=VLOOKUP(C87,'1. Checklist & Certification'!$AN$3:$AO$8,2),"","U-OCCUP")),"")))) ->  | W87: 0 | X87: 0
H88: =IF(AND(D88="FWHG",G88<>""),"",IF(B88="Vacant","Vacant",IF(J88<>"",INDEX('1. Checklist & Certification'!$AC$3:$AK$21,MATCH(J88,'1. Checklist & Certification'!$AB$3:$AB$21,0),MATCH(B88,'1. Checklist & Certification'!$AC$2:$AK$2,0)),""))) ->  | L88: =IF(AND(D88="FWHG",G88<>""),"",IF(J88>1,INDEX('1. Checklist & Certification'!$BD$3:$BI$20,MATCH(J88,'1. Checklist & Certification'!$BC$3:$BC$20,0),MATCH(C88,'1. Checklist & Certification'!$BD$2:$BI$2,0)),"")) ->  | M88: =IF(AND(D88="FWHG",G88<>""),"",IFERROR(ROUNDUP(IF($L88="","",$L88-IF(LEFT($A88,2)="B*",VLOOKUP($C88,'1. Checklist & Certification'!$D$20:$E$25,2),IF(LEFT($A88,2)="C*",VLOOKUP($C88,'1. Checklist & Certification'!$F$20:$G$25,2),IF(LEFT($A88,2)="D*",VLOOKUP($C88,'1. Checklist & Certification'!$H$20:$I$25,2),IF(LEFT($A88,2)="E*",VLOOKUP($C88,'1. Checklist & Certification'!$J$20:$K$25,2),VLOOKUP($C88,'1. Checklist & Certification'!$I$8:$J$13,2)))))),0),"")) ->  | T88: =IF(AND(D88="FWHG",G88<>""),"",IF(A88="","",IF(OR(B88="",C88="",D88="",I88="",J88="",K88="",N88=""),"#N/A",IF(D88<>"OR",IF(N88>M88,"P-RENT; ","")&IF(B88="Vacant","VACANT",IF(I88=0,"NO INCOME; ",IF(I88>H88,"OVER INCOME; ",""))&IF(B88>=VLOOKUP(C88,'1. Checklist & Certification'!$AN$3:$AO$8,2),"","U-OCCUP")),"")))) ->  | W88: 0 | X88: 0
H89: =IF(AND(D89="FWHG",G89<>""),"",IF(B89="Vacant","Vacant",IF(J89<>"",INDEX('1. Checklist & Certification'!$AC$3:$AK$21,MATCH(J89,'1. Checklist & Certification'!$AB$3:$AB$21,0),MATCH(B89,'1. Checklist & Certification'!$AC$2:$AK$2,0)),""))) ->  | L89: =IF(AND(D89="FWHG",G89<>""),"",IF(J89>1,INDEX('1. Checklist & Certification'!$BD$3:$BI$20,MATCH(J89,'1. Checklist & Certification'!$BC$3:$BC$20,0),MATCH(C89,'1. Checklist & Certification'!$BD$2:$BI$2,0)),"")) ->  | M89: =IF(AND(D89="FWHG",G89<>""),"",IFERROR(ROUNDUP(IF($L89="","",$L89-IF(LEFT($A89,2)="B*",VLOOKUP($C89,'1. Checklist & Certification'!$D$20:$E$25,2),IF(LEFT($A89,2)="C*",VLOOKUP($C89,'1. Checklist & Certification'!$F$20:$G$25,2),IF(LEFT($A89,2)="D*",VLOOKUP($C89,'1. Checklist & Certification'!$H$20:$I$25,2),IF(LEFT($A89,2)="E*",VLOOKUP($C89,'1. Checklist & Certification'!$J$20:$K$25,2),VLOOKUP($C89,'1. Checklist & Certification'!$I$8:$J$13,2)))))),0),"")) ->  | T89: =IF(AND(D89="FWHG",G89<>""),"",IF(A89="","",IF(OR(B89="",C89="",D89="",I89="",J89="",K89="",N89=""),"#N/A",IF(D89<>"OR",IF(N89>M89,"P-RENT; ","")&IF(B89="Vacant","VACANT",IF(I89=0,"NO INCOME; ",IF(I89>H89,"OVER INCOME; ",""))&IF(B89>=VLOOKUP(C89,'1. Checklist & Certification'!$AN$3:$AO$8,2),"","U-OCCUP")),"")))) ->  | W89: 0 | X89: 0
H90: =IF(AND(D90="FWHG",G90<>""),"",IF(B90="Vacant","Vacant",IF(J90<>"",INDEX('1. Checklist & Certification'!$AC$3:$AK$21,MATCH(J90,'1. Checklist & Certification'!$AB$3:$AB$21,0),MATCH(B90,'1. Checklist & Certification'!$AC$2:$AK$2,0)),""))) ->  | L90: =IF(AND(D90="FWHG",G90<>""),"",IF(J90>1,INDEX('1. Checklist & Certification'!$BD$3:$BI$20,MATCH(J90,'1. Checklist & Certification'!$BC$3:$BC$20,0),MATCH(C90,'1. Checklist & Certification'!$BD$2:$BI$2,0)),"")) ->  | M90: =IF(AND(D90="FWHG",G90<>""),"",IFERROR(ROUNDUP(IF($L90="","",$L90-IF(LEFT($A90,2)="B*",VLOOKUP($C90,'1. Checklist & Certification'!$D$20:$E$25,2),IF(LEFT($A90,2)="C*",VLOOKUP($C90,'1. Checklist & Certification'!$F$20:$G$25,2),IF(LEFT($A90,2)="D*",VLOOKUP($C90,'1. Checklist & Certification'!$H$20:$I$25,2),IF(LEFT($A90,2)="E*",VLOOKUP($C90,'1. Checklist & Certification'!$J$20:$K$25,2),VLOOKUP($C90,'1. Checklist & Certification'!$I$8:$J$13,2)))))),0),"")) ->  | T90: =IF(AND(D90="FWHG",G90<>""),"",IF(A90="","",IF(OR(B90="",C90="",D90="",I90="",J90="",K90="",N90=""),"#N/A",IF(D90<>"OR",IF(N90>M90,"P-RENT; ","")&IF(B90="Vacant","VACANT",IF(I90=0,"NO INCOME; ",IF(I90>H90,"OVER INCOME; ",""))&IF(B90>=VLOOKUP(C90,'1. Checklist & Certification'!$AN$3:$AO$8,2),"","U-OCCUP")),"")))) ->  | W90: 0 | X90: 0
H91: =IF(AND(D91="FWHG",G91<>""),"",IF(B91="Vacant","Vacant",IF(J91<>"",INDEX('1. Checklist & Certification'!$AC$3:$AK$21,MATCH(J91,'1. Checklist & Certification'!$AB$3:$AB$21,0),MATCH(B91,'1. Checklist & Certification'!$AC$2:$AK$2,0)),""))) ->  | L91: =IF(AND(D91="FWHG",G91<>""),"",IF(J91>1,INDEX('1. Checklist & Certification'!$BD$3:$BI$20,MATCH(J91,'1. Checklist & Certification'!$BC$3:$BC$20,0),MATCH(C91,'1. Checklist & Certification'!$BD$2:$BI$2,0)),"")) ->  | M91: =IF(AND(D91="FWHG",G91<>""),"",IFERROR(ROUNDUP(IF($L91="","",$L91-IF(LEFT($A91,2)="B*",VLOOKUP($C91,'1. Checklist & Certification'!$D$20:$E$25,2),IF(LEFT($A91,2)="C*",VLOOKUP($C91,'1. Checklist & Certification'!$F$20:$G$25,2),IF(LEFT($A91,2)="D*",VLOOKUP($C91,'1. Checklist & Certification'!$H$20:$I$25,2),IF(LEFT($A91,2)="E*",VLOOKUP($C91,'1. Checklist & Certification'!$J$20:$K$25,2),VLOOKUP($C91,'1. Checklist & Certification'!$I$8:$J$13,2)))))),0),"")) ->  | T91: =IF(AND(D91="FWHG",G91<>""),"",IF(A91="","",IF(OR(B91="",C91="",D91="",I91="",J91="",K91="",N91=""),"#N/A",IF(D91<>"OR",IF(N91>M91,"P-RENT; ","")&IF(B91="Vacant","VACANT",IF(I91=0,"NO INCOME; ",IF(I91>H91,"OVER INCOME; ",""))&IF(B91>=VLOOKUP(C91,'1. Checklist & Certification'!$AN$3:$AO$8,2),"","U-OCCUP")),"")))) ->  | W91: 0 | X91: 0
H92: =IF(AND(D92="FWHG",G92<>""),"",IF(B92="Vacant","Vacant",IF(J92<>"",INDEX('1. Checklist & Certification'!$AC$3:$AK$21,MATCH(J92,'1. Checklist & Certification'!$AB$3:$AB$21,0),MATCH(B92,'1. Checklist & Certification'!$AC$2:$AK$2,0)),""))) ->  | L92: =IF(AND(D92="FWHG",G92<>""),"",IF(J92>1,INDEX('1. Checklist & Certification'!$BD$3:$BI$20,MATCH(J92,'1. Checklist & Certification'!$BC$3:$BC$20,0),MATCH(C92,'1. Checklist & Certification'!$BD$2:$BI$2,0)),"")) ->  | M92: =IF(AND(D92="FWHG",G92<>""),"",IFERROR(ROUNDUP(IF($L92="","",$L92-IF(LEFT($A92,2)="B*",VLOOKUP($C92,'1. Checklist & Certification'!$D$20:$E$25,2),IF(LEFT($A92,2)="C*",VLOOKUP($C92,'1. Checklist & Certification'!$F$20:$G$25,2),IF(LEFT($A92,2)="D*",VLOOKUP($C92,'1. Checklist & Certification'!$H$20:$I$25,2),IF(LEFT($A92,2)="E*",VLOOKUP($C92,'1. Checklist & Certification'!$J$20:$K$25,2),VLOOKUP($C92,'1. Checklist & Certification'!$I$8:$J$13,2)))))),0),"")) ->  | T92: =IF(AND(D92="FWHG",G92<>""),"",IF(A92="","",IF(OR(B92="",C92="",D92="",I92="",J92="",K92="",N92=""),"#N/A",IF(D92<>"OR",IF(N92>M92,"P-RENT; ","")&IF(B92="Vacant","VACANT",IF(I92=0,"NO INCOME; ",IF(I92>H92,"OVER INCOME; ",""))&IF(B92>=VLOOKUP(C92,'1. Checklist & Certification'!$AN$3:$AO$8,2),"","U-OCCUP")),"")))) ->  | W92: 0 | X92: 0
H93: =IF(AND(D93="FWHG",G93<>""),"",IF(B93="Vacant","Vacant",IF(J93<>"",INDEX('1. Checklist & Certification'!$AC$3:$AK$21,MATCH(J93,'1. Checklist & Certification'!$AB$3:$AB$21,0),MATCH(B93,'1. Checklist & Certification'!$AC$2:$AK$2,0)),""))) ->  | L93: =IF(AND(D93="FWHG",G93<>""),"",IF(J93>1,INDEX('1. Checklist & Certification'!$BD$3:$BI$20,MATCH(J93,'1. Checklist & Certification'!$BC$3:$BC$20,0),MATCH(C93,'1. Checklist & Certification'!$BD$2:$BI$2,0)),"")) ->  | M93: =IF(AND(D93="FWHG",G93<>""),"",IFERROR(ROUNDUP(IF($L93="","",$L93-IF(LEFT($A93,2)="B*",VLOOKUP($C93,'1. Checklist & Certification'!$D$20:$E$25,2),IF(LEFT($A93,2)="C*",VLOOKUP($C93,'1. Checklist & Certification'!$F$20:$G$25,2),IF(LEFT($A93,2)="D*",VLOOKUP($C93,'1. Checklist & Certification'!$H$20:$I$25,2),IF(LEFT($A93,2)="E*",VLOOKUP($C93,'1. Checklist & Certification'!$J$20:$K$25,2),VLOOKUP($C93,'1. Checklist & Certification'!$I$8:$J$13,2)))))),0),"")) ->  | T93: =IF(AND(D93="FWHG",G93<>""),"",IF(A93="","",IF(OR(B93="",C93="",D93="",I93="",J93="",K93="",N93=""),"#N/A",IF(D93<>"OR",IF(N93>M93,"P-RENT; ","")&IF(B93="Vacant","VACANT",IF(I93=0,"NO INCOME; ",IF(I93>H93,"OVER INCOME; ",""))&IF(B93>=VLOOKUP(C93,'1. Checklist & Certification'!$AN$3:$AO$8,2),"","U-OCCUP")),"")))) ->  | W93: 0 | X93: 0
H94: =IF(AND(D94="FWHG",G94<>""),"",IF(B94="Vacant","Vacant",IF(J94<>"",INDEX('1. Checklist & Certification'!$AC$3:$AK$21,MATCH(J94,'1. Checklist & Certification'!$AB$3:$AB$21,0),MATCH(B94,'1. Checklist & Certification'!$AC$2:$AK$2,0)),""))) ->  | L94: =IF(AND(D94="FWHG",G94<>""),"",IF(J94>1,INDEX('1. Checklist & Certification'!$BD$3:$BI$20,MATCH(J94,'1. Checklist & Certification'!$BC$3:$BC$20,0),MATCH(C94,'1. Checklist & Certification'!$BD$2:$BI$2,0)),"")) ->  | M94: =IF(AND(D94="FWHG",G94<>""),"",IFERROR(ROUNDUP(IF($L94="","",$L94-IF(LEFT($A94,2)="B*",VLOOKUP($C94,'1. Checklist & Certification'!$D$20:$E$25,2),IF(LEFT($A94,2)="C*",VLOOKUP($C94,'1. Checklist & Certification'!$F$20:$G$25,2),IF(LEFT($A94,2)="D*",VLOOKUP($C94,'1. Checklist & Certification'!$H$20:$I$25,2),IF(LEFT($A94,2)="E*",VLOOKUP($C94,'1. Checklist & Certification'!$J$20:$K$25,2),VLOOKUP($C94,'1. Checklist & Certification'!$I$8:$J$13,2)))))),0),"")) ->  | T94: =IF(AND(D94="FWHG",G94<>""),"",IF(A94="","",IF(OR(B94="",C94="",D94="",I94="",J94="",K94="",N94=""),"#N/A",IF(D94<>"OR",IF(N94>M94,"P-RENT; ","")&IF(B94="Vacant","VACANT",IF(I94=0,"NO INCOME; ",IF(I94>H94,"OVER INCOME; ",""))&IF(B94>=VLOOKUP(C94,'1. Checklist & Certification'!$AN$3:$AO$8,2),"","U-OCCUP")),"")))) ->  | W94: 0 | X94: 0
H95: =IF(AND(D95="FWHG",G95<>""),"",IF(B95="Vacant","Vacant",IF(J95<>"",INDEX('1. Checklist & Certification'!$AC$3:$AK$21,MATCH(J95,'1. Checklist & Certification'!$AB$3:$AB$21,0),MATCH(B95,'1. Checklist & Certification'!$AC$2:$AK$2,0)),""))) ->  | L95: =IF(AND(D95="FWHG",G95<>""),"",IF(J95>1,INDEX('1. Checklist & Certification'!$BD$3:$BI$20,MATCH(J95,'1. Checklist & Certification'!$BC$3:$BC$20,0),MATCH(C95,'1. Checklist & Certification'!$BD$2:$BI$2,0)),"")) ->  | M95: =IF(AND(D95="FWHG",G95<>""),"",IFERROR(ROUNDUP(IF($L95="","",$L95-IF(LEFT($A95,2)="B*",VLOOKUP($C95,'1. Checklist & Certification'!$D$20:$E$25,2),IF(LEFT($A95,2)="C*",VLOOKUP($C95,'1. Checklist & Certification'!$F$20:$G$25,2),IF(LEFT($A95,2)="D*",VLOOKUP($C95,'1. Checklist & Certification'!$H$20:$I$25,2),IF(LEFT($A95,2)="E*",VLOOKUP($C95,'1. Checklist & Certification'!$J$20:$K$25,2),VLOOKUP($C95,'1. Checklist & Certification'!$I$8:$J$13,2)))))),0),"")) ->  | T95: =IF(AND(D95="FWHG",G95<>""),"",IF(A95="","",IF(OR(B95="",C95="",D95="",I95="",J95="",K95="",N95=""),"#N/A",IF(D95<>"OR",IF(N95>M95,"P-RENT; ","")&IF(B95="Vacant","VACANT",IF(I95=0,"NO INCOME; ",IF(I95>H95,"OVER INCOME; ",""))&IF(B95>=VLOOKUP(C95,'1. Checklist & Certification'!$AN$3:$AO$8,2),"","U-OCCUP")),"")))) ->  | W95: 0 | X95: 0
H96: =IF(AND(D96="FWHG",G96<>""),"",IF(B96="Vacant","Vacant",IF(J96<>"",INDEX('1. Checklist & Certification'!$AC$3:$AK$21,MATCH(J96,'1. Checklist & Certification'!$AB$3:$AB$21,0),MATCH(B96,'1. Checklist & Certification'!$AC$2:$AK$2,0)),""))) ->  | L96: =IF(AND(D96="FWHG",G96<>""),"",IF(J96>1,INDEX('1. Checklist & Certification'!$BD$3:$BI$20,MATCH(J96,'1. Checklist & Certification'!$BC$3:$BC$20,0),MATCH(C96,'1. Checklist & Certification'!$BD$2:$BI$2,0)),"")) ->  | M96: =IF(AND(D96="FWHG",G96<>""),"",IFERROR(ROUNDUP(IF($L96="","",$L96-IF(LEFT($A96,2)="B*",VLOOKUP($C96,'1. Checklist & Certification'!$D$20:$E$25,2),IF(LEFT($A96,2)="C*",VLOOKUP($C96,'1. Checklist & Certification'!$F$20:$G$25,2),IF(LEFT($A96,2)="D*",VLOOKUP($C96,'1. Checklist & Certification'!$H$20:$I$25,2),IF(LEFT($A96,2)="E*",VLOOKUP($C96,'1. Checklist & Certification'!$J$20:$K$25,2),VLOOKUP($C96,'1. Checklist & Certification'!$I$8:$J$13,2)))))),0),"")) ->  | T96: =IF(AND(D96="FWHG",G96<>""),"",IF(A96="","",IF(OR(B96="",C96="",D96="",I96="",J96="",K96="",N96=""),"#N/A",IF(D96<>"OR",IF(N96>M96,"P-RENT; ","")&IF(B96="Vacant","VACANT",IF(I96=0,"NO INCOME; ",IF(I96>H96,"OVER INCOME; ",""))&IF(B96>=VLOOKUP(C96,'1. Checklist & Certification'!$AN$3:$AO$8,2),"","U-OCCUP")),"")))) ->  | W96: 0 | X96: 0
H97: =IF(AND(D97="FWHG",G97<>""),"",IF(B97="Vacant","Vacant",IF(J97<>"",INDEX('1. Checklist & Certification'!$AC$3:$AK$21,MATCH(J97,'1. Checklist & Certification'!$AB$3:$AB$21,0),MATCH(B97,'1. Checklist & Certification'!$AC$2:$AK$2,0)),""))) ->  | L97: =IF(AND(D97="FWHG",G97<>""),"",IF(J97>1,INDEX('1. Checklist & Certification'!$BD$3:$BI$20,MATCH(J97,'1. Checklist & Certification'!$BC$3:$BC$20,0),MATCH(C97,'1. Checklist & Certification'!$BD$2:$BI$2,0)),"")) ->  | M97: =IF(AND(D97="FWHG",G97<>""),"",IFERROR(ROUNDUP(IF($L97="","",$L97-IF(LEFT($A97,2)="B*",VLOOKUP($C97,'1. Checklist & Certification'!$D$20:$E$25,2),IF(LEFT($A97,2)="C*",VLOOKUP($C97,'1. Checklist & Certification'!$F$20:$G$25,2),IF(LEFT($A97,2)="D*",VLOOKUP($C97,'1. Checklist & Certification'!$H$20:$I$25,2),IF(LEFT($A97,2)="E*",VLOOKUP($C97,'1. Checklist & Certification'!$J$20:$K$25,2),VLOOKUP($C97,'1. Checklist & Certification'!$I$8:$J$13,2)))))),0),"")) ->  | T97: =IF(AND(D97="FWHG",G97<>""),"",IF(A97="","",IF(OR(B97="",C97="",D97="",I97="",J97="",K97="",N97=""),"#N/A",IF(D97<>"OR",IF(N97>M97,"P-RENT; ","")&IF(B97="Vacant","VACANT",IF(I97=0,"NO INCOME; ",IF(I97>H97,"OVER INCOME; ",""))&IF(B97>=VLOOKUP(C97,'1. Checklist & Certification'!$AN$3:$AO$8,2),"","U-OCCUP")),"")))) ->  | W97: 0 | X97: 0
H98: =IF(AND(D98="FWHG",G98<>""),"",IF(B98="Vacant","Vacant",IF(J98<>"",INDEX('1. Checklist & Certification'!$AC$3:$AK$21,MATCH(J98,'1. Checklist & Certification'!$AB$3:$AB$21,0),MATCH(B98,'1. Checklist & Certification'!$AC$2:$AK$2,0)),""))) ->  | L98: =IF(AND(D98="FWHG",G98<>""),"",IF(J98>1,INDEX('1. Checklist & Certification'!$BD$3:$BI$20,MATCH(J98,'1. Checklist & Certification'!$BC$3:$BC$20,0),MATCH(C98,'1. Checklist & Certification'!$BD$2:$BI$2,0)),"")) ->  | M98: =IF(AND(D98="FWHG",G98<>""),"",IFERROR(ROUNDUP(IF($L98="","",$L98-IF(LEFT($A98,2)="B*",VLOOKUP($C98,'1. Checklist & Certification'!$D$20:$E$25,2),IF(LEFT($A98,2)="C*",VLOOKUP($C98,'1. Checklist & Certification'!$F$20:$G$25,2),IF(LEFT($A98,2)="D*",VLOOKUP($C98,'1. Checklist & Certification'!$H$20:$I$25,2),IF(LEFT($A98,2)="E*",VLOOKUP($C98,'1. Checklist & Certification'!$J$20:$K$25,2),VLOOKUP($C98,'1. Checklist & Certification'!$I$8:$J$13,2)))))),0),"")) ->  | T98: =IF(AND(D98="FWHG",G98<>""),"",IF(A98="","",IF(OR(B98="",C98="",D98="",I98="",J98="",K98="",N98=""),"#N/A",IF(D98<>"OR",IF(N98>M98,"P-RENT; ","")&IF(B98="Vacant","VACANT",IF(I98=0,"NO INCOME; ",IF(I98>H98,"OVER INCOME; ",""))&IF(B98>=VLOOKUP(C98,'1. Checklist & Certification'!$AN$3:$AO$8,2),"","U-OCCUP")),"")))) ->  | W98: 0 | X98: 0
H99: =IF(AND(D99="FWHG",G99<>""),"",IF(B99="Vacant","Vacant",IF(J99<>"",INDEX('1. Checklist & Certification'!$AC$3:$AK$21,MATCH(J99,'1. Checklist & Certification'!$AB$3:$AB$21,0),MATCH(B99,'1. Checklist & Certification'!$AC$2:$AK$2,0)),""))) ->  | L99: =IF(AND(D99="FWHG",G99<>""),"",IF(J99>1,INDEX('1. Checklist & Certification'!$BD$3:$BI$20,MATCH(J99,'1. Checklist & Certification'!$BC$3:$BC$20,0),MATCH(C99,'1. Checklist & Certification'!$BD$2:$BI$2,0)),"")) ->  | M99: =IF(AND(D99="FWHG",G99<>""),"",IFERROR(ROUNDUP(IF($L99="","",$L99-IF(LEFT($A99,2)="B*",VLOOKUP($C99,'1. Checklist & Certification'!$D$20:$E$25,2),IF(LEFT($A99,2)="C*",VLOOKUP($C99,'1. Checklist & Certification'!$F$20:$G$25,2),IF(LEFT($A99,2)="D*",VLOOKUP($C99,'1. Checklist & Certification'!$H$20:$I$25,2),IF(LEFT($A99,2)="E*",VLOOKUP($C99,'1. Checklist & Certification'!$J$20:$K$25,2),VLOOKUP($C99,'1. Checklist & Certification'!$I$8:$J$13,2)))))),0),"")) ->  | T99: =IF(AND(D99="FWHG",G99<>""),"",IF(A99="","",IF(OR(B99="",C99="",D99="",I99="",J99="",K99="",N99=""),"#N/A",IF(D99<>"OR",IF(N99>M99,"P-RENT; ","")&IF(B99="Vacant","VACANT",IF(I99=0,"NO INCOME; ",IF(I99>H99,"OVER INCOME; ",""))&IF(B99>=VLOOKUP(C99,'1. Checklist & Certification'!$AN$3:$AO$8,2),"","U-OCCUP")),"")))) ->  | W99: 0 | X99: 0
H100: =IF(AND(D100="FWHG",G100<>""),"",IF(B100="Vacant","Vacant",IF(J100<>"",INDEX('1. Checklist & Certification'!$AC$3:$AK$21,MATCH(J100,'1. Checklist & Certification'!$AB$3:$AB$21,0),MATCH(B100,'1. Checklist & Certification'!$AC$2:$AK$2,0)),""))) ->  | L100: =IF(AND(D100="FWHG",G100<>""),"",IF(J100>1,INDEX('1. Checklist & Certification'!$BD$3:$BI$20,MATCH(J100,'1. Checklist & Certification'!$BC$3:$BC$20,0),MATCH(C100,'1. Checklist & Certification'!$BD$2:$BI$2,0)),"")) ->  | M100: =IF(AND(D100="FWHG",G100<>""),"",IFERROR(ROUNDUP(IF($L100="","",$L100-IF(LEFT($A100,2)="B*",VLOOKUP($C100,'1. Checklist & Certification'!$D$20:$E$25,2),IF(LEFT($A100,2)="C*",VLOOKUP($C100,'1. Checklist & Certification'!$F$20:$G$25,2),IF(LEFT($A100,2)="D*",VLOOKUP($C100,'1. Checklist & Certification'!$H$20:$I$25,2),IF(LEFT($A100,2)="E*",VLOOKUP($C100,'1. Checklist & Certification'!$J$20:$K$25,2),VLOOKUP($C100,'1. Checklist & Certification'!$I$8:$J$13,2)))))),0),"")) ->  | T100: =IF(AND(D100="FWHG",G100<>""),"",IF(A100="","",IF(OR(B100="",C100="",D100="",I100="",J100="",K100="",N100=""),"#N/A",IF(D100<>"OR",IF(N100>M100,"P-RENT; ","")&IF(B100="Vacant","VACANT",IF(I100=0,"NO INCOME; ",IF(I100>H100,"OVER INCOME; ",""))&IF(B100>=VLOOKUP(C100,'1. Checklist & Certification'!$AN$3:$AO$8,2),"","U-OCCUP")),"")))) ->  | W100: 0 | X100: 0
H101: =IF(AND(D101="FWHG",G101<>""),"",IF(B101="Vacant","Vacant",IF(J101<>"",INDEX('1. Checklist & Certification'!$AC$3:$AK$21,MATCH(J101,'1. Checklist & Certification'!$AB$3:$AB$21,0),MATCH(B101,'1. Checklist & Certification'!$AC$2:$AK$2,0)),""))) ->  | L101: =IF(AND(D101="FWHG",G101<>""),"",IF(J101>1,INDEX('1. Checklist & Certification'!$BD$3:$BI$20,MATCH(J101,'1. Checklist & Certification'!$BC$3:$BC$20,0),MATCH(C101,'1. Checklist & Certification'!$BD$2:$BI$2,0)),"")) ->  | M101: =IF(AND(D101="FWHG",G101<>""),"",IFERROR(ROUNDUP(IF($L101="","",$L101-IF(LEFT($A101,2)="B*",VLOOKUP($C101,'1. Checklist & Certification'!$D$20:$E$25,2),IF(LEFT($A101,2)="C*",VLOOKUP($C101,'1. Checklist & Certification'!$F$20:$G$25,2),IF(LEFT($A101,2)="D*",VLOOKUP($C101,'1. Checklist & Certification'!$H$20:$I$25,2),IF(LEFT($A101,2)="E*",VLOOKUP($C101,'1. Checklist & Certification'!$J$20:$K$25,2),VLOOKUP($C101,'1. Checklist & Certification'!$I$8:$J$13,2)))))),0),"")) ->  | T101: =IF(AND(D101="FWHG",G101<>""),"",IF(A101="","",IF(OR(B101="",C101="",D101="",I101="",J101="",K101="",N101=""),"#N/A",IF(D101<>"OR",IF(N101>M101,"P-RENT; ","")&IF(B101="Vacant","VACANT",IF(I101=0,"NO INCOME; ",IF(I101>H101,"OVER INCOME; ",""))&IF(B101>=VLOOKUP(C101,'1. Checklist & Certification'!$AN$3:$AO$8,2),"","U-OCCUP")),"")))) ->  | W101: 0 | X101: 0
H102: =IF(AND(D102="FWHG",G102<>""),"",IF(B102="Vacant","Vacant",IF(J102<>"",INDEX('1. Checklist & Certification'!$AC$3:$AK$21,MATCH(J102,'1. Checklist & Certification'!$AB$3:$AB$21,0),MATCH(B102,'1. Checklist & Certification'!$AC$2:$AK$2,0)),""))) ->  | L102: =IF(AND(D102="FWHG",G102<>""),"",IF(J102>1,INDEX('1. Checklist & Certification'!$BD$3:$BI$20,MATCH(J102,'1. Checklist & Certification'!$BC$3:$BC$20,0),MATCH(C102,'1. Checklist & Certification'!$BD$2:$BI$2,0)),"")) ->  | M102: =IF(AND(D102="FWHG",G102<>""),"",IFERROR(ROUNDUP(IF($L102="","",$L102-IF(LEFT($A102,2)="B*",VLOOKUP($C102,'1. Checklist & Certification'!$D$20:$E$25,2),IF(LEFT($A102,2)="C*",VLOOKUP($C102,'1. Checklist & Certification'!$F$20:$G$25,2),IF(LEFT($A102,2)="D*",VLOOKUP($C102,'1. Checklist & Certification'!$H$20:$I$25,2),IF(LEFT($A102,2)="E*",VLOOKUP($C102,'1. Checklist & Certification'!$J$20:$K$25,2),VLOOKUP($C102,'1. Checklist & Certification'!$I$8:$J$13,2)))))),0),"")) ->  | T102: =IF(AND(D102="FWHG",G102<>""),"",IF(A102="","",IF(OR(B102="",C102="",D102="",I102="",J102="",K102="",N102=""),"#N/A",IF(D102<>"OR",IF(N102>M102,"P-RENT; ","")&IF(B102="Vacant","VACANT",IF(I102=0,"NO INCOME; ",IF(I102>H102,"OVER INCOME; ",""))&IF(B102>=VLOOKUP(C102,'1. Checklist & Certification'!$AN$3:$AO$8,2),"","U-OCCUP")),"")))) ->  | W102: 0 | X102: 0
H103: =IF(AND(D103="FWHG",G103<>""),"",IF(B103="Vacant","Vacant",IF(J103<>"",INDEX('1. Checklist & Certification'!$AC$3:$AK$21,MATCH(J103,'1. Checklist & Certification'!$AB$3:$AB$21,0),MATCH(B103,'1. Checklist & Certification'!$AC$2:$AK$2,0)),""))) ->  | L103: =IF(AND(D103="FWHG",G103<>""),"",IF(J103>1,INDEX('1. Checklist & Certification'!$BD$3:$BI$20,MATCH(J103,'1. Checklist & Certification'!$BC$3:$BC$20,0),MATCH(C103,'1. Checklist & Certification'!$BD$2:$BI$2,0)),"")) ->  | M103: =IF(AND(D103="FWHG",G103<>""),"",IFERROR(ROUNDUP(IF($L103="","",$L103-IF(LEFT($A103,2)="B*",VLOOKUP($C103,'1. Checklist & Certification'!$D$20:$E$25,2),IF(LEFT($A103,2)="C*",VLOOKUP($C103,'1. Checklist & Certification'!$F$20:$G$25,2),IF(LEFT($A103,2)="D*",VLOOKUP($C103,'1. Checklist & Certification'!$H$20:$I$25,2),IF(LEFT($A103,2)="E*",VLOOKUP($C103,'1. Checklist & Certification'!$J$20:$K$25,2),VLOOKUP($C103,'1. Checklist & Certification'!$I$8:$J$13,2)))))),0),"")) ->  | T103: =IF(AND(D103="FWHG",G103<>""),"",IF(A103="","",IF(OR(B103="",C103="",D103="",I103="",J103="",K103="",N103=""),"#N/A",IF(D103<>"OR",IF(N103>M103,"P-RENT; ","")&IF(B103="Vacant","VACANT",IF(I103=0,"NO INCOME; ",IF(I103>H103,"OVER INCOME; ",""))&IF(B103>=VLOOKUP(C103,'1. Checklist & Certification'!$AN$3:$AO$8,2),"","U-OCCUP")),"")))) ->  | W103: 0 | X103: 0
H104: =IF(AND(D104="FWHG",G104<>""),"",IF(B104="Vacant","Vacant",IF(J104<>"",INDEX('1. Checklist & Certification'!$AC$3:$AK$21,MATCH(J104,'1. Checklist & Certification'!$AB$3:$AB$21,0),MATCH(B104,'1. Checklist & Certification'!$AC$2:$AK$2,0)),""))) ->  | L104: =IF(AND(D104="FWHG",G104<>""),"",IF(J104>1,INDEX('1. Checklist & Certification'!$BD$3:$BI$20,MATCH(J104,'1. Checklist & Certification'!$BC$3:$BC$20,0),MATCH(C104,'1. Checklist & Certification'!$BD$2:$BI$2,0)),"")) ->  | M104: =IF(AND(D104="FWHG",G104<>""),"",IFERROR(ROUNDUP(IF($L104="","",$L104-IF(LEFT($A104,2)="B*",VLOOKUP($C104,'1. Checklist & Certification'!$D$20:$E$25,2),IF(LEFT($A104,2)="C*",VLOOKUP($C104,'1. Checklist & Certification'!$F$20:$G$25,2),IF(LEFT($A104,2)="D*",VLOOKUP($C104,'1. Checklist & Certification'!$H$20:$I$25,2),IF(LEFT($A104,2)="E*",VLOOKUP($C104,'1. Checklist & Certification'!$J$20:$K$25,2),VLOOKUP($C104,'1. Checklist & Certification'!$I$8:$J$13,2)))))),0),"")) ->  | T104: =IF(AND(D104="FWHG",G104<>""),"",IF(A104="","",IF(OR(B104="",C104="",D104="",I104="",J104="",K104="",N104=""),"#N/A",IF(D104<>"OR",IF(N104>M104,"P-RENT; ","")&IF(B104="Vacant","VACANT",IF(I104=0,"NO INCOME; ",IF(I104>H104,"OVER INCOME; ",""))&IF(B104>=VLOOKUP(C104,'1. Checklist & Certification'!$AN$3:$AO$8,2),"","U-OCCUP")),"")))) ->  | W104: 0 | X104: 0
H105: =IF(AND(D105="FWHG",G105<>""),"",IF(B105="Vacant","Vacant",IF(J105<>"",INDEX('1. Checklist & Certification'!$AC$3:$AK$21,MATCH(J105,'1. Checklist & Certification'!$AB$3:$AB$21,0),MATCH(B105,'1. Checklist & Certification'!$AC$2:$AK$2,0)),""))) ->  | L105: =IF(AND(D105="FWHG",G105<>""),"",IF(J105>1,INDEX('1. Checklist & Certification'!$BD$3:$BI$20,MATCH(J105,'1. Checklist & Certification'!$BC$3:$BC$20,0),MATCH(C105,'1. Checklist & Certification'!$BD$2:$BI$2,0)),"")) ->  | M105: =IF(AND(D105="FWHG",G105<>""),"",IFERROR(ROUNDUP(IF($L105="","",$L105-IF(LEFT($A105,2)="B*",VLOOKUP($C105,'1. Checklist & Certification'!$D$20:$E$25,2),IF(LEFT($A105,2)="C*",VLOOKUP($C105,'1. Checklist & Certification'!$F$20:$G$25,2),IF(LEFT($A105,2)="D*",VLOOKUP($C105,'1. Checklist & Certification'!$H$20:$I$25,2),IF(LEFT($A105,2)="E*",VLOOKUP($C105,'1. Checklist & Certification'!$J$20:$K$25,2),VLOOKUP($C105,'1. Checklist & Certification'!$I$8:$J$13,2)))))),0),"")) ->  | T105: =IF(AND(D105="FWHG",G105<>""),"",IF(A105="","",IF(OR(B105="",C105="",D105="",I105="",J105="",K105="",N105=""),"#N/A",IF(D105<>"OR",IF(N105>M105,"P-RENT; ","")&IF(B105="Vacant","VACANT",IF(I105=0,"NO INCOME; ",IF(I105>H105,"OVER INCOME; ",""))&IF(B105>=VLOOKUP(C105,'1. Checklist & Certification'!$AN$3:$AO$8,2),"","U-OCCUP")),"")))) ->  | W105: 0 | X105: 0
H106: =IF(AND(D106="FWHG",G106<>""),"",IF(B106="Vacant","Vacant",IF(J106<>"",INDEX('1. Checklist & Certification'!$AC$3:$AK$21,MATCH(J106,'1. Checklist & Certification'!$AB$3:$AB$21,0),MATCH(B106,'1. Checklist & Certification'!$AC$2:$AK$2,0)),""))) ->  | L106: =IF(AND(D106="FWHG",G106<>""),"",IF(J106>1,INDEX('1. Checklist & Certification'!$BD$3:$BI$20,MATCH(J106,'1. Checklist & Certification'!$BC$3:$BC$20,0),MATCH(C106,'1. Checklist & Certification'!$BD$2:$BI$2,0)),"")) ->  | M106: =IF(AND(D106="FWHG",G106<>""),"",IFERROR(ROUNDUP(IF($L106="","",$L106-IF(LEFT($A106,2)="B*",VLOOKUP($C106,'1. Checklist & Certification'!$D$20:$E$25,2),IF(LEFT($A106,2)="C*",VLOOKUP($C106,'1. Checklist & Certification'!$F$20:$G$25,2),IF(LEFT($A106,2)="D*",VLOOKUP($C106,'1. Checklist & Certification'!$H$20:$I$25,2),IF(LEFT($A106,2)="E*",VLOOKUP($C106,'1. Checklist & Certification'!$J$20:$K$25,2),VLOOKUP($C106,'1. Checklist & Certification'!$I$8:$J$13,2)))))),0),"")) ->  | T106: =IF(AND(D106="FWHG",G106<>""),"",IF(A106="","",IF(OR(B106="",C106="",D106="",I106="",J106="",K106="",N106=""),"#N/A",IF(D106<>"OR",IF(N106>M106,"P-RENT; ","")&IF(B106="Vacant","VACANT",IF(I106=0,"NO INCOME; ",IF(I106>H106,"OVER INCOME; ",""))&IF(B106>=VLOOKUP(C106,'1. Checklist & Certification'!$AN$3:$AO$8,2),"","U-OCCUP")),"")))) ->  | W106: 0 | X106: 0
H107: =IF(AND(D107="FWHG",G107<>""),"",IF(B107="Vacant","Vacant",IF(J107<>"",INDEX('1. Checklist & Certification'!$AC$3:$AK$21,MATCH(J107,'1. Checklist & Certification'!$AB$3:$AB$21,0),MATCH(B107,'1. Checklist & Certification'!$AC$2:$AK$2,0)),""))) ->  | L107: =IF(AND(D107="FWHG",G107<>""),"",IF(J107>1,INDEX('1. Checklist & Certification'!$BD$3:$BI$20,MATCH(J107,'1. Checklist & Certification'!$BC$3:$BC$20,0),MATCH(C107,'1. Checklist & Certification'!$BD$2:$BI$2,0)),"")) ->  | M107: =IF(AND(D107="FWHG",G107<>""),"",IFERROR(ROUNDUP(IF($L107="","",$L107-IF(LEFT($A107,2)="B*",VLOOKUP($C107,'1. Checklist & Certification'!$D$20:$E$25,2),IF(LEFT($A107,2)="C*",VLOOKUP($C107,'1. Checklist & Certification'!$F$20:$G$25,2),IF(LEFT($A107,2)="D*",VLOOKUP($C107,'1. Checklist & Certification'!$H$20:$I$25,2),IF(LEFT($A107,2)="E*",VLOOKUP($C107,'1. Checklist & Certification'!$J$20:$K$25,2),VLOOKUP($C107,'1. Checklist & Certification'!$I$8:$J$13,2)))))),0),"")) ->  | T107: =IF(AND(D107="FWHG",G107<>""),"",IF(A107="","",IF(OR(B107="",C107="",D107="",I107="",J107="",K107="",N107=""),"#N/A",IF(D107<>"OR",IF(N107>M107,"P-RENT; ","")&IF(B107="Vacant","VACANT",IF(I107=0,"NO INCOME; ",IF(I107>H107,"OVER INCOME; ",""))&IF(B107>=VLOOKUP(C107,'1. Checklist & Certification'!$AN$3:$AO$8,2),"","U-OCCUP")),"")))) ->  | W107: 0 | X107: 0
H108: =IF(AND(D108="FWHG",G108<>""),"",IF(B108="Vacant","Vacant",IF(J108<>"",INDEX('1. Checklist & Certification'!$AC$3:$AK$21,MATCH(J108,'1. Checklist & Certification'!$AB$3:$AB$21,0),MATCH(B108,'1. Checklist & Certification'!$AC$2:$AK$2,0)),""))) ->  | L108: =IF(AND(D108="FWHG",G108<>""),"",IF(J108>1,INDEX('1. Checklist & Certification'!$BD$3:$BI$20,MATCH(J108,'1. Checklist & Certification'!$BC$3:$BC$20,0),MATCH(C108,'1. Checklist & Certification'!$BD$2:$BI$2,0)),"")) ->  | M108: =IF(AND(D108="FWHG",G108<>""),"",IFERROR(ROUNDUP(IF($L108="","",$L108-IF(LEFT($A108,2)="B*",VLOOKUP($C108,'1. Checklist & Certification'!$D$20:$E$25,2),IF(LEFT($A108,2)="C*",VLOOKUP($C108,'1. Checklist & Certification'!$F$20:$G$25,2),IF(LEFT($A108,2)="D*",VLOOKUP($C108,'1. Checklist & Certification'!$H$20:$I$25,2),IF(LEFT($A108,2)="E*",VLOOKUP($C108,'1. Checklist & Certification'!$J$20:$K$25,2),VLOOKUP($C108,'1. Checklist & Certification'!$I$8:$J$13,2)))))),0),"")) ->  | T108: =IF(AND(D108="FWHG",G108<>""),"",IF(A108="","",IF(OR(B108="",C108="",D108="",I108="",J108="",K108="",N108=""),"#N/A",IF(D108<>"OR",IF(N108>M108,"P-RENT; ","")&IF(B108="Vacant","VACANT",IF(I108=0,"NO INCOME; ",IF(I108>H108,"OVER INCOME; ",""))&IF(B108>=VLOOKUP(C108,'1. Checklist & Certification'!$AN$3:$AO$8,2),"","U-OCCUP")),"")))) ->  | W108: 0 | X108: 0
H109: =IF(AND(D109="FWHG",G109<>""),"",IF(B109="Vacant","Vacant",IF(J109<>"",INDEX('1. Checklist & Certification'!$AC$3:$AK$21,MATCH(J109,'1. Checklist & Certification'!$AB$3:$AB$21,0),MATCH(B109,'1. Checklist & Certification'!$AC$2:$AK$2,0)),""))) ->  | L109: =IF(AND(D109="FWHG",G109<>""),"",IF(J109>1,INDEX('1. Checklist & Certification'!$BD$3:$BI$20,MATCH(J109,'1. Checklist & Certification'!$BC$3:$BC$20,0),MATCH(C109,'1. Checklist & Certification'!$BD$2:$BI$2,0)),"")) ->  | M109: =IF(AND(D109="FWHG",G109<>""),"",IFERROR(ROUNDUP(IF($L109="","",$L109-IF(LEFT($A109,2)="B*",VLOOKUP($C109,'1. Checklist & Certification'!$D$20:$E$25,2),IF(LEFT($A109,2)="C*",VLOOKUP($C109,'1. Checklist & Certification'!$F$20:$G$25,2),IF(LEFT($A109,2)="D*",VLOOKUP($C109,'1. Checklist & Certification'!$H$20:$I$25,2),IF(LEFT($A109,2)="E*",VLOOKUP($C109,'1. Checklist & Certification'!$J$20:$K$25,2),VLOOKUP($C109,'1. Checklist & Certification'!$I$8:$J$13,2)))))),0),"")) ->  | T109: =IF(AND(D109="FWHG",G109<>""),"",IF(A109="","",IF(OR(B109="",C109="",D109="",I109="",J109="",K109="",N109=""),"#N/A",IF(D109<>"OR",IF(N109>M109,"P-RENT; ","")&IF(B109="Vacant","VACANT",IF(I109=0,"NO INCOME; ",IF(I109>H109,"OVER INCOME; ",""))&IF(B109>=VLOOKUP(C109,'1. Checklist & Certification'!$AN$3:$AO$8,2),"","U-OCCUP")),"")))) ->  | W109: 0 | X109: 0
H110: =IF(AND(D110="FWHG",G110<>""),"",IF(B110="Vacant","Vacant",IF(J110<>"",INDEX('1. Checklist & Certification'!$AC$3:$AK$21,MATCH(J110,'1. Checklist & Certification'!$AB$3:$AB$21,0),MATCH(B110,'1. Checklist & Certification'!$AC$2:$AK$2,0)),""))) ->  | L110: =IF(AND(D110="FWHG",G110<>""),"",IF(J110>1,INDEX('1. Checklist & Certification'!$BD$3:$BI$20,MATCH(J110,'1. Checklist & Certification'!$BC$3:$BC$20,0),MATCH(C110,'1. Checklist & Certification'!$BD$2:$BI$2,0)),"")) ->  | M110: =IF(AND(D110="FWHG",G110<>""),"",IFERROR(ROUNDUP(IF($L110="","",$L110-IF(LEFT($A110,2)="B*",VLOOKUP($C110,'1. Checklist & Certification'!$D$20:$E$25,2),IF(LEFT($A110,2)="C*",VLOOKUP($C110,'1. Checklist & Certification'!$F$20:$G$25,2),IF(LEFT($A110,2)="D*",VLOOKUP($C110,'1. Checklist & Certification'!$H$20:$I$25,2),IF(LEFT($A110,2)="E*",VLOOKUP($C110,'1. Checklist & Certification'!$J$20:$K$25,2),VLOOKUP($C110,'1. Checklist & Certification'!$I$8:$J$13,2)))))),0),"")) ->  | T110: =IF(AND(D110="FWHG",G110<>""),"",IF(A110="","",IF(OR(B110="",C110="",D110="",I110="",J110="",K110="",N110=""),"#N/A",IF(D110<>"OR",IF(N110>M110,"P-RENT; ","")&IF(B110="Vacant","VACANT",IF(I110=0,"NO INCOME; ",IF(I110>H110,"OVER INCOME; ",""))&IF(B110>=VLOOKUP(C110,'1. Checklist & Certification'!$AN$3:$AO$8,2),"","U-OCCUP")),"")))) ->  | W110: 0 | X110: 0
H111: =IF(AND(D111="FWHG",G111<>""),"",IF(B111="Vacant","Vacant",IF(J111<>"",INDEX('1. Checklist & Certification'!$AC$3:$AK$21,MATCH(J111,'1. Checklist & Certification'!$AB$3:$AB$21,0),MATCH(B111,'1. Checklist & Certification'!$AC$2:$AK$2,0)),""))) ->  | L111: =IF(AND(D111="FWHG",G111<>""),"",IF(J111>1,INDEX('1. Checklist & Certification'!$BD$3:$BI$20,MATCH(J111,'1. Checklist & Certification'!$BC$3:$BC$20,0),MATCH(C111,'1. Checklist & Certification'!$BD$2:$BI$2,0)),"")) ->  | M111: =IF(AND(D111="FWHG",G111<>""),"",IFERROR(ROUNDUP(IF($L111="","",$L111-IF(LEFT($A111,2)="B*",VLOOKUP($C111,'1. Checklist & Certification'!$D$20:$E$25,2),IF(LEFT($A111,2)="C*",VLOOKUP($C111,'1. Checklist & Certification'!$F$20:$G$25,2),IF(LEFT($A111,2)="D*",VLOOKUP($C111,'1. Checklist & Certification'!$H$20:$I$25,2),IF(LEFT($A111,2)="E*",VLOOKUP($C111,'1. Checklist & Certification'!$J$20:$K$25,2),VLOOKUP($C111,'1. Checklist & Certification'!$I$8:$J$13,2)))))),0),"")) ->  | T111: =IF(AND(D111="FWHG",G111<>""),"",IF(A111="","",IF(OR(B111="",C111="",D111="",I111="",J111="",K111="",N111=""),"#N/A",IF(D111<>"OR",IF(N111>M111,"P-RENT; ","")&IF(B111="Vacant","VACANT",IF(I111=0,"NO INCOME; ",IF(I111>H111,"OVER INCOME; ",""))&IF(B111>=VLOOKUP(C111,'1. Checklist & Certification'!$AN$3:$AO$8,2),"","U-OCCUP")),"")))) ->  | W111: 0 | X111: 0
H112: =IF(AND(D112="FWHG",G112<>""),"",IF(B112="Vacant","Vacant",IF(J112<>"",INDEX('1. Checklist & Certification'!$AC$3:$AK$21,MATCH(J112,'1. Checklist & Certification'!$AB$3:$AB$21,0),MATCH(B112,'1. Checklist & Certification'!$AC$2:$AK$2,0)),""))) ->  | L112: =IF(AND(D112="FWHG",G112<>""),"",IF(J112>1,INDEX('1. Checklist & Certification'!$BD$3:$BI$20,MATCH(J112,'1. Checklist & Certification'!$BC$3:$BC$20,0),MATCH(C112,'1. Checklist & Certification'!$BD$2:$BI$2,0)),"")) ->  | M112: =IF(AND(D112="FWHG",G112<>""),"",IFERROR(ROUNDUP(IF($L112="","",$L112-IF(LEFT($A112,2)="B*",VLOOKUP($C112,'1. Checklist & Certification'!$D$20:$E$25,2),IF(LEFT($A112,2)="C*",VLOOKUP($C112,'1. Checklist & Certification'!$F$20:$G$25,2),IF(LEFT($A112,2)="D*",VLOOKUP($C112,'1. Checklist & Certification'!$H$20:$I$25,2),IF(LEFT($A112,2)="E*",VLOOKUP($C112,'1. Checklist & Certification'!$J$20:$K$25,2),VLOOKUP($C112,'1. Checklist & Certification'!$I$8:$J$13,2)))))),0),"")) ->  | T112: =IF(AND(D112="FWHG",G112<>""),"",IF(A112="","",IF(OR(B112="",C112="",D112="",I112="",J112="",K112="",N112=""),"#N/A",IF(D112<>"OR",IF(N112>M112,"P-RENT; ","")&IF(B112="Vacant","VACANT",IF(I112=0,"NO INCOME; ",IF(I112>H112,"OVER INCOME; ",""))&IF(B112>=VLOOKUP(C112,'1. Checklist & Certification'!$AN$3:$AO$8,2),"","U-OCCUP")),"")))) ->  | W112: 0 | X112: 0
H113: =IF(AND(D113="FWHG",G113<>""),"",IF(B113="Vacant","Vacant",IF(J113<>"",INDEX('1. Checklist & Certification'!$AC$3:$AK$21,MATCH(J113,'1. Checklist & Certification'!$AB$3:$AB$21,0),MATCH(B113,'1. Checklist & Certification'!$AC$2:$AK$2,0)),""))) ->  | L113: =IF(AND(D113="FWHG",G113<>""),"",IF(J113>1,INDEX('1. Checklist & Certification'!$BD$3:$BI$20,MATCH(J113,'1. Checklist & Certification'!$BC$3:$BC$20,0),MATCH(C113,'1. Checklist & Certification'!$BD$2:$BI$2,0)),"")) ->  | M113: =IF(AND(D113="FWHG",G113<>""),"",IFERROR(ROUNDUP(IF($L113="","",$L113-IF(LEFT($A113,2)="B*",VLOOKUP($C113,'1. Checklist & Certification'!$D$20:$E$25,2),IF(LEFT($A113,2)="C*",VLOOKUP($C113,'1. Checklist & Certification'!$F$20:$G$25,2),IF(LEFT($A113,2)="D*",VLOOKUP($C113,'1. Checklist & Certification'!$H$20:$I$25,2),IF(LEFT($A113,2)="E*",VLOOKUP($C113,'1. Checklist & Certification'!$J$20:$K$25,2),VLOOKUP($C113,'1. Checklist & Certification'!$I$8:$J$13,2)))))),0),"")) ->  | T113: =IF(AND(D113="FWHG",G113<>""),"",IF(A113="","",IF(OR(B113="",C113="",D113="",I113="",J113="",K113="",N113=""),"#N/A",IF(D113<>"OR",IF(N113>M113,"P-RENT; ","")&IF(B113="Vacant","VACANT",IF(I113=0,"NO INCOME; ",IF(I113>H113,"OVER INCOME; ",""))&IF(B113>=VLOOKUP(C113,'1. Checklist & Certification'!$AN$3:$AO$8,2),"","U-OCCUP")),"")))) ->  | W113: 0 | X113: 0
H114: =IF(AND(D114="FWHG",G114<>""),"",IF(B114="Vacant","Vacant",IF(J114<>"",INDEX('1. Checklist & Certification'!$AC$3:$AK$21,MATCH(J114,'1. Checklist & Certification'!$AB$3:$AB$21,0),MATCH(B114,'1. Checklist & Certification'!$AC$2:$AK$2,0)),""))) ->  | L114: =IF(AND(D114="FWHG",G114<>""),"",IF(J114>1,INDEX('1. Checklist & Certification'!$BD$3:$BI$20,MATCH(J114,'1. Checklist & Certification'!$BC$3:$BC$20,0),MATCH(C114,'1. Checklist & Certification'!$BD$2:$BI$2,0)),"")) ->  | M114: =IF(AND(D114="FWHG",G114<>""),"",IFERROR(ROUNDUP(IF($L114="","",$L114-IF(LEFT($A114,2)="B*",VLOOKUP($C114,'1. Checklist & Certification'!$D$20:$E$25,2),IF(LEFT($A114,2)="C*",VLOOKUP($C114,'1. Checklist & Certification'!$F$20:$G$25,2),IF(LEFT($A114,2)="D*",VLOOKUP($C114,'1. Checklist & Certification'!$H$20:$I$25,2),IF(LEFT($A114,2)="E*",VLOOKUP($C114,'1. Checklist & Certification'!$J$20:$K$25,2),VLOOKUP($C114,'1. Checklist & Certification'!$I$8:$J$13,2)))))),0),"")) ->  | T114: =IF(AND(D114="FWHG",G114<>""),"",IF(A114="","",IF(OR(B114="",C114="",D114="",I114="",J114="",K114="",N114=""),"#N/A",IF(D114<>"OR",IF(N114>M114,"P-RENT; ","")&IF(B114="Vacant","VACANT",IF(I114=0,"NO INCOME; ",IF(I114>H114,"OVER INCOME; ",""))&IF(B114>=VLOOKUP(C114,'1. Checklist & Certification'!$AN$3:$AO$8,2),"","U-OCCUP")),"")))) ->  | W114: 0 | X114: 0
H115: =IF(AND(D115="FWHG",G115<>""),"",IF(B115="Vacant","Vacant",IF(J115<>"",INDEX('1. Checklist & Certification'!$AC$3:$AK$21,MATCH(J115,'1. Checklist & Certification'!$AB$3:$AB$21,0),MATCH(B115,'1. Checklist & Certification'!$AC$2:$AK$2,0)),""))) ->  | L115: =IF(AND(D115="FWHG",G115<>""),"",IF(J115>1,INDEX('1. Checklist & Certification'!$BD$3:$BI$20,MATCH(J115,'1. Checklist & Certification'!$BC$3:$BC$20,0),MATCH(C115,'1. Checklist & Certification'!$BD$2:$BI$2,0)),"")) ->  | M115: =IF(AND(D115="FWHG",G115<>""),"",IFERROR(ROUNDUP(IF($L115="","",$L115-IF(LEFT($A115,2)="B*",VLOOKUP($C115,'1. Checklist & Certification'!$D$20:$E$25,2),IF(LEFT($A115,2)="C*",VLOOKUP($C115,'1. Checklist & Certification'!$F$20:$G$25,2),IF(LEFT($A115,2)="D*",VLOOKUP($C115,'1. Checklist & Certification'!$H$20:$I$25,2),IF(LEFT($A115,2)="E*",VLOOKUP($C115,'1. Checklist & Certification'!$J$20:$K$25,2),VLOOKUP($C115,'1. Checklist & Certification'!$I$8:$J$13,2)))))),0),"")) ->  | T115: =IF(AND(D115="FWHG",G115<>""),"",IF(A115="","",IF(OR(B115="",C115="",D115="",I115="",J115="",K115="",N115=""),"#N/A",IF(D115<>"OR",IF(N115>M115,"P-RENT; ","")&IF(B115="Vacant","VACANT",IF(I115=0,"NO INCOME; ",IF(I115>H115,"OVER INCOME; ",""))&IF(B115>=VLOOKUP(C115,'1. Checklist & Certification'!$AN$3:$AO$8,2),"","U-OCCUP")),"")))) ->  | W115: 0 | X115: 0
H116: =IF(AND(D116="FWHG",G116<>""),"",IF(B116="Vacant","Vacant",IF(J116<>"",INDEX('1. Checklist & Certification'!$AC$3:$AK$21,MATCH(J116,'1. Checklist & Certification'!$AB$3:$AB$21,0),MATCH(B116,'1. Checklist & Certification'!$AC$2:$AK$2,0)),""))) ->  | L116: =IF(AND(D116="FWHG",G116<>""),"",IF(J116>1,INDEX('1. Checklist & Certification'!$BD$3:$BI$20,MATCH(J116,'1. Checklist & Certification'!$BC$3:$BC$20,0),MATCH(C116,'1. Checklist & Certification'!$BD$2:$BI$2,0)),"")) ->  | M116: =IF(AND(D116="FWHG",G116<>""),"",IFERROR(ROUNDUP(IF($L116="","",$L116-IF(LEFT($A116,2)="B*",VLOOKUP($C116,'1. Checklist & Certification'!$D$20:$E$25,2),IF(LEFT($A116,2)="C*",VLOOKUP($C116,'1. Checklist & Certification'!$F$20:$G$25,2),IF(LEFT($A116,2)="D*",VLOOKUP($C116,'1. Checklist & Certification'!$H$20:$I$25,2),IF(LEFT($A116,2)="E*",VLOOKUP($C116,'1. Checklist & Certification'!$J$20:$K$25,2),VLOOKUP($C116,'1. Checklist & Certification'!$I$8:$J$13,2)))))),0),"")) ->  | T116: =IF(AND(D116="FWHG",G116<>""),"",IF(A116="","",IF(OR(B116="",C116="",D116="",I116="",J116="",K116="",N116=""),"#N/A",IF(D116<>"OR",IF(N116>M116,"P-RENT; ","")&IF(B116="Vacant","VACANT",IF(I116=0,"NO INCOME; ",IF(I116>H116,"OVER INCOME; ",""))&IF(B116>=VLOOKUP(C116,'1. Checklist & Certification'!$AN$3:$AO$8,2),"","U-OCCUP")),"")))) ->  | W116: 0 | X116: 0
H117: =IF(AND(D117="FWHG",G117<>""),"",IF(B117="Vacant","Vacant",IF(J117<>"",INDEX('1. Checklist & Certification'!$AC$3:$AK$21,MATCH(J117,'1. Checklist & Certification'!$AB$3:$AB$21,0),MATCH(B117,'1. Checklist & Certification'!$AC$2:$AK$2,0)),""))) ->  | L117: =IF(AND(D117="FWHG",G117<>""),"",IF(J117>1,INDEX('1. Checklist & Certification'!$BD$3:$BI$20,MATCH(J117,'1. Checklist & Certification'!$BC$3:$BC$20,0),MATCH(C117,'1. Checklist & Certification'!$BD$2:$BI$2,0)),"")) ->  | M117: =IF(AND(D117="FWHG",G117<>""),"",IFERROR(ROUNDUP(IF($L117="","",$L117-IF(LEFT($A117,2)="B*",VLOOKUP($C117,'1. Checklist & Certification'!$D$20:$E$25,2),IF(LEFT($A117,2)="C*",VLOOKUP($C117,'1. Checklist & Certification'!$F$20:$G$25,2),IF(LEFT($A117,2)="D*",VLOOKUP($C117,'1. Checklist & Certification'!$H$20:$I$25,2),IF(LEFT($A117,2)="E*",VLOOKUP($C117,'1. Checklist & Certification'!$J$20:$K$25,2),VLOOKUP($C117,'1. Checklist & Certification'!$I$8:$J$13,2)))))),0),"")) ->  | T117: =IF(AND(D117="FWHG",G117<>""),"",IF(A117="","",IF(OR(B117="",C117="",D117="",I117="",J117="",K117="",N117=""),"#N/A",IF(D117<>"OR",IF(N117>M117,"P-RENT; ","")&IF(B117="Vacant","VACANT",IF(I117=0,"NO INCOME; ",IF(I117>H117,"OVER INCOME; ",""))&IF(B117>=VLOOKUP(C117,'1. Checklist & Certification'!$AN$3:$AO$8,2),"","U-OCCUP")),"")))) ->  | W117: 0 | X117: 0
H118: =IF(AND(D118="FWHG",G118<>""),"",IF(B118="Vacant","Vacant",IF(J118<>"",INDEX('1. Checklist & Certification'!$AC$3:$AK$21,MATCH(J118,'1. Checklist & Certification'!$AB$3:$AB$21,0),MATCH(B118,'1. Checklist & Certification'!$AC$2:$AK$2,0)),""))) ->  | L118: =IF(AND(D118="FWHG",G118<>""),"",IF(J118>1,INDEX('1. Checklist & Certification'!$BD$3:$BI$20,MATCH(J118,'1. Checklist & Certification'!$BC$3:$BC$20,0),MATCH(C118,'1. Checklist & Certification'!$BD$2:$BI$2,0)),"")) ->  | M118: =IF(AND(D118="FWHG",G118<>""),"",IFERROR(ROUNDUP(IF($L118="","",$L118-IF(LEFT($A118,2)="B*",VLOOKUP($C118,'1. Checklist & Certification'!$D$20:$E$25,2),IF(LEFT($A118,2)="C*",VLOOKUP($C118,'1. Checklist & Certification'!$F$20:$G$25,2),IF(LEFT($A118,2)="D*",VLOOKUP($C118,'1. Checklist & Certification'!$H$20:$I$25,2),IF(LEFT($A118,2)="E*",VLOOKUP($C118,'1. Checklist & Certification'!$J$20:$K$25,2),VLOOKUP($C118,'1. Checklist & Certification'!$I$8:$J$13,2)))))),0),"")) ->  | T118: =IF(AND(D118="FWHG",G118<>""),"",IF(A118="","",IF(OR(B118="",C118="",D118="",I118="",J118="",K118="",N118=""),"#N/A",IF(D118<>"OR",IF(N118>M118,"P-RENT; ","")&IF(B118="Vacant","VACANT",IF(I118=0,"NO INCOME; ",IF(I118>H118,"OVER INCOME; ",""))&IF(B118>=VLOOKUP(C118,'1. Checklist & Certification'!$AN$3:$AO$8,2),"","U-OCCUP")),"")))) ->  | W118: 0 | X118: 0
H119: =IF(AND(D119="FWHG",G119<>""),"",IF(B119="Vacant","Vacant",IF(J119<>"",INDEX('1. Checklist & Certification'!$AC$3:$AK$21,MATCH(J119,'1. Checklist & Certification'!$AB$3:$AB$21,0),MATCH(B119,'1. Checklist & Certification'!$AC$2:$AK$2,0)),""))) ->  | L119: =IF(AND(D119="FWHG",G119<>""),"",IF(J119>1,INDEX('1. Checklist & Certification'!$BD$3:$BI$20,MATCH(J119,'1. Checklist & Certification'!$BC$3:$BC$20,0),MATCH(C119,'1. Checklist & Certification'!$BD$2:$BI$2,0)),"")) ->  | M119: =IF(AND(D119="FWHG",G119<>""),"",IFERROR(ROUNDUP(IF($L119="","",$L119-IF(LEFT($A119,2)="B*",VLOOKUP($C119,'1. Checklist & Certification'!$D$20:$E$25,2),IF(LEFT($A119,2)="C*",VLOOKUP($C119,'1. Checklist & Certification'!$F$20:$G$25,2),IF(LEFT($A119,2)="D*",VLOOKUP($C119,'1. Checklist & Certification'!$H$20:$I$25,2),IF(LEFT($A119,2)="E*",VLOOKUP($C119,'1. Checklist & Certification'!$J$20:$K$25,2),VLOOKUP($C119,'1. Checklist & Certification'!$I$8:$J$13,2)))))),0),"")) ->  | T119: =IF(AND(D119="FWHG",G119<>""),"",IF(A119="","",IF(OR(B119="",C119="",D119="",I119="",J119="",K119="",N119=""),"#N/A",IF(D119<>"OR",IF(N119>M119,"P-RENT; ","")&IF(B119="Vacant","VACANT",IF(I119=0,"NO INCOME; ",IF(I119>H119,"OVER INCOME; ",""))&IF(B119>=VLOOKUP(C119,'1. Checklist & Certification'!$AN$3:$AO$8,2),"","U-OCCUP")),"")))) ->  | W119: 0 | X119: 0
H120: =IF(AND(D120="FWHG",G120<>""),"",IF(B120="Vacant","Vacant",IF(J120<>"",INDEX('1. Checklist & Certification'!$AC$3:$AK$21,MATCH(J120,'1. Checklist & Certification'!$AB$3:$AB$21,0),MATCH(B120,'1. Checklist & Certification'!$AC$2:$AK$2,0)),""))) ->  | L120: =IF(AND(D120="FWHG",G120<>""),"",IF(J120>1,INDEX('1. Checklist & Certification'!$BD$3:$BI$20,MATCH(J120,'1. Checklist & Certification'!$BC$3:$BC$20,0),MATCH(C120,'1. Checklist & Certification'!$BD$2:$BI$2,0)),"")) ->  | M120: =IF(AND(D120="FWHG",G120<>""),"",IFERROR(ROUNDUP(IF($L120="","",$L120-IF(LEFT($A120,2)="B*",VLOOKUP($C120,'1. Checklist & Certification'!$D$20:$E$25,2),IF(LEFT($A120,2)="C*",VLOOKUP($C120,'1. Checklist & Certification'!$F$20:$G$25,2),IF(LEFT($A120,2)="D*",VLOOKUP($C120,'1. Checklist & Certification'!$H$20:$I$25,2),IF(LEFT($A120,2)="E*",VLOOKUP($C120,'1. Checklist & Certification'!$J$20:$K$25,2),VLOOKUP($C120,'1. Checklist & Certification'!$I$8:$J$13,2)))))),0),"")) ->  | T120: =IF(AND(D120="FWHG",G120<>""),"",IF(A120="","",IF(OR(B120="",C120="",D120="",I120="",J120="",K120="",N120=""),"#N/A",IF(D120<>"OR",IF(N120>M120,"P-RENT; ","")&IF(B120="Vacant","VACANT",IF(I120=0,"NO INCOME; ",IF(I120>H120,"OVER INCOME; ",""))&IF(B120>=VLOOKUP(C120,'1. Checklist & Certification'!$AN$3:$AO$8,2),"","U-OCCUP")),"")))) ->  | W120: 0 | X120: 0
H121: =IF(AND(D121="FWHG",G121<>""),"",IF(B121="Vacant","Vacant",IF(J121<>"",INDEX('1. Checklist & Certification'!$AC$3:$AK$21,MATCH(J121,'1. Checklist & Certification'!$AB$3:$AB$21,0),MATCH(B121,'1. Checklist & Certification'!$AC$2:$AK$2,0)),""))) ->  | L121: =IF(AND(D121="FWHG",G121<>""),"",IF(J121>1,INDEX('1. Checklist & Certification'!$BD$3:$BI$20,MATCH(J121,'1. Checklist & Certification'!$BC$3:$BC$20,0),MATCH(C121,'1. Checklist & Certification'!$BD$2:$BI$2,0)),"")) ->  | M121: =IF(AND(D121="FWHG",G121<>""),"",IFERROR(ROUNDUP(IF($L121="","",$L121-IF(LEFT($A121,2)="B*",VLOOKUP($C121,'1. Checklist & Certification'!$D$20:$E$25,2),IF(LEFT($A121,2)="C*",VLOOKUP($C121,'1. Checklist & Certification'!$F$20:$G$25,2),IF(LEFT($A121,2)="D*",VLOOKUP($C121,'1. Checklist & Certification'!$H$20:$I$25,2),IF(LEFT($A121,2)="E*",VLOOKUP($C121,'1. Checklist & Certification'!$J$20:$K$25,2),VLOOKUP($C121,'1. Checklist & Certification'!$I$8:$J$13,2)))))),0),"")) ->  | T121: =IF(AND(D121="FWHG",G121<>""),"",IF(A121="","",IF(OR(B121="",C121="",D121="",I121="",J121="",K121="",N121=""),"#N/A",IF(D121<>"OR",IF(N121>M121,"P-RENT; ","")&IF(B121="Vacant","VACANT",IF(I121=0,"NO INCOME; ",IF(I121>H121,"OVER INCOME; ",""))&IF(B121>=VLOOKUP(C121,'1. Checklist & Certification'!$AN$3:$AO$8,2),"","U-OCCUP")),"")))) ->  | W121: 0 | X121: 0
H122: =IF(AND(D122="FWHG",G122<>""),"",IF(B122="Vacant","Vacant",IF(J122<>"",INDEX('1. Checklist & Certification'!$AC$3:$AK$21,MATCH(J122,'1. Checklist & Certification'!$AB$3:$AB$21,0),MATCH(B122,'1. Checklist & Certification'!$AC$2:$AK$2,0)),""))) ->  | L122: =IF(AND(D122="FWHG",G122<>""),"",IF(J122>1,INDEX('1. Checklist & Certification'!$BD$3:$BI$20,MATCH(J122,'1. Checklist & Certification'!$BC$3:$BC$20,0),MATCH(C122,'1. Checklist & Certification'!$BD$2:$BI$2,0)),"")) ->  | M122: =IF(AND(D122="FWHG",G122<>""),"",IFERROR(ROUNDUP(IF($L122="","",$L122-IF(LEFT($A122,2)="B*",VLOOKUP($C122,'1. Checklist & Certification'!$D$20:$E$25,2),IF(LEFT($A122,2)="C*",VLOOKUP($C122,'1. Checklist & Certification'!$F$20:$G$25,2),IF(LEFT($A122,2)="D*",VLOOKUP($C122,'1. Checklist & Certification'!$H$20:$I$25,2),IF(LEFT($A122,2)="E*",VLOOKUP($C122,'1. Checklist & Certification'!$J$20:$K$25,2),VLOOKUP($C122,'1. Checklist & Certification'!$I$8:$J$13,2)))))),0),"")) ->  | T122: =IF(AND(D122="FWHG",G122<>""),"",IF(A122="","",IF(OR(B122="",C122="",D122="",I122="",J122="",K122="",N122=""),"#N/A",IF(D122<>"OR",IF(N122>M122,"P-RENT; ","")&IF(B122="Vacant","VACANT",IF(I122=0,"NO INCOME; ",IF(I122>H122,"OVER INCOME; ",""))&IF(B122>=VLOOKUP(C122,'1. Checklist & Certification'!$AN$3:$AO$8,2),"","U-OCCUP")),"")))) ->  | W122: 0 | X122: 0
H123: =IF(AND(D123="FWHG",G123<>""),"",IF(B123="Vacant","Vacant",IF(J123<>"",INDEX('1. Checklist & Certification'!$AC$3:$AK$21,MATCH(J123,'1. Checklist & Certification'!$AB$3:$AB$21,0),MATCH(B123,'1. Checklist & Certification'!$AC$2:$AK$2,0)),""))) ->  | L123: =IF(AND(D123="FWHG",G123<>""),"",IF(J123>1,INDEX('1. Checklist & Certification'!$BD$3:$BI$20,MATCH(J123,'1. Checklist & Certification'!$BC$3:$BC$20,0),MATCH(C123,'1. Checklist & Certification'!$BD$2:$BI$2,0)),"")) ->  | M123: =IF(AND(D123="FWHG",G123<>""),"",IFERROR(ROUNDUP(IF($L123="","",$L123-IF(LEFT($A123,2)="B*",VLOOKUP($C123,'1. Checklist & Certification'!$D$20:$E$25,2),IF(LEFT($A123,2)="C*",VLOOKUP($C123,'1. Checklist & Certification'!$F$20:$G$25,2),IF(LEFT($A123,2)="D*",VLOOKUP($C123,'1. Checklist & Certification'!$H$20:$I$25,2),IF(LEFT($A123,2)="E*",VLOOKUP($C123,'1. Checklist & Certification'!$J$20:$K$25,2),VLOOKUP($C123,'1. Checklist & Certification'!$I$8:$J$13,2)))))),0),"")) ->  | T123: =IF(AND(D123="FWHG",G123<>""),"",IF(A123="","",IF(OR(B123="",C123="",D123="",I123="",J123="",K123="",N123=""),"#N/A",IF(D123<>"OR",IF(N123>M123,"P-RENT; ","")&IF(B123="Vacant","VACANT",IF(I123=0,"NO INCOME; ",IF(I123>H123,"OVER INCOME; ",""))&IF(B123>=VLOOKUP(C123,'1. Checklist & Certification'!$AN$3:$AO$8,2),"","U-OCCUP")),"")))) ->  | W123: 0 | X123: 0
H124: =IF(AND(D124="FWHG",G124<>""),"",IF(B124="Vacant","Vacant",IF(J124<>"",INDEX('1. Checklist & Certification'!$AC$3:$AK$21,MATCH(J124,'1. Checklist & Certification'!$AB$3:$AB$21,0),MATCH(B124,'1. Checklist & Certification'!$AC$2:$AK$2,0)),""))) ->  | L124: =IF(AND(D124="FWHG",G124<>""),"",IF(J124>1,INDEX('1. Checklist & Certification'!$BD$3:$BI$20,MATCH(J124,'1. Checklist & Certification'!$BC$3:$BC$20,0),MATCH(C124,'1. Checklist & Certification'!$BD$2:$BI$2,0)),"")) ->  | M124: =IF(AND(D124="FWHG",G124<>""),"",IFERROR(ROUNDUP(IF($L124="","",$L124-IF(LEFT($A124,2)="B*",VLOOKUP($C124,'1. Checklist & Certification'!$D$20:$E$25,2),IF(LEFT($A124,2)="C*",VLOOKUP($C124,'1. Checklist & Certification'!$F$20:$G$25,2),IF(LEFT($A124,2)="D*",VLOOKUP($C124,'1. Checklist & Certification'!$H$20:$I$25,2),IF(LEFT($A124,2)="E*",VLOOKUP($C124,'1. Checklist & Certification'!$J$20:$K$25,2),VLOOKUP($C124,'1. Checklist & Certification'!$I$8:$J$13,2)))))),0),"")) ->  | T124: =IF(AND(D124="FWHG",G124<>""),"",IF(A124="","",IF(OR(B124="",C124="",D124="",I124="",J124="",K124="",N124=""),"#N/A",IF(D124<>"OR",IF(N124>M124,"P-RENT; ","")&IF(B124="Vacant","VACANT",IF(I124=0,"NO INCOME; ",IF(I124>H124,"OVER INCOME; ",""))&IF(B124>=VLOOKUP(C124,'1. Checklist & Certification'!$AN$3:$AO$8,2),"","U-OCCUP")),"")))) ->  | W124: 0 | X124: 0
H125: =IF(AND(D125="FWHG",G125<>""),"",IF(B125="Vacant","Vacant",IF(J125<>"",INDEX('1. Checklist & Certification'!$AC$3:$AK$21,MATCH(J125,'1. Checklist & Certification'!$AB$3:$AB$21,0),MATCH(B125,'1. Checklist & Certification'!$AC$2:$AK$2,0)),""))) ->  | L125: =IF(AND(D125="FWHG",G125<>""),"",IF(J125>1,INDEX('1. Checklist & Certification'!$BD$3:$BI$20,MATCH(J125,'1. Checklist & Certification'!$BC$3:$BC$20,0),MATCH(C125,'1. Checklist & Certification'!$BD$2:$BI$2,0)),"")) ->  | M125: =IF(AND(D125="FWHG",G125<>""),"",IFERROR(ROUNDUP(IF($L125="","",$L125-IF(LEFT($A125,2)="B*",VLOOKUP($C125,'1. Checklist & Certification'!$D$20:$E$25,2),IF(LEFT($A125,2)="C*",VLOOKUP($C125,'1. Checklist & Certification'!$F$20:$G$25,2),IF(LEFT($A125,2)="D*",VLOOKUP($C125,'1. Checklist & Certification'!$H$20:$I$25,2),IF(LEFT($A125,2)="E*",VLOOKUP($C125,'1. Checklist & Certification'!$J$20:$K$25,2),VLOOKUP($C125,'1. Checklist & Certification'!$I$8:$J$13,2)))))),0),"")) ->  | T125: =IF(AND(D125="FWHG",G125<>""),"",IF(A125="","",IF(OR(B125="",C125="",D125="",I125="",J125="",K125="",N125=""),"#N/A",IF(D125<>"OR",IF(N125>M125,"P-RENT; ","")&IF(B125="Vacant","VACANT",IF(I125=0,"NO INCOME; ",IF(I125>H125,"OVER INCOME; ",""))&IF(B125>=VLOOKUP(C125,'1. Checklist & Certification'!$AN$3:$AO$8,2),"","U-OCCUP")),"")))) ->  | W125: 0 | X125: 0
H126: =IF(AND(D126="FWHG",G126<>""),"",IF(B126="Vacant","Vacant",IF(J126<>"",INDEX('1. Checklist & Certification'!$AC$3:$AK$21,MATCH(J126,'1. Checklist & Certification'!$AB$3:$AB$21,0),MATCH(B126,'1. Checklist & Certification'!$AC$2:$AK$2,0)),""))) ->  | L126: =IF(AND(D126="FWHG",G126<>""),"",IF(J126>1,INDEX('1. Checklist & Certification'!$BD$3:$BI$20,MATCH(J126,'1. Checklist & Certification'!$BC$3:$BC$20,0),MATCH(C126,'1. Checklist & Certification'!$BD$2:$BI$2,0)),"")) ->  | M126: =IF(AND(D126="FWHG",G126<>""),"",IFERROR(ROUNDUP(IF($L126="","",$L126-IF(LEFT($A126,2)="B*",VLOOKUP($C126,'1. Checklist & Certification'!$D$20:$E$25,2),IF(LEFT($A126,2)="C*",VLOOKUP($C126,'1. Checklist & Certification'!$F$20:$G$25,2),IF(LEFT($A126,2)="D*",VLOOKUP($C126,'1. Checklist & Certification'!$H$20:$I$25,2),IF(LEFT($A126,2)="E*",VLOOKUP($C126,'1. Checklist & Certification'!$J$20:$K$25,2),VLOOKUP($C126,'1. Checklist & Certification'!$I$8:$J$13,2)))))),0),"")) ->  | T126: =IF(AND(D126="FWHG",G126<>""),"",IF(A126="","",IF(OR(B126="",C126="",D126="",I126="",J126="",K126="",N126=""),"#N/A",IF(D126<>"OR",IF(N126>M126,"P-RENT; ","")&IF(B126="Vacant","VACANT",IF(I126=0,"NO INCOME; ",IF(I126>H126,"OVER INCOME; ",""))&IF(B126>=VLOOKUP(C126,'1. Checklist & Certification'!$AN$3:$AO$8,2),"","U-OCCUP")),"")))) ->  | W126: 0 | X126: 0
H127: =IF(AND(D127="FWHG",G127<>""),"",IF(B127="Vacant","Vacant",IF(J127<>"",INDEX('1. Checklist & Certification'!$AC$3:$AK$21,MATCH(J127,'1. Checklist & Certification'!$AB$3:$AB$21,0),MATCH(B127,'1. Checklist & Certification'!$AC$2:$AK$2,0)),""))) ->  | L127: =IF(AND(D127="FWHG",G127<>""),"",IF(J127>1,INDEX('1. Checklist & Certification'!$BD$3:$BI$20,MATCH(J127,'1. Checklist & Certification'!$BC$3:$BC$20,0),MATCH(C127,'1. Checklist & Certification'!$BD$2:$BI$2,0)),"")) ->  | M127: =IF(AND(D127="FWHG",G127<>""),"",IFERROR(ROUNDUP(IF($L127="","",$L127-IF(LEFT($A127,2)="B*",VLOOKUP($C127,'1. Checklist & Certification'!$D$20:$E$25,2),IF(LEFT($A127,2)="C*",VLOOKUP($C127,'1. Checklist & Certification'!$F$20:$G$25,2),IF(LEFT($A127,2)="D*",VLOOKUP($C127,'1. Checklist & Certification'!$H$20:$I$25,2),IF(LEFT($A127,2)="E*",VLOOKUP($C127,'1. Checklist & Certification'!$J$20:$K$25,2),VLOOKUP($C127,'1. Checklist & Certification'!$I$8:$J$13,2)))))),0),"")) ->  | T127: =IF(AND(D127="FWHG",G127<>""),"",IF(A127="","",IF(OR(B127="",C127="",D127="",I127="",J127="",K127="",N127=""),"#N/A",IF(D127<>"OR",IF(N127>M127,"P-RENT; ","")&IF(B127="Vacant","VACANT",IF(I127=0,"NO INCOME; ",IF(I127>H127,"OVER INCOME; ",""))&IF(B127>=VLOOKUP(C127,'1. Checklist & Certification'!$AN$3:$AO$8,2),"","U-OCCUP")),"")))) ->  | W127: 0 | X127: 0
H128: =IF(AND(D128="FWHG",G128<>""),"",IF(B128="Vacant","Vacant",IF(J128<>"",INDEX('1. Checklist & Certification'!$AC$3:$AK$21,MATCH(J128,'1. Checklist & Certification'!$AB$3:$AB$21,0),MATCH(B128,'1. Checklist & Certification'!$AC$2:$AK$2,0)),""))) ->  | L128: =IF(AND(D128="FWHG",G128<>""),"",IF(J128>1,INDEX('1. Checklist & Certification'!$BD$3:$BI$20,MATCH(J128,'1. Checklist & Certification'!$BC$3:$BC$20,0),MATCH(C128,'1. Checklist & Certification'!$BD$2:$BI$2,0)),"")) ->  | M128: =IF(AND(D128="FWHG",G128<>""),"",IFERROR(ROUNDUP(IF($L128="","",$L128-IF(LEFT($A128,2)="B*",VLOOKUP($C128,'1. Checklist & Certification'!$D$20:$E$25,2),IF(LEFT($A128,2)="C*",VLOOKUP($C128,'1. Checklist & Certification'!$F$20:$G$25,2),IF(LEFT($A128,2)="D*",VLOOKUP($C128,'1. Checklist & Certification'!$H$20:$I$25,2),IF(LEFT($A128,2)="E*",VLOOKUP($C128,'1. Checklist & Certification'!$J$20:$K$25,2),VLOOKUP($C128,'1. Checklist & Certification'!$I$8:$J$13,2)))))),0),"")) ->  | T128: =IF(AND(D128="FWHG",G128<>""),"",IF(A128="","",IF(OR(B128="",C128="",D128="",I128="",J128="",K128="",N128=""),"#N/A",IF(D128<>"OR",IF(N128>M128,"P-RENT; ","")&IF(B128="Vacant","VACANT",IF(I128=0,"NO INCOME; ",IF(I128>H128,"OVER INCOME; ",""))&IF(B128>=VLOOKUP(C128,'1. Checklist & Certification'!$AN$3:$AO$8,2),"","U-OCCUP")),"")))) ->  | W128: 0 | X128: 0
